{"text_format":"1","workbook":"xlsx","n_sheets":18,"sheets":["Datos Generales","Info General","datos","F01","F02","F03","F04","F05","F06a","F06b","F06c","Formato 6 d)","F06d","F07a","F07b","F07c","F07d","F08"],"not_rendered":{"charts":0,"images":4,"macros":1,"external_links":0,"defined_names":199,"comments":0,"pivot_tables":0},"unopened":[],"bounds":{"document_bytes":16777216,"sheet_cells":100000,"rows_first":2000,"rows_last":500,"rows_between":2000,"halvings":0,"cell_chars":16384,"cell_head_chars":4096},"cells_cut":0,"cells_raw":0,"read":"whole","date_system":"1900"}

{"sheet":"Datos Generales","index":0,"n_rows":11,"n_cols":3,"rows_kept":11,"cut":false,"hidden":false,"merged":[[0,0,0,4],[2,2,2,3]]}
["ESTADOS FINANCIEROS - DATOS GENERALES"]
[]
[null,"NOMBRE DEL ENTE PÚBLICO","Municipio de Santiago Maravatio"]
[]
[null,"ENTIDAD FEDERATIVA"]
[]
[null,"MUNICIPIO"]
[]
[null,"AÑO DEL INFORME"]
[]
[null,"PERIODO DE INFORME"]

{"sheet":"Info General","index":1,"n_rows":33,"n_cols":9,"rows_kept":33,"cut":false,"hidden":true,"merged":[]}
[]
[]
[null,"ESTADOS FINANCIEROS - DATOS GENERALES"]
[]
[]
[null,"NOMBRE DEL ENTE PÚBLICO",{"$f":"IF(TRIM(ENTE)=\"\", IF(MUNICIPIO=\"No Aplica\",IF(ENTIDAD_FEDERATIVA=\"Ciudad de México\",ENTIDAD_FEDERATIVA,CONCATENATE(\"Gobierno del Estado de \",ENTIDAD_FEDERATIVA)),CONCATENATE(TRIM(ENTE),IF(ENTIDAD_FEDERATIVA=\"Ciudad de México\",\"Delegación \",\"Municipio de \"),MUNICIPIO, \", \",IF(ENTIDAD_FEDERATIVA=\"Ciudad de México\",ENTIDAD_FEDERATIVA,CONCATENATE(\"Gobierno del Estado de \",ENTIDAD_FEDERATIVA)))),CONCATENATE(TRIM(ENTE),\", \",IF(ENTIDAD_FEDERATIVA=\"Ciudad de México\",ENTIDAD_FEDERATIVA,CONCATENATE(\"Gobierno del Estado de \",ENTIDAD_FEDERATIVA))))","v":"Municipio de Santiago Maravatio, Gobierno del Estado de Guanajuato"}]
[null,null,{"$f":"CONCATENATE(ENTE_PUBLICO,\" (a)\")","v":"Municipio de Santiago Maravatio, Gobierno del Estado de Guanajuato (a)"}]
[null,"ENTIDAD FEDERATIVA","Guanajuato"]
[]
[null,"MUNICIPIO","Santiago Maravatío"]
[null,null,{"$f":"IF(MUNICIPIO=\"No Aplica\", IF(ENTIDAD_FEDERATIVA=\"Ciudad de México\",ENTIDAD_FEDERATIVA,CONCATENATE(\"Gobierno del Estado de \",ENTIDAD_FEDERATIVA)),CONCATENATE(IF(ENTIDAD_FEDERATIVA=\"Ciudad de México\",\"Delegación \",\"Municipio de \"), MUNICIPIO, IF(ENTIDAD_FEDERATIVA=\"Ciudad de México\",CONCATENATE(\", \",ENTIDAD_FEDERATIVA),CONCATENATE(\", Gobierno del Estado de \",ENTIDAD_FEDERATIVA))))","v":"Municipio de Santiago Maravatío, Gobierno del Estado de Guanajuato"}]
[null,"AÑO DEL INFORME",2021]
[]
[null,"PERIODO DE INFORME","Al 31 de diciembre de 2020 y al 31 de diciembre de 2021 (b)"]
[null,null,4]
[null,null,"Del 1 de enero al 31 de diciembre de 2021 (b)"]
[]
[null,null,null,{"$f":"IF(PERIODO=1,CONCATENATE(\"Monto pagado de la inversión al 30 de marzo de \",ANIO_INFORME,\" (k)\"),IF(PERIODO=2,CONCATENATE(\"Monto pagado de la inversión al 30 de junio de \",ANIO_INFORME,\" (k)\"),IF(PERIODO=3,CONCATENATE(\"Monto pagado de la inversión al 30 de septiembre de \",ANIO_INFORME,\" (k)\"),IF(PERIODO=4,CONCATENATE(\"Monto pagado de la inversión al 31 de diciembre de \",ANIO_INFORME,\" (k)\")))))","v":"Monto pagado de la inversión al 31 de diciembre de 2021 (k)"},{"$f":"IF(PERIODO=1,CONCATENATE(\"Monto pagado de la inversión actualizado al 30 de marzo de \",ANIO_INFORME,\" (l)\"),IF(PERIODO=2,CONCATENATE(\"Monto pagado de la inversión actualizado al 30 de junio de \",ANIO_INFORME,\" (l)\"),IF(PERIODO=3,CONCATENATE(\"Monto pagado de la inversión actualizado al 30 de septiembre de \",ANIO_INFORME,\" (l)\"),IF(PERIODO=4,CONCATENATE(\"Monto pagado de la inversión actualizado al 31 de diciembre de \",ANIO_INFORME,\" (l)\")))))","v":"Monto pagado de la inversión actualizado al 31 de diciembre de 2021 (l)"},{"$f":"IF(PERIODO=1,CONCATENATE(\"Saldo pendiente por pagar de la inversión al 30 de marzo de \",ANIO_INFORME,\" (m = g – l)\"),IF(PERIODO=2,CONCATENATE(\"Saldo pendiente por pagar de la inversión al 30 de junio de \",ANIO_INFORME,\" (m = g – l)\"),IF(PERIODO=3,CONCATENATE(\"Saldo pendiente por pagar de la inversión al 30 de septiembre de \",ANIO_INFORME,\" (m = g – l)\"),IF(PERIODO=4,CONCATENATE(\"Saldo pendiente por pagar de la inversión al 31 de diciembre de \",ANIO_INFORME,\" (m = g – l)\")))))","v":"Saldo pendiente por pagar de la inversión al 31 de diciembre de 2021 (m = g – l)"}]
[]
[null,null,null,{"$f":"CONCATENATE(ANIO_INFORME, \" (d)\")","v":"2021 (d)"},{"$f":"CONCATENATE(\"31 de diciembre de \",ANIO_INFORME-1, \" (e)\")","v":"31 de diciembre de 2020 (e)"},{"$f":"CONCATENATE(\"Saldo al 31 de diciembre de \",ANIO_INFORME-1, \" (d)\")","v":"Saldo al 31 de diciembre de 2020 (d)"}]
[]
[]
[null,null,null,{"$f":"ANIO_INFORME + 1","v":2022},{"$f":"CONCATENATE(ANIO_INFORME + 2, \" (d)\")","v":"2023 (d)"},{"$f":"CONCATENATE(ANIO_INFORME + 3, \" (d)\")","v":"2024 (d)"},{"$f":"CONCATENATE(ANIO_INFORME + 4, \" (d)\")","v":"2025 (d)"},{"$f":"CONCATENATE(ANIO_INFORME + 5, \" (d)\")","v":"2026 (d)"},{"$f":"CONCATENATE(ANIO_INFORME + 6, \" (d)\")","v":"2027 (d)"}]
[]
[null,null,null,{"$f":"CONCATENATE(ANIO_INFORME - 5, \" \",CHAR(185),\" (c)\")","v":"2016 ¹ (c)"},{"$f":"CONCATENATE(ANIO_INFORME - 4, \" \",CHAR(185),\" (c)\")","v":"2017 ¹ (c)"},{"$f":"CONCATENATE(ANIO_INFORME - 3, \" \",CHAR(185),\" (c)\")","v":"2018 ¹ (c)"},{"$f":"CONCATENATE(ANIO_INFORME - 2, \" \",CHAR(185),\" (c)\")","v":"2019 ¹ (c)"},{"$f":"CONCATENATE(ANIO_INFORME - 1, \" \",CHAR(185),\" (c)\")","v":"2020 ¹ (c)"},{"$f":"ANIO_INFORME","v":2021}]
[]
[]
[]
[null,null,null,"MIN_VALUE","MAX_VALUE"]
[null,null,null,-1.7976931348623099E+100,1.7976931348623099E+100]
[]
[null,null,null,"MIN_FECHA","MAX_FECHA"]
[null,null,null,"2000-01-01","2050-12-31"]

{"sheet":"datos","index":2,"n_rows":572,"n_cols":67,"rows_kept":572,"cut":false,"hidden":true,"merged":[]}
[null,"ENTIDAD FEDERATIVA",null,null,"Aguascalientes",null,"Baja California",null,"Baja California Sur",null,"Campeche",null,"Coahuila de Zaragoza",null,"Colima",null,"Chiapas",null,"Chihuahua",null,"Ciudad de México",null,"Durango",null,"Guanajuato",null,"Guerrero",null,"Hidalgo",null,"Jalisco",null,"México",null,"Michoacán de Ocampo",null,"Morelos",null,"Nayarit",null,"Nuevo León",null,"Oaxaca",null,"Puebla",null,"Querétaro",null,"Quintana Roo",null,"San Luis Potosí",null,"Sinaloa",null,"Sonora",null,"Tabasco",null,"Tamaulipas",null,"Tlaxcala",null,"Veracruz de Ignacio de la Llave",null,"Yucatán",null,"Zacatecas"]
[1,"Aguascalientes",null,0,"No Aplica",0,"No Aplica",0,"No Aplica",0,"No Aplica",0,"No Aplica",0,"No Aplica",0,"No Aplica",0,"No Aplica",0,"No Aplica",0,"No Aplica",0,"No Aplica",0,"No Aplica",0,"No Aplica",0,"No Aplica",0,"No Aplica",0,"No Aplica",0,"No Aplica",0,"No Aplica",0,"No Aplica",0,"No Aplica",0,"No Aplica",0,"No Aplica",0,"No Aplica",0,"No Aplica",0,"No Aplica",0,"No Aplica",0,"No Aplica",0,"No Aplica",0,"No Aplica",0,"No Aplica",0,"No Aplica",0,"No Aplica"]
[2,"Baja California",null,1,"Aguascalientes",2,"Ensenada",3,"Comondú",4,"Calakmul",5,"Abasolo",6,"Armería",7,"Acacoyagua",8,"Ahumada",9,"Álvaro Obregón",10,"Canatlán",11,"Abasolo",12,"Acapulco de Juárez",13,"Acatlán",14,"Acatic",15,"Acambay ",16,"Acuitzio",17,"Amacuzac",18,"Acaponeta",19,"Abasolo",20,"Abejones",21,"Acajete",22,"Amealco de Bonfil",23,"Bacalar",24,"Ahualulco",25,"Ahome",26,"Aconchi",27,"Balancán",28,"Abasolo",29,"Acuamanala de Miguel Hidalgo",30,"Acajete",31,"Abalá",32,"Apozol"]
[3,"Baja California Sur",null,1,"Asientos",2,"Mexicali",3,"La Paz",4,"Calkiní",5,"Acuña",6,"Colima",7,"Acala",8,"Aldama",9,"Azcapotzalco",10,"Canelas",11,"Acámbaro",12,"Acatepec",13,"Acaxochitlán",14,"Acatlán de Juárez",15,"Acolman",16,"Aguililla",17,"Atlatlahucan",18,"Ahuacatlán",19,"Agualeguas",20,"Acatlán de Pérez Figueroa",21,"Acateno",22,"Arroyo Seco",23,"Benito Juárez",24,"Alaquines",25,"Angostura",26,"Agua Prieta",27,"Cárdenas",28,"Aldama",29,"Amaxac de Guerrero",30,"Acatlán",31,"Acanceh",32,"Apulco"]
[4,"Campeche",null,1,"Calvillo",2,"Playas de Rosarito",3,"Loreto",4,"Campeche",5,"Allende",6,"Comala",7,"Acapetahua",8,"Allende",9,"Benito Juárez",10,"Coneto de Comonfort",11,"Apaseo el Alto",12,"Ahuacuotzingo",13,"Actopan",14,"Ahualulco de Mercado",15,"Aculco",16,"Álvaro Obregón",17,"Axochiapan",18,"Amatlán de Cañas",19,"Allende",20,"Ánimas Trujano",21,"Acatlán",22,"Cadereyta de Montes",23,"Cozumel",24,"Aquismón",25,"Badiraguato",26,"Alamos",27,"Centla",28,"Altamira",29,"Apetatitlán de Antonio Carvajal",30,"Acayucan",31,"Akil",32,"Atolinga"]
[5,"Coahuila de Zaragoza",null,1,"Cosío",2,"Tecate",3,"Los Cabos",4,"Candelaria",5,"Arteaga",6,"Coquimatlán",7,"Aldama",8,"Aquiles Serdán",9,"Coyoacán",10,"Cuencamé",11,"Apaseo el Grande",12,"Ajuchitlán del Progreso",13,"Agua Blanca de Iturbide",14,"Amacueca",15,"Almoloya de Alquisiras",16,"Angamacutiro",17,"Ayala",18,"Bahía de Banderas",19,"Anáhuac",20,"Asunción Cacalotepec",21,"Acatzingo",22,"Colón",23,"Felipe Carrillo Puerto",24,"Armadillo de los Infante",25,"Choix",26,"Altar",27,"Centro",28,"Antiguo Morelos",29,"Apizaco",30,"Actopan",31,"Baca",32,"Benito Juárez"]
[6,"Colima",null,1,"El Llano",2,"Tijuana",3,"Mulegé",4,"Carmen",5,"Candela",6,"Cuauhtémoc",7,"Altamirano",8,"Ascensión",9,"Cuajimalpa de Morelos",10,"Durango",11,"Atarjea",12,"Alcozauca de Guerrero",13,"Ajacuba",14,"Amatitán",15,"Almoloya de Juárez",16,"Angangueo",17,"Coatlán del Río",18,"Compostela",19,"Apodaca",20,"Asunción Cuyotepeji",21,"Acteopan",22,"Corregidora",23,"Isla Mujeres",24,"Axtla de Terrazas",25,"Concordia",26,"Arivechi",27,"Comalcalco",28,"Burgos",29,"Atlangatepec",30,"Acula",31,"Bokobá",32,"Calera"]
[7,"Chiapas",null,1,"Jesús María",null,null,null,null,4,"Champotón",5,"Castaños",6,"Ixtlahuacán",7,"Amatán",8,"Bachíniva",9,"Cuauhtémoc",10,"El Oro",11,"Celaya",12,"Alpoyeca",13,"Alfajayucan",14,"Ameca",15,"Almoloya del Río",16,"Apatzingán",17,"Cuautla",18,"Del Nayar",19,"Aramberri",20,"Asunción Ixtaltepec",21,"Ahuacatlán",22,"El Marqués",23,"José María Morelos",24,"Cárdenas",25,"Cosalá",26,"Arizpe",27,"Cunduacán",28,"Bustamante",29,"Atltzayanca",30,"Acultzingo",31,"Buctzotz",32,"Cañitas de Felipe Pescador"]
[8,"Chihuahua",null,1,"Pabellón de Arteaga",null,null,null,null,4,"Escárcega",5,"Cuatro Ciénegas",6,"Manzanillo",7,"Amatenango de la Frontera",8,"Balleza",9,"Gustavo A. Madero",10,"General Simón Bolívar",11,"Comonfort",12,"Apaxtla",13,"Almoloya",14,"Arandas",15,"Amanalco",16,"Aporo",17,"Cuernavaca",18,"Huajicori",19,"Bustamante",20,"Asunción Nochixtlán",21,"Ahuatlán",22,"Ezequiel Montes",23,"Lázaro Cárdenas",24,"Catorce",25,"Culiacán",26,"Atil",27,"Emiliano Zapata",28,"Camargo",29,"Benito Juárez",30,"Agua Dulce",31,"Cacalchén",32,"Chalchihuites"]
[9,"Ciudad de México",null,1,"Rincón de Romos",null,null,null,null,4,"Hecelchakán",5,"Escobedo",6,"Minatitlán",7,"Amatenango del Valle",8,"Batopilas",9,"Iztacalco",10,"Gómez Palacio",11,"Coroneo",12,"Arcelia",13,"Apan",14,"Atemajac de Brizuela",15,"Amatepec",16,"Aquila",17,"Emiliano Zapata",18,"Ixtlán del Río",19,"Cadereyta Jiménez",20,"Asunción Ocotlán",21,"Ahuazotepec",22,"Huimilpan",23,"Othón P. Blanco",24,"Cedral",25,"El Fuerte",26,"Bacadéhuachi",27,"Huimanguillo",28,"Casas",29,"Calpulalpan",30,"Álamo Temapache",31,"Calotmul",32,"Concepción del Oro"]
[10,"Durango",null,1,"San Francisco de los Romo",null,null,null,null,4,"Hopelchén",5,"Francisco I. Madero",6,"Tecomán",7,"Angel Albino Corzo",8,"Bocoyna",9,"Iztapalapa",10,"Guadalupe Victoria",11,"Cortazar",12,"Atenango del Río",13,"Atitalaquia",14,"Atengo",15,"Amecameca",16,"Ario",17,"Huitzilac",18,"Jala",19,"Carmen",20,"Asunción Tlacolulita",21,"Ahuehuetitla",22,"Jalpan de Serra",23,"Solidaridad",24,"Cerritos",25,"Elota",26,"Bacanora",27,"Jalapa",28,"Ciudad Madero",29,"Chiautempan",30,"Alpatláhuac",31,"Cansahcab",32,"Cuauhtémoc"]
[11,"Guanajuato",null,1,"San José de Gracia",null,null,null,null,4,"Palizada",5,"Frontera",6,"Villa de Álvarez",7,"Arriaga",8,"Buenaventura",9,"La Magdalena Contreras",10,"Guanaceví",11,"Cuerámaro",12,"Atlamajalcingo del Monte",13,"Atlapexco",14,"Atenguillo",15,"Apaxco",16,"Arteaga",17,"Jantetelco",18,"La Yesca",19,"Cerralvo",20,"Ayoquezco de Aldama",21,"Ajalpan",22,"Landa de Matamoros",23,"Tulum",24,"Cerro de San Pedro",25,"Escuinapa",26,"Bacerac",27,"Jalpa de Méndez",28,"Cruillas",29,"Contla de Juan Cuamatzi",30,"Alto Lucero de Gutiérrez Barrios",31,"Cantamayec",32,"El Plateado de Joaquín Amaro"]
[12,"Guerrero",null,1,"Tepezalá",null,null,null,null,4,"Tenabo",5,"General Cepeda",null,null,7,"Bejucal de Ocampo",8,"Camargo",9,"Miguel Hidalgo",10,"Hidalgo",11,"Doctor Mora",12,"Atlixtac",13,"Atotonilco de Tula",14,"Atotonilco el Alto",15,"Atenco",16,"Briseñas",17,"Jiutepec",18,"Rosamorada",19,"China",20,"Ayotzintepec",21,"Albino Zertuche",22,"Pedro Escobedo",null,null,24,"Charcas",25,"Guamuchil",26,"Bacoachi",27,"Jonuta",28,"El Mante",29,"Cuapiaxtla",30,"Altotonga",31,"Celestún",32,"El Salvador"]
[13,"Hidalgo",null,null,null,null,null,null,null,null,null,5,"Guerrero",null,null,7,"Belizario Domínguez",8,"Carichí",9,"Milpa Alta",10,"Indé",11,"Dolores Hidalgo Cuna de la Independencia Nacional",12,"Atoyac de Álvarez",13,"Atotonilco el Grande",14,"Atoyac",15,"Atizapán",16,"Buenavista",17,"Jojutla",18,"Ruíz",19,"Ciénega de Flores",20,"Calihualá",21,"Aljojuca",22,"Peñamiller",null,null,24,"Ciudad del Maíz",25,"Guasave",26,"Bácum",27,"Macuspana",28,"Gómez Farías",29,"Cuaxomulco",30,"Alvarado",31,"Cenotillo",32,"Fresnillo"]
[14,"Jalisco",null,null,null,null,null,null,null,null,null,5,"Hidalgo",null,null,7,"Bella Vista",8,"Casas Grandes",9,"Tláhuac",10,"Lerdo",11,"Guanajuato",12,"Ayutla de los Libres",13,"Calnali",14,"Autlán de Navarro",15,"Atizapán de Zaragoza",16,"Carácuaro",17,"Jonacatepec",18,"San Blas",19,"Dr. Arroyo",20,"Candelaria Loxicha",21,"Altepexi",22,"Pinal de Amoles",null,null,24,"Ciudad Fernández",25,"Mazatlán",26,"Banámichi",27,"Nacajuca",28,"González",29,"El Carmen Tequexquitla",30,"Amatitlán",31,"Chacsinkín",32,"Genaro Codina"]
[15,"México",null,null,null,null,null,null,null,null,null,5,"Jiménez",null,null,7,"Benemérito de las Américas",8,"Chihuahua",9,"Tlalpan",10,"Mapimí",11,"Huanímaro",12,"Azoyú",13,"Cardonal",14,"Ayotlán",15,"Atlacomulco",16,"Charapan",17,"Mazatepec",18,"San Pedro Lagunillas",19,"Dr. Coss",20,"Capulálpam de Méndez",21,"Amixtlán",22,"Querétaro",null,null,24,"Ciudad Valles",25,"Mocorito",26,"Baviácora",27,"Paraíso",28,"Güémez",29,"Emiliano Zapata",30,"Amatlán de los Reyes",31,"Chankom",32,"General Enrique Estrada"]
[16,"Michoacán de Ocampo",null,null,null,null,null,null,null,null,null,5,"Juárez",null,null,7,"Berriozábal",8,"Chínipas",9,"Venustiano Carranza",10,"Mezquital",11,"Irapuato",12,"Benito Juárez",13,"Chapantongo",14,"Ayutla",15,"Atlautla",16,"Charo",17,"Miacatlán",18,"Santa María del Oro",19,"Dr. González",20,"Chahuites",21,"Amozoc",22,"San Joaquín",null,null,24,"Coxcatlán",25,"Navolato",26,"Bavispe",27,"Tacotalpa",28,"Guerrero",29,"Españita",30,"Angel R. Cabada",31,"Chapab",32,"General Francisco R. Murguía"]
[17,"Morelos",null,null,null,null,null,null,null,null,null,5,"Lamadrid",null,null,7,"Bochil",8,"Coronado",9,"Xochimilco",10,"Nazas",11,"Jaral del Progreso",12,"Buenavista de Cuéllar",13,"Chapulhuacán",14,"Bolaños",15,"Axapusco",16,"Chavinda",17,"Ocuituco",18,"Santiago Ixcuintla",19,"Galeana",20,"Chalcatongo de Hidalgo",21,"Aquixtla",22,"San Juan del Río",null,null,24,"Ebano",25,"Rosario",26,"Benito Juárez",27,"Teapa",28,"Gustavo Díaz Ordaz",29,"Huamantla",30,"Apazapan",31,"Chemax",32,"General Pánfilo Natera"]
[18,"Nayarit",null,null,null,null,null,null,null,null,null,5,"Matamoros",null,null,7,"Cacahoatán",8,"Coyame del Sotol",null,null,10,"Nombre de Dios",11,"Jerécuaro",12,"Chilapa de Álvarez",13,"Chilcuautla",14,"Cabo Corrientes",15,"Ayapango",16,"Cherán",17,"Puente de Ixtla",18,"Tecuala",19,"García",20,"Chiquihuitlán de Benito Juárez",21,"Atempan",22,"Tequisquiapan",null,null,24,"El Naranjo",25,"Salvador Alvarado",26,"Benjamín Hill",27,"Tenosique",28,"Hidalgo",29,"Hueyotlipan",30,"Aquila",31,"Chichimilá",32,"Guadalupe"]
[19,"Nuevo León",null,null,null,null,null,null,null,null,null,5,"Monclova",null,null,7,"Catazajá",8,"Cuauhtémoc",null,null,10,"Nuevo Ideal",11,"León",12,"Chilpancingo de los Bravo",13,"Cuautepec de Hinojosa",14,"Cañadas de Obregón",15,"Calimaya",16,"Chilchota",17,"Temixco",18,"Tepic",19,"Gral. Bravo",20,"Ciénega de Zimatlán",21,"Atexcal",22,"Tolimán",null,null,24,"Guadalcázar",25,"San Ignacio",26,"Caborca",null,null,28,"Jaumave",29,"Ixtacuixtla de Mariano Matamoros",30,"Astacinga",31,"Chicxulub Pueblo",32,"Huanusco"]
[20,"Oaxaca",null,null,null,null,null,null,null,null,null,5,"Morelos",null,null,7,"Chalchihuitán",8,"Cusihuiriachi",null,null,10,"Ocampo",11,"Manuel Doblado",12,"Coahuayutla de José María Izazaga",13,"El Arenal",14,"Casimiro Castillo",15,"Capulhuac",16,"Chinicuila",17,"Temoac",18,"Tuxpan",19,"Gral. Escobedo",20,"Ciudad Ixtepec",21,"Atlequizayan",null,null,null,null,24,"Huehuetlán",25,"Sinaloa",26,"Cajeme",null,null,28,"Jiménez",29,"Ixtenco",30,"Atlahuilco",31,"Chikindzonot",32,"Jalpa"]
[21,"Puebla",null,null,null,null,null,null,null,null,null,5,"Múzquiz",null,null,7,"Chamula",8,"Delicias",null,null,10,"Otáez",11,"Moroleón",12,"Cochoapa el Grande",13,"Eloxochitlán",14,"Chapala",15,"Chalco",16,"Chucándiro",17,"Tepalcingo",18,"Xalisco",19,"Gral. Terán",20,"Coatecas Altas",21,"Atlixco",null,null,null,null,24,"Lagunillas",null,null,26,"Cananea",null,null,28,"Llera",29,"La Magdalena Tlaltelulco",30,"Atoyac",31,"Chocholá",32,"Jerez"]
[22,"Querétaro",null,null,null,null,null,null,null,null,null,5,"Nadadores",null,null,7,"Chanal",8,"Dr. Belisario Domínguez",null,null,10,"Pánuco de Coronado",11,"Ocampo",12,"Cocula",13,"Emiliano Zapata",14,"Chimaltitán",15,"Chapa de Mota",16,"Churintzio",17,"Tepoztlán",null,null,19,"Gral. Treviño",20,"Coicoyán de las Flores",21,"Atoyatempan",null,null,null,null,24,"Matehuala",null,null,26,"Carbó",null,null,28,"Mainero",29,"Lázaro Cárdenas",30,"Atzacan",31,"Chumayel",32,"Jiménez del Teul"]
[23,"Quintana Roo",null,null,null,null,null,null,null,null,null,5,"Nava",null,null,7,"Chapultenango",8,"El Tule",null,null,10,"Peñón Blanco",11,"Pénjamo",12,"Copala",13,"Epazoyucan",14,"Chiquilistlán",15,"Chapultepec",16,"Churumuco",17,"Tetecala",null,null,19,"Gral. Zaragoza",20,"Concepción Buenavista",21,"Atzala",null,null,null,null,24,"Matlapa",null,null,26,"Cucurpe",null,null,28,"Matamoros",29,"Mazatecochco de José María Morelos",30,"Atzalan",31,"Conkal",32,"Juan Aldama"]
[24,"San Luis Potosí",null,null,null,null,null,null,null,null,null,5,"Ocampo",null,null,7,"Chenalhó",8,"Galeana",null,null,10,"Poanas",11,"Pueblo Nuevo",12,"Copalillo",13,"Francisco I. Madero",14,"Cihuatlán",15,"Chiautla",16,"Coahuayana",17,"Tetela del Volcán",null,null,19,"Gral. Zuazua",20,"Concepción Pápalo",21,"Atzitzihuacán",null,null,null,null,24,"Mexquitic de Carmona",null,null,26,"Cumpas",null,null,28,"Méndez",29,"Muñoz de Domingo Arenas",30,"Ayahualulco",31,"Cousey",32,"Juchipila"]
[25,"Sinaloa",null,null,null,null,null,null,null,null,null,5,"Parras",null,null,7,"Chiapa de Corzo",8,"Gómez Farías",null,null,10,"Pueblo Nuevo",11,"Purísima del Rincón",12,"Copanatoyac",13,"Huasca de Ocampo",14,"Cocula",15,"Chicoloapan",16,"Coalcomán de Vázquez Pallares",17,"Tlalnepantla",null,null,19,"Guadalupe",20,"Constancia del Rosario",21,"Atzitzintla",null,null,null,null,24,"Moctezuma",null,null,26,"Divisaderos",null,null,28,"Mier",29,"Nanacamilpa de Mariano Arista",30,"Banderilla",31,"Cuncunul",32,"Loreto"]
[26,"Sonora",null,null,null,null,null,null,null,null,null,5,"Piedras Negras",null,null,7,"Chiapilla",8,"Gran Morelos",null,null,10,"Rodeo",11,"Romita",12,"Coyuca de Benítez",13,"Huautla",14,"Colotlán",15,"Chiconcuac",16,"Coeneo",17,"Tlaltizapán de Zapata",null,null,19,"Hidalgo",20,"Cosolapa",21,"Axutla",null,null,null,null,24,"Rayón",null,null,26,"Empalme",null,null,28,"Miguel Alemán",29,"Natívitas",30,"Benito Juárez",31,"Cuzamá",32,"Luis Moya"]
[27,"Tabasco",null,null,null,null,null,null,null,null,null,5,"Progreso",null,null,7,"Chicoasén",8,"Guachochi",null,null,10,"San Bernardo",11,"Salamanca",12,"Coyuca de Catalán",13,"Huazalingo",14,"Concepción de Buenos Aires",15,"Chimalhuacán",16,"Cojumatlán de Régules",17,"Tlaquiltenango",null,null,19,"Higueras",20,"Cosoltepec",21,"Ayotoxco de Guerrero",null,null,null,null,24,"Rioverde",null,null,26,"Etchojoa",null,null,28,"Miquihuana",29,"Panotla",30,"Boca del Río",31,"Dzán",32,"Mazapil"]
[28,"Tamaulipas",null,null,null,null,null,null,null,null,null,5,"Ramos Arizpe",null,null,7,"Chicomuselo",8,"Guadalupe",null,null,10,"San Dimas",11,"Salvatierra",12,"Cuajinicuilapa",13,"Huehuetla",14,"Cuautitlán de García Barragán",15,"Coacalco de Berriozábal",16,"Contepec",17,"Tlayacapan",null,null,19,"Hualahuises",20,"Cuilápam de Guerrero",21,"Calpan",null,null,null,null,24,"Salinas",null,null,26,"Fronteras",null,null,28,"Nuevo Laredo",29,"Papalotla de Xicohténcatl",30,"Calcahualco",31,"Dzemul",32,"Melchor Ocampo"]
[29,"Tlaxcala",null,null,null,null,null,null,null,null,null,5,"Sabinas",null,null,7,"Chilón",8,"Guadalupe y Calvo",null,null,10,"San Juan de Guadalupe",11,"San Diego de la Unión",12,"Cualác",13,"Huejutla de Reyes",14,"Cuautla",15,"Coatepec Harinas",16,"Copándaro",17,"Totolapan",null,null,19,"Iturbide",20,"Cuyamecalco Villa de Zaragoza",21,"Caltepec",null,null,null,null,24,"San Antonio",null,null,26,"General Plutarco Elías Calles",null,null,28,"Nuevo Morelos",29,"San Damián Texóloc",30,"Camarón de Tejeda",31,"Dzidzantún",32,"Mezquital del Oro"]
[30,"Veracruz de Ignacio de la Llave",null,null,null,null,null,null,null,null,null,5,"Sacramento",null,null,7,"Cintalapa",8,"Guazapares",null,null,10,"San Juan del Río",11,"San Felipe",12,"Cuautepec",13,"Huichapan",14,"Cuquío",15,"Cocotitlán",16,"Cotija",17,"Xochitepec",null,null,19,"Juárez",20,"El Barrio de la Soledad",21,"Camocuautla",null,null,null,null,24,"San Ciro de Acosta",null,null,26,"Granados",null,null,28,"Ocampo",29,"San Francisco Tetlanohcan",30,"Camerino Z. Mendoza",31,"Dzilam de Bravo",32,"Miguel Auza"]
[31,"Yucatán",null,null,null,null,null,null,null,null,null,5,"Saltillo",null,null,7,"Coapilla",8,"Guerrero",null,null,10,"San Luis del Cordero",11,"San Francisco del Rincón",12,"Cuetzala del Progreso",13,"Ixmiquilpan",14,"Degollado",15,"Coyotepec",16,"Cuitzeo",17,"Yautepec",null,null,19,"Lampazos de Naranjo",20,"El Espinal",21,"Cañada Morelos",null,null,null,null,24,"San Luis Potosí",null,null,26,"Guaymas",null,null,28,"Padilla",29,"San Jerónimo Zacualpan",30,"Carlos A. Carrillo",31,"Dzilam González",32,"Momax"]
[32,"Zacatecas",null,null,null,null,null,null,null,null,null,5,"San Buenaventura",null,null,7,"Comitán de Domínguez",8,"Hidalgo del Parral",null,null,10,"San Pedro del Gallo",11,"San José Iturbide",12,"Cutzamala de Pinzón",13,"Jacala de Ledezma",14,"Ejutla",15,"Cuautitlán",16,"Ecuandureo",17,"Yecapixtla",null,null,19,"Linares",20,"Eloxochitlán de Flores Magón",21,"Caxhuacan",null,null,null,null,24,"San Martín Chalchicuautla",null,null,26,"Hermosillo",null,null,28,"Palmillas",29,"San José Teacalco",30,"Carrillo Puerto",31,"Dzitás",32,"Monte Escobedo"]
[null,null,null,null,null,null,null,null,null,null,null,5,"San Juan de Sabinas",null,null,7,"Copainalá",8,"Huejotitán",null,null,10,"Santa Clara",11,"San Luis de la Paz",12,"Eduardo Neri",13,"Jaltocán",14,"El Arenal",15,"Cuautitlán Izcalli",16,"Epitacio Huerta",17,"Zacatepec",null,null,19,"Los Aldamas",20,"Fresnillo de Trujano",21,"Chalchicomula de Sesma",null,null,null,null,24,"San Nicolás Tolentino",null,null,26,"Huachinera",null,null,28,"Reynosa",29,"San Juan Huactzinco",30,"Castillo de Teayo",31,"Dzoncauich",32,"Morelos"]
[null,null,null,null,null,null,null,null,null,null,null,5,"San Pedro",null,null,7,"El Bosque",8,"Ignacio Zaragoza",null,null,10,"Santiago Papasquiaro",11,"San Miguel de Allende",12,"Florencio Villarreal",13,"Juárez Hidalgo",14,"El Grullo",15,"Donato Guerra",16,"Erongarícuaro",17,"Zacualpan",null,null,19,"Los Herreras",20,"Guadalupe de Ramírez",21,"Chapulco",null,null,null,null,24,"San Vicente Tancuayalab",null,null,26,"Huásabas",null,null,28,"Río Bravo",29,"San Lorenzo Axocomanitla",30,"Catemaco",31,"Espita",32,"Moyahua de Estrada"]
[null,null,null,null,null,null,null,null,null,null,null,5,"Sierra Mojada",null,null,7,"El Parral",8,"Janos",null,null,10,"Súchil",11,"Santa Catarina",12,"General Canuto A. Neri",13,"La Misión",14,"El Limón",15,"Ecatepec de Morelos",16,"Gabriel Zamora",null,null,null,null,19,"Los Ramones",20,"Guadalupe Etla",21,"Chiautla",null,null,null,null,24,"Santa Catarina",null,null,26,"Huatabampo",null,null,28,"San Carlos",29,"San Lucas Tecopilco",30,"Cazones de Herrera",31,"Halachó",32,"Nochistlán de Mejía"]
[null,null,null,null,null,null,null,null,null,null,null,5,"Torreón",null,null,7,"El Porvenir",8,"Jiménez",null,null,10,"Tamazula",11,"Santa Cruz de Juventino Rosas",12,"General Heliodoro Castillo",13,"Lolotla",14,"El Salto",15,"Ecatzingo",16,"Hidalgo",null,null,null,null,19,"Marín",20,"Guelatao de Juárez",21,"Chiautzingo",null,null,null,null,24,"Santa María del Río",null,null,26,"Huépac",null,null,28,"San Fernando",29,"San Pablo del Monte",30,"Cerro Azul",31,"Hocabá",32,"Noria de Ángeles"]
[null,null,null,null,null,null,null,null,null,null,null,5,"Viesca",null,null,7,"Emiliano Zapata",8,"Juárez",null,null,10,"Tepehuanes",11,"Santiago Maravatío",12,"Huamuxtitlán",13,"Metepec",14,"Encarnación de Díaz",15,"El Oro",16,"Huandacareo",null,null,null,null,19,"Melchor Ocampo",20,"Guevea de Humboldt",21,"Chichiquila",null,null,null,null,24,"Santo Domingo",null,null,26,"Imuris",null,null,28,"San Nicolás",29,"Sanctórum de Lázaro Cárdenas",30,"Chacaltianguis",31,"Hoctún",32,"Ojocaliente"]
[null,null,null,null,null,null,null,null,null,null,null,5,"Villa Unión",null,null,7,"Escuintla",8,"Julimes",null,null,10,"Tlahualilo",11,"Silao",12,"Huitzuco de los Figueroa",13,"Metztitlán",14,"Etzatlán",15,"Huehuetoca",16,"Huaniqueo",null,null,null,null,19,"Mier y Noriega",20,"Heroica Ciudad de Ejutla de Crespo",21,"Chiconcuautla",null,null,null,null,24,"Soledad de Graciano Sánchez",null,null,26,"La Colorada",null,null,28,"Soto la Marina",29,"Santa Ana Nopalucan",30,"Chalma",31,"Homún",32,"Pánuco"]
[null,null,null,null,null,null,null,null,null,null,null,5,"Zaragoza",null,null,7,"Francisco León",8,"La Cruz",null,null,10,"Topia",11,"Tarandacuao",12,"Iguala de la Independencia",13,"Mineral de la Reforma",14,"Gómez Farías",15,"Hueypoxtla",16,"Huetamo",null,null,null,null,19,"Mina",20,"Heroica Ciudad de Huajuapan de León",21,"Chietla",null,null,null,null,24,"Tamasopo",null,null,26,"Magdalena",null,null,28,"Tampico",29,"Santa Apolonia Teacalco",30,"Chiconamel",31,"Huhí",32,"Pinos"]
[null,null,null,null,null,null,null,null,null,null,null,null,null,null,null,7,"Frontera Comalapa",8,"López",null,null,10,"Vicente Guerrero",11,"Tarimoro",12,"Igualapa",13,"Mineral del Chico",14,"Guachinango",15,"Huixquilucan",16,"Huiramba",null,null,null,null,19,"Montemorelos",20,"Heroica Ciudad de Juchitán de Zaragoza",21,"Chigmecatitlán",null,null,null,null,24,"Tamazunchale",null,null,26,"Mazatán",null,null,28,"Tula",29,"Santa Catarina Ayometla",30,"Chiconquiaco",31,"Hunucmá",32,"Río Grande"]
[null,null,null,null,null,null,null,null,null,null,null,null,null,null,null,7,"Frontera Hidalgo",8,"Madera",null,null,null,null,11,"Tierra Blanca",12,"Iliatenco",13,"Mineral del Monte",14,"Guadalajara",15,"Isidro Fabela",16,"Indaparapeo",null,null,null,null,19,"Monterrey",20,"Heroica Ciudad de Tlaxiaco",21,"Chignahuapan",null,null,null,null,24,"Tampacán",null,null,26,"Moctezuma",null,null,28,"Valle Hermoso",29,"Santa Cruz Quilehtla",30,"Chicontepec",31,"Ixil",32,"Sain Alto"]
[null,null,null,null,null,null,null,null,null,null,null,null,null,null,null,7,"Huehuetán",8,"Maguarichi",null,null,null,null,11,"Uriangato",12,"Ixcateopan de Cuauhtémoc",13,"Mixquiahuala de Juárez",14,"Hostotipaquillo",15,"Ixtapaluca",16,"Irimbo",null,null,null,null,19,"Parás",20,"Heroica Villa Tezoatlán de Segura y Luna, Cuna de la Independencia de Oaxaca",21,"Chignautla",null,null,null,null,24,"Tampamolón Corona",null,null,26,"Naco",null,null,28,"Victoria",29,"Santa Cruz Tlaxcala",30,"Chinameca",31,"Izamal",32,"Santa María de la Paz"]
[null,"PERIODO",null,null,"AÑO",null,null,null,null,null,null,null,null,null,null,7,"Huitiupán",8,"Manuel Benavides",null,null,null,null,11,"Valle de Santiago",12,"José Joaquín de Herrera",13,"Molango de Escamilla",14,"Huejúcar",15,"Ixtapan de la Sal",16,"Ixtlán",null,null,null,null,19,"Pesquería",20,"Huautepec",21,"Chila",null,null,null,null,24,"Tamuín",null,null,26,"Nácori Chico",null,null,28,"Villagrán",29,"Santa Isabel Xiloxoxtla",30,"Chinampa de Gorostiza",31,"Kanasín",32,"Sombrerete"]
[null,"Primer trimestre",null,null,2017,null,null,null,null,null,null,null,null,null,null,7,"Huixtán",8,"Matachí",null,null,null,null,11,"Victoria",12,"Juan R. Escudero",13,"Nicolás Flores",14,"Huejuquilla el Alto",15,"Ixtapan del Oro",16,"Jacona",null,null,null,null,19,"Rayones",20,"Huautla de Jiménez",21,"Chila de la Sal",null,null,null,null,24,"Tancanhuitz",null,null,26,"Nacozari de García",null,null,28,"Xicoténcatl",29,"Tenancingo",30,"Chocamán",31,"Kantunil",32,"Susticacán"]
[null,"Segundo trimestre",null,null,2018,null,null,null,null,null,null,null,null,null,null,7,"Huixtla",8,"Matamoros",null,null,null,null,11,"Villagrán",12,"Juchitán",13,"Nopala de Villagrán",14,"Ixtlahuacán de los Membrillos",15,"Ixtlahuaca",16,"Jiménez",null,null,null,null,19,"Sabinas Hidalgo",20,"Ixpantepec Nieves",21,"Chilchotla",null,null,null,null,24,"Tanlajás",null,null,26,"Navojoa",null,null,null,null,29,"Teolocholco",30,"Chontla",31,"Kaua",32,"Tabasco"]
[null,"Tercer trimestre",null,null,2019,null,null,null,null,null,null,null,null,null,null,7,"Ixhuatán",8,"Meoqui",null,null,null,null,11,"Xichú",12,"La Unión de Isidoro Montes de Oca",13,"Omitlán de Juárez",14,"Ixtlahuacán del Río",15,"Jaltenco",16,"Jiquilpan",null,null,null,null,19,"Salinas Victoria",20,"Ixtlán de Juárez",21,"Chinantla",null,null,null,null,24,"Tanquián de Escobedo",null,null,26,"Nogales",null,null,null,null,29,"Tepetitla de Lardizábal",30,"Chumatlán",31,"Kinchil",32,"Tepechitlán"]
[null,"Cuarto trimestre",null,null,2020,null,null,null,null,null,null,null,null,null,null,7,"Ixtacomitán",8,"Morelos",null,null,null,null,11,"Yuriria",12,"Leonardo Bravo",13,"Pachuca de Soto",14,"Jalostotitlán",15,"Jilotepec",16,"José Sixto Verduzco",null,null,null,null,19,"San Nicolás de los Garza",20,"La Compañía",21,"Coatepec",null,null,null,null,24,"Tierra Nueva",null,null,26,"Onavas",null,null,null,null,29,"Tepeyanco",30,"Citlaltépetl",31,"Kopomá",32,"Tepetongo"]
[null,null,null,null,2021,null,null,null,null,null,null,null,null,null,null,7,"Ixtapa",8,"Moris",null,null,null,null,null,null,12,"Malinaltepec",13,"Pacula",14,"Jamay",15,"Jilotzingo",16,"Juárez",null,null,null,null,19,"San Pedro Garza García",20,"La Pe",21,"Coatzingo",null,null,null,null,24,"Vanegas",null,null,26,"Opodepe",null,null,null,null,29,"Terrenate",30,"Coacoatzintla",31,"Mama",32,"Teúl de González Ortega"]
[null,null,null,null,2022,null,null,null,null,null,null,null,null,null,null,7,"Ixtapangajoya",8,"Namiquipa",null,null,null,null,null,null,12,"Marquelia",13,"Pisaflores",14,"Jesús María",15,"Jiquipilco",16,"Jungapeo",null,null,null,null,19,"Santa Catarina",20,"La Reforma",21,"Cohetzala",null,null,null,null,24,"Venado",null,null,26,"Oquitoa",null,null,null,null,29,"Tetla de la Solidaridad",30,"Coahuitlán",31,"Maní",32,"Tlaltenango de Sánchez Román"]
[null,null,null,null,2023,null,null,null,null,null,null,null,null,null,null,7,"Jiquipilas",8,"Nonoava",null,null,null,null,null,null,12,"Mártir de Cuilapan",13,"Progreso de Obregón",14,"Jilotlán de los Dolores",15,"Jocotitlán",16,"La Huacana",null,null,null,null,19,"Santiago",20,"La Trinidad Vista Hermosa",21,"Cohuecan",null,null,null,null,24,"Villa de Arista",null,null,26,"Pitiquito",null,null,null,null,29,"Tetlatlahuca",30,"Coatepec",31,"Maxcanú",32,"Trancoso"]
[null,null,null,null,2024,null,null,null,null,null,null,null,null,null,null,7,"Jitotol",8,"Nuevo Casas Grandes",null,null,null,null,null,null,12,"Metlatónoc",13,"San Agustín Metzquititlán",14,"Jocotepec",15,"Joquicingo",16,"La Piedad",null,null,null,null,19,"Vallecillo",20,"Loma Bonita",21,"Coronango",null,null,null,null,24,"Villa de Arriaga",null,null,26,"Puerto Peñasco",null,null,null,null,29,"Tlaxcala",30,"Coatzacoalcos",31,"Mayapán",32,"Trinidad García de la Cadena"]
[null,null,null,null,2025,null,null,null,null,null,null,null,null,null,null,7,"Juárez",8,"Ocampo",null,null,null,null,null,null,12,"Mochitlán",13,"San Agustín Tlaxiaca",14,"Juanacatlán",15,"Juchitepec",16,"Lagunillas",null,null,null,null,19,"Villaldama",20,"Magdalena Apasco",21,"Coxcatlán",null,null,null,null,24,"Villa de Guadalupe",null,null,26,"Quiriego",null,null,null,null,29,"Tlaxco",30,"Coatzintla",31,"Mérida",32,"Valparaíso"]
[null,null,null,null,2026,null,null,null,null,null,null,null,null,null,null,7,"La Concordia",8,"Ojinaga",null,null,null,null,null,null,12,"Olinalá",13,"San Bartolo Tutotepec",14,"Juchitlán",15,"La Paz",16,"Lázaro Cárdenas",null,null,null,null,null,null,20,"Magdalena Jaltepec",21,"Coyomeapan",null,null,null,null,24,"Villa de la Paz",null,null,26,"Rayón",null,null,null,null,29,"Tocatlán",30,"Coetzala",31,"Mocochá",32,"Vetagrande"]
[null,null,null,null,2027,null,null,null,null,null,null,null,null,null,null,7,"La Grandeza",8,"Praxedis G. Guerrero",null,null,null,null,null,null,12,"Ometepec",13,"San Felipe Orizatlán",14,"La Barca",15,"Lerma",16,"Los Reyes",null,null,null,null,null,null,20,"Magdalena Mixtepec",21,"Coyotepec",null,null,null,null,24,"Villa de Ramos",null,null,26,"Rosario",null,null,null,null,29,"Totolac",30,"Colipa",31,"Motul",32,"Villa de Cos"]
[null,null,null,null,2028,null,null,null,null,null,null,null,null,null,null,7,"La Independencia",8,"Riva Palacio",null,null,null,null,null,null,12,"Pedro Ascencio Alquisiras",13,"San Salvador",14,"La Huerta",15,"Luvianos",16,"Madero",null,null,null,null,null,null,20,"Magdalena Ocotlán",21,"Cuapiaxtla de Madero",null,null,null,null,24,"Villa de Reyes",null,null,26,"Sahuaripa",null,null,null,null,29,"Tzompantepec",30,"Comapa",31,"Muna",32,"Villa García"]
[null,null,null,null,2029,null,null,null,null,null,null,null,null,null,null,7,"La Libertad",8,"Rosales",null,null,null,null,null,null,12,"Petatlán",13,"Santiago de Anaya",14,"La Manzanilla de la Paz",15,"Malinalco",16,"Maravatío",null,null,null,null,null,null,20,"Magdalena Peñasco",21,"Cuautempan",null,null,null,null,24,"Villa Hidalgo",null,null,26,"San Felipe de Jesús",null,null,null,null,29,"Xaloztoc",30,"Córdoba",31,"Muxupip",32,"Villa González Ortega"]
[null,null,null,null,2030,null,null,null,null,null,null,null,null,null,null,7,"La Trinitaria",8,"Rosario",null,null,null,null,null,null,12,"Pilcaya",13,"Santiago Tulantepec de Lugo Guerrero",14,"Lagos de Moreno",15,"Melchor Ocampo",16,"Marcos Castellanos",null,null,null,null,null,null,20,"Magdalena Teitipac",21,"Cuautinchán",null,null,null,null,24,"Villa Juárez",null,null,26,"San Ignacio Río Muerto",null,null,null,null,29,"Xaltocan",30,"Cosamaloapan de Carpio",31,"Opichén",32,"Villa Hidalgo"]
[null,null,null,null,2031,null,null,null,null,null,null,null,null,null,null,7,"Larráinzar",8,"San Francisco de Borja",null,null,null,null,null,null,12,"Pungarabato",13,"Singuilucan",14,"Magdalena",15,"Metepec",16,"Morelia",null,null,null,null,null,null,20,"Magdalena Tequisistlán",21,"Cuautlancingo",null,null,null,null,24,"Xilitla",null,null,26,"San Javier",null,null,null,null,29,"Xicohtzinco",30,"Cosautlán de Carvajal",31,"Oxkutzcab",32,"Villanueva"]
[null,null,null,null,2032,null,null,null,null,null,null,null,null,null,null,7,"Las Margaritas",8,"San Francisco de Conchos",null,null,null,null,null,null,12,"Quechultenango",13,"Tasquillo",14,"Mascota",15,"Mexicaltzingo",16,"Morelos",null,null,null,null,null,null,20,"Magdalena Tlacotepec",21,"Cuayuca de Andrade",null,null,null,null,24,"Zaragoza",null,null,26,"San Luis Río Colorado",null,null,null,null,29,"Yauhquemehcan",30,"Coscomatepec",31,"Panabá",32,"Zacatecas"]
[null,null,null,null,2033,null,null,null,null,null,null,null,null,null,null,7,"Las Rosas",8,"San Francisco del Oro",null,null,null,null,null,null,12,"San Luis Acatlán",13,"Tecozautla",14,"Mazamitla",15,"Morelos",16,"Múgica",null,null,null,null,null,null,20,"Magdalena Yodocono de Porfirio Díaz",21,"Cuetzalan del Progreso",null,null,null,null,null,null,null,null,26,"San Miguel de Horcasitas",null,null,null,null,29,"Zacatelco",30,"Cosoleacaque",31,"Peto"]
[null,null,null,null,2034,null,null,null,null,null,null,null,null,null,null,7,"Mapastepec",8,"Santa Bárbara",null,null,null,null,null,null,12,"San Marcos",13,"Tenango de Doria",14,"Mexticacán",15,"Naucalpan de Juárez",16,"Nahuatzen",null,null,null,null,null,null,20,"Magdalena Zahuatlán",21,"Cuyoaco",null,null,null,null,null,null,null,null,26,"San Pedro de la Cueva",null,null,null,null,29,"Ziltlaltépec de Trinidad Sánchez Santos",30,"Cotaxtla",31,"Progreso"]
[null,null,null,null,2035,null,null,null,null,null,null,null,null,null,null,7,"Maravilla Tenejapa",8,"Santa Isabel",null,null,null,null,null,null,12,"San Miguel Totolapan",13,"Tepeapulco",14,"Mezquitic",15,"Nextlalpan",16,"Nocupétaro",null,null,null,null,null,null,20,"Mariscala de Juárez",21,"Domingo Arenas",null,null,null,null,null,null,null,null,26,"Santa Ana",null,null,null,null,null,null,30,"Coxquihui",31,"Quintana Roo"]
[null,null,null,null,2036,null,null,null,null,null,null,null,null,null,null,7,"Marqués de Comillas",8,"Satevó",null,null,null,null,null,null,12,"Taxco de Alarcón",13,"Tepehuacán de Guerrero",14,"Mixtlán",15,"Nezahualcóyotl",16,"Nuevo Parangaricutiro",null,null,null,null,null,null,20,"Mártires de Tacubaya",21,"Eloxochitlán",null,null,null,null,null,null,null,null,26,"Santa Cruz",null,null,null,null,null,null,30,"Coyutla",31,"Río Lagartos"]
[null,null,null,null,2037,null,null,null,null,null,null,null,null,null,null,7,"Mazapa de Madero",8,"Saucillo",null,null,null,null,null,null,12,"Tecoanapa",13,"Tepeji del Río de Ocampo",14,"Ocotlán",15,"Nicolás Romero",16,"Nuevo Urecho",null,null,null,null,null,null,20,"Matías Romero Avendaño",21,"Epatlán",null,null,null,null,null,null,null,null,26,"Sáric",null,null,null,null,null,null,30,"Cuichapa",31,"Sacalum"]
[null,null,null,null,2038,null,null,null,null,null,null,null,null,null,null,7,"Mazatán",8,"Temósachic",null,null,null,null,null,null,12,"Técpan de Galeana",13,"Tepetitlán",14,"Ojuelos de Jalisco",15,"Nopaltepec",16,"Numarán",null,null,null,null,null,null,20,"Mazatlán Villa de Flores",21,"Esperanza",null,null,null,null,null,null,null,null,26,"Soyopa",null,null,null,null,null,null,30,"Cuitláhuac",31,"Samahil"]
[null,null,null,null,2039,null,null,null,null,null,null,null,null,null,null,7,"Metapa",8,"Urique",null,null,null,null,null,null,12,"Teloloapan",13,"Tetepango",14,"Pihuamo",15,"Ocoyoacac",16,"Ocampo",null,null,null,null,null,null,20,"Mesones Hidalgo",21,"Francisco Z. Mena",null,null,null,null,null,null,null,null,26,"Suaqui Grande",null,null,null,null,null,null,30,"El Higo",31,"San Felipe"]
[null,null,null,null,2040,null,null,null,null,null,null,null,null,null,null,7,"Mezcalapa",8,"Uruachi",null,null,null,null,null,null,12,"Tepecoacuilco de Trujano",13,"Tezontepec de Aldama",14,"Poncitlán",15,"Ocuilan",16,"Pajacuarán",null,null,null,null,null,null,20,"Miahuatlán de Porfirio Díaz",21,"General Felipe Ángeles",null,null,null,null,null,null,null,null,26,"Tepache",null,null,null,null,null,null,30,"Emiliano Zapata",31,"Sanahcat"]
[null,null,null,null,2041,null,null,null,null,null,null,null,null,null,null,7,"Mitontic",8,"Valle de Zaragoza",null,null,null,null,null,null,12,"Tetipac",13,"Tianguistengo",14,"Puerto Vallarta",15,"Otumba",16,"Panindícuaro",null,null,null,null,null,null,20,"Mixistlán de la Reforma",21,"Guadalupe",null,null,null,null,null,null,null,null,26,"Trincheras",null,null,null,null,null,null,30,"Espinal",31,"Santa Elena"]
[null,null,null,null,2042,null,null,null,null,null,null,null,null,null,null,7,"Montecristo de Guerrero",null,null,null,null,null,null,null,null,12,"Tixtla de Guerrero",13,"Tizayuca",14,"Quitupan",15,"Otzoloapan",16,"Paracho",null,null,null,null,null,null,20,"Monjas",21,"Guadalupe Victoria",null,null,null,null,null,null,null,null,26,"Tubutama",null,null,null,null,null,null,30,"Filomeno Mata",31,"Seyé"]
[null,null,null,null,2043,null,null,null,null,null,null,null,null,null,null,7,"Motozintla",null,null,null,null,null,null,null,null,12,"Tlacoachistlahuaca",13,"Tlahuelilpan",14,"San Cristóbal de la Barranca",15,"Otzolotepec",16,"Parácuaro",null,null,null,null,null,null,20,"Natividad",21,"Hermenegildo Galeana",null,null,null,null,null,null,null,null,26,"Ures",null,null,null,null,null,null,30,"Fortín",31,"Sinanché"]
[null,null,null,null,2044,null,null,null,null,null,null,null,null,null,null,7,"Nicolás Ruíz",null,null,null,null,null,null,null,null,12,"Tlacoapa",13,"Tlahuiltepa",14,"San Diego de Alejandría",15,"Ozumba",16,"Pátzcuaro",null,null,null,null,null,null,20,"Nazareno Etla",21,"Honey",null,null,null,null,null,null,null,null,26,"Villa Hidalgo",null,null,null,null,null,null,30,"Gutiérrez Zamora",31,"Sotuta"]
[null,null,null,null,2045,null,null,null,null,null,null,null,null,null,null,7,"Ocosingo",null,null,null,null,null,null,null,null,12,"Tlalchapa",13,"Tlanalapa",14,"San Gabriel",15,"Papalotla",16,"Penjamillo",null,null,null,null,null,null,20,"Nejapa de Madero",21,"Huaquechula",null,null,null,null,null,null,null,null,26,"Villa Pesqueira",null,null,null,null,null,null,30,"Hidalgotitlán",31,"Sucilá"]
[null,null,null,null,2046,null,null,null,null,null,null,null,null,null,null,7,"Ocotepec",null,null,null,null,null,null,null,null,12,"Tlalixtaquilla de Maldonado",13,"Tlanchinol",14,"San Ignacio Cerro Gordo",15,"Polotitlán",16,"Peribán",null,null,null,null,null,null,20,"Nuevo Zoquiápam",21,"Huatlatlauca",null,null,null,null,null,null,null,null,26,"Yécora",null,null,null,null,null,null,30,"Huatusco",31,"Sudzal"]
[null,null,null,null,2047,null,null,null,null,null,null,null,null,null,null,7,"Ocozocoautla de Espinosa",null,null,null,null,null,null,null,null,12,"Tlapa de Comonfort",13,"Tlaxcoapan",14,"San Juan de los Lagos",15,"Rayón",16,"Purépero",null,null,null,null,null,null,20,"Oaxaca de Juárez",21,"Huauchinango",null,null,null,null,null,null,null,null,null,null,null,null,null,null,null,null,30,"Huayacocotla",31,"Suma"]
[null,null,null,null,2048,null,null,null,null,null,null,null,null,null,null,7,"Ostuacán",null,null,null,null,null,null,null,null,12,"Tlapehuala",13,"Tolcayuca",14,"San Juanito de Escobedo",15,"San Antonio la Isla",16,"Puruándiro",null,null,null,null,null,null,20,"Ocotlán de Morelos",21,"Huehuetla",null,null,null,null,null,null,null,null,null,null,null,null,null,null,null,null,30,"Hueyapan de Ocampo",31,"Tahdziú"]
[null,null,null,null,2049,null,null,null,null,null,null,null,null,null,null,7,"Osumacinta",null,null,null,null,null,null,null,null,12,"Xalpatláhuac",13,"Tula de Allende",14,"San Julián",15,"San Felipe del Progreso",16,"Queréndaro",null,null,null,null,null,null,20,"Pinotepa de Don Luis",21,"Huehuetlán el Chico",null,null,null,null,null,null,null,null,null,null,null,null,null,null,null,null,30,"Huiloapan de Cuauhtémoc",31,"Tahmek"]
[null,null,null,null,2050,null,null,null,null,null,null,null,null,null,null,7,"Oxchuc",null,null,null,null,null,null,null,null,12,"Xochihuehuetlán",13,"Tulancingo de Bravo",14,"San Marcos",15,"San José del Rincón",16,"Quiroga",null,null,null,null,null,null,20,"Pluma Hidalgo",21,"Huehuetlán el Grande",null,null,null,null,null,null,null,null,null,null,null,null,null,null,null,null,30,"Ignacio de la Llave",31,"Teabo"]
[null,null,null,null,null,null,null,null,null,null,null,null,null,null,null,7,"Palenque",null,null,null,null,null,null,null,null,12,"Xochistlahuaca",13,"Villa de Tezontepec",14,"San Martín de Bolaños",15,"San Martín de las Pirámides",16,"Sahuayo",null,null,null,null,null,null,20,"Putla Villa de Guerrero",21,"Huejotzingo",null,null,null,null,null,null,null,null,null,null,null,null,null,null,null,null,30,"Ilamatlán",31,"Tecoh"]
[null,null,null,null,null,null,null,null,null,null,null,null,null,null,null,7,"Pantelhó",null,null,null,null,null,null,null,null,12,"Zapotitlán Tablas",13,"Xochiatipan",14,"San Martín Hidalgo",15,"San Mateo Atenco",16,"Salvador Escalante",null,null,null,null,null,null,20,"Reforma de Pineda",21,"Hueyapan",null,null,null,null,null,null,null,null,null,null,null,null,null,null,null,null,30,"Isla",31,"Tekal de Venegas"]
[null,null,null,null,null,null,null,null,null,null,null,null,null,null,null,7,"Pantepec",null,null,null,null,null,null,null,null,12,"Zihuatanejo de Azueta",13,"Xochicoatlán",14,"San Miguel el Alto",15,"San Simón de Guerrero",16,"San Lucas",null,null,null,null,null,null,20,"Reyes Etla",21,"Hueytamalco",null,null,null,null,null,null,null,null,null,null,null,null,null,null,null,null,30,"Ixcatepec",31,"Tekantó"]
[null,null,null,null,null,null,null,null,null,null,null,null,null,null,null,7,"Pichucalco",null,null,null,null,null,null,null,null,12,"Zirándaro",13,"Yahualica",14,"San Pedro Tlaquepaque",15,"Santo Tomás",16,"Santa Ana Maya",null,null,null,null,null,null,20,"Rojas de Cuauhtémoc",21,"Hueytlalpan",null,null,null,null,null,null,null,null,null,null,null,null,null,null,null,null,30,"Ixhuacán de los Reyes",31,"Tekax"]
[null,null,null,null,null,null,null,null,null,null,null,null,null,null,null,7,"Pijijiapan",null,null,null,null,null,null,null,null,12,"Zitlala",13,"Zacualtipán de Ángeles",14,"San Sebastián del Oeste",15,"Soyaniquilpan de Juárez",16,"Senguio",null,null,null,null,null,null,20,"Salina Cruz",21,"Huitzilan de Serdán",null,null,null,null,null,null,null,null,null,null,null,null,null,null,null,null,30,"Ixhuatlán de Madero",31,"Tekit"]
[null,null,null,null,null,null,null,null,null,null,null,null,null,null,null,7,"Pueblo Nuevo Solistahuacán",null,null,null,null,null,null,null,null,null,null,13,"Zapotlán de Juárez",14,"Santa María de los Ángeles",15,"Sultepec",16,"Susupuato",null,null,null,null,null,null,20,"San Agustín Amatengo",21,"Huitziltepec",null,null,null,null,null,null,null,null,null,null,null,null,null,null,null,null,30,"Ixhuatlán del Café",31,"Tekom"]
[null,null,null,null,null,null,null,null,null,null,null,null,null,null,null,7,"Rayón",null,null,null,null,null,null,null,null,null,null,13,"Zempoala",14,"Santa María del Oro",15,"Tecámac",16,"Tacámbaro",null,null,null,null,null,null,20,"San Agustín Atenango",21,"Ixcamilpa de Guerrero",null,null,null,null,null,null,null,null,null,null,null,null,null,null,null,null,30,"Ixhuatlán del Sureste",31,"Telchac Pueblo"]
[null,null,null,null,null,null,null,null,null,null,null,null,null,null,null,7,"Reforma",null,null,null,null,null,null,null,null,null,null,13,"Zimapán",14,"Sayula",15,"Tejupilco",16,"Tancítaro",null,null,null,null,null,null,20,"San Agustín Chayuco",21,"Ixcaquixtla",null,null,null,null,null,null,null,null,null,null,null,null,null,null,null,null,30,"Ixhuatlancillo",31,"Telchac Puerto"]
[null,null,null,null,null,null,null,null,null,null,null,null,null,null,null,7,"Sabanilla",null,null,null,null,null,null,null,null,null,null,null,null,14,"Tala",15,"Temamatla",16,"Tangamandapio",null,null,null,null,null,null,20,"San Agustín de las Juntas",21,"Ixtacamaxtitlán",null,null,null,null,null,null,null,null,null,null,null,null,null,null,null,null,30,"Ixmatlahuacan",31,"Temax"]
[null,null,null,null,null,null,null,null,null,null,null,null,null,null,null,7,"Salto de Agua",null,null,null,null,null,null,null,null,null,null,null,null,14,"Talpa de Allende",15,"Temascalapa",16,"Tangancícuaro",null,null,null,null,null,null,20,"San Agustín Etla",21,"Ixtepec",null,null,null,null,null,null,null,null,null,null,null,null,null,null,null,null,30,"Ixtaczoquitlán",31,"Temozón"]
[null,null,null,null,null,null,null,null,null,null,null,null,null,null,null,7,"San Andrés Duraznal",null,null,null,null,null,null,null,null,null,null,null,null,14,"Tamazula de Gordiano",15,"Temascalcingo",16,"Tanhuato",null,null,null,null,null,null,20,"San Agustín Loxicha",21,"Izúcar de Matamoros",null,null,null,null,null,null,null,null,null,null,null,null,null,null,null,null,30,"Jalacingo",31,"Tepakán"]
[null,null,null,null,null,null,null,null,null,null,null,null,null,null,null,7,"San Cristóbal de las Casas",null,null,null,null,null,null,null,null,null,null,null,null,14,"Tapalpa",15,"Temascaltepec",16,"Taretan",null,null,null,null,null,null,20,"San Agustín Tlacotepec",21,"Jalpan",null,null,null,null,null,null,null,null,null,null,null,null,null,null,null,null,30,"Jalcomulco",31,"Tetiz"]
[null,null,null,null,null,null,null,null,null,null,null,null,null,null,null,7,"San Fernando",null,null,null,null,null,null,null,null,null,null,null,null,14,"Tecalitlán",15,"Temoaya",16,"Tarímbaro",null,null,null,null,null,null,20,"San Agustín Yatareni",21,"Jolalpan",null,null,null,null,null,null,null,null,null,null,null,null,null,null,null,null,30,"Jáltipan",31,"Teya"]
[null,null,null,null,null,null,null,null,null,null,null,null,null,null,null,7,"San Juan Cancuc",null,null,null,null,null,null,null,null,null,null,null,null,14,"Techaluta de Montenegro",15,"Tenancingo",16,"Tepalcatepec",null,null,null,null,null,null,20,"San Andrés Cabecera Nueva",21,"Jonotla",null,null,null,null,null,null,null,null,null,null,null,null,null,null,null,null,30,"Jamapa",31,"Ticul"]
[null,null,null,null,null,null,null,null,null,null,null,null,null,null,null,7,"San Lucas",null,null,null,null,null,null,null,null,null,null,null,null,14,"Tecolotlán",15,"Tenango del Aire",16,"Tingambato",null,null,null,null,null,null,20,"San Andrés Dinicuiti",21,"Jopala",null,null,null,null,null,null,null,null,null,null,null,null,null,null,null,null,30,"Jesús Carranza",31,"Timucuy"]
[null,null,null,null,null,null,null,null,null,null,null,null,null,null,null,7,"Santiago el Pinar",null,null,null,null,null,null,null,null,null,null,null,null,14,"Tenamaxtlán",15,"Tenango del Valle",16,"Tingüindín",null,null,null,null,null,null,20,"San Andrés Huaxpaltepec",21,"Juan C. Bonilla",null,null,null,null,null,null,null,null,null,null,null,null,null,null,null,null,30,"Jilotepec",31,"Tinum"]
[null,null,null,null,null,null,null,null,null,null,null,null,null,null,null,7,"Siltepec",null,null,null,null,null,null,null,null,null,null,null,null,14,"Teocaltiche",15,"Teoloyucan",16,"Tiquicheo de Nicolás Romero",null,null,null,null,null,null,20,"San Andrés Huayápam",21,"Juan Galindo",null,null,null,null,null,null,null,null,null,null,null,null,null,null,null,null,30,"José Azueta",31,"Tixcacalcupul"]
[null,null,null,null,null,null,null,null,null,null,null,null,null,null,null,7,"Simojovel",null,null,null,null,null,null,null,null,null,null,null,null,14,"Teocuitatlán de Corona",15,"Teotihuacán",16,"Tlalpujahua",null,null,null,null,null,null,20,"San Andrés Ixtlahuaca",21,"Juan N. Méndez",null,null,null,null,null,null,null,null,null,null,null,null,null,null,null,null,30,"Juan Rodríguez Clara",31,"Tixkokob"]
[null,null,null,null,null,null,null,null,null,null,null,null,null,null,null,7,"Sitalá",null,null,null,null,null,null,null,null,null,null,null,null,14,"Tepatitlán de Morelos",15,"Tepetlaoxtoc",16,"Tlazazalca",null,null,null,null,null,null,20,"San Andrés Lagunas",21,"La Magdalena Tlatlauquitepec",null,null,null,null,null,null,null,null,null,null,null,null,null,null,null,null,30,"Juchique de Ferrer",31,"Tixmehuac"]
[null,null,null,null,null,null,null,null,null,null,null,null,null,null,null,7,"Socoltenango",null,null,null,null,null,null,null,null,null,null,null,null,14,"Tequila",15,"Tepetlixpa",16,"Tocumbo",null,null,null,null,null,null,20,"San Andrés Nuxiño",21,"Lafragua",null,null,null,null,null,null,null,null,null,null,null,null,null,null,null,null,30,"La Antigua",31,"Tixpéhual"]
[null,null,null,null,null,null,null,null,null,null,null,null,null,null,null,7,"Solosuchiapa",null,null,null,null,null,null,null,null,null,null,null,null,14,"Teuchitlán",15,"Tepotzotlán",16,"Tumbiscatío",null,null,null,null,null,null,20,"San Andrés Paxtlán",21,"Libres",null,null,null,null,null,null,null,null,null,null,null,null,null,null,null,null,30,"La Perla",31,"Tizimín"]
[null,null,null,null,null,null,null,null,null,null,null,null,null,null,null,7,"Soyaló",null,null,null,null,null,null,null,null,null,null,null,null,14,"Tizapán el Alto",15,"Tequixquiac",16,"Turicato",null,null,null,null,null,null,20,"San Andrés Sinaxtla",21,"Los Reyes de Juárez",null,null,null,null,null,null,null,null,null,null,null,null,null,null,null,null,30,"Landero y Coss",31,"Tunkás"]
[null,null,null,null,null,null,null,null,null,null,null,null,null,null,null,7,"Suchiapa",null,null,null,null,null,null,null,null,null,null,null,null,14,"Tlajomulco de Zúñiga",15,"Texcaltitlán",16,"Tuxpan",null,null,null,null,null,null,20,"San Andrés Solaga",21,"Mazapiltepec de Juárez",null,null,null,null,null,null,null,null,null,null,null,null,null,null,null,null,30,"Las Choapas",31,"Tzucacab"]
[null,null,null,null,null,null,null,null,null,null,null,null,null,null,null,7,"Suchiate",null,null,null,null,null,null,null,null,null,null,null,null,14,"Tolimán",15,"Texcalyacac",16,"Tuzantla",null,null,null,null,null,null,20,"San Andrés Teotilálpam",21,"Mixtla",null,null,null,null,null,null,null,null,null,null,null,null,null,null,null,null,30,"Las Minas",31,"Uayma"]
[null,null,null,null,null,null,null,null,null,null,null,null,null,null,null,7,"Sunuapa",null,null,null,null,null,null,null,null,null,null,null,null,14,"Tomatlán",15,"Texcoco",16,"Tzintzuntzan",null,null,null,null,null,null,20,"San Andrés Tepetlapa",21,"Molcaxac",null,null,null,null,null,null,null,null,null,null,null,null,null,null,null,null,30,"Las Vigas de Ramírez",31,"Ucú"]
[null,null,null,null,null,null,null,null,null,null,null,null,null,null,null,7,"Tapachula",null,null,null,null,null,null,null,null,null,null,null,null,14,"Tonalá",15,"Tezoyuca",16,"Tzitzio",null,null,null,null,null,null,20,"San Andrés Yaá",21,"Naupan",null,null,null,null,null,null,null,null,null,null,null,null,null,null,null,null,30,"Lerdo de Tejada",31,"Umán"]
[null,null,null,null,null,null,null,null,null,null,null,null,null,null,null,7,"Tapalapa",null,null,null,null,null,null,null,null,null,null,null,null,14,"Tonaya",15,"Tianguistenco",16,"Uruapan",null,null,null,null,null,null,20,"San Andrés Zabache",21,"Nauzontla",null,null,null,null,null,null,null,null,null,null,null,null,null,null,null,null,30,"Los Reyes",31,"Valladolid"]
[null,null,null,null,null,null,null,null,null,null,null,null,null,null,null,7,"Tapilula",null,null,null,null,null,null,null,null,null,null,null,null,14,"Tonila",15,"Timilpan",16,"Venustiano Carranza",null,null,null,null,null,null,20,"San Andrés Zautla",21,"Nealtican",null,null,null,null,null,null,null,null,null,null,null,null,null,null,null,null,30,"Magdalena",31,"Xocchel"]
[null,null,null,null,null,null,null,null,null,null,null,null,null,null,null,7,"Tecpatán",null,null,null,null,null,null,null,null,null,null,null,null,14,"Totatiche",15,"Tlalmanalco",16,"Villamar",null,null,null,null,null,null,20,"San Antonino Castillo Velasco",21,"Nicolás Bravo",null,null,null,null,null,null,null,null,null,null,null,null,null,null,null,null,30,"Maltrata",31,"Yaxcabá"]
[null,null,null,null,null,null,null,null,null,null,null,null,null,null,null,7,"Tenejapa",null,null,null,null,null,null,null,null,null,null,null,null,14,"Tototlán",15,"Tlalnepantla de Baz",16,"Vista Hermosa",null,null,null,null,null,null,20,"San Antonino el Alto",21,"Nopalucan",null,null,null,null,null,null,null,null,null,null,null,null,null,null,null,null,30,"Manlio Fabio Altamirano",31,"Yaxkukul"]
[null,null,null,null,null,null,null,null,null,null,null,null,null,null,null,7,"Teopisca",null,null,null,null,null,null,null,null,null,null,null,null,14,"Tuxcacuesco",15,"Tlatlaya",16,"Yurécuaro",null,null,null,null,null,null,20,"San Antonino Monte Verde",21,"Ocotepec",null,null,null,null,null,null,null,null,null,null,null,null,null,null,null,null,30,"Mariano Escobedo",31,"Yobaín"]
[null,null,null,null,null,null,null,null,null,null,null,null,null,null,null,7,"Tila",null,null,null,null,null,null,null,null,null,null,null,null,14,"Tuxcueca",15,"Toluca",16,"Zacapu",null,null,null,null,null,null,20,"San Antonio Acutla",21,"Ocoyucan",null,null,null,null,null,null,null,null,null,null,null,null,null,null,null,null,30,"Martínez de la Torre"]
[null,null,null,null,null,null,null,null,null,null,null,null,null,null,null,7,"Tonalá",null,null,null,null,null,null,null,null,null,null,null,null,14,"Tuxpan",15,"Tonanitla",16,"Zamora",null,null,null,null,null,null,20,"San Antonio de la Cal",21,"Olintla",null,null,null,null,null,null,null,null,null,null,null,null,null,null,null,null,30,"Mecatlán"]
[null,null,null,null,null,null,null,null,null,null,null,null,null,null,null,7,"Totolapa",null,null,null,null,null,null,null,null,null,null,null,null,14,"Unión de San Antonio",15,"Tonatico",16,"Zináparo",null,null,null,null,null,null,20,"San Antonio Huitepec",21,"Oriental",null,null,null,null,null,null,null,null,null,null,null,null,null,null,null,null,30,"Mecayapan"]
[null,null,null,null,null,null,null,null,null,null,null,null,null,null,null,7,"Tumbalá",null,null,null,null,null,null,null,null,null,null,null,null,14,"Unión de Tula",15,"Tultepec",16,"Zinapécuaro",null,null,null,null,null,null,20,"San Antonio Nanahuatípam",21,"Pahuatlán",null,null,null,null,null,null,null,null,null,null,null,null,null,null,null,null,30,"Medellín"]
[null,null,null,null,null,null,null,null,null,null,null,null,null,null,null,7,"Tuxtla Chico",null,null,null,null,null,null,null,null,null,null,null,null,14,"Valle de Guadalupe",15,"Tultitlán",16,"Ziracuaretiro",null,null,null,null,null,null,20,"San Antonio Sinicahua",21,"Palmar de Bravo",null,null,null,null,null,null,null,null,null,null,null,null,null,null,null,null,30,"Miahuatlán"]
[null,null,null,null,null,null,null,null,null,null,null,null,null,null,null,7,"Tuxtla Gutiérrez",null,null,null,null,null,null,null,null,null,null,null,null,14,"Valle de Juárez",15,"Valle de Bravo",16,"Zitácuaro",null,null,null,null,null,null,20,"San Antonio Tepetlapa",21,"Pantepec",null,null,null,null,null,null,null,null,null,null,null,null,null,null,null,null,30,"Minatitlán"]
[null,null,null,null,null,null,null,null,null,null,null,null,null,null,null,7,"Tuzantán",null,null,null,null,null,null,null,null,null,null,null,null,14,"Villa Corona",15,"Valle de Chalco Solidaridad",null,null,null,null,null,null,null,null,20,"San Baltazar Chichicápam",21,"Petlalcingo",null,null,null,null,null,null,null,null,null,null,null,null,null,null,null,null,30,"Misantla"]
[null,null,null,null,null,null,null,null,null,null,null,null,null,null,null,7,"Tzimol",null,null,null,null,null,null,null,null,null,null,null,null,14,"Villa Guerrero",15,"Villa de Allende",null,null,null,null,null,null,null,null,20,"San Baltazar Loxicha",21,"Piaxtla",null,null,null,null,null,null,null,null,null,null,null,null,null,null,null,null,30,"Mixtla de Altamirano"]
[null,null,null,null,null,null,null,null,null,null,null,null,null,null,null,7,"Unión Juárez",null,null,null,null,null,null,null,null,null,null,null,null,14,"Villa Hidalgo",15,"Villa del Carbón",null,null,null,null,null,null,null,null,20,"San Baltazar Yatzachi el Bajo",21,"Puebla",null,null,null,null,null,null,null,null,null,null,null,null,null,null,null,null,30,"Moloacán"]
[null,null,null,null,null,null,null,null,null,null,null,null,null,null,null,7,"Venustiano Carranza",null,null,null,null,null,null,null,null,null,null,null,null,14,"Villa Purificación",15,"Villa Guerrero",null,null,null,null,null,null,null,null,20,"San Bartolo Coyotepec",21,"Quecholac",null,null,null,null,null,null,null,null,null,null,null,null,null,null,null,null,30,"Nanchital de Lázaro Cárdenas del Río"]
[null,null,null,null,null,null,null,null,null,null,null,null,null,null,null,7,"Villa Comaltitlán",null,null,null,null,null,null,null,null,null,null,null,null,14,"Yahualica de González Gallo",15,"Villa Victoria",null,null,null,null,null,null,null,null,20,"San Bartolo Soyaltepec",21,"Quimixtlán",null,null,null,null,null,null,null,null,null,null,null,null,null,null,null,null,30,"Naolinco"]
[null,null,null,null,null,null,null,null,null,null,null,null,null,null,null,7,"Villa Corzo",null,null,null,null,null,null,null,null,null,null,null,null,14,"Zacoalco de Torres",15,"Xalatlaco",null,null,null,null,null,null,null,null,20,"San Bartolo Yautepec",21,"Rafael Lara Grajales",null,null,null,null,null,null,null,null,null,null,null,null,null,null,null,null,30,"Naranjal"]
[null,null,null,null,null,null,null,null,null,null,null,null,null,null,null,7,"Villaflores",null,null,null,null,null,null,null,null,null,null,null,null,14,"Zapopan",15,"Xonacatlán",null,null,null,null,null,null,null,null,20,"San Bartolomé Ayautla",21,"San Andrés Cholula",null,null,null,null,null,null,null,null,null,null,null,null,null,null,null,null,30,"Naranjos Amatlán"]
[null,null,null,null,null,null,null,null,null,null,null,null,null,null,null,7,"Yajalón",null,null,null,null,null,null,null,null,null,null,null,null,14,"Zapotiltic",15,"Zacazonapan",null,null,null,null,null,null,null,null,20,"San Bartolomé Loxicha",21,"San Antonio Cañada",null,null,null,null,null,null,null,null,null,null,null,null,null,null,null,null,30,"Nautla"]
[null,null,null,null,null,null,null,null,null,null,null,null,null,null,null,7,"Zinacantán",null,null,null,null,null,null,null,null,null,null,null,null,14,"Zapotitlán de Vadillo",15,"Zacualpan",null,null,null,null,null,null,null,null,20,"San Bartolomé Quialana",21,"San Diego la Mesa Tochimiltzingo",null,null,null,null,null,null,null,null,null,null,null,null,null,null,null,null,30,"Nogales"]
[null,null,null,null,null,null,null,null,null,null,null,null,null,null,null,null,null,null,null,null,null,null,null,null,null,null,null,null,null,14,"Zapotlán del Rey",15,"Zinacantepec",null,null,null,null,null,null,null,null,20,"San Bartolomé Yucuañe",21,"San Felipe Teotlalcingo",null,null,null,null,null,null,null,null,null,null,null,null,null,null,null,null,30,"Oluta"]
[null,null,null,null,null,null,null,null,null,null,null,null,null,null,null,null,null,null,null,null,null,null,null,null,null,null,null,null,null,14,"Zapotlán el Grande",15,"Zumpahuacán",null,null,null,null,null,null,null,null,20,"San Bartolomé Zoogocho",21,"San Felipe Tepatlán",null,null,null,null,null,null,null,null,null,null,null,null,null,null,null,null,30,"Omealca"]
[null,null,null,null,null,null,null,null,null,null,null,null,null,null,null,null,null,null,null,null,null,null,null,null,null,null,null,null,null,14,"Zapotlanejo",15,"Zumpango",null,null,null,null,null,null,null,null,20,"San Bernardo Mixtepec",21,"San Gabriel Chilac",null,null,null,null,null,null,null,null,null,null,null,null,null,null,null,null,30,"Orizaba"]
[null,null,null,null,null,null,null,null,null,null,null,null,null,null,null,null,null,null,null,null,null,null,null,null,null,null,null,null,null,null,null,null,null,null,null,null,null,null,null,null,null,20,"San Blas Atempa",21,"San Gregorio Atzompa",null,null,null,null,null,null,null,null,null,null,null,null,null,null,null,null,30,"Otatitlán"]
[null,null,null,null,null,null,null,null,null,null,null,null,null,null,null,null,null,null,null,null,null,null,null,null,null,null,null,null,null,null,null,null,null,null,null,null,null,null,null,null,null,20,"San Carlos Yautepec",21,"San Jerónimo Tecuanipan",null,null,null,null,null,null,null,null,null,null,null,null,null,null,null,null,30,"Oteapan"]
[null,null,null,null,null,null,null,null,null,null,null,null,null,null,null,null,null,null,null,null,null,null,null,null,null,null,null,null,null,null,null,null,null,null,null,null,null,null,null,null,null,20,"San Cristóbal Amatlán",21,"San Jerónimo Xayacatlán",null,null,null,null,null,null,null,null,null,null,null,null,null,null,null,null,30,"Ozuluama de Mascareñas"]
[null,null,null,null,null,null,null,null,null,null,null,null,null,null,null,null,null,null,null,null,null,null,null,null,null,null,null,null,null,null,null,null,null,null,null,null,null,null,null,null,null,20,"San Cristóbal Amoltepec",21,"San José Chiapa",null,null,null,null,null,null,null,null,null,null,null,null,null,null,null,null,30,"Pajapan"]
[null,null,null,null,null,null,null,null,null,null,null,null,null,null,null,null,null,null,null,null,null,null,null,null,null,null,null,null,null,null,null,null,null,null,null,null,null,null,null,null,null,20,"San Cristóbal Lachirioag",21,"San José Miahuatlán",null,null,null,null,null,null,null,null,null,null,null,null,null,null,null,null,30,"Pánuco"]
[null,null,null,null,null,null,null,null,null,null,null,null,null,null,null,null,null,null,null,null,null,null,null,null,null,null,null,null,null,null,null,null,null,null,null,null,null,null,null,null,null,20,"San Cristóbal Suchixtlahuaca",21,"San Juan Atenco",null,null,null,null,null,null,null,null,null,null,null,null,null,null,null,null,30,"Papantla"]
[null,null,null,null,null,null,null,null,null,null,null,null,null,null,null,null,null,null,null,null,null,null,null,null,null,null,null,null,null,null,null,null,null,null,null,null,null,null,null,null,null,20,"San Dionisio del Mar",21,"San Juan Atzompa",null,null,null,null,null,null,null,null,null,null,null,null,null,null,null,null,30,"Paso de Ovejas"]
[null,null,null,null,null,null,null,null,null,null,null,null,null,null,null,null,null,null,null,null,null,null,null,null,null,null,null,null,null,null,null,null,null,null,null,null,null,null,null,null,null,20,"San Dionisio Ocotepec",21,"San Martín Texmelucan",null,null,null,null,null,null,null,null,null,null,null,null,null,null,null,null,30,"Paso del Macho"]
[null,null,null,null,null,null,null,null,null,null,null,null,null,null,null,null,null,null,null,null,null,null,null,null,null,null,null,null,null,null,null,null,null,null,null,null,null,null,null,null,null,20,"San Dionisio Ocotlán",21,"San Martín Totoltepec",null,null,null,null,null,null,null,null,null,null,null,null,null,null,null,null,30,"Perote"]
[null,null,null,null,null,null,null,null,null,null,null,null,null,null,null,null,null,null,null,null,null,null,null,null,null,null,null,null,null,null,null,null,null,null,null,null,null,null,null,null,null,20,"San Esteban Atatlahuca",21,"San Matías Tlalancaleca",null,null,null,null,null,null,null,null,null,null,null,null,null,null,null,null,30,"Platón Sánchez"]
[null,null,null,null,null,null,null,null,null,null,null,null,null,null,null,null,null,null,null,null,null,null,null,null,null,null,null,null,null,null,null,null,null,null,null,null,null,null,null,null,null,20,"San Felipe Jalapa de Díaz",21,"San Miguel Ixitlán",null,null,null,null,null,null,null,null,null,null,null,null,null,null,null,null,30,"Playa Vicente"]
[null,null,null,null,null,null,null,null,null,null,null,null,null,null,null,null,null,null,null,null,null,null,null,null,null,null,null,null,null,null,null,null,null,null,null,null,null,null,null,null,null,20,"San Felipe Tejalápam",21,"San Miguel Xoxtla",null,null,null,null,null,null,null,null,null,null,null,null,null,null,null,null,30,"Poza Rica de Hidalgo"]
[null,null,null,null,null,null,null,null,null,null,null,null,null,null,null,null,null,null,null,null,null,null,null,null,null,null,null,null,null,null,null,null,null,null,null,null,null,null,null,null,null,20,"San Felipe Usila",21,"San Nicolás Buenos Aires",null,null,null,null,null,null,null,null,null,null,null,null,null,null,null,null,30,"Pueblo Viejo"]
[null,null,null,null,null,null,null,null,null,null,null,null,null,null,null,null,null,null,null,null,null,null,null,null,null,null,null,null,null,null,null,null,null,null,null,null,null,null,null,null,null,20,"San Francisco Cahuacuá",21,"San Nicolás de los Ranchos",null,null,null,null,null,null,null,null,null,null,null,null,null,null,null,null,30,"Puente Nacional"]
[null,null,null,null,null,null,null,null,null,null,null,null,null,null,null,null,null,null,null,null,null,null,null,null,null,null,null,null,null,null,null,null,null,null,null,null,null,null,null,null,null,20,"San Francisco Cajonos",21,"San Pablo Anicano",null,null,null,null,null,null,null,null,null,null,null,null,null,null,null,null,30,"Rafael Delgado"]
[null,null,null,null,null,null,null,null,null,null,null,null,null,null,null,null,null,null,null,null,null,null,null,null,null,null,null,null,null,null,null,null,null,null,null,null,null,null,null,null,null,20,"San Francisco Chapulapa",21,"San Pedro Cholula",null,null,null,null,null,null,null,null,null,null,null,null,null,null,null,null,30,"Rafael Lucio"]
[null,null,null,null,null,null,null,null,null,null,null,null,null,null,null,null,null,null,null,null,null,null,null,null,null,null,null,null,null,null,null,null,null,null,null,null,null,null,null,null,null,20,"San Francisco Chindúa",21,"San Pedro Yeloixtlahuaca",null,null,null,null,null,null,null,null,null,null,null,null,null,null,null,null,30,"Río Blanco"]
[null,null,null,null,null,null,null,null,null,null,null,null,null,null,null,null,null,null,null,null,null,null,null,null,null,null,null,null,null,null,null,null,null,null,null,null,null,null,null,null,null,20,"San Francisco del Mar",21,"San Salvador el Seco",null,null,null,null,null,null,null,null,null,null,null,null,null,null,null,null,30,"Saltabarranca"]
[null,null,null,null,null,null,null,null,null,null,null,null,null,null,null,null,null,null,null,null,null,null,null,null,null,null,null,null,null,null,null,null,null,null,null,null,null,null,null,null,null,20,"San Francisco Huehuetlán",21,"San Salvador el Verde",null,null,null,null,null,null,null,null,null,null,null,null,null,null,null,null,30,"San Andrés Tenejapan"]
[null,null,null,null,null,null,null,null,null,null,null,null,null,null,null,null,null,null,null,null,null,null,null,null,null,null,null,null,null,null,null,null,null,null,null,null,null,null,null,null,null,20,"San Francisco Ixhuatán",21,"San Salvador Huixcolotla",null,null,null,null,null,null,null,null,null,null,null,null,null,null,null,null,30,"San Andrés Tuxtla"]
[null,null,null,null,null,null,null,null,null,null,null,null,null,null,null,null,null,null,null,null,null,null,null,null,null,null,null,null,null,null,null,null,null,null,null,null,null,null,null,null,null,20,"San Francisco Jaltepetongo",21,"San Sebastián Tlacotepec",null,null,null,null,null,null,null,null,null,null,null,null,null,null,null,null,30,"San Juan Evangelista"]
[null,null,null,null,null,null,null,null,null,null,null,null,null,null,null,null,null,null,null,null,null,null,null,null,null,null,null,null,null,null,null,null,null,null,null,null,null,null,null,null,null,20,"San Francisco Lachigoló",21,"Santa Catarina Tlaltempan",null,null,null,null,null,null,null,null,null,null,null,null,null,null,null,null,30,"San Rafael"]
[null,null,null,null,null,null,null,null,null,null,null,null,null,null,null,null,null,null,null,null,null,null,null,null,null,null,null,null,null,null,null,null,null,null,null,null,null,null,null,null,null,20,"San Francisco Logueche",21,"Santa Inés Ahuatempan",null,null,null,null,null,null,null,null,null,null,null,null,null,null,null,null,30,"Santiago Sochiapan"]
[null,null,null,null,null,null,null,null,null,null,null,null,null,null,null,null,null,null,null,null,null,null,null,null,null,null,null,null,null,null,null,null,null,null,null,null,null,null,null,null,null,20,"San Francisco Nuxaño",21,"Santa Isabel Cholula",null,null,null,null,null,null,null,null,null,null,null,null,null,null,null,null,30,"Santiago Tuxtla"]
[null,null,null,null,null,null,null,null,null,null,null,null,null,null,null,null,null,null,null,null,null,null,null,null,null,null,null,null,null,null,null,null,null,null,null,null,null,null,null,null,null,20,"San Francisco Ozolotepec",21,"Santiago Miahuatlán",null,null,null,null,null,null,null,null,null,null,null,null,null,null,null,null,30,"Sayula de Alemán"]
[null,null,null,null,null,null,null,null,null,null,null,null,null,null,null,null,null,null,null,null,null,null,null,null,null,null,null,null,null,null,null,null,null,null,null,null,null,null,null,null,null,20,"San Francisco Sola",21,"Santo Tomás Hueyotlipan",null,null,null,null,null,null,null,null,null,null,null,null,null,null,null,null,30,"Sochiapa"]
[null,null,null,null,null,null,null,null,null,null,null,null,null,null,null,null,null,null,null,null,null,null,null,null,null,null,null,null,null,null,null,null,null,null,null,null,null,null,null,null,null,20,"San Francisco Telixtlahuaca",21,"Soltepec",null,null,null,null,null,null,null,null,null,null,null,null,null,null,null,null,30,"Soconusco"]
[null,null,null,null,null,null,null,null,null,null,null,null,null,null,null,null,null,null,null,null,null,null,null,null,null,null,null,null,null,null,null,null,null,null,null,null,null,null,null,null,null,20,"San Francisco Teopan",21,"Tecali de Herrera",null,null,null,null,null,null,null,null,null,null,null,null,null,null,null,null,30,"Soledad Atzompa"]
[null,null,null,null,null,null,null,null,null,null,null,null,null,null,null,null,null,null,null,null,null,null,null,null,null,null,null,null,null,null,null,null,null,null,null,null,null,null,null,null,null,20,"San Francisco Tlapancingo",21,"Tecamachalco",null,null,null,null,null,null,null,null,null,null,null,null,null,null,null,null,30,"Soledad de Doblado"]
[null,null,null,null,null,null,null,null,null,null,null,null,null,null,null,null,null,null,null,null,null,null,null,null,null,null,null,null,null,null,null,null,null,null,null,null,null,null,null,null,null,20,"San Gabriel Mixtepec",21,"Tecomatlán",null,null,null,null,null,null,null,null,null,null,null,null,null,null,null,null,30,"Soteapan"]
[null,null,null,null,null,null,null,null,null,null,null,null,null,null,null,null,null,null,null,null,null,null,null,null,null,null,null,null,null,null,null,null,null,null,null,null,null,null,null,null,null,20,"San Ildefonso Amatlán",21,"Tehuacán",null,null,null,null,null,null,null,null,null,null,null,null,null,null,null,null,30,"Tamalín"]
[null,null,null,null,null,null,null,null,null,null,null,null,null,null,null,null,null,null,null,null,null,null,null,null,null,null,null,null,null,null,null,null,null,null,null,null,null,null,null,null,null,20,"San Ildefonso Sola",21,"Tehuitzingo",null,null,null,null,null,null,null,null,null,null,null,null,null,null,null,null,30,"Tamiahua"]
[null,null,null,null,null,null,null,null,null,null,null,null,null,null,null,null,null,null,null,null,null,null,null,null,null,null,null,null,null,null,null,null,null,null,null,null,null,null,null,null,null,20,"San Ildefonso Villa Alta",21,"Tenampulco",null,null,null,null,null,null,null,null,null,null,null,null,null,null,null,null,30,"Tampico Alto"]
[null,null,null,null,null,null,null,null,null,null,null,null,null,null,null,null,null,null,null,null,null,null,null,null,null,null,null,null,null,null,null,null,null,null,null,null,null,null,null,null,null,20,"San Jacinto Amilpas",21,"Teopantlán",null,null,null,null,null,null,null,null,null,null,null,null,null,null,null,null,30,"Tancoco"]
[null,null,null,null,null,null,null,null,null,null,null,null,null,null,null,null,null,null,null,null,null,null,null,null,null,null,null,null,null,null,null,null,null,null,null,null,null,null,null,null,null,20,"San Jacinto Tlacotepec",21,"Teotlalco",null,null,null,null,null,null,null,null,null,null,null,null,null,null,null,null,30,"Tantima"]
[null,null,null,null,null,null,null,null,null,null,null,null,null,null,null,null,null,null,null,null,null,null,null,null,null,null,null,null,null,null,null,null,null,null,null,null,null,null,null,null,null,20,"San Jerónimo Coatlán",21,"Tepanco de López",null,null,null,null,null,null,null,null,null,null,null,null,null,null,null,null,30,"Tantoyuca"]
[null,null,null,null,null,null,null,null,null,null,null,null,null,null,null,null,null,null,null,null,null,null,null,null,null,null,null,null,null,null,null,null,null,null,null,null,null,null,null,null,null,20,"San Jerónimo Silacayoapilla",21,"Tepango de Rodríguez",null,null,null,null,null,null,null,null,null,null,null,null,null,null,null,null,30,"Tatahuicapan de Juárez"]
[null,null,null,null,null,null,null,null,null,null,null,null,null,null,null,null,null,null,null,null,null,null,null,null,null,null,null,null,null,null,null,null,null,null,null,null,null,null,null,null,null,20,"San Jerónimo Sosola",21,"Tepatlaxco de Hidalgo",null,null,null,null,null,null,null,null,null,null,null,null,null,null,null,null,30,"Tatatila"]
[null,null,null,null,null,null,null,null,null,null,null,null,null,null,null,null,null,null,null,null,null,null,null,null,null,null,null,null,null,null,null,null,null,null,null,null,null,null,null,null,null,20,"San Jerónimo Taviche",21,"Tepeaca",null,null,null,null,null,null,null,null,null,null,null,null,null,null,null,null,30,"Tecolutla"]
[null,null,null,null,null,null,null,null,null,null,null,null,null,null,null,null,null,null,null,null,null,null,null,null,null,null,null,null,null,null,null,null,null,null,null,null,null,null,null,null,null,20,"San Jerónimo Tecóatl",21,"Tepemaxalco",null,null,null,null,null,null,null,null,null,null,null,null,null,null,null,null,30,"Tehuipango"]
[null,null,null,null,null,null,null,null,null,null,null,null,null,null,null,null,null,null,null,null,null,null,null,null,null,null,null,null,null,null,null,null,null,null,null,null,null,null,null,null,null,20,"San Jerónimo Tlacochahuaya",21,"Tepeojuma",null,null,null,null,null,null,null,null,null,null,null,null,null,null,null,null,30,"Tempoal"]
[null,null,null,null,null,null,null,null,null,null,null,null,null,null,null,null,null,null,null,null,null,null,null,null,null,null,null,null,null,null,null,null,null,null,null,null,null,null,null,null,null,20,"San Jorge Nuchita",21,"Tepetzintla",null,null,null,null,null,null,null,null,null,null,null,null,null,null,null,null,30,"Tenampa"]
[null,null,null,null,null,null,null,null,null,null,null,null,null,null,null,null,null,null,null,null,null,null,null,null,null,null,null,null,null,null,null,null,null,null,null,null,null,null,null,null,null,20,"San José Ayuquila",21,"Tepexco",null,null,null,null,null,null,null,null,null,null,null,null,null,null,null,null,30,"Tenochtitlán"]
[null,null,null,null,null,null,null,null,null,null,null,null,null,null,null,null,null,null,null,null,null,null,null,null,null,null,null,null,null,null,null,null,null,null,null,null,null,null,null,null,null,20,"San José Chiltepec",21,"Tepexi de Rodríguez",null,null,null,null,null,null,null,null,null,null,null,null,null,null,null,null,30,"Teocelo"]
[null,null,null,null,null,null,null,null,null,null,null,null,null,null,null,null,null,null,null,null,null,null,null,null,null,null,null,null,null,null,null,null,null,null,null,null,null,null,null,null,null,20,"San José del Peñasco",21,"Tepeyahualco",null,null,null,null,null,null,null,null,null,null,null,null,null,null,null,null,30,"Tepatlaxco"]
[null,null,null,null,null,null,null,null,null,null,null,null,null,null,null,null,null,null,null,null,null,null,null,null,null,null,null,null,null,null,null,null,null,null,null,null,null,null,null,null,null,20,"San José del Progreso",21,"Tepeyahualco de Cuauhtémoc",null,null,null,null,null,null,null,null,null,null,null,null,null,null,null,null,30,"Tepetlán"]
[null,null,null,null,null,null,null,null,null,null,null,null,null,null,null,null,null,null,null,null,null,null,null,null,null,null,null,null,null,null,null,null,null,null,null,null,null,null,null,null,null,20,"San José Estancia Grande",21,"Tetela de Ocampo",null,null,null,null,null,null,null,null,null,null,null,null,null,null,null,null,30,"Tepetzintla"]
[null,null,null,null,null,null,null,null,null,null,null,null,null,null,null,null,null,null,null,null,null,null,null,null,null,null,null,null,null,null,null,null,null,null,null,null,null,null,null,null,null,20,"San José Independencia",21,"Teteles de Avila Castillo",null,null,null,null,null,null,null,null,null,null,null,null,null,null,null,null,30,"Tequila"]
[null,null,null,null,null,null,null,null,null,null,null,null,null,null,null,null,null,null,null,null,null,null,null,null,null,null,null,null,null,null,null,null,null,null,null,null,null,null,null,null,null,20,"San José Lachiguiri",21,"Teziutlán",null,null,null,null,null,null,null,null,null,null,null,null,null,null,null,null,30,"Texcatepec"]
[null,null,null,null,null,null,null,null,null,null,null,null,null,null,null,null,null,null,null,null,null,null,null,null,null,null,null,null,null,null,null,null,null,null,null,null,null,null,null,null,null,20,"San José Tenango",21,"Tianguismanalco",null,null,null,null,null,null,null,null,null,null,null,null,null,null,null,null,30,"Texhuacán"]
[null,null,null,null,null,null,null,null,null,null,null,null,null,null,null,null,null,null,null,null,null,null,null,null,null,null,null,null,null,null,null,null,null,null,null,null,null,null,null,null,null,20,"San Juan Achiutla",21,"Tilapa",null,null,null,null,null,null,null,null,null,null,null,null,null,null,null,null,30,"Texistepec"]
[null,null,null,null,null,null,null,null,null,null,null,null,null,null,null,null,null,null,null,null,null,null,null,null,null,null,null,null,null,null,null,null,null,null,null,null,null,null,null,null,null,20,"San Juan Atepec",21,"Tlachichuca",null,null,null,null,null,null,null,null,null,null,null,null,null,null,null,null,30,"Tezonapa"]
[null,null,null,null,null,null,null,null,null,null,null,null,null,null,null,null,null,null,null,null,null,null,null,null,null,null,null,null,null,null,null,null,null,null,null,null,null,null,null,null,null,20,"San Juan Bautista Atatlahuca",21,"Tlacotepec de Benito Juárez",null,null,null,null,null,null,null,null,null,null,null,null,null,null,null,null,30,"Tierra Blanca"]
[null,null,null,null,null,null,null,null,null,null,null,null,null,null,null,null,null,null,null,null,null,null,null,null,null,null,null,null,null,null,null,null,null,null,null,null,null,null,null,null,null,20,"San Juan Bautista Coixtlahuaca",21,"Tlacuilotepec",null,null,null,null,null,null,null,null,null,null,null,null,null,null,null,null,30,"Tihuatlán"]
[null,null,null,null,null,null,null,null,null,null,null,null,null,null,null,null,null,null,null,null,null,null,null,null,null,null,null,null,null,null,null,null,null,null,null,null,null,null,null,null,null,20,"San Juan Bautista Cuicatlán",21,"Tlahuapan",null,null,null,null,null,null,null,null,null,null,null,null,null,null,null,null,30,"Tlachichilco"]
[null,null,null,null,null,null,null,null,null,null,null,null,null,null,null,null,null,null,null,null,null,null,null,null,null,null,null,null,null,null,null,null,null,null,null,null,null,null,null,null,null,20,"San Juan Bautista Guelache",21,"Tlaltenango",null,null,null,null,null,null,null,null,null,null,null,null,null,null,null,null,30,"Tlacojalpan"]
[null,null,null,null,null,null,null,null,null,null,null,null,null,null,null,null,null,null,null,null,null,null,null,null,null,null,null,null,null,null,null,null,null,null,null,null,null,null,null,null,null,20,"San Juan Bautista Jayacatlán",21,"Tlanepantla",null,null,null,null,null,null,null,null,null,null,null,null,null,null,null,null,30,"Tlacolulan"]
[null,null,null,null,null,null,null,null,null,null,null,null,null,null,null,null,null,null,null,null,null,null,null,null,null,null,null,null,null,null,null,null,null,null,null,null,null,null,null,null,null,20,"San Juan Bautista Lo de Soto",21,"Tlaola",null,null,null,null,null,null,null,null,null,null,null,null,null,null,null,null,30,"Tlacotalpan"]
[null,null,null,null,null,null,null,null,null,null,null,null,null,null,null,null,null,null,null,null,null,null,null,null,null,null,null,null,null,null,null,null,null,null,null,null,null,null,null,null,null,20,"San Juan Bautista Suchitepec",21,"Tlapacoya",null,null,null,null,null,null,null,null,null,null,null,null,null,null,null,null,30,"Tlacotepec de Mejía"]
[null,null,null,null,null,null,null,null,null,null,null,null,null,null,null,null,null,null,null,null,null,null,null,null,null,null,null,null,null,null,null,null,null,null,null,null,null,null,null,null,null,20,"San Juan Bautista Tlachichilco",21,"Tlapanalá",null,null,null,null,null,null,null,null,null,null,null,null,null,null,null,null,30,"Tlalixcoyan"]
[null,null,null,null,null,null,null,null,null,null,null,null,null,null,null,null,null,null,null,null,null,null,null,null,null,null,null,null,null,null,null,null,null,null,null,null,null,null,null,null,null,20,"San Juan Bautista Tlacoatzintepec",21,"Tlatlauquitepec",null,null,null,null,null,null,null,null,null,null,null,null,null,null,null,null,30,"Tlalnelhuayocan"]
[null,null,null,null,null,null,null,null,null,null,null,null,null,null,null,null,null,null,null,null,null,null,null,null,null,null,null,null,null,null,null,null,null,null,null,null,null,null,null,null,null,20,"San Juan Bautista Tuxtepec",21,"Tlaxco",null,null,null,null,null,null,null,null,null,null,null,null,null,null,null,null,30,"Tlaltetela"]
[null,null,null,null,null,null,null,null,null,null,null,null,null,null,null,null,null,null,null,null,null,null,null,null,null,null,null,null,null,null,null,null,null,null,null,null,null,null,null,null,null,20,"San Juan Bautista Valle Nacional",21,"Tochimilco",null,null,null,null,null,null,null,null,null,null,null,null,null,null,null,null,30,"Tlapacoyan"]
[null,null,null,null,null,null,null,null,null,null,null,null,null,null,null,null,null,null,null,null,null,null,null,null,null,null,null,null,null,null,null,null,null,null,null,null,null,null,null,null,null,20,"San Juan Cacahuatepec",21,"Tochtepec",null,null,null,null,null,null,null,null,null,null,null,null,null,null,null,null,30,"Tlaquilpa"]
[null,null,null,null,null,null,null,null,null,null,null,null,null,null,null,null,null,null,null,null,null,null,null,null,null,null,null,null,null,null,null,null,null,null,null,null,null,null,null,null,null,20,"San Juan Chicomezúchil",21,"Totoltepec de Guerrero",null,null,null,null,null,null,null,null,null,null,null,null,null,null,null,null,30,"Tlilapan"]
[null,null,null,null,null,null,null,null,null,null,null,null,null,null,null,null,null,null,null,null,null,null,null,null,null,null,null,null,null,null,null,null,null,null,null,null,null,null,null,null,null,20,"San Juan Chilateca",21,"Tulcingo",null,null,null,null,null,null,null,null,null,null,null,null,null,null,null,null,30,"Tomatlán"]
[null,null,null,null,null,null,null,null,null,null,null,null,null,null,null,null,null,null,null,null,null,null,null,null,null,null,null,null,null,null,null,null,null,null,null,null,null,null,null,null,null,20,"San Juan Cieneguilla",21,"Tuzamapan de Galeana",null,null,null,null,null,null,null,null,null,null,null,null,null,null,null,null,30,"Tonayán"]
[null,null,null,null,null,null,null,null,null,null,null,null,null,null,null,null,null,null,null,null,null,null,null,null,null,null,null,null,null,null,null,null,null,null,null,null,null,null,null,null,null,20,"San Juan Coatzóspam",21,"Tzicatlacoyan",null,null,null,null,null,null,null,null,null,null,null,null,null,null,null,null,30,"Totutla"]
[null,null,null,null,null,null,null,null,null,null,null,null,null,null,null,null,null,null,null,null,null,null,null,null,null,null,null,null,null,null,null,null,null,null,null,null,null,null,null,null,null,20,"San Juan Colorado",21,"Venustiano Carranza",null,null,null,null,null,null,null,null,null,null,null,null,null,null,null,null,30,"Tres Valles"]
[null,null,null,null,null,null,null,null,null,null,null,null,null,null,null,null,null,null,null,null,null,null,null,null,null,null,null,null,null,null,null,null,null,null,null,null,null,null,null,null,null,20,"San Juan Comaltepec",21,"Vicente Guerrero",null,null,null,null,null,null,null,null,null,null,null,null,null,null,null,null,30,"Tuxpan"]
[null,null,null,null,null,null,null,null,null,null,null,null,null,null,null,null,null,null,null,null,null,null,null,null,null,null,null,null,null,null,null,null,null,null,null,null,null,null,null,null,null,20,"San Juan Cotzocón",21,"Xayacatlán de Bravo",null,null,null,null,null,null,null,null,null,null,null,null,null,null,null,null,30,"Tuxtilla"]
[null,null,null,null,null,null,null,null,null,null,null,null,null,null,null,null,null,null,null,null,null,null,null,null,null,null,null,null,null,null,null,null,null,null,null,null,null,null,null,null,null,20,"San Juan de los Cués",21,"Xicotepec",null,null,null,null,null,null,null,null,null,null,null,null,null,null,null,null,30,"Ursulo Galván"]
[null,null,null,null,null,null,null,null,null,null,null,null,null,null,null,null,null,null,null,null,null,null,null,null,null,null,null,null,null,null,null,null,null,null,null,null,null,null,null,null,null,20,"San Juan del Estado",21,"Xicotlán",null,null,null,null,null,null,null,null,null,null,null,null,null,null,null,null,30,"Uxpanapa"]
[null,null,null,null,null,null,null,null,null,null,null,null,null,null,null,null,null,null,null,null,null,null,null,null,null,null,null,null,null,null,null,null,null,null,null,null,null,null,null,null,null,20,"San Juan del Río",21,"Xiutetelco",null,null,null,null,null,null,null,null,null,null,null,null,null,null,null,null,30,"Vega de Alatorre"]
[null,null,null,null,null,null,null,null,null,null,null,null,null,null,null,null,null,null,null,null,null,null,null,null,null,null,null,null,null,null,null,null,null,null,null,null,null,null,null,null,null,20,"San Juan Diuxi",21,"Xochiapulco",null,null,null,null,null,null,null,null,null,null,null,null,null,null,null,null,30,"Veracruz"]
[null,null,null,null,null,null,null,null,null,null,null,null,null,null,null,null,null,null,null,null,null,null,null,null,null,null,null,null,null,null,null,null,null,null,null,null,null,null,null,null,null,20,"San Juan Evangelista Analco",21,"Xochiltepec",null,null,null,null,null,null,null,null,null,null,null,null,null,null,null,null,30,"Villa Aldama"]
[null,null,null,null,null,null,null,null,null,null,null,null,null,null,null,null,null,null,null,null,null,null,null,null,null,null,null,null,null,null,null,null,null,null,null,null,null,null,null,null,null,20,"San Juan Guelavía",21,"Xochitlán de Vicente Suárez",null,null,null,null,null,null,null,null,null,null,null,null,null,null,null,null,30,"Xalapa"]
[null,null,null,null,null,null,null,null,null,null,null,null,null,null,null,null,null,null,null,null,null,null,null,null,null,null,null,null,null,null,null,null,null,null,null,null,null,null,null,null,null,20,"San Juan Guichicovi",21,"Xochitlán Todos Santos",null,null,null,null,null,null,null,null,null,null,null,null,null,null,null,null,30,"Xico"]
[null,null,null,null,null,null,null,null,null,null,null,null,null,null,null,null,null,null,null,null,null,null,null,null,null,null,null,null,null,null,null,null,null,null,null,null,null,null,null,null,null,20,"San Juan Ihualtepec",21,"Yaonáhuac",null,null,null,null,null,null,null,null,null,null,null,null,null,null,null,null,30,"Xoxocotla"]
[null,null,null,null,null,null,null,null,null,null,null,null,null,null,null,null,null,null,null,null,null,null,null,null,null,null,null,null,null,null,null,null,null,null,null,null,null,null,null,null,null,20,"San Juan Juquila Mixes",21,"Yehualtepec",null,null,null,null,null,null,null,null,null,null,null,null,null,null,null,null,30,"Yanga"]
[null,null,null,null,null,null,null,null,null,null,null,null,null,null,null,null,null,null,null,null,null,null,null,null,null,null,null,null,null,null,null,null,null,null,null,null,null,null,null,null,null,20,"San Juan Juquila Vijanos",21,"Zacapala",null,null,null,null,null,null,null,null,null,null,null,null,null,null,null,null,30,"Yecuatla"]
[null,null,null,null,null,null,null,null,null,null,null,null,null,null,null,null,null,null,null,null,null,null,null,null,null,null,null,null,null,null,null,null,null,null,null,null,null,null,null,null,null,20,"San Juan Lachao",21,"Zacapoaxtla",null,null,null,null,null,null,null,null,null,null,null,null,null,null,null,null,30,"Zacualpan"]
[null,null,null,null,null,null,null,null,null,null,null,null,null,null,null,null,null,null,null,null,null,null,null,null,null,null,null,null,null,null,null,null,null,null,null,null,null,null,null,null,null,20,"San Juan Lachigalla",21,"Zacatlán",null,null,null,null,null,null,null,null,null,null,null,null,null,null,null,null,30,"Zaragoza"]
[null,null,null,null,null,null,null,null,null,null,null,null,null,null,null,null,null,null,null,null,null,null,null,null,null,null,null,null,null,null,null,null,null,null,null,null,null,null,null,null,null,20,"San Juan Lajarcia",21,"Zapotitlán",null,null,null,null,null,null,null,null,null,null,null,null,null,null,null,null,30,"Zentla"]
[null,null,null,null,null,null,null,null,null,null,null,null,null,null,null,null,null,null,null,null,null,null,null,null,null,null,null,null,null,null,null,null,null,null,null,null,null,null,null,null,null,20,"San Juan Lalana",21,"Zapotitlán de Méndez",null,null,null,null,null,null,null,null,null,null,null,null,null,null,null,null,30,"Zongolica"]
[null,null,null,null,null,null,null,null,null,null,null,null,null,null,null,null,null,null,null,null,null,null,null,null,null,null,null,null,null,null,null,null,null,null,null,null,null,null,null,null,null,20,"San Juan Mazatlán",21,"Zaragoza",null,null,null,null,null,null,null,null,null,null,null,null,null,null,null,null,30,"Zontecomatlán de López y Fuentes"]
[null,null,null,null,null,null,null,null,null,null,null,null,null,null,null,null,null,null,null,null,null,null,null,null,null,null,null,null,null,null,null,null,null,null,null,null,null,null,null,null,null,20,"San Juan Mixtepec -Dto. 08 -",21,"Zautla",null,null,null,null,null,null,null,null,null,null,null,null,null,null,null,null,30,"Zozocolco de Hidalgo"]
[null,null,null,null,null,null,null,null,null,null,null,null,null,null,null,null,null,null,null,null,null,null,null,null,null,null,null,null,null,null,null,null,null,null,null,null,null,null,null,null,null,20,"San Juan Mixtepec -Dto. 26 -",21,"Zihuateutla"]
[null,null,null,null,null,null,null,null,null,null,null,null,null,null,null,null,null,null,null,null,null,null,null,null,null,null,null,null,null,null,null,null,null,null,null,null,null,null,null,null,null,20,"San Juan Ñumí",21,"Zinacatepec"]
[null,null,null,null,null,null,null,null,null,null,null,null,null,null,null,null,null,null,null,null,null,null,null,null,null,null,null,null,null,null,null,null,null,null,null,null,null,null,null,null,null,20,"San Juan Ozolotepec",21,"Zongozotla"]
[null,null,null,null,null,null,null,null,null,null,null,null,null,null,null,null,null,null,null,null,null,null,null,null,null,null,null,null,null,null,null,null,null,null,null,null,null,null,null,null,null,20,"San Juan Petlapa",21,"Zoquiapan"]
[null,null,null,null,null,null,null,null,null,null,null,null,null,null,null,null,null,null,null,null,null,null,null,null,null,null,null,null,null,null,null,null,null,null,null,null,null,null,null,null,null,20,"San Juan Quiahije",21,"Zoquitlán"]
[null,null,null,null,null,null,null,null,null,null,null,null,null,null,null,null,null,null,null,null,null,null,null,null,null,null,null,null,null,null,null,null,null,null,null,null,null,null,null,null,null,20,"San Juan Quiotepec"]
[null,null,null,null,null,null,null,null,null,null,null,null,null,null,null,null,null,null,null,null,null,null,null,null,null,null,null,null,null,null,null,null,null,null,null,null,null,null,null,null,null,20,"San Juan Sayultepec"]
[null,null,null,null,null,null,null,null,null,null,null,null,null,null,null,null,null,null,null,null,null,null,null,null,null,null,null,null,null,null,null,null,null,null,null,null,null,null,null,null,null,20,"San Juan Tabaá"]
[null,null,null,null,null,null,null,null,null,null,null,null,null,null,null,null,null,null,null,null,null,null,null,null,null,null,null,null,null,null,null,null,null,null,null,null,null,null,null,null,null,20,"San Juan Tamazola"]
[null,null,null,null,null,null,null,null,null,null,null,null,null,null,null,null,null,null,null,null,null,null,null,null,null,null,null,null,null,null,null,null,null,null,null,null,null,null,null,null,null,20,"San Juan Teita"]
[null,null,null,null,null,null,null,null,null,null,null,null,null,null,null,null,null,null,null,null,null,null,null,null,null,null,null,null,null,null,null,null,null,null,null,null,null,null,null,null,null,20,"San Juan Teitipac"]
[null,null,null,null,null,null,null,null,null,null,null,null,null,null,null,null,null,null,null,null,null,null,null,null,null,null,null,null,null,null,null,null,null,null,null,null,null,null,null,null,null,20,"San Juan Tepeuxila"]
[null,null,null,null,null,null,null,null,null,null,null,null,null,null,null,null,null,null,null,null,null,null,null,null,null,null,null,null,null,null,null,null,null,null,null,null,null,null,null,null,null,20,"San Juan Teposcolula"]
[null,null,null,null,null,null,null,null,null,null,null,null,null,null,null,null,null,null,null,null,null,null,null,null,null,null,null,null,null,null,null,null,null,null,null,null,null,null,null,null,null,20,"San Juan Yaeé"]
[null,null,null,null,null,null,null,null,null,null,null,null,null,null,null,null,null,null,null,null,null,null,null,null,null,null,null,null,null,null,null,null,null,null,null,null,null,null,null,null,null,20,"San Juan Yatzona"]
[null,null,null,null,null,null,null,null,null,null,null,null,null,null,null,null,null,null,null,null,null,null,null,null,null,null,null,null,null,null,null,null,null,null,null,null,null,null,null,null,null,20,"San Juan Yucuita"]
[null,null,null,null,null,null,null,null,null,null,null,null,null,null,null,null,null,null,null,null,null,null,null,null,null,null,null,null,null,null,null,null,null,null,null,null,null,null,null,null,null,20,"San Lorenzo"]
[null,null,null,null,null,null,null,null,null,null,null,null,null,null,null,null,null,null,null,null,null,null,null,null,null,null,null,null,null,null,null,null,null,null,null,null,null,null,null,null,null,20,"San Lorenzo Albarradas"]
[null,null,null,null,null,null,null,null,null,null,null,null,null,null,null,null,null,null,null,null,null,null,null,null,null,null,null,null,null,null,null,null,null,null,null,null,null,null,null,null,null,20,"San Lorenzo Cacaotepec"]
[null,null,null,null,null,null,null,null,null,null,null,null,null,null,null,null,null,null,null,null,null,null,null,null,null,null,null,null,null,null,null,null,null,null,null,null,null,null,null,null,null,20,"San Lorenzo Cuaunecuiltitla"]
[null,null,null,null,null,null,null,null,null,null,null,null,null,null,null,null,null,null,null,null,null,null,null,null,null,null,null,null,null,null,null,null,null,null,null,null,null,null,null,null,null,20,"San Lorenzo Texmelúcan"]
[null,null,null,null,null,null,null,null,null,null,null,null,null,null,null,null,null,null,null,null,null,null,null,null,null,null,null,null,null,null,null,null,null,null,null,null,null,null,null,null,null,20,"San Lorenzo Victoria"]
[null,null,null,null,null,null,null,null,null,null,null,null,null,null,null,null,null,null,null,null,null,null,null,null,null,null,null,null,null,null,null,null,null,null,null,null,null,null,null,null,null,20,"San Lucas Camotlán"]
[null,null,null,null,null,null,null,null,null,null,null,null,null,null,null,null,null,null,null,null,null,null,null,null,null,null,null,null,null,null,null,null,null,null,null,null,null,null,null,null,null,20,"San Lucas Ojitlán"]
[null,null,null,null,null,null,null,null,null,null,null,null,null,null,null,null,null,null,null,null,null,null,null,null,null,null,null,null,null,null,null,null,null,null,null,null,null,null,null,null,null,20,"San Lucas Quiaviní"]
[null,null,null,null,null,null,null,null,null,null,null,null,null,null,null,null,null,null,null,null,null,null,null,null,null,null,null,null,null,null,null,null,null,null,null,null,null,null,null,null,null,20,"San Lucas Zoquiápam"]
[null,null,null,null,null,null,null,null,null,null,null,null,null,null,null,null,null,null,null,null,null,null,null,null,null,null,null,null,null,null,null,null,null,null,null,null,null,null,null,null,null,20,"San Luis Amatlán"]
[null,null,null,null,null,null,null,null,null,null,null,null,null,null,null,null,null,null,null,null,null,null,null,null,null,null,null,null,null,null,null,null,null,null,null,null,null,null,null,null,null,20,"San Marcial Ozolotepec"]
[null,null,null,null,null,null,null,null,null,null,null,null,null,null,null,null,null,null,null,null,null,null,null,null,null,null,null,null,null,null,null,null,null,null,null,null,null,null,null,null,null,20,"San Marcos Arteaga"]
[null,null,null,null,null,null,null,null,null,null,null,null,null,null,null,null,null,null,null,null,null,null,null,null,null,null,null,null,null,null,null,null,null,null,null,null,null,null,null,null,null,20,"San Martín de los Cansecos"]
[null,null,null,null,null,null,null,null,null,null,null,null,null,null,null,null,null,null,null,null,null,null,null,null,null,null,null,null,null,null,null,null,null,null,null,null,null,null,null,null,null,20,"San Martín Huamelúlpam"]
[null,null,null,null,null,null,null,null,null,null,null,null,null,null,null,null,null,null,null,null,null,null,null,null,null,null,null,null,null,null,null,null,null,null,null,null,null,null,null,null,null,20,"San Martín Itunyoso"]
[null,null,null,null,null,null,null,null,null,null,null,null,null,null,null,null,null,null,null,null,null,null,null,null,null,null,null,null,null,null,null,null,null,null,null,null,null,null,null,null,null,20,"San Martín Lachilá"]
[null,null,null,null,null,null,null,null,null,null,null,null,null,null,null,null,null,null,null,null,null,null,null,null,null,null,null,null,null,null,null,null,null,null,null,null,null,null,null,null,null,20,"San Martín Peras"]
[null,null,null,null,null,null,null,null,null,null,null,null,null,null,null,null,null,null,null,null,null,null,null,null,null,null,null,null,null,null,null,null,null,null,null,null,null,null,null,null,null,20,"San Martín Tilcajete"]
[null,null,null,null,null,null,null,null,null,null,null,null,null,null,null,null,null,null,null,null,null,null,null,null,null,null,null,null,null,null,null,null,null,null,null,null,null,null,null,null,null,20,"San Martín Toxpalan"]
[null,null,null,null,null,null,null,null,null,null,null,null,null,null,null,null,null,null,null,null,null,null,null,null,null,null,null,null,null,null,null,null,null,null,null,null,null,null,null,null,null,20,"San Martín Zacatepec"]
[null,null,null,null,null,null,null,null,null,null,null,null,null,null,null,null,null,null,null,null,null,null,null,null,null,null,null,null,null,null,null,null,null,null,null,null,null,null,null,null,null,20,"San Mateo Cajonos"]
[null,null,null,null,null,null,null,null,null,null,null,null,null,null,null,null,null,null,null,null,null,null,null,null,null,null,null,null,null,null,null,null,null,null,null,null,null,null,null,null,null,20,"San Mateo del Mar"]
[null,null,null,null,null,null,null,null,null,null,null,null,null,null,null,null,null,null,null,null,null,null,null,null,null,null,null,null,null,null,null,null,null,null,null,null,null,null,null,null,null,20,"San Mateo Etlatongo"]
[null,null,null,null,null,null,null,null,null,null,null,null,null,null,null,null,null,null,null,null,null,null,null,null,null,null,null,null,null,null,null,null,null,null,null,null,null,null,null,null,null,20,"San Mateo Nejápam"]
[null,null,null,null,null,null,null,null,null,null,null,null,null,null,null,null,null,null,null,null,null,null,null,null,null,null,null,null,null,null,null,null,null,null,null,null,null,null,null,null,null,20,"San Mateo Peñasco"]
[null,null,null,null,null,null,null,null,null,null,null,null,null,null,null,null,null,null,null,null,null,null,null,null,null,null,null,null,null,null,null,null,null,null,null,null,null,null,null,null,null,20,"San Mateo Piñas"]
[null,null,null,null,null,null,null,null,null,null,null,null,null,null,null,null,null,null,null,null,null,null,null,null,null,null,null,null,null,null,null,null,null,null,null,null,null,null,null,null,null,20,"San Mateo Río Hondo"]
[null,null,null,null,null,null,null,null,null,null,null,null,null,null,null,null,null,null,null,null,null,null,null,null,null,null,null,null,null,null,null,null,null,null,null,null,null,null,null,null,null,20,"San Mateo Sindihui"]
[null,null,null,null,null,null,null,null,null,null,null,null,null,null,null,null,null,null,null,null,null,null,null,null,null,null,null,null,null,null,null,null,null,null,null,null,null,null,null,null,null,20,"San Mateo Tlapiltepec"]
[null,null,null,null,null,null,null,null,null,null,null,null,null,null,null,null,null,null,null,null,null,null,null,null,null,null,null,null,null,null,null,null,null,null,null,null,null,null,null,null,null,20,"San Mateo Yoloxochitlán"]
[null,null,null,null,null,null,null,null,null,null,null,null,null,null,null,null,null,null,null,null,null,null,null,null,null,null,null,null,null,null,null,null,null,null,null,null,null,null,null,null,null,20,"San Mateo Yucutindó"]
[null,null,null,null,null,null,null,null,null,null,null,null,null,null,null,null,null,null,null,null,null,null,null,null,null,null,null,null,null,null,null,null,null,null,null,null,null,null,null,null,null,20,"San Melchor Betaza"]
[null,null,null,null,null,null,null,null,null,null,null,null,null,null,null,null,null,null,null,null,null,null,null,null,null,null,null,null,null,null,null,null,null,null,null,null,null,null,null,null,null,20,"San Miguel Achiutla"]
[null,null,null,null,null,null,null,null,null,null,null,null,null,null,null,null,null,null,null,null,null,null,null,null,null,null,null,null,null,null,null,null,null,null,null,null,null,null,null,null,null,20,"San Miguel Ahuehuetitlán"]
[null,null,null,null,null,null,null,null,null,null,null,null,null,null,null,null,null,null,null,null,null,null,null,null,null,null,null,null,null,null,null,null,null,null,null,null,null,null,null,null,null,20,"San Miguel Aloápam"]
[null,null,null,null,null,null,null,null,null,null,null,null,null,null,null,null,null,null,null,null,null,null,null,null,null,null,null,null,null,null,null,null,null,null,null,null,null,null,null,null,null,20,"San Miguel Amatitlán"]
[null,null,null,null,null,null,null,null,null,null,null,null,null,null,null,null,null,null,null,null,null,null,null,null,null,null,null,null,null,null,null,null,null,null,null,null,null,null,null,null,null,20,"San Miguel Amatlán"]
[null,null,null,null,null,null,null,null,null,null,null,null,null,null,null,null,null,null,null,null,null,null,null,null,null,null,null,null,null,null,null,null,null,null,null,null,null,null,null,null,null,20,"San Miguel Chicahua"]
[null,null,null,null,null,null,null,null,null,null,null,null,null,null,null,null,null,null,null,null,null,null,null,null,null,null,null,null,null,null,null,null,null,null,null,null,null,null,null,null,null,20,"San Miguel Chimalapa"]
[null,null,null,null,null,null,null,null,null,null,null,null,null,null,null,null,null,null,null,null,null,null,null,null,null,null,null,null,null,null,null,null,null,null,null,null,null,null,null,null,null,20,"San Miguel Coatlán"]
[null,null,null,null,null,null,null,null,null,null,null,null,null,null,null,null,null,null,null,null,null,null,null,null,null,null,null,null,null,null,null,null,null,null,null,null,null,null,null,null,null,20,"San Miguel del Puerto"]
[null,null,null,null,null,null,null,null,null,null,null,null,null,null,null,null,null,null,null,null,null,null,null,null,null,null,null,null,null,null,null,null,null,null,null,null,null,null,null,null,null,20,"San Miguel del Río"]
[null,null,null,null,null,null,null,null,null,null,null,null,null,null,null,null,null,null,null,null,null,null,null,null,null,null,null,null,null,null,null,null,null,null,null,null,null,null,null,null,null,20,"San Miguel Ejutla"]
[null,null,null,null,null,null,null,null,null,null,null,null,null,null,null,null,null,null,null,null,null,null,null,null,null,null,null,null,null,null,null,null,null,null,null,null,null,null,null,null,null,20,"San Miguel el Grande"]
[null,null,null,null,null,null,null,null,null,null,null,null,null,null,null,null,null,null,null,null,null,null,null,null,null,null,null,null,null,null,null,null,null,null,null,null,null,null,null,null,null,20,"San Miguel Huautla"]
[null,null,null,null,null,null,null,null,null,null,null,null,null,null,null,null,null,null,null,null,null,null,null,null,null,null,null,null,null,null,null,null,null,null,null,null,null,null,null,null,null,20,"San Miguel Mixtepec"]
[null,null,null,null,null,null,null,null,null,null,null,null,null,null,null,null,null,null,null,null,null,null,null,null,null,null,null,null,null,null,null,null,null,null,null,null,null,null,null,null,null,20,"San Miguel Panixtlahuaca"]
[null,null,null,null,null,null,null,null,null,null,null,null,null,null,null,null,null,null,null,null,null,null,null,null,null,null,null,null,null,null,null,null,null,null,null,null,null,null,null,null,null,20,"San Miguel Peras"]
[null,null,null,null,null,null,null,null,null,null,null,null,null,null,null,null,null,null,null,null,null,null,null,null,null,null,null,null,null,null,null,null,null,null,null,null,null,null,null,null,null,20,"San Miguel Piedras"]
[null,null,null,null,null,null,null,null,null,null,null,null,null,null,null,null,null,null,null,null,null,null,null,null,null,null,null,null,null,null,null,null,null,null,null,null,null,null,null,null,null,20,"San Miguel Quetzaltepec"]
[null,null,null,null,null,null,null,null,null,null,null,null,null,null,null,null,null,null,null,null,null,null,null,null,null,null,null,null,null,null,null,null,null,null,null,null,null,null,null,null,null,20,"San Miguel Santa Flor"]
[null,null,null,null,null,null,null,null,null,null,null,null,null,null,null,null,null,null,null,null,null,null,null,null,null,null,null,null,null,null,null,null,null,null,null,null,null,null,null,null,null,20,"San Miguel Soyaltepec"]
[null,null,null,null,null,null,null,null,null,null,null,null,null,null,null,null,null,null,null,null,null,null,null,null,null,null,null,null,null,null,null,null,null,null,null,null,null,null,null,null,null,20,"San Miguel Suchixtepec"]
[null,null,null,null,null,null,null,null,null,null,null,null,null,null,null,null,null,null,null,null,null,null,null,null,null,null,null,null,null,null,null,null,null,null,null,null,null,null,null,null,null,20,"San Miguel Tecomatlán"]
[null,null,null,null,null,null,null,null,null,null,null,null,null,null,null,null,null,null,null,null,null,null,null,null,null,null,null,null,null,null,null,null,null,null,null,null,null,null,null,null,null,20,"San Miguel Tenango"]
[null,null,null,null,null,null,null,null,null,null,null,null,null,null,null,null,null,null,null,null,null,null,null,null,null,null,null,null,null,null,null,null,null,null,null,null,null,null,null,null,null,20,"San Miguel Tequixtepec"]
[null,null,null,null,null,null,null,null,null,null,null,null,null,null,null,null,null,null,null,null,null,null,null,null,null,null,null,null,null,null,null,null,null,null,null,null,null,null,null,null,null,20,"San Miguel Tilquiápam"]
[null,null,null,null,null,null,null,null,null,null,null,null,null,null,null,null,null,null,null,null,null,null,null,null,null,null,null,null,null,null,null,null,null,null,null,null,null,null,null,null,null,20,"San Miguel Tlacamama"]
[null,null,null,null,null,null,null,null,null,null,null,null,null,null,null,null,null,null,null,null,null,null,null,null,null,null,null,null,null,null,null,null,null,null,null,null,null,null,null,null,null,20,"San Miguel Tlacotepec"]
[null,null,null,null,null,null,null,null,null,null,null,null,null,null,null,null,null,null,null,null,null,null,null,null,null,null,null,null,null,null,null,null,null,null,null,null,null,null,null,null,null,20,"San Miguel Tulancingo"]
[null,null,null,null,null,null,null,null,null,null,null,null,null,null,null,null,null,null,null,null,null,null,null,null,null,null,null,null,null,null,null,null,null,null,null,null,null,null,null,null,null,20,"San Miguel Yotao"]
[null,null,null,null,null,null,null,null,null,null,null,null,null,null,null,null,null,null,null,null,null,null,null,null,null,null,null,null,null,null,null,null,null,null,null,null,null,null,null,null,null,20,"San Nicolás"]
[null,null,null,null,null,null,null,null,null,null,null,null,null,null,null,null,null,null,null,null,null,null,null,null,null,null,null,null,null,null,null,null,null,null,null,null,null,null,null,null,null,20,"San Nicolás Hidalgo"]
[null,null,null,null,null,null,null,null,null,null,null,null,null,null,null,null,null,null,null,null,null,null,null,null,null,null,null,null,null,null,null,null,null,null,null,null,null,null,null,null,null,20,"San Pablo Coatlán"]
[null,null,null,null,null,null,null,null,null,null,null,null,null,null,null,null,null,null,null,null,null,null,null,null,null,null,null,null,null,null,null,null,null,null,null,null,null,null,null,null,null,20,"San Pablo Cuatro Venados"]
[null,null,null,null,null,null,null,null,null,null,null,null,null,null,null,null,null,null,null,null,null,null,null,null,null,null,null,null,null,null,null,null,null,null,null,null,null,null,null,null,null,20,"San Pablo Etla"]
[null,null,null,null,null,null,null,null,null,null,null,null,null,null,null,null,null,null,null,null,null,null,null,null,null,null,null,null,null,null,null,null,null,null,null,null,null,null,null,null,null,20,"San Pablo Huitzo"]
[null,null,null,null,null,null,null,null,null,null,null,null,null,null,null,null,null,null,null,null,null,null,null,null,null,null,null,null,null,null,null,null,null,null,null,null,null,null,null,null,null,20,"San Pablo Huixtepec"]
[null,null,null,null,null,null,null,null,null,null,null,null,null,null,null,null,null,null,null,null,null,null,null,null,null,null,null,null,null,null,null,null,null,null,null,null,null,null,null,null,null,20,"San Pablo Macuiltianguis"]
[null,null,null,null,null,null,null,null,null,null,null,null,null,null,null,null,null,null,null,null,null,null,null,null,null,null,null,null,null,null,null,null,null,null,null,null,null,null,null,null,null,20,"San Pablo Tijaltepec"]
[null,null,null,null,null,null,null,null,null,null,null,null,null,null,null,null,null,null,null,null,null,null,null,null,null,null,null,null,null,null,null,null,null,null,null,null,null,null,null,null,null,20,"San Pablo Villa de Mitla"]
[null,null,null,null,null,null,null,null,null,null,null,null,null,null,null,null,null,null,null,null,null,null,null,null,null,null,null,null,null,null,null,null,null,null,null,null,null,null,null,null,null,20,"San Pablo Yaganiza"]
[null,null,null,null,null,null,null,null,null,null,null,null,null,null,null,null,null,null,null,null,null,null,null,null,null,null,null,null,null,null,null,null,null,null,null,null,null,null,null,null,null,20,"San Pedro Amuzgos"]
[null,null,null,null,null,null,null,null,null,null,null,null,null,null,null,null,null,null,null,null,null,null,null,null,null,null,null,null,null,null,null,null,null,null,null,null,null,null,null,null,null,20,"San Pedro Apóstol"]
[null,null,null,null,null,null,null,null,null,null,null,null,null,null,null,null,null,null,null,null,null,null,null,null,null,null,null,null,null,null,null,null,null,null,null,null,null,null,null,null,null,20,"San Pedro Atoyac"]
[null,null,null,null,null,null,null,null,null,null,null,null,null,null,null,null,null,null,null,null,null,null,null,null,null,null,null,null,null,null,null,null,null,null,null,null,null,null,null,null,null,20,"San Pedro Cajonos"]
[null,null,null,null,null,null,null,null,null,null,null,null,null,null,null,null,null,null,null,null,null,null,null,null,null,null,null,null,null,null,null,null,null,null,null,null,null,null,null,null,null,20,"San Pedro Comitancillo"]
[null,null,null,null,null,null,null,null,null,null,null,null,null,null,null,null,null,null,null,null,null,null,null,null,null,null,null,null,null,null,null,null,null,null,null,null,null,null,null,null,null,20,"San Pedro Coxcaltepec Cántaros"]
[null,null,null,null,null,null,null,null,null,null,null,null,null,null,null,null,null,null,null,null,null,null,null,null,null,null,null,null,null,null,null,null,null,null,null,null,null,null,null,null,null,20,"San Pedro el Alto"]
[null,null,null,null,null,null,null,null,null,null,null,null,null,null,null,null,null,null,null,null,null,null,null,null,null,null,null,null,null,null,null,null,null,null,null,null,null,null,null,null,null,20,"San Pedro Huamelula"]
[null,null,null,null,null,null,null,null,null,null,null,null,null,null,null,null,null,null,null,null,null,null,null,null,null,null,null,null,null,null,null,null,null,null,null,null,null,null,null,null,null,20,"San Pedro Huilotepec"]
[null,null,null,null,null,null,null,null,null,null,null,null,null,null,null,null,null,null,null,null,null,null,null,null,null,null,null,null,null,null,null,null,null,null,null,null,null,null,null,null,null,20,"San Pedro Ixcatlán"]
[null,null,null,null,null,null,null,null,null,null,null,null,null,null,null,null,null,null,null,null,null,null,null,null,null,null,null,null,null,null,null,null,null,null,null,null,null,null,null,null,null,20,"San Pedro Ixtlahuaca"]
[null,null,null,null,null,null,null,null,null,null,null,null,null,null,null,null,null,null,null,null,null,null,null,null,null,null,null,null,null,null,null,null,null,null,null,null,null,null,null,null,null,20,"San Pedro Jaltepetongo"]
[null,null,null,null,null,null,null,null,null,null,null,null,null,null,null,null,null,null,null,null,null,null,null,null,null,null,null,null,null,null,null,null,null,null,null,null,null,null,null,null,null,20,"San Pedro Jicayán"]
[null,null,null,null,null,null,null,null,null,null,null,null,null,null,null,null,null,null,null,null,null,null,null,null,null,null,null,null,null,null,null,null,null,null,null,null,null,null,null,null,null,20,"San Pedro Jocotipac"]
[null,null,null,null,null,null,null,null,null,null,null,null,null,null,null,null,null,null,null,null,null,null,null,null,null,null,null,null,null,null,null,null,null,null,null,null,null,null,null,null,null,20,"San Pedro Juchatengo"]
[null,null,null,null,null,null,null,null,null,null,null,null,null,null,null,null,null,null,null,null,null,null,null,null,null,null,null,null,null,null,null,null,null,null,null,null,null,null,null,null,null,20,"San Pedro Mártir"]
[null,null,null,null,null,null,null,null,null,null,null,null,null,null,null,null,null,null,null,null,null,null,null,null,null,null,null,null,null,null,null,null,null,null,null,null,null,null,null,null,null,20,"San Pedro Mártir Quiechapa"]
[null,null,null,null,null,null,null,null,null,null,null,null,null,null,null,null,null,null,null,null,null,null,null,null,null,null,null,null,null,null,null,null,null,null,null,null,null,null,null,null,null,20,"San Pedro Mártir Yucuxaco"]
[null,null,null,null,null,null,null,null,null,null,null,null,null,null,null,null,null,null,null,null,null,null,null,null,null,null,null,null,null,null,null,null,null,null,null,null,null,null,null,null,null,20,"San Pedro Mixtepec -Dto. 22 -"]
[null,null,null,null,null,null,null,null,null,null,null,null,null,null,null,null,null,null,null,null,null,null,null,null,null,null,null,null,null,null,null,null,null,null,null,null,null,null,null,null,null,20,"San Pedro Mixtepec -Dto. 26 -"]
[null,null,null,null,null,null,null,null,null,null,null,null,null,null,null,null,null,null,null,null,null,null,null,null,null,null,null,null,null,null,null,null,null,null,null,null,null,null,null,null,null,20,"San Pedro Molinos"]
[null,null,null,null,null,null,null,null,null,null,null,null,null,null,null,null,null,null,null,null,null,null,null,null,null,null,null,null,null,null,null,null,null,null,null,null,null,null,null,null,null,20,"San Pedro Nopala"]
[null,null,null,null,null,null,null,null,null,null,null,null,null,null,null,null,null,null,null,null,null,null,null,null,null,null,null,null,null,null,null,null,null,null,null,null,null,null,null,null,null,20,"San Pedro Ocopetatillo"]
[null,null,null,null,null,null,null,null,null,null,null,null,null,null,null,null,null,null,null,null,null,null,null,null,null,null,null,null,null,null,null,null,null,null,null,null,null,null,null,null,null,20,"San Pedro Ocotepec"]
[null,null,null,null,null,null,null,null,null,null,null,null,null,null,null,null,null,null,null,null,null,null,null,null,null,null,null,null,null,null,null,null,null,null,null,null,null,null,null,null,null,20,"San Pedro Pochutla"]
[null,null,null,null,null,null,null,null,null,null,null,null,null,null,null,null,null,null,null,null,null,null,null,null,null,null,null,null,null,null,null,null,null,null,null,null,null,null,null,null,null,20,"San Pedro Quiatoni"]
[null,null,null,null,null,null,null,null,null,null,null,null,null,null,null,null,null,null,null,null,null,null,null,null,null,null,null,null,null,null,null,null,null,null,null,null,null,null,null,null,null,20,"San Pedro Sochiápam"]
[null,null,null,null,null,null,null,null,null,null,null,null,null,null,null,null,null,null,null,null,null,null,null,null,null,null,null,null,null,null,null,null,null,null,null,null,null,null,null,null,null,20,"San Pedro Tapanatepec"]
[null,null,null,null,null,null,null,null,null,null,null,null,null,null,null,null,null,null,null,null,null,null,null,null,null,null,null,null,null,null,null,null,null,null,null,null,null,null,null,null,null,20,"San Pedro Taviche"]
[null,null,null,null,null,null,null,null,null,null,null,null,null,null,null,null,null,null,null,null,null,null,null,null,null,null,null,null,null,null,null,null,null,null,null,null,null,null,null,null,null,20,"San Pedro Teozacoalco"]
[null,null,null,null,null,null,null,null,null,null,null,null,null,null,null,null,null,null,null,null,null,null,null,null,null,null,null,null,null,null,null,null,null,null,null,null,null,null,null,null,null,20,"San Pedro Teutila"]
[null,null,null,null,null,null,null,null,null,null,null,null,null,null,null,null,null,null,null,null,null,null,null,null,null,null,null,null,null,null,null,null,null,null,null,null,null,null,null,null,null,20,"San Pedro Tidaá"]
[null,null,null,null,null,null,null,null,null,null,null,null,null,null,null,null,null,null,null,null,null,null,null,null,null,null,null,null,null,null,null,null,null,null,null,null,null,null,null,null,null,20,"San Pedro Topiltepec"]
[null,null,null,null,null,null,null,null,null,null,null,null,null,null,null,null,null,null,null,null,null,null,null,null,null,null,null,null,null,null,null,null,null,null,null,null,null,null,null,null,null,20,"San Pedro Totolápam"]
[null,null,null,null,null,null,null,null,null,null,null,null,null,null,null,null,null,null,null,null,null,null,null,null,null,null,null,null,null,null,null,null,null,null,null,null,null,null,null,null,null,20,"San Pedro y San Pablo Ayutla"]
[null,null,null,null,null,null,null,null,null,null,null,null,null,null,null,null,null,null,null,null,null,null,null,null,null,null,null,null,null,null,null,null,null,null,null,null,null,null,null,null,null,20,"San Pedro y San Pablo Teposcolula"]
[null,null,null,null,null,null,null,null,null,null,null,null,null,null,null,null,null,null,null,null,null,null,null,null,null,null,null,null,null,null,null,null,null,null,null,null,null,null,null,null,null,20,"San Pedro y San Pablo Tequixtepec"]
[null,null,null,null,null,null,null,null,null,null,null,null,null,null,null,null,null,null,null,null,null,null,null,null,null,null,null,null,null,null,null,null,null,null,null,null,null,null,null,null,null,20,"San Pedro Yaneri"]
[null,null,null,null,null,null,null,null,null,null,null,null,null,null,null,null,null,null,null,null,null,null,null,null,null,null,null,null,null,null,null,null,null,null,null,null,null,null,null,null,null,20,"San Pedro Yólox"]
[null,null,null,null,null,null,null,null,null,null,null,null,null,null,null,null,null,null,null,null,null,null,null,null,null,null,null,null,null,null,null,null,null,null,null,null,null,null,null,null,null,20,"San Pedro Yucunama"]
[null,null,null,null,null,null,null,null,null,null,null,null,null,null,null,null,null,null,null,null,null,null,null,null,null,null,null,null,null,null,null,null,null,null,null,null,null,null,null,null,null,20,"San Raymundo Jalpan"]
[null,null,null,null,null,null,null,null,null,null,null,null,null,null,null,null,null,null,null,null,null,null,null,null,null,null,null,null,null,null,null,null,null,null,null,null,null,null,null,null,null,20,"San Sebastián Abasolo"]
[null,null,null,null,null,null,null,null,null,null,null,null,null,null,null,null,null,null,null,null,null,null,null,null,null,null,null,null,null,null,null,null,null,null,null,null,null,null,null,null,null,20,"San Sebastián Coatlán"]
[null,null,null,null,null,null,null,null,null,null,null,null,null,null,null,null,null,null,null,null,null,null,null,null,null,null,null,null,null,null,null,null,null,null,null,null,null,null,null,null,null,20,"San Sebastián Ixcapa"]
[null,null,null,null,null,null,null,null,null,null,null,null,null,null,null,null,null,null,null,null,null,null,null,null,null,null,null,null,null,null,null,null,null,null,null,null,null,null,null,null,null,20,"San Sebastián Nicananduta"]
[null,null,null,null,null,null,null,null,null,null,null,null,null,null,null,null,null,null,null,null,null,null,null,null,null,null,null,null,null,null,null,null,null,null,null,null,null,null,null,null,null,20,"San Sebastián Río Hondo"]
[null,null,null,null,null,null,null,null,null,null,null,null,null,null,null,null,null,null,null,null,null,null,null,null,null,null,null,null,null,null,null,null,null,null,null,null,null,null,null,null,null,20,"San Sebastián Tecomaxtlahuaca"]
[null,null,null,null,null,null,null,null,null,null,null,null,null,null,null,null,null,null,null,null,null,null,null,null,null,null,null,null,null,null,null,null,null,null,null,null,null,null,null,null,null,20,"San Sebastián Teitipac"]
[null,null,null,null,null,null,null,null,null,null,null,null,null,null,null,null,null,null,null,null,null,null,null,null,null,null,null,null,null,null,null,null,null,null,null,null,null,null,null,null,null,20,"San Sebastián Tutla"]
[null,null,null,null,null,null,null,null,null,null,null,null,null,null,null,null,null,null,null,null,null,null,null,null,null,null,null,null,null,null,null,null,null,null,null,null,null,null,null,null,null,20,"San Simón Almolongas"]
[null,null,null,null,null,null,null,null,null,null,null,null,null,null,null,null,null,null,null,null,null,null,null,null,null,null,null,null,null,null,null,null,null,null,null,null,null,null,null,null,null,20,"San Simón Zahuatlán"]
[null,null,null,null,null,null,null,null,null,null,null,null,null,null,null,null,null,null,null,null,null,null,null,null,null,null,null,null,null,null,null,null,null,null,null,null,null,null,null,null,null,20,"San Vicente Coatlán"]
[null,null,null,null,null,null,null,null,null,null,null,null,null,null,null,null,null,null,null,null,null,null,null,null,null,null,null,null,null,null,null,null,null,null,null,null,null,null,null,null,null,20,"San Vicente Lachixío"]
[null,null,null,null,null,null,null,null,null,null,null,null,null,null,null,null,null,null,null,null,null,null,null,null,null,null,null,null,null,null,null,null,null,null,null,null,null,null,null,null,null,20,"San Vicente Nuñú"]
[null,null,null,null,null,null,null,null,null,null,null,null,null,null,null,null,null,null,null,null,null,null,null,null,null,null,null,null,null,null,null,null,null,null,null,null,null,null,null,null,null,20,"Santa Ana"]
[null,null,null,null,null,null,null,null,null,null,null,null,null,null,null,null,null,null,null,null,null,null,null,null,null,null,null,null,null,null,null,null,null,null,null,null,null,null,null,null,null,20,"Santa Ana Ateixtlahuaca"]
[null,null,null,null,null,null,null,null,null,null,null,null,null,null,null,null,null,null,null,null,null,null,null,null,null,null,null,null,null,null,null,null,null,null,null,null,null,null,null,null,null,20,"Santa Ana Cuauhtémoc"]
[null,null,null,null,null,null,null,null,null,null,null,null,null,null,null,null,null,null,null,null,null,null,null,null,null,null,null,null,null,null,null,null,null,null,null,null,null,null,null,null,null,20,"Santa Ana del Valle"]
[null,null,null,null,null,null,null,null,null,null,null,null,null,null,null,null,null,null,null,null,null,null,null,null,null,null,null,null,null,null,null,null,null,null,null,null,null,null,null,null,null,20,"Santa Ana Tavela"]
[null,null,null,null,null,null,null,null,null,null,null,null,null,null,null,null,null,null,null,null,null,null,null,null,null,null,null,null,null,null,null,null,null,null,null,null,null,null,null,null,null,20,"Santa Ana Tlapacoyan"]
[null,null,null,null,null,null,null,null,null,null,null,null,null,null,null,null,null,null,null,null,null,null,null,null,null,null,null,null,null,null,null,null,null,null,null,null,null,null,null,null,null,20,"Santa Ana Yareni"]
[null,null,null,null,null,null,null,null,null,null,null,null,null,null,null,null,null,null,null,null,null,null,null,null,null,null,null,null,null,null,null,null,null,null,null,null,null,null,null,null,null,20,"Santa Ana Zegache"]
[null,null,null,null,null,null,null,null,null,null,null,null,null,null,null,null,null,null,null,null,null,null,null,null,null,null,null,null,null,null,null,null,null,null,null,null,null,null,null,null,null,20,"Santa Catalina Quierí"]
[null,null,null,null,null,null,null,null,null,null,null,null,null,null,null,null,null,null,null,null,null,null,null,null,null,null,null,null,null,null,null,null,null,null,null,null,null,null,null,null,null,20,"Santa Catarina Cuixtla"]
[null,null,null,null,null,null,null,null,null,null,null,null,null,null,null,null,null,null,null,null,null,null,null,null,null,null,null,null,null,null,null,null,null,null,null,null,null,null,null,null,null,20,"Santa Catarina Ixtepeji"]
[null,null,null,null,null,null,null,null,null,null,null,null,null,null,null,null,null,null,null,null,null,null,null,null,null,null,null,null,null,null,null,null,null,null,null,null,null,null,null,null,null,20,"Santa Catarina Juquila"]
[null,null,null,null,null,null,null,null,null,null,null,null,null,null,null,null,null,null,null,null,null,null,null,null,null,null,null,null,null,null,null,null,null,null,null,null,null,null,null,null,null,20,"Santa Catarina Lachatao"]
[null,null,null,null,null,null,null,null,null,null,null,null,null,null,null,null,null,null,null,null,null,null,null,null,null,null,null,null,null,null,null,null,null,null,null,null,null,null,null,null,null,20,"Santa Catarina Loxicha"]
[null,null,null,null,null,null,null,null,null,null,null,null,null,null,null,null,null,null,null,null,null,null,null,null,null,null,null,null,null,null,null,null,null,null,null,null,null,null,null,null,null,20,"Santa Catarina Mechoacán"]
[null,null,null,null,null,null,null,null,null,null,null,null,null,null,null,null,null,null,null,null,null,null,null,null,null,null,null,null,null,null,null,null,null,null,null,null,null,null,null,null,null,20,"Santa Catarina Minas"]
[null,null,null,null,null,null,null,null,null,null,null,null,null,null,null,null,null,null,null,null,null,null,null,null,null,null,null,null,null,null,null,null,null,null,null,null,null,null,null,null,null,20,"Santa Catarina Quiané"]
[null,null,null,null,null,null,null,null,null,null,null,null,null,null,null,null,null,null,null,null,null,null,null,null,null,null,null,null,null,null,null,null,null,null,null,null,null,null,null,null,null,20,"Santa Catarina Quioquitani"]
[null,null,null,null,null,null,null,null,null,null,null,null,null,null,null,null,null,null,null,null,null,null,null,null,null,null,null,null,null,null,null,null,null,null,null,null,null,null,null,null,null,20,"Santa Catarina Tayata"]
[null,null,null,null,null,null,null,null,null,null,null,null,null,null,null,null,null,null,null,null,null,null,null,null,null,null,null,null,null,null,null,null,null,null,null,null,null,null,null,null,null,20,"Santa Catarina Ticuá"]
[null,null,null,null,null,null,null,null,null,null,null,null,null,null,null,null,null,null,null,null,null,null,null,null,null,null,null,null,null,null,null,null,null,null,null,null,null,null,null,null,null,20,"Santa Catarina Yosonotú"]
[null,null,null,null,null,null,null,null,null,null,null,null,null,null,null,null,null,null,null,null,null,null,null,null,null,null,null,null,null,null,null,null,null,null,null,null,null,null,null,null,null,20,"Santa Catarina Zapoquila"]
[null,null,null,null,null,null,null,null,null,null,null,null,null,null,null,null,null,null,null,null,null,null,null,null,null,null,null,null,null,null,null,null,null,null,null,null,null,null,null,null,null,20,"Santa Cruz Acatepec"]
[null,null,null,null,null,null,null,null,null,null,null,null,null,null,null,null,null,null,null,null,null,null,null,null,null,null,null,null,null,null,null,null,null,null,null,null,null,null,null,null,null,20,"Santa Cruz Amilpas"]
[null,null,null,null,null,null,null,null,null,null,null,null,null,null,null,null,null,null,null,null,null,null,null,null,null,null,null,null,null,null,null,null,null,null,null,null,null,null,null,null,null,20,"Santa Cruz de Bravo"]
[null,null,null,null,null,null,null,null,null,null,null,null,null,null,null,null,null,null,null,null,null,null,null,null,null,null,null,null,null,null,null,null,null,null,null,null,null,null,null,null,null,20,"Santa Cruz Itundujia"]
[null,null,null,null,null,null,null,null,null,null,null,null,null,null,null,null,null,null,null,null,null,null,null,null,null,null,null,null,null,null,null,null,null,null,null,null,null,null,null,null,null,20,"Santa Cruz Mixtepec"]
[null,null,null,null,null,null,null,null,null,null,null,null,null,null,null,null,null,null,null,null,null,null,null,null,null,null,null,null,null,null,null,null,null,null,null,null,null,null,null,null,null,20,"Santa Cruz Nundaco"]
[null,null,null,null,null,null,null,null,null,null,null,null,null,null,null,null,null,null,null,null,null,null,null,null,null,null,null,null,null,null,null,null,null,null,null,null,null,null,null,null,null,20,"Santa Cruz Papalutla"]
[null,null,null,null,null,null,null,null,null,null,null,null,null,null,null,null,null,null,null,null,null,null,null,null,null,null,null,null,null,null,null,null,null,null,null,null,null,null,null,null,null,20,"Santa Cruz Tacache de Mina"]
[null,null,null,null,null,null,null,null,null,null,null,null,null,null,null,null,null,null,null,null,null,null,null,null,null,null,null,null,null,null,null,null,null,null,null,null,null,null,null,null,null,20,"Santa Cruz Tacahua"]
[null,null,null,null,null,null,null,null,null,null,null,null,null,null,null,null,null,null,null,null,null,null,null,null,null,null,null,null,null,null,null,null,null,null,null,null,null,null,null,null,null,20,"Santa Cruz Tayata"]
[null,null,null,null,null,null,null,null,null,null,null,null,null,null,null,null,null,null,null,null,null,null,null,null,null,null,null,null,null,null,null,null,null,null,null,null,null,null,null,null,null,20,"Santa Cruz Xitla"]
[null,null,null,null,null,null,null,null,null,null,null,null,null,null,null,null,null,null,null,null,null,null,null,null,null,null,null,null,null,null,null,null,null,null,null,null,null,null,null,null,null,20,"Santa Cruz Xoxocotlán"]
[null,null,null,null,null,null,null,null,null,null,null,null,null,null,null,null,null,null,null,null,null,null,null,null,null,null,null,null,null,null,null,null,null,null,null,null,null,null,null,null,null,20,"Santa Cruz Zenzontepec"]
[null,null,null,null,null,null,null,null,null,null,null,null,null,null,null,null,null,null,null,null,null,null,null,null,null,null,null,null,null,null,null,null,null,null,null,null,null,null,null,null,null,20,"Santa Gertrudis"]
[null,null,null,null,null,null,null,null,null,null,null,null,null,null,null,null,null,null,null,null,null,null,null,null,null,null,null,null,null,null,null,null,null,null,null,null,null,null,null,null,null,20,"Santa Inés de Zaragoza"]
[null,null,null,null,null,null,null,null,null,null,null,null,null,null,null,null,null,null,null,null,null,null,null,null,null,null,null,null,null,null,null,null,null,null,null,null,null,null,null,null,null,20,"Santa Inés del Monte"]
[null,null,null,null,null,null,null,null,null,null,null,null,null,null,null,null,null,null,null,null,null,null,null,null,null,null,null,null,null,null,null,null,null,null,null,null,null,null,null,null,null,20,"Santa Inés Yatzeche"]
[null,null,null,null,null,null,null,null,null,null,null,null,null,null,null,null,null,null,null,null,null,null,null,null,null,null,null,null,null,null,null,null,null,null,null,null,null,null,null,null,null,20,"Santa Lucía del Camino"]
[null,null,null,null,null,null,null,null,null,null,null,null,null,null,null,null,null,null,null,null,null,null,null,null,null,null,null,null,null,null,null,null,null,null,null,null,null,null,null,null,null,20,"Santa Lucía Miahuatlán"]
[null,null,null,null,null,null,null,null,null,null,null,null,null,null,null,null,null,null,null,null,null,null,null,null,null,null,null,null,null,null,null,null,null,null,null,null,null,null,null,null,null,20,"Santa Lucía Monteverde"]
[null,null,null,null,null,null,null,null,null,null,null,null,null,null,null,null,null,null,null,null,null,null,null,null,null,null,null,null,null,null,null,null,null,null,null,null,null,null,null,null,null,20,"Santa Lucía Ocotlán"]
[null,null,null,null,null,null,null,null,null,null,null,null,null,null,null,null,null,null,null,null,null,null,null,null,null,null,null,null,null,null,null,null,null,null,null,null,null,null,null,null,null,20,"Santa Magdalena Jicotlán"]
[null,null,null,null,null,null,null,null,null,null,null,null,null,null,null,null,null,null,null,null,null,null,null,null,null,null,null,null,null,null,null,null,null,null,null,null,null,null,null,null,null,20,"Santa María Alotepec"]
[null,null,null,null,null,null,null,null,null,null,null,null,null,null,null,null,null,null,null,null,null,null,null,null,null,null,null,null,null,null,null,null,null,null,null,null,null,null,null,null,null,20,"Santa María Apazco"]
[null,null,null,null,null,null,null,null,null,null,null,null,null,null,null,null,null,null,null,null,null,null,null,null,null,null,null,null,null,null,null,null,null,null,null,null,null,null,null,null,null,20,"Santa María Atzompa"]
[null,null,null,null,null,null,null,null,null,null,null,null,null,null,null,null,null,null,null,null,null,null,null,null,null,null,null,null,null,null,null,null,null,null,null,null,null,null,null,null,null,20,"Santa María Camotlán"]
[null,null,null,null,null,null,null,null,null,null,null,null,null,null,null,null,null,null,null,null,null,null,null,null,null,null,null,null,null,null,null,null,null,null,null,null,null,null,null,null,null,20,"Santa María Chachoápam"]
[null,null,null,null,null,null,null,null,null,null,null,null,null,null,null,null,null,null,null,null,null,null,null,null,null,null,null,null,null,null,null,null,null,null,null,null,null,null,null,null,null,20,"Santa María Chilchotla"]
[null,null,null,null,null,null,null,null,null,null,null,null,null,null,null,null,null,null,null,null,null,null,null,null,null,null,null,null,null,null,null,null,null,null,null,null,null,null,null,null,null,20,"Santa María Chimalapa"]
[null,null,null,null,null,null,null,null,null,null,null,null,null,null,null,null,null,null,null,null,null,null,null,null,null,null,null,null,null,null,null,null,null,null,null,null,null,null,null,null,null,20,"Santa María Colotepec"]
[null,null,null,null,null,null,null,null,null,null,null,null,null,null,null,null,null,null,null,null,null,null,null,null,null,null,null,null,null,null,null,null,null,null,null,null,null,null,null,null,null,20,"Santa María Cortijo"]
[null,null,null,null,null,null,null,null,null,null,null,null,null,null,null,null,null,null,null,null,null,null,null,null,null,null,null,null,null,null,null,null,null,null,null,null,null,null,null,null,null,20,"Santa María Coyotepec"]
[null,null,null,null,null,null,null,null,null,null,null,null,null,null,null,null,null,null,null,null,null,null,null,null,null,null,null,null,null,null,null,null,null,null,null,null,null,null,null,null,null,20,"Santa María del Rosario"]
[null,null,null,null,null,null,null,null,null,null,null,null,null,null,null,null,null,null,null,null,null,null,null,null,null,null,null,null,null,null,null,null,null,null,null,null,null,null,null,null,null,20,"Santa María del Tule"]
[null,null,null,null,null,null,null,null,null,null,null,null,null,null,null,null,null,null,null,null,null,null,null,null,null,null,null,null,null,null,null,null,null,null,null,null,null,null,null,null,null,20,"Santa María Ecatepec"]
[null,null,null,null,null,null,null,null,null,null,null,null,null,null,null,null,null,null,null,null,null,null,null,null,null,null,null,null,null,null,null,null,null,null,null,null,null,null,null,null,null,20,"Santa María Guelacé"]
[null,null,null,null,null,null,null,null,null,null,null,null,null,null,null,null,null,null,null,null,null,null,null,null,null,null,null,null,null,null,null,null,null,null,null,null,null,null,null,null,null,20,"Santa María Guienagati"]
[null,null,null,null,null,null,null,null,null,null,null,null,null,null,null,null,null,null,null,null,null,null,null,null,null,null,null,null,null,null,null,null,null,null,null,null,null,null,null,null,null,20,"Santa María Huatulco"]
[null,null,null,null,null,null,null,null,null,null,null,null,null,null,null,null,null,null,null,null,null,null,null,null,null,null,null,null,null,null,null,null,null,null,null,null,null,null,null,null,null,20,"Santa María Huazolotitlán"]
[null,null,null,null,null,null,null,null,null,null,null,null,null,null,null,null,null,null,null,null,null,null,null,null,null,null,null,null,null,null,null,null,null,null,null,null,null,null,null,null,null,20,"Santa María Ipalapa"]
[null,null,null,null,null,null,null,null,null,null,null,null,null,null,null,null,null,null,null,null,null,null,null,null,null,null,null,null,null,null,null,null,null,null,null,null,null,null,null,null,null,20,"Santa María Ixcatlán"]
[null,null,null,null,null,null,null,null,null,null,null,null,null,null,null,null,null,null,null,null,null,null,null,null,null,null,null,null,null,null,null,null,null,null,null,null,null,null,null,null,null,20,"Santa María Jacatepec"]
[null,null,null,null,null,null,null,null,null,null,null,null,null,null,null,null,null,null,null,null,null,null,null,null,null,null,null,null,null,null,null,null,null,null,null,null,null,null,null,null,null,20,"Santa María Jalapa del Marqués"]
[null,null,null,null,null,null,null,null,null,null,null,null,null,null,null,null,null,null,null,null,null,null,null,null,null,null,null,null,null,null,null,null,null,null,null,null,null,null,null,null,null,20,"Santa María Jaltianguis"]
[null,null,null,null,null,null,null,null,null,null,null,null,null,null,null,null,null,null,null,null,null,null,null,null,null,null,null,null,null,null,null,null,null,null,null,null,null,null,null,null,null,20,"Santa María la Asunción"]
[null,null,null,null,null,null,null,null,null,null,null,null,null,null,null,null,null,null,null,null,null,null,null,null,null,null,null,null,null,null,null,null,null,null,null,null,null,null,null,null,null,20,"Santa María Lachixío"]
[null,null,null,null,null,null,null,null,null,null,null,null,null,null,null,null,null,null,null,null,null,null,null,null,null,null,null,null,null,null,null,null,null,null,null,null,null,null,null,null,null,20,"Santa María Mixtequilla"]
[null,null,null,null,null,null,null,null,null,null,null,null,null,null,null,null,null,null,null,null,null,null,null,null,null,null,null,null,null,null,null,null,null,null,null,null,null,null,null,null,null,20,"Santa María Nativitas"]
[null,null,null,null,null,null,null,null,null,null,null,null,null,null,null,null,null,null,null,null,null,null,null,null,null,null,null,null,null,null,null,null,null,null,null,null,null,null,null,null,null,20,"Santa María Nduayaco"]
[null,null,null,null,null,null,null,null,null,null,null,null,null,null,null,null,null,null,null,null,null,null,null,null,null,null,null,null,null,null,null,null,null,null,null,null,null,null,null,null,null,20,"Santa María Ozolotepec"]
[null,null,null,null,null,null,null,null,null,null,null,null,null,null,null,null,null,null,null,null,null,null,null,null,null,null,null,null,null,null,null,null,null,null,null,null,null,null,null,null,null,20,"Santa María Pápalo"]
[null,null,null,null,null,null,null,null,null,null,null,null,null,null,null,null,null,null,null,null,null,null,null,null,null,null,null,null,null,null,null,null,null,null,null,null,null,null,null,null,null,20,"Santa María Peñoles"]
[null,null,null,null,null,null,null,null,null,null,null,null,null,null,null,null,null,null,null,null,null,null,null,null,null,null,null,null,null,null,null,null,null,null,null,null,null,null,null,null,null,20,"Santa María Petapa"]
[null,null,null,null,null,null,null,null,null,null,null,null,null,null,null,null,null,null,null,null,null,null,null,null,null,null,null,null,null,null,null,null,null,null,null,null,null,null,null,null,null,20,"Santa María Quiegolani"]
[null,null,null,null,null,null,null,null,null,null,null,null,null,null,null,null,null,null,null,null,null,null,null,null,null,null,null,null,null,null,null,null,null,null,null,null,null,null,null,null,null,20,"Santa María Sola"]
[null,null,null,null,null,null,null,null,null,null,null,null,null,null,null,null,null,null,null,null,null,null,null,null,null,null,null,null,null,null,null,null,null,null,null,null,null,null,null,null,null,20,"Santa María Tataltepec"]
[null,null,null,null,null,null,null,null,null,null,null,null,null,null,null,null,null,null,null,null,null,null,null,null,null,null,null,null,null,null,null,null,null,null,null,null,null,null,null,null,null,20,"Santa María Tecomavaca"]
[null,null,null,null,null,null,null,null,null,null,null,null,null,null,null,null,null,null,null,null,null,null,null,null,null,null,null,null,null,null,null,null,null,null,null,null,null,null,null,null,null,20,"Santa María Temaxcalapa"]
[null,null,null,null,null,null,null,null,null,null,null,null,null,null,null,null,null,null,null,null,null,null,null,null,null,null,null,null,null,null,null,null,null,null,null,null,null,null,null,null,null,20,"Santa María Temaxcaltepec"]
[null,null,null,null,null,null,null,null,null,null,null,null,null,null,null,null,null,null,null,null,null,null,null,null,null,null,null,null,null,null,null,null,null,null,null,null,null,null,null,null,null,20,"Santa María Teopoxco"]
[null,null,null,null,null,null,null,null,null,null,null,null,null,null,null,null,null,null,null,null,null,null,null,null,null,null,null,null,null,null,null,null,null,null,null,null,null,null,null,null,null,20,"Santa María Tepantlali"]
[null,null,null,null,null,null,null,null,null,null,null,null,null,null,null,null,null,null,null,null,null,null,null,null,null,null,null,null,null,null,null,null,null,null,null,null,null,null,null,null,null,20,"Santa María Texcatitlán"]
[null,null,null,null,null,null,null,null,null,null,null,null,null,null,null,null,null,null,null,null,null,null,null,null,null,null,null,null,null,null,null,null,null,null,null,null,null,null,null,null,null,20,"Santa María Tlahuitoltepec"]
[null,null,null,null,null,null,null,null,null,null,null,null,null,null,null,null,null,null,null,null,null,null,null,null,null,null,null,null,null,null,null,null,null,null,null,null,null,null,null,null,null,20,"Santa María Tlalixtac"]
[null,null,null,null,null,null,null,null,null,null,null,null,null,null,null,null,null,null,null,null,null,null,null,null,null,null,null,null,null,null,null,null,null,null,null,null,null,null,null,null,null,20,"Santa María Tonameca"]
[null,null,null,null,null,null,null,null,null,null,null,null,null,null,null,null,null,null,null,null,null,null,null,null,null,null,null,null,null,null,null,null,null,null,null,null,null,null,null,null,null,20,"Santa María Totolapilla"]
[null,null,null,null,null,null,null,null,null,null,null,null,null,null,null,null,null,null,null,null,null,null,null,null,null,null,null,null,null,null,null,null,null,null,null,null,null,null,null,null,null,20,"Santa María Xadani"]
[null,null,null,null,null,null,null,null,null,null,null,null,null,null,null,null,null,null,null,null,null,null,null,null,null,null,null,null,null,null,null,null,null,null,null,null,null,null,null,null,null,20,"Santa María Yalina"]
[null,null,null,null,null,null,null,null,null,null,null,null,null,null,null,null,null,null,null,null,null,null,null,null,null,null,null,null,null,null,null,null,null,null,null,null,null,null,null,null,null,20,"Santa María Yavesía"]
[null,null,null,null,null,null,null,null,null,null,null,null,null,null,null,null,null,null,null,null,null,null,null,null,null,null,null,null,null,null,null,null,null,null,null,null,null,null,null,null,null,20,"Santa María Yolotepec"]
[null,null,null,null,null,null,null,null,null,null,null,null,null,null,null,null,null,null,null,null,null,null,null,null,null,null,null,null,null,null,null,null,null,null,null,null,null,null,null,null,null,20,"Santa María Yosoyúa"]
[null,null,null,null,null,null,null,null,null,null,null,null,null,null,null,null,null,null,null,null,null,null,null,null,null,null,null,null,null,null,null,null,null,null,null,null,null,null,null,null,null,20,"Santa María Yucuhiti"]
[null,null,null,null,null,null,null,null,null,null,null,null,null,null,null,null,null,null,null,null,null,null,null,null,null,null,null,null,null,null,null,null,null,null,null,null,null,null,null,null,null,20,"Santa María Zacatepec"]
[null,null,null,null,null,null,null,null,null,null,null,null,null,null,null,null,null,null,null,null,null,null,null,null,null,null,null,null,null,null,null,null,null,null,null,null,null,null,null,null,null,20,"Santa María Zaniza"]
[null,null,null,null,null,null,null,null,null,null,null,null,null,null,null,null,null,null,null,null,null,null,null,null,null,null,null,null,null,null,null,null,null,null,null,null,null,null,null,null,null,20,"Santa María Zoquitlán"]
[null,null,null,null,null,null,null,null,null,null,null,null,null,null,null,null,null,null,null,null,null,null,null,null,null,null,null,null,null,null,null,null,null,null,null,null,null,null,null,null,null,20,"Santiago Amoltepec"]
[null,null,null,null,null,null,null,null,null,null,null,null,null,null,null,null,null,null,null,null,null,null,null,null,null,null,null,null,null,null,null,null,null,null,null,null,null,null,null,null,null,20,"Santiago Apoala"]
[null,null,null,null,null,null,null,null,null,null,null,null,null,null,null,null,null,null,null,null,null,null,null,null,null,null,null,null,null,null,null,null,null,null,null,null,null,null,null,null,null,20,"Santiago Apóstol"]
[null,null,null,null,null,null,null,null,null,null,null,null,null,null,null,null,null,null,null,null,null,null,null,null,null,null,null,null,null,null,null,null,null,null,null,null,null,null,null,null,null,20,"Santiago Astata"]
[null,null,null,null,null,null,null,null,null,null,null,null,null,null,null,null,null,null,null,null,null,null,null,null,null,null,null,null,null,null,null,null,null,null,null,null,null,null,null,null,null,20,"Santiago Atitlán"]
[null,null,null,null,null,null,null,null,null,null,null,null,null,null,null,null,null,null,null,null,null,null,null,null,null,null,null,null,null,null,null,null,null,null,null,null,null,null,null,null,null,20,"Santiago Ayuquililla"]
[null,null,null,null,null,null,null,null,null,null,null,null,null,null,null,null,null,null,null,null,null,null,null,null,null,null,null,null,null,null,null,null,null,null,null,null,null,null,null,null,null,20,"Santiago Cacaloxtepec"]
[null,null,null,null,null,null,null,null,null,null,null,null,null,null,null,null,null,null,null,null,null,null,null,null,null,null,null,null,null,null,null,null,null,null,null,null,null,null,null,null,null,20,"Santiago Camotlán"]
[null,null,null,null,null,null,null,null,null,null,null,null,null,null,null,null,null,null,null,null,null,null,null,null,null,null,null,null,null,null,null,null,null,null,null,null,null,null,null,null,null,20,"Santiago Chazumba"]
[null,null,null,null,null,null,null,null,null,null,null,null,null,null,null,null,null,null,null,null,null,null,null,null,null,null,null,null,null,null,null,null,null,null,null,null,null,null,null,null,null,20,"Santiago Choápam"]
[null,null,null,null,null,null,null,null,null,null,null,null,null,null,null,null,null,null,null,null,null,null,null,null,null,null,null,null,null,null,null,null,null,null,null,null,null,null,null,null,null,20,"Santiago Comaltepec"]
[null,null,null,null,null,null,null,null,null,null,null,null,null,null,null,null,null,null,null,null,null,null,null,null,null,null,null,null,null,null,null,null,null,null,null,null,null,null,null,null,null,20,"Santiago del Río"]
[null,null,null,null,null,null,null,null,null,null,null,null,null,null,null,null,null,null,null,null,null,null,null,null,null,null,null,null,null,null,null,null,null,null,null,null,null,null,null,null,null,20,"Santiago Huajolotitlán"]
[null,null,null,null,null,null,null,null,null,null,null,null,null,null,null,null,null,null,null,null,null,null,null,null,null,null,null,null,null,null,null,null,null,null,null,null,null,null,null,null,null,20,"Santiago Huauclilla"]
[null,null,null,null,null,null,null,null,null,null,null,null,null,null,null,null,null,null,null,null,null,null,null,null,null,null,null,null,null,null,null,null,null,null,null,null,null,null,null,null,null,20,"Santiago Ihuitlán Plumas"]
[null,null,null,null,null,null,null,null,null,null,null,null,null,null,null,null,null,null,null,null,null,null,null,null,null,null,null,null,null,null,null,null,null,null,null,null,null,null,null,null,null,20,"Santiago Ixcuintepec"]
[null,null,null,null,null,null,null,null,null,null,null,null,null,null,null,null,null,null,null,null,null,null,null,null,null,null,null,null,null,null,null,null,null,null,null,null,null,null,null,null,null,20,"Santiago Ixtayutla"]
[null,null,null,null,null,null,null,null,null,null,null,null,null,null,null,null,null,null,null,null,null,null,null,null,null,null,null,null,null,null,null,null,null,null,null,null,null,null,null,null,null,20,"Santiago Jamiltepec"]
[null,null,null,null,null,null,null,null,null,null,null,null,null,null,null,null,null,null,null,null,null,null,null,null,null,null,null,null,null,null,null,null,null,null,null,null,null,null,null,null,null,20,"Santiago Jocotepec"]
[null,null,null,null,null,null,null,null,null,null,null,null,null,null,null,null,null,null,null,null,null,null,null,null,null,null,null,null,null,null,null,null,null,null,null,null,null,null,null,null,null,20,"Santiago Juxtlahuaca"]
[null,null,null,null,null,null,null,null,null,null,null,null,null,null,null,null,null,null,null,null,null,null,null,null,null,null,null,null,null,null,null,null,null,null,null,null,null,null,null,null,null,20,"Santiago Lachiguiri"]
[null,null,null,null,null,null,null,null,null,null,null,null,null,null,null,null,null,null,null,null,null,null,null,null,null,null,null,null,null,null,null,null,null,null,null,null,null,null,null,null,null,20,"Santiago Lalopa"]
[null,null,null,null,null,null,null,null,null,null,null,null,null,null,null,null,null,null,null,null,null,null,null,null,null,null,null,null,null,null,null,null,null,null,null,null,null,null,null,null,null,20,"Santiago Laollaga"]
[null,null,null,null,null,null,null,null,null,null,null,null,null,null,null,null,null,null,null,null,null,null,null,null,null,null,null,null,null,null,null,null,null,null,null,null,null,null,null,null,null,20,"Santiago Laxopa"]
[null,null,null,null,null,null,null,null,null,null,null,null,null,null,null,null,null,null,null,null,null,null,null,null,null,null,null,null,null,null,null,null,null,null,null,null,null,null,null,null,null,20,"Santiago Llano Grande"]
[null,null,null,null,null,null,null,null,null,null,null,null,null,null,null,null,null,null,null,null,null,null,null,null,null,null,null,null,null,null,null,null,null,null,null,null,null,null,null,null,null,20,"Santiago Matatlán"]
[null,null,null,null,null,null,null,null,null,null,null,null,null,null,null,null,null,null,null,null,null,null,null,null,null,null,null,null,null,null,null,null,null,null,null,null,null,null,null,null,null,20,"Santiago Miltepec"]
[null,null,null,null,null,null,null,null,null,null,null,null,null,null,null,null,null,null,null,null,null,null,null,null,null,null,null,null,null,null,null,null,null,null,null,null,null,null,null,null,null,20,"Santiago Minas"]
[null,null,null,null,null,null,null,null,null,null,null,null,null,null,null,null,null,null,null,null,null,null,null,null,null,null,null,null,null,null,null,null,null,null,null,null,null,null,null,null,null,20,"Santiago Nacaltepec"]
[null,null,null,null,null,null,null,null,null,null,null,null,null,null,null,null,null,null,null,null,null,null,null,null,null,null,null,null,null,null,null,null,null,null,null,null,null,null,null,null,null,20,"Santiago Nejapilla"]
[null,null,null,null,null,null,null,null,null,null,null,null,null,null,null,null,null,null,null,null,null,null,null,null,null,null,null,null,null,null,null,null,null,null,null,null,null,null,null,null,null,20,"Santiago Niltepec"]
[null,null,null,null,null,null,null,null,null,null,null,null,null,null,null,null,null,null,null,null,null,null,null,null,null,null,null,null,null,null,null,null,null,null,null,null,null,null,null,null,null,20,"Santiago Nundiche"]
[null,null,null,null,null,null,null,null,null,null,null,null,null,null,null,null,null,null,null,null,null,null,null,null,null,null,null,null,null,null,null,null,null,null,null,null,null,null,null,null,null,20,"Santiago Nuyoó"]
[null,null,null,null,null,null,null,null,null,null,null,null,null,null,null,null,null,null,null,null,null,null,null,null,null,null,null,null,null,null,null,null,null,null,null,null,null,null,null,null,null,20,"Santiago Pinotepa Nacional"]
[null,null,null,null,null,null,null,null,null,null,null,null,null,null,null,null,null,null,null,null,null,null,null,null,null,null,null,null,null,null,null,null,null,null,null,null,null,null,null,null,null,20,"Santiago Suchilquitongo"]
[null,null,null,null,null,null,null,null,null,null,null,null,null,null,null,null,null,null,null,null,null,null,null,null,null,null,null,null,null,null,null,null,null,null,null,null,null,null,null,null,null,20,"Santiago Tamazola"]
[null,null,null,null,null,null,null,null,null,null,null,null,null,null,null,null,null,null,null,null,null,null,null,null,null,null,null,null,null,null,null,null,null,null,null,null,null,null,null,null,null,20,"Santiago Tapextla"]
[null,null,null,null,null,null,null,null,null,null,null,null,null,null,null,null,null,null,null,null,null,null,null,null,null,null,null,null,null,null,null,null,null,null,null,null,null,null,null,null,null,20,"Santiago Tenango"]
[null,null,null,null,null,null,null,null,null,null,null,null,null,null,null,null,null,null,null,null,null,null,null,null,null,null,null,null,null,null,null,null,null,null,null,null,null,null,null,null,null,20,"Santiago Tepetlapa"]
[null,null,null,null,null,null,null,null,null,null,null,null,null,null,null,null,null,null,null,null,null,null,null,null,null,null,null,null,null,null,null,null,null,null,null,null,null,null,null,null,null,20,"Santiago Tetepec"]
[null,null,null,null,null,null,null,null,null,null,null,null,null,null,null,null,null,null,null,null,null,null,null,null,null,null,null,null,null,null,null,null,null,null,null,null,null,null,null,null,null,20,"Santiago Texcalcingo"]
[null,null,null,null,null,null,null,null,null,null,null,null,null,null,null,null,null,null,null,null,null,null,null,null,null,null,null,null,null,null,null,null,null,null,null,null,null,null,null,null,null,20,"Santiago Textitlán"]
[null,null,null,null,null,null,null,null,null,null,null,null,null,null,null,null,null,null,null,null,null,null,null,null,null,null,null,null,null,null,null,null,null,null,null,null,null,null,null,null,null,20,"Santiago Tilantongo"]
[null,null,null,null,null,null,null,null,null,null,null,null,null,null,null,null,null,null,null,null,null,null,null,null,null,null,null,null,null,null,null,null,null,null,null,null,null,null,null,null,null,20,"Santiago Tillo"]
[null,null,null,null,null,null,null,null,null,null,null,null,null,null,null,null,null,null,null,null,null,null,null,null,null,null,null,null,null,null,null,null,null,null,null,null,null,null,null,null,null,20,"Santiago Tlazoyaltepec"]
[null,null,null,null,null,null,null,null,null,null,null,null,null,null,null,null,null,null,null,null,null,null,null,null,null,null,null,null,null,null,null,null,null,null,null,null,null,null,null,null,null,20,"Santiago Xanica"]
[null,null,null,null,null,null,null,null,null,null,null,null,null,null,null,null,null,null,null,null,null,null,null,null,null,null,null,null,null,null,null,null,null,null,null,null,null,null,null,null,null,20,"Santiago Xiacuí"]
[null,null,null,null,null,null,null,null,null,null,null,null,null,null,null,null,null,null,null,null,null,null,null,null,null,null,null,null,null,null,null,null,null,null,null,null,null,null,null,null,null,20,"Santiago Yaitepec"]
[null,null,null,null,null,null,null,null,null,null,null,null,null,null,null,null,null,null,null,null,null,null,null,null,null,null,null,null,null,null,null,null,null,null,null,null,null,null,null,null,null,20,"Santiago Yaveo"]
[null,null,null,null,null,null,null,null,null,null,null,null,null,null,null,null,null,null,null,null,null,null,null,null,null,null,null,null,null,null,null,null,null,null,null,null,null,null,null,null,null,20,"Santiago Yolomécatl"]
[null,null,null,null,null,null,null,null,null,null,null,null,null,null,null,null,null,null,null,null,null,null,null,null,null,null,null,null,null,null,null,null,null,null,null,null,null,null,null,null,null,20,"Santiago Yosondúa"]
[null,null,null,null,null,null,null,null,null,null,null,null,null,null,null,null,null,null,null,null,null,null,null,null,null,null,null,null,null,null,null,null,null,null,null,null,null,null,null,null,null,20,"Santiago Yucuyachi"]
[null,null,null,null,null,null,null,null,null,null,null,null,null,null,null,null,null,null,null,null,null,null,null,null,null,null,null,null,null,null,null,null,null,null,null,null,null,null,null,null,null,20,"Santiago Zacatepec"]
[null,null,null,null,null,null,null,null,null,null,null,null,null,null,null,null,null,null,null,null,null,null,null,null,null,null,null,null,null,null,null,null,null,null,null,null,null,null,null,null,null,20,"Santiago Zoochila"]
[null,null,null,null,null,null,null,null,null,null,null,null,null,null,null,null,null,null,null,null,null,null,null,null,null,null,null,null,null,null,null,null,null,null,null,null,null,null,null,null,null,20,"Santo Domingo Albarradas"]
[null,null,null,null,null,null,null,null,null,null,null,null,null,null,null,null,null,null,null,null,null,null,null,null,null,null,null,null,null,null,null,null,null,null,null,null,null,null,null,null,null,20,"Santo Domingo Armenta"]
[null,null,null,null,null,null,null,null,null,null,null,null,null,null,null,null,null,null,null,null,null,null,null,null,null,null,null,null,null,null,null,null,null,null,null,null,null,null,null,null,null,20,"Santo Domingo Chihuitán"]
[null,null,null,null,null,null,null,null,null,null,null,null,null,null,null,null,null,null,null,null,null,null,null,null,null,null,null,null,null,null,null,null,null,null,null,null,null,null,null,null,null,20,"Santo Domingo de Morelos"]
[null,null,null,null,null,null,null,null,null,null,null,null,null,null,null,null,null,null,null,null,null,null,null,null,null,null,null,null,null,null,null,null,null,null,null,null,null,null,null,null,null,20,"Santo Domingo Ingenio"]
[null,null,null,null,null,null,null,null,null,null,null,null,null,null,null,null,null,null,null,null,null,null,null,null,null,null,null,null,null,null,null,null,null,null,null,null,null,null,null,null,null,20,"Santo Domingo Ixcatlán"]
[null,null,null,null,null,null,null,null,null,null,null,null,null,null,null,null,null,null,null,null,null,null,null,null,null,null,null,null,null,null,null,null,null,null,null,null,null,null,null,null,null,20,"Santo Domingo Nuxaá"]
[null,null,null,null,null,null,null,null,null,null,null,null,null,null,null,null,null,null,null,null,null,null,null,null,null,null,null,null,null,null,null,null,null,null,null,null,null,null,null,null,null,20,"Santo Domingo Ozolotepec"]
[null,null,null,null,null,null,null,null,null,null,null,null,null,null,null,null,null,null,null,null,null,null,null,null,null,null,null,null,null,null,null,null,null,null,null,null,null,null,null,null,null,20,"Santo Domingo Petapa"]
[null,null,null,null,null,null,null,null,null,null,null,null,null,null,null,null,null,null,null,null,null,null,null,null,null,null,null,null,null,null,null,null,null,null,null,null,null,null,null,null,null,20,"Santo Domingo Roayaga"]
[null,null,null,null,null,null,null,null,null,null,null,null,null,null,null,null,null,null,null,null,null,null,null,null,null,null,null,null,null,null,null,null,null,null,null,null,null,null,null,null,null,20,"Santo Domingo Tehuantepec"]
[null,null,null,null,null,null,null,null,null,null,null,null,null,null,null,null,null,null,null,null,null,null,null,null,null,null,null,null,null,null,null,null,null,null,null,null,null,null,null,null,null,20,"Santo Domingo Teojomulco"]
[null,null,null,null,null,null,null,null,null,null,null,null,null,null,null,null,null,null,null,null,null,null,null,null,null,null,null,null,null,null,null,null,null,null,null,null,null,null,null,null,null,20,"Santo Domingo Tepuxtepec"]
[null,null,null,null,null,null,null,null,null,null,null,null,null,null,null,null,null,null,null,null,null,null,null,null,null,null,null,null,null,null,null,null,null,null,null,null,null,null,null,null,null,20,"Santo Domingo Tlatayápam"]
[null,null,null,null,null,null,null,null,null,null,null,null,null,null,null,null,null,null,null,null,null,null,null,null,null,null,null,null,null,null,null,null,null,null,null,null,null,null,null,null,null,20,"Santo Domingo Tomaltepec"]
[null,null,null,null,null,null,null,null,null,null,null,null,null,null,null,null,null,null,null,null,null,null,null,null,null,null,null,null,null,null,null,null,null,null,null,null,null,null,null,null,null,20,"Santo Domingo Tonalá"]
[null,null,null,null,null,null,null,null,null,null,null,null,null,null,null,null,null,null,null,null,null,null,null,null,null,null,null,null,null,null,null,null,null,null,null,null,null,null,null,null,null,20,"Santo Domingo Tonaltepec"]
[null,null,null,null,null,null,null,null,null,null,null,null,null,null,null,null,null,null,null,null,null,null,null,null,null,null,null,null,null,null,null,null,null,null,null,null,null,null,null,null,null,20,"Santo Domingo Xagacía"]
[null,null,null,null,null,null,null,null,null,null,null,null,null,null,null,null,null,null,null,null,null,null,null,null,null,null,null,null,null,null,null,null,null,null,null,null,null,null,null,null,null,20,"Santo Domingo Yanhuitlán"]
[null,null,null,null,null,null,null,null,null,null,null,null,null,null,null,null,null,null,null,null,null,null,null,null,null,null,null,null,null,null,null,null,null,null,null,null,null,null,null,null,null,20,"Santo Domingo Yodohino"]
[null,null,null,null,null,null,null,null,null,null,null,null,null,null,null,null,null,null,null,null,null,null,null,null,null,null,null,null,null,null,null,null,null,null,null,null,null,null,null,null,null,20,"Santo Domingo Zanatepec"]
[null,null,null,null,null,null,null,null,null,null,null,null,null,null,null,null,null,null,null,null,null,null,null,null,null,null,null,null,null,null,null,null,null,null,null,null,null,null,null,null,null,20,"Santo Tomás Jalieza"]
[null,null,null,null,null,null,null,null,null,null,null,null,null,null,null,null,null,null,null,null,null,null,null,null,null,null,null,null,null,null,null,null,null,null,null,null,null,null,null,null,null,20,"Santo Tomás Mazaltepec"]
[null,null,null,null,null,null,null,null,null,null,null,null,null,null,null,null,null,null,null,null,null,null,null,null,null,null,null,null,null,null,null,null,null,null,null,null,null,null,null,null,null,20,"Santo Tomás Ocotepec"]
[null,null,null,null,null,null,null,null,null,null,null,null,null,null,null,null,null,null,null,null,null,null,null,null,null,null,null,null,null,null,null,null,null,null,null,null,null,null,null,null,null,20,"Santo Tomás Tamazulapan"]
[null,null,null,null,null,null,null,null,null,null,null,null,null,null,null,null,null,null,null,null,null,null,null,null,null,null,null,null,null,null,null,null,null,null,null,null,null,null,null,null,null,20,"Santos Reyes Nopala"]
[null,null,null,null,null,null,null,null,null,null,null,null,null,null,null,null,null,null,null,null,null,null,null,null,null,null,null,null,null,null,null,null,null,null,null,null,null,null,null,null,null,20,"Santos Reyes Pápalo"]
[null,null,null,null,null,null,null,null,null,null,null,null,null,null,null,null,null,null,null,null,null,null,null,null,null,null,null,null,null,null,null,null,null,null,null,null,null,null,null,null,null,20,"Santos Reyes Tepejillo"]
[null,null,null,null,null,null,null,null,null,null,null,null,null,null,null,null,null,null,null,null,null,null,null,null,null,null,null,null,null,null,null,null,null,null,null,null,null,null,null,null,null,20,"Santos Reyes Yucuná"]
[null,null,null,null,null,null,null,null,null,null,null,null,null,null,null,null,null,null,null,null,null,null,null,null,null,null,null,null,null,null,null,null,null,null,null,null,null,null,null,null,null,20,"Silacayoápam"]
[null,null,null,null,null,null,null,null,null,null,null,null,null,null,null,null,null,null,null,null,null,null,null,null,null,null,null,null,null,null,null,null,null,null,null,null,null,null,null,null,null,20,"Sitio de Xitlapehua"]
[null,null,null,null,null,null,null,null,null,null,null,null,null,null,null,null,null,null,null,null,null,null,null,null,null,null,null,null,null,null,null,null,null,null,null,null,null,null,null,null,null,20,"Soledad Etla"]
[null,null,null,null,null,null,null,null,null,null,null,null,null,null,null,null,null,null,null,null,null,null,null,null,null,null,null,null,null,null,null,null,null,null,null,null,null,null,null,null,null,20,"Tamazulápam del Espíritu Santo"]
[null,null,null,null,null,null,null,null,null,null,null,null,null,null,null,null,null,null,null,null,null,null,null,null,null,null,null,null,null,null,null,null,null,null,null,null,null,null,null,null,null,20,"Tanetze de Zaragoza"]
[null,null,null,null,null,null,null,null,null,null,null,null,null,null,null,null,null,null,null,null,null,null,null,null,null,null,null,null,null,null,null,null,null,null,null,null,null,null,null,null,null,20,"Taniche"]
[null,null,null,null,null,null,null,null,null,null,null,null,null,null,null,null,null,null,null,null,null,null,null,null,null,null,null,null,null,null,null,null,null,null,null,null,null,null,null,null,null,20,"Tataltepec de Valdés"]
[null,null,null,null,null,null,null,null,null,null,null,null,null,null,null,null,null,null,null,null,null,null,null,null,null,null,null,null,null,null,null,null,null,null,null,null,null,null,null,null,null,20,"Teococuilco de Marcos Pérez"]
[null,null,null,null,null,null,null,null,null,null,null,null,null,null,null,null,null,null,null,null,null,null,null,null,null,null,null,null,null,null,null,null,null,null,null,null,null,null,null,null,null,20,"Teotitlán de Flores Magón"]
[null,null,null,null,null,null,null,null,null,null,null,null,null,null,null,null,null,null,null,null,null,null,null,null,null,null,null,null,null,null,null,null,null,null,null,null,null,null,null,null,null,20,"Teotitlán del Valle"]
[null,null,null,null,null,null,null,null,null,null,null,null,null,null,null,null,null,null,null,null,null,null,null,null,null,null,null,null,null,null,null,null,null,null,null,null,null,null,null,null,null,20,"Teotongo"]
[null,null,null,null,null,null,null,null,null,null,null,null,null,null,null,null,null,null,null,null,null,null,null,null,null,null,null,null,null,null,null,null,null,null,null,null,null,null,null,null,null,20,"Tepelmeme Villa de Morelos"]
[null,null,null,null,null,null,null,null,null,null,null,null,null,null,null,null,null,null,null,null,null,null,null,null,null,null,null,null,null,null,null,null,null,null,null,null,null,null,null,null,null,20,"Tlacolula de Matamoros"]
[null,null,null,null,null,null,null,null,null,null,null,null,null,null,null,null,null,null,null,null,null,null,null,null,null,null,null,null,null,null,null,null,null,null,null,null,null,null,null,null,null,20,"Tlacotepec Plumas"]
[null,null,null,null,null,null,null,null,null,null,null,null,null,null,null,null,null,null,null,null,null,null,null,null,null,null,null,null,null,null,null,null,null,null,null,null,null,null,null,null,null,20,"Tlalixtac de Cabrera"]
[null,null,null,null,null,null,null,null,null,null,null,null,null,null,null,null,null,null,null,null,null,null,null,null,null,null,null,null,null,null,null,null,null,null,null,null,null,null,null,null,null,20,"Totontepec Villa de Morelos"]
[null,null,null,null,null,null,null,null,null,null,null,null,null,null,null,null,null,null,null,null,null,null,null,null,null,null,null,null,null,null,null,null,null,null,null,null,null,null,null,null,null,20,"Trinidad Zaachila"]
[null,null,null,null,null,null,null,null,null,null,null,null,null,null,null,null,null,null,null,null,null,null,null,null,null,null,null,null,null,null,null,null,null,null,null,null,null,null,null,null,null,20,"Unión Hidalgo"]
[null,null,null,null,null,null,null,null,null,null,null,null,null,null,null,null,null,null,null,null,null,null,null,null,null,null,null,null,null,null,null,null,null,null,null,null,null,null,null,null,null,20,"Valerio Trujano"]
[null,null,null,null,null,null,null,null,null,null,null,null,null,null,null,null,null,null,null,null,null,null,null,null,null,null,null,null,null,null,null,null,null,null,null,null,null,null,null,null,null,20,"Villa de Chilapa de Díaz"]
[null,null,null,null,null,null,null,null,null,null,null,null,null,null,null,null,null,null,null,null,null,null,null,null,null,null,null,null,null,null,null,null,null,null,null,null,null,null,null,null,null,20,"Villa de Etla"]
[null,null,null,null,null,null,null,null,null,null,null,null,null,null,null,null,null,null,null,null,null,null,null,null,null,null,null,null,null,null,null,null,null,null,null,null,null,null,null,null,null,20,"Villa de Tamazulápam del Progreso"]
[null,null,null,null,null,null,null,null,null,null,null,null,null,null,null,null,null,null,null,null,null,null,null,null,null,null,null,null,null,null,null,null,null,null,null,null,null,null,null,null,null,20,"Villa de Tututepec de Melchor Ocampo"]
[null,null,null,null,null,null,null,null,null,null,null,null,null,null,null,null,null,null,null,null,null,null,null,null,null,null,null,null,null,null,null,null,null,null,null,null,null,null,null,null,null,20,"Villa de Zaachila"]
[null,null,null,null,null,null,null,null,null,null,null,null,null,null,null,null,null,null,null,null,null,null,null,null,null,null,null,null,null,null,null,null,null,null,null,null,null,null,null,null,null,20,"Villa Díaz Ordaz"]
[null,null,null,null,null,null,null,null,null,null,null,null,null,null,null,null,null,null,null,null,null,null,null,null,null,null,null,null,null,null,null,null,null,null,null,null,null,null,null,null,null,20,"Villa Hidalgo"]
[null,null,null,null,null,null,null,null,null,null,null,null,null,null,null,null,null,null,null,null,null,null,null,null,null,null,null,null,null,null,null,null,null,null,null,null,null,null,null,null,null,20,"Villa Sola de Vega"]
[null,null,null,null,null,null,null,null,null,null,null,null,null,null,null,null,null,null,null,null,null,null,null,null,null,null,null,null,null,null,null,null,null,null,null,null,null,null,null,null,null,20,"Villa Talea de Castro"]
[null,null,null,null,null,null,null,null,null,null,null,null,null,null,null,null,null,null,null,null,null,null,null,null,null,null,null,null,null,null,null,null,null,null,null,null,null,null,null,null,null,20,"Villa Tejúpam de la Unión"]
[null,null,null,null,null,null,null,null,null,null,null,null,null,null,null,null,null,null,null,null,null,null,null,null,null,null,null,null,null,null,null,null,null,null,null,null,null,null,null,null,null,20,"Yaxe"]
[null,null,null,null,null,null,null,null,null,null,null,null,null,null,null,null,null,null,null,null,null,null,null,null,null,null,null,null,null,null,null,null,null,null,null,null,null,null,null,null,null,20,"Yogana"]
[null,null,null,null,null,null,null,null,null,null,null,null,null,null,null,null,null,null,null,null,null,null,null,null,null,null,null,null,null,null,null,null,null,null,null,null,null,null,null,null,null,20,"Yutanduchi de Guerrero"]
[null,null,null,null,null,null,null,null,null,null,null,null,null,null,null,null,null,null,null,null,null,null,null,null,null,null,null,null,null,null,null,null,null,null,null,null,null,null,null,null,null,20,"Zapotitlán Lagunas"]
[null,null,null,null,null,null,null,null,null,null,null,null,null,null,null,null,null,null,null,null,null,null,null,null,null,null,null,null,null,null,null,null,null,null,null,null,null,null,null,null,null,20,"Zapotitlán Palmas"]
[null,null,null,null,null,null,null,null,null,null,null,null,null,null,null,null,null,null,null,null,null,null,null,null,null,null,null,null,null,null,null,null,null,null,null,null,null,null,null,null,null,20,"Zimatlán de Álvarez"]

{"sheet":"F01","index":3,"n_rows":120,"n_cols":17,"rows_kept":120,"cut":false,"hidden":true,"merged":[]}
["CLAVE","N1","N2","N3","N4","N5","N6","N7","C  O  N  C  E  P  T  O  S",null,null,null,null,null,null,"EDO_ACT","EDO_ANT"]
[{"$f":"IF(LEN(CLEAN(B2))=0,\"0\",B2)&\",\"&IF(LEN(CLEAN(C2))=0,\"0\",C2)&\",\"&IF(LEN(CLEAN(D2))=0,\"0\",D2)&\",\"&IF(LEN(CLEAN(E2))=0,\"0\",E2)&\",\"&IF(LEN(CLEAN(F2))=0,\"0\",F2)&\",\"&IF(LEN(CLEAN(G2))=0,\"0\",G2)&\",\"&IF(LEN(CLEAN(H2))=0,\"0\",H2)","v":"1,1,0,0,0,0,0"},1,1,null,null,null,null,null,"ACTIVO",null,null,null,null,null,null," "," "]
[{"$f":"IF(LEN(CLEAN(B3))=0,\"0\",B3)&\",\"&IF(LEN(CLEAN(C3))=0,\"0\",C3)&\",\"&IF(LEN(CLEAN(D3))=0,\"0\",D3)&\",\"&IF(LEN(CLEAN(E3))=0,\"0\",E3)&\",\"&IF(LEN(CLEAN(F3))=0,\"0\",F3)&\",\"&IF(LEN(CLEAN(G3))=0,\"0\",G3)&\",\"&IF(LEN(CLEAN(H3))=0,\"0\",H3)","v":"1,1,1,0,0,0,0"},1,1,1,null,null,null,null,null,"Activo Circulante",null,null,null,null,null," "," "]
["1,1,1,1,0,0,0",1,1,1,1,null,null,null,null,null,"Efectivo y Equivalentes",null,null,null,null,{"$f":"#REF!","v":{"$error":"#REF!"}},{"$f":"#REF!","v":{"$error":"#REF!"}}]
["1,1,1,1,1,0,0",1,1,1,1,1,null,null,null,null,null,"Efectivo",null,null,null,{"$f":"#REF!","v":{"$error":"#REF!"}},{"$f":"#REF!","v":{"$error":"#REF!"}}]
["1,1,1,1,2,0,0",1,1,1,1,2,null,null,null,null,null,"Bancos/Tesorería",null,null,null,{"$f":"#REF!","v":{"$error":"#REF!"}},{"$f":"#REF!","v":{"$error":"#REF!"}}]
["1,1,1,1,3,0,0",1,1,1,1,3,null,null,null,null,null,"Bancos/Dependencias y Otros",null,null,null,{"$f":"#REF!","v":{"$error":"#REF!"}},{"$f":"#REF!","v":{"$error":"#REF!"}}]
["1,1,1,1,4,0,0",1,1,1,1,4,null,null,null,null,null,"Inversiones Temporales (Hasta 3 meses)",null,null,null,{"$f":"#REF!","v":{"$error":"#REF!"}},{"$f":"#REF!","v":{"$error":"#REF!"}}]
["1,1,1,1,5,0,0",1,1,1,1,5,null,null,null,null,null,"Fondos con Afectación Específica",null,null,null,{"$f":"#REF!","v":{"$error":"#REF!"}},{"$f":"#REF!","v":{"$error":"#REF!"}}]
["1,1,1,1,6,0,0",1,1,1,1,6,null,null,null,null,null,"Depósitos de Fondos de Terceros en Garantía y/o Administración",null,null,null,{"$f":"#REF!","v":{"$error":"#REF!"}},{"$f":"#REF!","v":{"$error":"#REF!"}}]
["1,1,1,1,7,0,0",1,1,1,1,7,null,null,null,null,null,"Otros Efectivos y Equivalentes",null,null,null,{"$f":"#REF!","v":{"$error":"#REF!"}},{"$f":"#REF!","v":{"$error":"#REF!"}}]
["1,1,1,2,0,0,0",1,1,1,2,null,null,null,null,null,"Derechos a Recibir Efectivo o Equivalentes",null,null,null,null,{"$f":"#REF!","v":{"$error":"#REF!"}},{"$f":"#REF!","v":{"$error":"#REF!"}}]
["1,1,1,2,1,0,0",1,1,1,2,1,null,null,null,null,null,"Inversiones Financieras de Corto Plazo",null,null,null,{"$f":"#REF!","v":{"$error":"#REF!"}},{"$f":"#REF!","v":{"$error":"#REF!"}}]
["1,1,1,2,2,0,0",1,1,1,2,2,null,null,null,null,null,"Cuentas por Cobrar a Corto Plazo",null,null,null,{"$f":"#REF!","v":{"$error":"#REF!"}},{"$f":"#REF!","v":{"$error":"#REF!"}}]
["1,1,1,2,3,0,0",1,1,1,2,3,null,null,null,null,null,"Deudores Diversos por Cobrar a Corto Plazo",null,null,null,{"$f":"#REF!","v":{"$error":"#REF!"}},{"$f":"#REF!","v":{"$error":"#REF!"}}]
["1,1,1,2,4,0,0",1,1,1,2,4,null,null,null,null,null,"Ingresos por Recuperar a Corto Plazo",null,null,null,{"$f":"#REF!","v":{"$error":"#REF!"}},{"$f":"#REF!","v":{"$error":"#REF!"}}]
["1,1,1,2,5,0,0",1,1,1,2,5,null,null,null,null,null,"Deudores por Anticipos de la Tesorería a Corto Plazo",null,null,null,{"$f":"#REF!","v":{"$error":"#REF!"}},{"$f":"#REF!","v":{"$error":"#REF!"}}]
["1,1,1,2,6,0,0",1,1,1,2,6,null,null,null,null,null,"Préstamos Otorgados a Corto Plazo",null,null,null,{"$f":"#REF!","v":{"$error":"#REF!"}},{"$f":"#REF!","v":{"$error":"#REF!"}}]
["1,1,1,2,7,0,0",1,1,1,2,7,null,null,null,null,null,"Otros Derechos a Recibir Efectivo o Equivalentes a Corto Plazo",null,null,null,{"$f":"#REF!","v":{"$error":"#REF!"}},{"$f":"#REF!","v":{"$error":"#REF!"}}]
["1,1,1,3,0,0,0",1,1,1,3,null,null,null,null,null,"Derechos a Recibir Bienes o Servicios",null,null,null,null,{"$f":"#REF!","v":{"$error":"#REF!"}},{"$f":"#REF!","v":{"$error":"#REF!"}}]
["1,1,1,3,1,0,0",1,1,1,3,1,null,null,null,null,null,"Anticipo a Proveedores por Adquisición de Bienes y Prestación de Servicios a Corto Plazo",null,null,null,{"$f":"#REF!","v":{"$error":"#REF!"}},{"$f":"#REF!","v":{"$error":"#REF!"}}]
["1,1,1,3,2,0,0",1,1,1,3,2,null,null,null,null,null,"Anticipo a Proveedores por Adquisición de Bienes Inmuebles y Muebles a Corto Plazo",null,null,null,{"$f":"#REF!","v":{"$error":"#REF!"}},{"$f":"#REF!","v":{"$error":"#REF!"}}]
["1,1,1,3,3,0,0",1,1,1,3,3,null,null,null,null,null,"Anticipo a Proveedores por Adquisición de Bienes Intangibles a Corto Plazo",null,null,null,{"$f":"#REF!","v":{"$error":"#REF!"}},{"$f":"#REF!","v":{"$error":"#REF!"}}]
["1,1,1,3,4,0,0",1,1,1,3,4,null,null,null,null,null,"Anticipo a Contratistas por Obras Públicas a Corto Plazo",null,null,null,{"$f":"#REF!","v":{"$error":"#REF!"}},{"$f":"#REF!","v":{"$error":"#REF!"}}]
["1,1,1,3,5,0,0",1,1,1,3,5,null,null,null,null,null,"Otros Derechos a Recibir Bienes o Servicios a Corto Plazo",null,null,null,{"$f":"#REF!","v":{"$error":"#REF!"}},{"$f":"#REF!","v":{"$error":"#REF!"}}]
["1,1,1,4,0,0,0",1,1,1,4,null,null,null,null,null,"Inventarios",null,null,null,null,{"$f":"#REF!","v":{"$error":"#REF!"}},{"$f":"#REF!","v":{"$error":"#REF!"}}]
["1,1,1,4,1,0,0",1,1,1,4,1,null,null,null,null,null,"Inventario de Mercancías para Venta",null,null,null,{"$f":"#REF!","v":{"$error":"#REF!"}},{"$f":"#REF!","v":{"$error":"#REF!"}}]
["1,1,1,4,2,0,0",1,1,1,4,2,null,null,null,null,null,"Inventario de Mercancías Terminadas",null,null,null,{"$f":"#REF!","v":{"$error":"#REF!"}},{"$f":"#REF!","v":{"$error":"#REF!"}}]
["1,1,1,4,3,0,0",1,1,1,4,3,null,null,null,null,null,"Inventario de Mercancías en Proceso de Elaboración",null,null,null,{"$f":"#REF!","v":{"$error":"#REF!"}},{"$f":"#REF!","v":{"$error":"#REF!"}}]
["1,1,1,4,4,0,0",1,1,1,4,4,null,null,null,null,null,"Inventario de Materias Primas, Materiales y Suministros para Producción",null,null,null,{"$f":"#REF!","v":{"$error":"#REF!"}},{"$f":"#REF!","v":{"$error":"#REF!"}}]
["1,1,1,4,5,0,0",1,1,1,4,5,null,null,null,null,null,"Bienes en Tránsito",null,null,null,{"$f":"#REF!","v":{"$error":"#REF!"}},{"$f":"#REF!","v":{"$error":"#REF!"}}]
["1,1,1,5,0,0,0",1,1,1,5,null,null,null,null,null,"Almacenes",null,null,null,null,{"$f":"#REF!","v":{"$error":"#REF!"}},{"$f":"#REF!","v":{"$error":"#REF!"}}]
["1,1,1,5,1,0,0",1,1,1,5,1,null,null,null,null,null,"Almacenes",null,null,null,{"$f":"#REF!","v":{"$error":"#REF!"}},{"$f":"#REF!","v":{"$error":"#REF!"}}]
["1,1,1,6,0,0,0",1,1,1,6,null,null,null,null,null,"Estimación por Pérdida o Deterioro de Activos Circulantes",null,null,null,null,{"$f":"#REF!","v":{"$error":"#REF!"}},{"$f":"#REF!","v":{"$error":"#REF!"}}]
["1,1,1,6,1,0,0",1,1,1,6,1,null,null,null,null,null,"Estimaciones para Cuentas Incobrables por Derechos a Recibir Efectivo o Equivalentes",null,null,null,{"$f":"#REF!","v":{"$error":"#REF!"}},{"$f":"#REF!","v":{"$error":"#REF!"}}]
["1,1,1,6,2,0,0",1,1,1,6,2,null,null,null,null,null,"Estimación por Deterioro de Inventarios",null,null,null,{"$f":"#REF!","v":{"$error":"#REF!"}},{"$f":"#REF!","v":{"$error":"#REF!"}}]
["1,1,1,7,0,0,0",1,1,1,7,null,null,null,null,null,"Otros Activos Circulantes",null,null,null,null,{"$f":"#REF!","v":{"$error":"#REF!"}},{"$f":"#REF!","v":{"$error":"#REF!"}}]
["1,1,1,7,1,0,0",1,1,1,7,1,null,null,null,null,null,"Valores en Garantía",null,null,null,{"$f":"#REF!","v":{"$error":"#REF!"}},{"$f":"#REF!","v":{"$error":"#REF!"}}]
["1,1,1,7,2,0,0",1,1,1,7,2,null,null,null,null,null,"Bienes en Garantía (excluye depósitos de fondos)",null,null,null,{"$f":"#REF!","v":{"$error":"#REF!"}},{"$f":"#REF!","v":{"$error":"#REF!"}}]
["1,1,1,7,3,0,0",1,1,1,7,3,null,null,null,null,null,"Bienes Derivados de Embargos, Decomisos, Aseguramientos y Dación en Pago",null,null,null,{"$f":"#REF!","v":{"$error":"#REF!"}},{"$f":"#REF!","v":{"$error":"#REF!"}}]
["1,1,1,7,4,0,0",1,1,1,7,4,null,null,null,null,null,"Adquisición con Fondos de Terceros",null,null,null,{"$f":"#REF!","v":{"$error":"#REF!"}},{"$f":"#REF!","v":{"$error":"#REF!"}}]
["1,1,1,8,0,0,0",1,1,1,8,null,null,null,null,null,"Total de Activos Circulantes",null,null,null,null,{"$f":"#REF!","v":{"$error":"#REF!"}},{"$f":"#REF!","v":{"$error":"#REF!"}}]
["1,1,2,0,0,0,0",1,1,2,null,null,null,null,null,"Activo No Circulante"]
["1,1,2,1,0,0,0",1,1,2,1,null,null,null,null,null,"Inversiones Financieras a Largo Plazo",null,null,null,null,{"$f":"#REF!","v":{"$error":"#REF!"}},{"$f":"#REF!","v":{"$error":"#REF!"}}]
["1,1,2,2,0,0,0",1,1,2,2,null,null,null,null,null,"Derechos a Recibir Efectivo o Equivalentes a Largo Plazo ",null,null,null,null,{"$f":"#REF!","v":{"$error":"#REF!"}},{"$f":"#REF!","v":{"$error":"#REF!"}}]
["1,1,2,3,0,0,0",1,1,2,3,null,null,null,null,null,"Bienes Inmuebles, Infraestructura y Construcciones en Proceso ",null,null,null,null,{"$f":"#REF!","v":{"$error":"#REF!"}},{"$f":"#REF!","v":{"$error":"#REF!"}}]
["1,1,2,4,0,0,0",1,1,2,4,null,null,null,null,null,"Bienes Muebles ",null,null,null,null,{"$f":"#REF!","v":{"$error":"#REF!"}},{"$f":"#REF!","v":{"$error":"#REF!"}}]
["1,1,2,5,0,0,0",1,1,2,5,null,null,null,null,null,"Activos Intangibles ",null,null,null,null,{"$f":"#REF!","v":{"$error":"#REF!"}},{"$f":"#REF!","v":{"$error":"#REF!"}}]
["1,1,2,6,0,0,0",1,1,2,6,null,null,null,null,null,"Depreciación, Deterioro y Amortización Acumulada de Bienes ",null,null,null,null,{"$f":"#REF!","v":{"$error":"#REF!"}},{"$f":"#REF!","v":{"$error":"#REF!"}}]
["1,1,2,7,0,0,0",1,1,2,7,null,null,null,null,null,"Activos Diferidos",null,null,null,null,{"$f":"#REF!","v":{"$error":"#REF!"}},{"$f":"#REF!","v":{"$error":"#REF!"}}]
["1,1,2,8,0,0,0",1,1,2,8,null,null,null,null,null,"Estimación por Pérdida o Deterioro de Activos no Circulantes",null,null,null,null,{"$f":"#REF!","v":{"$error":"#REF!"}},{"$f":"#REF!","v":{"$error":"#REF!"}}]
["1,1,2,9,0,0,0",1,1,2,9,null,null,null,null,null,"Otros Activos no Circulantes",null,null,null,null,{"$f":"#REF!","v":{"$error":"#REF!"}},{"$f":"#REF!","v":{"$error":"#REF!"}}]
["1,1,2,10,0,0,0",1,1,2,10,null,null,null,null,"Total de Activos No Circulantes",null,null,null,null,null,{"$f":"#REF!","v":{"$error":"#REF!"}},{"$f":"#REF!","v":{"$error":"#REF!"}}]
["1,1,3,0,0,0,0",1,1,3,null,null,null,null,null,"Total del Activo",null,null,null,null,null,{"$f":"#REF!","v":{"$error":"#REF!"}},{"$f":"#REF!","v":{"$error":"#REF!"}}]
["1,2,0,0,0,0,0",1,2,null,null,null,null,null,"PASIVO"]
["1,2,1,0,0,0,0",1,2,1,null,null,null,null,null,"Pasivo Circulante"]
["1,2,1,1,0,0,0",1,2,1,1,null,null,null,null,null,"Cuentas por Pagar a Corto Plazo",null,null,null,null,{"$f":"#REF!","v":{"$error":"#REF!"}},{"$f":"#REF!","v":{"$error":"#REF!"}}]
["1,2,1,1,1,0,0",1,2,1,1,1,null,null,null,null,null,"Servicios Personales por Pagar a Corto Plazo",null,null,null,{"$f":"#REF!","v":{"$error":"#REF!"}},{"$f":"#REF!","v":{"$error":"#REF!"}}]
["1,2,1,1,2,0,0",1,2,1,1,2,null,null,null,null,null,"Proveedores por Pagar a Corto Plazo",null,null,null,{"$f":"#REF!","v":{"$error":"#REF!"}},{"$f":"#REF!","v":{"$error":"#REF!"}}]
["1,2,1,1,3,0,0",1,2,1,1,3,null,null,null,null,null,"Contratistas por Obras Públicas por Pagar a Corto Plazo",null,null,null,{"$f":"#REF!","v":{"$error":"#REF!"}},{"$f":"#REF!","v":{"$error":"#REF!"}}]
["1,2,1,1,4,0,0",1,2,1,1,4,null,null,null,null,null,"Participaciones y Aportaciones por Pagar a Corto Plazo",null,null,null,{"$f":"#REF!","v":{"$error":"#REF!"}},{"$f":"#REF!","v":{"$error":"#REF!"}}]
["1,2,1,1,5,0,0",1,2,1,1,5,null,null,null,null,null,"Transferencias Otorgadas por Pagar a Corto Plazo",null,null,null,{"$f":"#REF!","v":{"$error":"#REF!"}},{"$f":"#REF!","v":{"$error":"#REF!"}}]
["1,2,1,1,6,0,0",1,2,1,1,6,null,null,null,null,null,"Intereses, Comisiones y Otros Gastos de la Deuda Pública por Pagar a Corto Plazo",null,null,null,{"$f":"#REF!","v":{"$error":"#REF!"}},{"$f":"#REF!","v":{"$error":"#REF!"}}]
["1,2,1,1,7,0,0",1,2,1,1,7,null,null,null,null,null,"Retenciones y Contribuciones por Pagar a Corto Plazo",null,null,null,{"$f":"#REF!","v":{"$error":"#REF!"}},{"$f":"#REF!","v":{"$error":"#REF!"}}]
["1,2,1,1,8,0,0",1,2,1,1,8,null,null,null,null,null,"Devoluciones de la Ley de Ingresos por Pagar a Corto Plazo",null,null,null,{"$f":"#REF!","v":{"$error":"#REF!"}},{"$f":"#REF!","v":{"$error":"#REF!"}}]
["1,2,1,1,9,0,0",1,2,1,1,9,null,null,null,null,null,"Otras Cuentas por Pagar a Corto Plazo",null,null,null,{"$f":"#REF!","v":{"$error":"#REF!"}},{"$f":"#REF!","v":{"$error":"#REF!"}}]
[{"$f":"IF(LEN(CLEAN(B67))=0,\"0\",B67)&\",\"&IF(LEN(CLEAN(C67))=0,\"0\",C67)&\",\"&IF(LEN(CLEAN(D67))=0,\"0\",D67)&\",\"&IF(LEN(CLEAN(E67))=0,\"0\",E67)&\",\"&IF(LEN(CLEAN(F67))=0,\"0\",F67)&\",\"&IF(LEN(CLEAN(G67))=0,\"0\",G67)&\",\"&IF(LEN(CLEAN(H67))=0,\"0\",H67)","v":"1,2,1,2,0,0,0"},1,2,1,2,null,null,null,null,null,"Documentos por Pagar a Corto Plazo",null,null,null,null,{"$f":"#REF!","v":{"$error":"#REF!"}},{"$f":"#REF!","v":{"$error":"#REF!"}}]
["1,2,1,2,1,0,0",1,2,1,2,1,null,null,null,null,null,"Documentos Comerciales por Pagar a Corto Plazo",null,null,null,{"$f":"#REF!","v":{"$error":"#REF!"}},{"$f":"#REF!","v":{"$error":"#REF!"}}]
["1,2,1,2,2,0,0",1,2,1,2,2,null,null,null,null,null,"Documentos con Contratistas por Obras Públicas por Pagar a Corto Plazo",null,null,null,{"$f":"#REF!","v":{"$error":"#REF!"}},{"$f":"#REF!","v":{"$error":"#REF!"}}]
["1,2,1,2,3,0,0",1,2,1,2,3,null,null,null,null,null,"Otros Documentos por Pagar a Corto Plazo",null,null,null,{"$f":"#REF!","v":{"$error":"#REF!"}},{"$f":"#REF!","v":{"$error":"#REF!"}}]
["1,2,1,3,0,0,0",1,2,1,3,null,null,null,null,null,"Porción a Corto Plazo de la Deuda Pública a Largo Plazo",null,null,null,null,{"$f":"#REF!","v":{"$error":"#REF!"}},{"$f":"#REF!","v":{"$error":"#REF!"}}]
["1,2,1,3,1,0,0",1,2,1,3,1,null,null,null,null,null,"Porción a Corto Plazo de la Deuda Pública",null,null,null,{"$f":"#REF!","v":{"$error":"#REF!"}},{"$f":"#REF!","v":{"$error":"#REF!"}}]
["1,2,1,3,2,0,0",1,2,1,3,2,null,null,null,null,null,"Porción a Corto Plazo de Arrendamiento Financiero",null,null,null,{"$f":"#REF!","v":{"$error":"#REF!"}},{"$f":"#REF!","v":{"$error":"#REF!"}}]
["1,2,1,4,0,0,0",1,2,1,4,null,null,null,null,null,"Títulos y Valores a Corto Plazo",null,null,null,null,{"$f":"#REF!","v":{"$error":"#REF!"}},{"$f":"#REF!","v":{"$error":"#REF!"}}]
["1,2,1,4,1,0,0",1,2,1,4,1,null,null,null,null,null,"Títulos y Valores a Corto Plazo",null,null,null,{"$f":"#REF!","v":{"$error":"#REF!"}},{"$f":"#REF!","v":{"$error":"#REF!"}}]
["1,2,1,5,0,0,0",1,2,1,5,null,null,null,null,null,"Pasivos Diferidos a Corto Plazo",null,null,null,null,{"$f":"#REF!","v":{"$error":"#REF!"}},{"$f":"#REF!","v":{"$error":"#REF!"}}]
["1,2,1,5,1,0,0",1,2,1,5,1,null,null,null,null,null,"Ingresos Cobrados por Adelantado a Corto Plazo",null,null,null,{"$f":"#REF!","v":{"$error":"#REF!"}},{"$f":"#REF!","v":{"$error":"#REF!"}}]
["1,2,1,5,2,0,0",1,2,1,5,2,null,null,null,null,null,"Intereses Cobrados por Adelantado a Corto Plazo",null,null,null,{"$f":"#REF!","v":{"$error":"#REF!"}},{"$f":"#REF!","v":{"$error":"#REF!"}}]
["1,2,1,5,3,0,0",1,2,1,5,3,null,null,null,null,null,"Otros Pasivos Diferidos a Corto Plazo",null,null,null,{"$f":"#REF!","v":{"$error":"#REF!"}},{"$f":"#REF!","v":{"$error":"#REF!"}}]
["1,2,1,6,0,0,0",1,2,1,6,null,null,null,null,null,"Fondos y Bienes de Terceros en Garantía y/o Administración a Corto Plazo",null,null,null,null,{"$f":"#REF!","v":{"$error":"#REF!"}},{"$f":"#REF!","v":{"$error":"#REF!"}}]
["1,2,1,6,1,0,0",1,2,1,6,1,null,null,null,null,null,"Fondos en Garantía a Corto Plazo",null,null,null,{"$f":"#REF!","v":{"$error":"#REF!"}},{"$f":"#REF!","v":{"$error":"#REF!"}}]
["1,2,1,6,2,0,0",1,2,1,6,2,null,null,null,null,null,"Fondos en Administración a Corto Plazo",null,null,null,{"$f":"#REF!","v":{"$error":"#REF!"}},{"$f":"#REF!","v":{"$error":"#REF!"}}]
["1,2,1,6,3,0,0",1,2,1,6,3,null,null,null,null,null,"Fondos Contingentes a Corto Plazo",null,null,null,{"$f":"#REF!","v":{"$error":"#REF!"}},{"$f":"#REF!","v":{"$error":"#REF!"}}]
["1,2,1,6,4,0,0",1,2,1,6,4,null,null,null,null,null,"Fondos de Fideicomisos, Mandatos y Contratos Análogos a Corto Plazo",null,null,null,{"$f":"#REF!","v":{"$error":"#REF!"}},{"$f":"#REF!","v":{"$error":"#REF!"}}]
["1,2,1,6,5,0,0",1,2,1,6,5,null,null,null,null,null,"Otros Fondos de Terceros en Garantía y/o Administración a Corto Plazo",null,null,null,{"$f":"#REF!","v":{"$error":"#REF!"}},{"$f":"#REF!","v":{"$error":"#REF!"}}]
["1,2,1,6,6,0,0",1,2,1,6,6,null,null,null,null,null,"Valores y Bienes en Garantía a Corto Plazo",null,null,null,{"$f":"#REF!","v":{"$error":"#REF!"}},{"$f":"#REF!","v":{"$error":"#REF!"}}]
["1,2,1,7,0,0,0",1,2,1,7,null,null,null,null,null,"Provisiones a Corto Plazo",null,null,null,null,{"$f":"#REF!","v":{"$error":"#REF!"}},{"$f":"#REF!","v":{"$error":"#REF!"}}]
["1,2,1,7,1,0,0",1,2,1,7,1,null,null,null,null,null,"Provisión para Demandas y Juicios a Corto Plazo",null,null,null,{"$f":"#REF!","v":{"$error":"#REF!"}},{"$f":"#REF!","v":{"$error":"#REF!"}}]
["1,2,1,7,2,0,0",1,2,1,7,2,null,null,null,null,null,"Provisión para Contingencias a Corto Plazo",null,null,null,{"$f":"#REF!","v":{"$error":"#REF!"}},{"$f":"#REF!","v":{"$error":"#REF!"}}]
["1,2,1,7,3,0,0",1,2,1,7,3,null,null,null,null,null,"Otras Provisiones a Corto Plazo",null,null,null,{"$f":"#REF!","v":{"$error":"#REF!"}},{"$f":"#REF!","v":{"$error":"#REF!"}}]
["1,2,1,8,0,0,0",1,2,1,8,null,null,null,null,null,"Otros Pasivos a Corto Plazo",null,null,null,null,{"$f":"#REF!","v":{"$error":"#REF!"}},{"$f":"#REF!","v":{"$error":"#REF!"}}]
["1,2,1,8,1,0,0",1,2,1,8,1,null,null,null,null,null,"Ingresos por Clasificar",null,null,null,{"$f":"#REF!","v":{"$error":"#REF!"}},{"$f":"#REF!","v":{"$error":"#REF!"}}]
["1,2,1,8,2,0,0",1,2,1,8,2,null,null,null,null,null,"Recaudación por Participar",null,null,null,{"$f":"#REF!","v":{"$error":"#REF!"}},{"$f":"#REF!","v":{"$error":"#REF!"}}]
["1,2,1,8,3,0,0",1,2,1,8,3,null,null,null,null,null,"Otros Pasivos Circulantes",null,null,null,{"$f":"#REF!","v":{"$error":"#REF!"}},{"$f":"#REF!","v":{"$error":"#REF!"}}]
["1,2,1,9,0,0,0",1,2,1,9,null,null,null,null,null,"Total de Pasivos Circulantes",null,null,null,null,{"$f":"#REF!","v":{"$error":"#REF!"}},{"$f":"#REF!","v":{"$error":"#REF!"}}]
["1,2,2,0,0,0,0",1,2,2,null,null,null,null,null,"Pasivo No Circulante"]
["1,2,2,1,1,0,0",1,2,2,1,1,null,null,null,null,"Cuentas por Pagar a Largo Plazo",null,null,null,null,{"$f":"#REF!","v":{"$error":"#REF!"}},{"$f":"#REF!","v":{"$error":"#REF!"}}]
["1,2,2,1,2,0,0",1,2,2,1,2,null,null,null,null,"Documentos por Pagar a Largo Plazo",null,null,null,null,{"$f":"#REF!","v":{"$error":"#REF!"}},{"$f":"#REF!","v":{"$error":"#REF!"}}]
["1,2,2,1,3,0,0",1,2,2,1,3,null,null,null,null,"Deuda Pública a Largo Plazo",null,null,null,null,{"$f":"#REF!","v":{"$error":"#REF!"}},{"$f":"#REF!","v":{"$error":"#REF!"}}]
["1,2,2,1,4,0,0",1,2,2,1,4,null,null,null,null,"Pasivos Diferidos a Largo Plazo",null,null,null,null,{"$f":"#REF!","v":{"$error":"#REF!"}},{"$f":"#REF!","v":{"$error":"#REF!"}}]
["1,2,2,1,5,0,0",1,2,2,1,5,null,null,null,null,"Fondos y Bienes de Terceros en Garantía y/o en Administración a Largo Plazo",null,null,null,null,{"$f":"#REF!","v":{"$error":"#REF!"}},{"$f":"#REF!","v":{"$error":"#REF!"}}]
["1,2,2,1,6,0,0",1,2,2,1,6,null,null,null,null,"Provisiones a Largo Plazo",null,null,null,null,{"$f":"#REF!","v":{"$error":"#REF!"}},{"$f":"#REF!","v":{"$error":"#REF!"}}]
["1,2,2,1,7,0,0",1,2,2,1,7,null,null,null,null,"Total de Pasivos No Circulantes",null,null,null,null,{"$f":"#REF!","v":{"$error":"#REF!"}},{"$f":"#REF!","v":{"$error":"#REF!"}}]
["1,2,3,0,0,0,0",1,2,3,null,null,null,null,null,"Total del Pasivo",null,null,null,null,null,{"$f":"#REF!","v":{"$error":"#REF!"}},{"$f":"#REF!","v":{"$error":"#REF!"}}]
["1,2,4,0,0,0,0",1,2,4,null,null,null,null,null,"HACIENDA PÚBLICA/PATRIMONIO"]
["1,2,4,1,0,0,0",1,2,4,1,null,null,null,null,null,"Hacienda Pública/Patrimonio Contribuido",null,null,null,null,{"$f":"#REF!","v":{"$error":"#REF!"}},{"$f":"#REF!","v":{"$error":"#REF!"}}]
["1,2,4,1,1,0,0",1,2,4,1,1,null,null,null,null,null,"Aportaciones",null,null,null,{"$f":"#REF!","v":{"$error":"#REF!"}},{"$f":"#REF!","v":{"$error":"#REF!"}}]
["1,2,4,1,2,0,0",1,2,4,1,2,null,null,null,null,null,"Donaciones de Capital",null,null,null,{"$f":"#REF!","v":{"$error":"#REF!"}},{"$f":"#REF!","v":{"$error":"#REF!"}}]
["1,2,4,1,4,0,0",1,2,4,1,4,null,null,null,null,null,"Actualización de la Hacienda Pública/Patrimonio",null,null,null,{"$f":"#REF!","v":{"$error":"#REF!"}},{"$f":"#REF!","v":{"$error":"#REF!"}}]
["1,2,4,2,0,0,0",1,2,4,2,null,null,null,null,null,"Hacienda Pública/Patrimonio Generado",null,null,null,null,{"$f":"#REF!","v":{"$error":"#REF!"}},{"$f":"#REF!","v":{"$error":"#REF!"}}]
["1,2,4,2,1,0,0",1,2,4,2,1,null,null,null,null,null,"Resultados del Ejercicio (Ahorro/ Desahorro)",null,null,null,{"$f":"#REF!","v":{"$error":"#REF!"}},{"$f":"#REF!","v":{"$error":"#REF!"}}]
["1,2,4,2,2,0,0",1,2,4,2,2,null,null,null,null,null,"Resultados de Ejercicios Anteriores",null,null,null,{"$f":"#REF!","v":{"$error":"#REF!"}},{"$f":"#REF!","v":{"$error":"#REF!"}}]
["1,2,4,2,3,0,0",1,2,4,2,3,null,null,null,null,null,"Revalúos",null,null,null,{"$f":"#REF!","v":{"$error":"#REF!"}},{"$f":"#REF!","v":{"$error":"#REF!"}}]
["1,2,4,2,4,0,0",1,2,4,2,4,null,null,null,null,null,"Reservas",null,null,null,{"$f":"#REF!","v":{"$error":"#REF!"}},{"$f":"#REF!","v":{"$error":"#REF!"}}]
["1,2,4,2,5,0,0",1,2,4,2,5,null,null,null,null,null,"Rectificaciones de Resultados de Ejercicios Anteriores",null,null,null,{"$f":"#REF!","v":{"$error":"#REF!"}},{"$f":"#REF!","v":{"$error":"#REF!"}}]
["1,2,4,3,0,0,0",1,2,4,3,null,null,null,null,null,"Exceso o Insuficiencia en la Actualización de la Hacienda Pública/Patrimonio",null,null,null,null,{"$f":"#REF!","v":{"$error":"#REF!"}},{"$f":"#REF!","v":{"$error":"#REF!"}}]
["1,2,4,3,1,0,0",1,2,4,3,1,null,null,null,null,null,"Resultado por Posición Monetaria",null,null,null,{"$f":"#REF!","v":{"$error":"#REF!"}},{"$f":"#REF!","v":{"$error":"#REF!"}}]
["1,2,4,3,2,0,0",1,2,4,3,2,null,null,null,null,null,"Resultado por Tenencia de Activos no Monetarios",null,null,null,{"$f":"#REF!","v":{"$error":"#REF!"}},{"$f":"#REF!","v":{"$error":"#REF!"}}]
["1,2,4,4,0,0,0",1,2,4,4,null,null,null,null,null,"Total Hacienda Pública/Patrimonio",null,null,null,null,{"$f":"#REF!","v":{"$error":"#REF!"}},{"$f":"#REF!","v":{"$error":"#REF!"}}]
["1,2,4,5,0,0,0",1,2,4,5,null,null,null,null,null,"Total del Pasivo y Hacienda Pública/Patrimonio",null,null,null,null,{"$f":"#REF!","v":{"$error":"#REF!"}},{"$f":"#REF!","v":{"$error":"#REF!"}}]

{"sheet":"F02","index":4,"n_rows":17,"n_cols":22,"rows_kept":17,"cut":false,"hidden":true,"merged":[]}
["CLAVE","N1","N2","N3","N4","N5","N6","N7","C  O  N  C  E  P  T  O  S",null,null,null,null,null,null,"SALDO_ANT","DISP","AMORT","REVAL","SALDO_FIN","PAGO_INT","PAGO_COM"]
[{"$f":"IF(LEN(CLEAN(B2))=0,\"0\",B2)&\",\"&IF(LEN(CLEAN(C2))=0,\"0\",C2)&\",\"&IF(LEN(CLEAN(D2))=0,\"0\",D2)&\",\"&IF(LEN(CLEAN(E2))=0,\"0\",E2)&\",\"&IF(LEN(CLEAN(F2))=0,\"0\",F2)&\",\"&IF(LEN(CLEAN(G2))=0,\"0\",G2)&\",\"&IF(LEN(CLEAN(H2))=0,\"0\",H2)","v":"2,1,0,0,0,0,0"},2,1,null,null,null,null,null,"Denominación de la Deuda Pública y Otros Pasivos",null,null,null,null,null,null," "," "]
[{"$f":"IF(LEN(CLEAN(B3))=0,\"0\",B3)&\",\"&IF(LEN(CLEAN(C3))=0,\"0\",C3)&\",\"&IF(LEN(CLEAN(D3))=0,\"0\",D3)&\",\"&IF(LEN(CLEAN(E3))=0,\"0\",E3)&\",\"&IF(LEN(CLEAN(F3))=0,\"0\",F3)&\",\"&IF(LEN(CLEAN(G3))=0,\"0\",G3)&\",\"&IF(LEN(CLEAN(H3))=0,\"0\",H3)","v":"2,1,1,0,0,0,0"},2,1,1,null,null,null,null,null,"Deuda Pública",null,null,null,null,null,{"$f":"#REF!","v":{"$error":"#REF!"}},{"$f":"#REF!","v":{"$error":"#REF!"}},{"$f":"#REF!","v":{"$error":"#REF!"}},{"$f":"#REF!","v":{"$error":"#REF!"}},{"$f":"#REF!","v":{"$error":"#REF!"}},{"$f":"#REF!","v":{"$error":"#REF!"}},{"$f":"#REF!","v":{"$error":"#REF!"}}]
["2,1,1,1,0,0,0",2,1,1,1,null,null,null,null,null,"Corto Plazo",null,null,null,null,{"$f":"#REF!","v":{"$error":"#REF!"}},{"$f":"#REF!","v":{"$error":"#REF!"}},{"$f":"#REF!","v":{"$error":"#REF!"}},{"$f":"#REF!","v":{"$error":"#REF!"}},{"$f":"#REF!","v":{"$error":"#REF!"}},{"$f":"#REF!","v":{"$error":"#REF!"}},{"$f":"#REF!","v":{"$error":"#REF!"}}]
["2,1,1,1,1,0,0",2,1,1,1,1,null,null,null,null,null,"Instituciones de Crédito",null,null,null,{"$f":"#REF!","v":{"$error":"#REF!"}},{"$f":"#REF!","v":{"$error":"#REF!"}},{"$f":"#REF!","v":{"$error":"#REF!"}},{"$f":"#REF!","v":{"$error":"#REF!"}},{"$f":"#REF!","v":{"$error":"#REF!"}},{"$f":"#REF!","v":{"$error":"#REF!"}},{"$f":"#REF!","v":{"$error":"#REF!"}}]
["2,1,1,1,2,0,0",2,1,1,1,2,null,null,null,null,null,"Títulos y Valores",null,null,null,{"$f":"#REF!","v":{"$error":"#REF!"}},{"$f":"#REF!","v":{"$error":"#REF!"}},{"$f":"#REF!","v":{"$error":"#REF!"}},{"$f":"#REF!","v":{"$error":"#REF!"}},{"$f":"#REF!","v":{"$error":"#REF!"}},{"$f":"#REF!","v":{"$error":"#REF!"}},{"$f":"#REF!","v":{"$error":"#REF!"}}]
[{"$f":"IF(LEN(CLEAN(B7))=0,\"0\",B7)&\",\"&IF(LEN(CLEAN(C7))=0,\"0\",C7)&\",\"&IF(LEN(CLEAN(D7))=0,\"0\",D7)&\",\"&IF(LEN(CLEAN(E7))=0,\"0\",E7)&\",\"&IF(LEN(CLEAN(F7))=0,\"0\",F7)&\",\"&IF(LEN(CLEAN(G7))=0,\"0\",G7)&\",\"&IF(LEN(CLEAN(H7))=0,\"0\",H7)","v":"2,1,1,1,3,0,0"},2,1,1,1,3,null,null,null,null,null,"Arrendamientos Financieros",null,null,null,{"$f":"#REF!","v":{"$error":"#REF!"}},{"$f":"#REF!","v":{"$error":"#REF!"}},{"$f":"#REF!","v":{"$error":"#REF!"}},{"$f":"#REF!","v":{"$error":"#REF!"}},{"$f":"#REF!","v":{"$error":"#REF!"}},{"$f":"#REF!","v":{"$error":"#REF!"}},{"$f":"#REF!","v":{"$error":"#REF!"}}]
[{"$f":"IF(LEN(CLEAN(B8))=0,\"0\",B8)&\",\"&IF(LEN(CLEAN(C8))=0,\"0\",C8)&\",\"&IF(LEN(CLEAN(D8))=0,\"0\",D8)&\",\"&IF(LEN(CLEAN(E8))=0,\"0\",E8)&\",\"&IF(LEN(CLEAN(F8))=0,\"0\",F8)&\",\"&IF(LEN(CLEAN(G8))=0,\"0\",G8)&\",\"&IF(LEN(CLEAN(H8))=0,\"0\",H8)","v":"2,1,1,2,0,0,0"},2,1,1,2,null,null,null,null,null,"Largo Plazo",null,null,null,null,{"$f":"#REF!","v":{"$error":"#REF!"}},{"$f":"#REF!","v":{"$error":"#REF!"}},{"$f":"#REF!","v":{"$error":"#REF!"}},{"$f":"#REF!","v":{"$error":"#REF!"}},{"$f":"#REF!","v":{"$error":"#REF!"}},{"$f":"#REF!","v":{"$error":"#REF!"}},{"$f":"#REF!","v":{"$error":"#REF!"}}]
["2,1,1,2,1,0,0",2,1,1,2,1,null,null,null,null,null,"Instituciones de Crédito",null,null,null,{"$f":"#REF!","v":{"$error":"#REF!"}},{"$f":"#REF!","v":{"$error":"#REF!"}},{"$f":"#REF!","v":{"$error":"#REF!"}},{"$f":"#REF!","v":{"$error":"#REF!"}},{"$f":"#REF!","v":{"$error":"#REF!"}},{"$f":"#REF!","v":{"$error":"#REF!"}},{"$f":"#REF!","v":{"$error":"#REF!"}}]
["2,1,1,2,2,0,0",2,1,1,2,2,null,null,null,null,null,"Títulos y Valores",null,null,null,{"$f":"#REF!","v":{"$error":"#REF!"}},{"$f":"#REF!","v":{"$error":"#REF!"}},{"$f":"#REF!","v":{"$error":"#REF!"}},{"$f":"#REF!","v":{"$error":"#REF!"}},{"$f":"#REF!","v":{"$error":"#REF!"}},{"$f":"#REF!","v":{"$error":"#REF!"}},{"$f":"#REF!","v":{"$error":"#REF!"}}]
["2,1,1,2,3,0,0",2,1,1,2,3,null,null,null,null,null,"Arrendamientos Financieros",null,null,null,{"$f":"#REF!","v":{"$error":"#REF!"}},{"$f":"#REF!","v":{"$error":"#REF!"}},{"$f":"#REF!","v":{"$error":"#REF!"}},{"$f":"#REF!","v":{"$error":"#REF!"}},{"$f":"#REF!","v":{"$error":"#REF!"}},{"$f":"#REF!","v":{"$error":"#REF!"}},{"$f":"#REF!","v":{"$error":"#REF!"}}]
[{"$f":"IF(LEN(CLEAN(B12))=0,\"0\",B12)&\",\"&IF(LEN(CLEAN(C12))=0,\"0\",C12)&\",\"&IF(LEN(CLEAN(D12))=0,\"0\",D12)&\",\"&IF(LEN(CLEAN(E12))=0,\"0\",E12)&\",\"&IF(LEN(CLEAN(F12))=0,\"0\",F12)&\",\"&IF(LEN(CLEAN(G12))=0,\"0\",G12)&\",\"&IF(LEN(CLEAN(H12))=0,\"0\",H12)","v":"2,1,2,0,0,0,0"},2,1,2,null,null,null,null,null,"Otros Pasivos",null,null,null,null,null,{"$f":"#REF!","v":{"$error":"#REF!"}},null,null,null,{"$f":"#REF!","v":{"$error":"#REF!"}}]
["2,1,3,0,0,0,0",2,1,3,null,null,null,null,null,"Total de la Deuda Pública y Otros Pasivos",null,null,null,null,null,{"$f":"#REF!","v":{"$error":"#REF!"}},{"$f":"#REF!","v":{"$error":"#REF!"}},{"$f":"#REF!","v":{"$error":"#REF!"}},{"$f":"#REF!","v":{"$error":"#REF!"}},{"$f":"#REF!","v":{"$error":"#REF!"}},{"$f":"#REF!","v":{"$error":"#REF!"}},{"$f":"#REF!","v":{"$error":"#REF!"}}]
["2,1,4,0,0,0,0",2,1,4,null,null,null,null,null,"Deuda Contingente",null,null,null,null,null,{"$f":"DEUDA_CONT_T1","v":{"$error":"#REF!"}},{"$f":"DEUDA_CONT_T2","v":{"$error":"#REF!"}},{"$f":"DEUDA_CONT_T3","v":{"$error":"#REF!"}},{"$f":"DEUDA_CONT_T4","v":{"$error":"#REF!"}},{"$f":"DEUDA_CONT_T4","v":{"$error":"#REF!"}},{"$f":"DEUDA_CONT_T6","v":{"$error":"#REF!"}},{"$f":"DEUDA_CONT_T7","v":{"$error":"#REF!"}}]
[{"$f":"IF(LEN(CLEAN(B15))=0,\"0\",B15)&\",\"&IF(LEN(CLEAN(C15))=0,\"0\",C15)&\",\"&IF(LEN(CLEAN(D15))=0,\"0\",D15)&\",\"&IF(LEN(CLEAN(E15))=0,\"0\",E15)&\",\"&IF(LEN(CLEAN(F15))=0,\"0\",F15)&\",\"&IF(LEN(CLEAN(G15))=0,\"0\",G15)&\",\"&IF(LEN(CLEAN(H15))=0,\"0\",H15)","v":"2,1,5,0,0,0,0"},2,1,5,null,null,null,null,null,"Valor de Instrumentos Bono Cupón Cero",null,null,null,null,null,{"$f":"VALOR_INS_BCC_T1","v":{"$error":"#REF!"}},{"$f":"VALOR_INS_BCC_T2","v":{"$error":"#REF!"}},{"$f":"VALOR_INS_BCC_T3","v":{"$error":"#REF!"}},{"$f":"VALOR_INS_BCC_T4","v":{"$error":"#REF!"}},{"$f":"VALOR_INS_BCC_T5","v":{"$error":"#REF!"}},{"$f":"VALOR_INS_BCC_T6","v":{"$error":"#REF!"}},{"$f":"VALOR_INS_BCC_T7","v":{"$error":"#REF!"}}]
[{"$f":"IF(LEN(CLEAN(B16))=0,\"0\",B16)&\",\"&IF(LEN(CLEAN(C16))=0,\"0\",C16)&\",\"&IF(LEN(CLEAN(D16))=0,\"0\",D16)&\",\"&IF(LEN(CLEAN(E16))=0,\"0\",E16)&\",\"&IF(LEN(CLEAN(F16))=0,\"0\",F16)&\",\"&IF(LEN(CLEAN(G16))=0,\"0\",G16)&\",\"&IF(LEN(CLEAN(H16))=0,\"0\",H16)","v":"2,2,0,0,0,0,0"},2,2,null,null,null,null,null,"Obligaciones a Corto Plazo",null,null,null,null,null,null,"MONTO","PLAZO","TASA_INTERES","COMISIONES","TASA_EFECTIVA"]
["2,2,1,0,0,0,0",2,2,1,null,null,null,null,null,"Obligaciones a Corto Plazo",null,null,null,null,null,{"$f":"OB_CORTO_PLAZO_T1","v":{"$error":"#REF!"}},{"$f":"OB_CORTO_PLAZO_T2","v":{"$error":"#REF!"}},{"$f":"OB_CORTO_PLAZO_T3","v":{"$error":"#REF!"}},{"$f":"OB_CORTO_PLAZO_T4","v":{"$error":"#REF!"}},{"$f":"OB_CORTO_PLAZO_T5","v":{"$error":"#REF!"}}]

{"sheet":"F03","index":5,"n_rows":5,"n_cols":25,"rows_kept":5,"cut":false,"hidden":true,"merged":[]}
["CLAVE","N1","N2","N3","N4","N5","N6","N7","C  O  N  C  E  P  T  O  S",null,null,null,null,null,null,"FECHA_CONTRATO","FECHA_INICIO","FECHA_VENCIMIENTO","MONTO_INVERSION","PLAZO","MONTO_PROMEDIO","MONTO_PROMEDIO_INV","MONTO_PAGADO","MONTO_PAGADO_ACTUALIZADO","SALDO_PENDIENTE"]
[{"$f":"IF(LEN(CLEAN(B2))=0,\"0\",B2)&\",\"&IF(LEN(CLEAN(C2))=0,\"0\",C2)&\",\"&IF(LEN(CLEAN(D2))=0,\"0\",D2)&\",\"&IF(LEN(CLEAN(E2))=0,\"0\",E2)&\",\"&IF(LEN(CLEAN(F2))=0,\"0\",F2)&\",\"&IF(LEN(CLEAN(G2))=0,\"0\",G2)&\",\"&IF(LEN(CLEAN(H2))=0,\"0\",H2)","v":"3,1,0,0,0,0,0"},3,1,null,null,null,null,null,"Denominación de las Obligaciones Diferentes de Financiamiento",null,null,null,null,null,null," "," "]
[{"$f":"IF(LEN(CLEAN(B3))=0,\"0\",B3)&\",\"&IF(LEN(CLEAN(C3))=0,\"0\",C3)&\",\"&IF(LEN(CLEAN(D3))=0,\"0\",D3)&\",\"&IF(LEN(CLEAN(E3))=0,\"0\",E3)&\",\"&IF(LEN(CLEAN(F3))=0,\"0\",F3)&\",\"&IF(LEN(CLEAN(G3))=0,\"0\",G3)&\",\"&IF(LEN(CLEAN(H3))=0,\"0\",H3)","v":"3,1,1,0,0,0,0"},3,1,1,null,null,null,null,null,"Asociaciones Público Privadas",null,null,null,null,null,null,null,null,{"$f":"APP_T4","v":{"$error":"#REF!"}},null,{"$f":"APP_T6","v":{"$error":"#REF!"}},{"$f":"APP_T7","v":{"$error":"#REF!"}},{"$f":"APP_T8","v":{"$error":"#REF!"}},{"$f":"APP_T9","v":{"$error":"#REF!"}},{"$f":"APP_T10","v":{"$error":"#REF!"}}]
["3,1,2,1,1,0,0",3,1,2,1,1,null,null,null,"Otros Instrumentos",null,null,null,null,null,null,null,null,{"$f":"OTROS_T4","v":{"$error":"#REF!"}},null,{"$f":"OTROS_T6","v":{"$error":"#REF!"}},{"$f":"OTROS_T7","v":{"$error":"#REF!"}},{"$f":"OTROS_T8","v":{"$error":"#REF!"}},{"$f":"OTROS_T9","v":{"$error":"#REF!"}},{"$f":"OTROS_T10","v":{"$error":"#REF!"}}]
["3,1,3,0,0,0,0",3,1,3,null,null,null,null,null,"Total de Obligaciones Diferentes de Financiamiento",null,null,null,null,null,null,null,null,{"$f":"TOTAL_ODF_T4","v":{"$error":"#REF!"}},null,{"$f":"TOTAL_ODF_T6","v":{"$error":"#REF!"}},{"$f":"TOTAL_ODF_T7","v":{"$error":"#REF!"}},{"$f":"TOTAL_ODF_T8","v":{"$error":"#REF!"}},{"$f":"TOTAL_ODF_T9","v":{"$error":"#REF!"}},{"$f":"TOTAL_ODF_T10","v":{"$error":"#REF!"}}]

{"sheet":"F04","index":6,"n_rows":39,"n_cols":18,"rows_kept":39,"cut":false,"hidden":true,"merged":[]}
["CLAVE","N1","N2","N3","N4","N5","N6","N7","C  O  N  C  E  P  T  O  S",null,null,null,null,null,null,"EST_APROB","DEVENGADO","RECAUDADO_PAGADO"]
[{"$f":"IF(LEN(CLEAN(B2))=0,\"0\",B2)&\",\"&IF(LEN(CLEAN(C2))=0,\"0\",C2)&\",\"&IF(LEN(CLEAN(D2))=0,\"0\",D2)&\",\"&IF(LEN(CLEAN(E2))=0,\"0\",E2)&\",\"&IF(LEN(CLEAN(F2))=0,\"0\",F2)&\",\"&IF(LEN(CLEAN(G2))=0,\"0\",G2)&\",\"&IF(LEN(CLEAN(H2))=0,\"0\",H2)","v":"4,1,0,0,0,0,0"},4,1,null,null,null,null,null,"Ingresos Totales",null,null,null,null,null,null,{"$f":"#REF!","v":{"$error":"#REF!"}},{"$f":"#REF!","v":{"$error":"#REF!"}},{"$f":"#REF!","v":{"$error":"#REF!"}}]
["4,1,1,0,0,0,0",4,1,1,null,null,null,null,null,"Ingresos de Libre Disposición",null,null,null,null,null,{"$f":"#REF!","v":{"$error":"#REF!"}},{"$f":"#REF!","v":{"$error":"#REF!"}},{"$f":"#REF!","v":{"$error":"#REF!"}}]
["4,1,2,0,0,0,0",4,1,2,null,null,null,null,null,"Transferencias Federales Etiquetadas",null,null,null,null,null,{"$f":"#REF!","v":{"$error":"#REF!"}},{"$f":"#REF!","v":{"$error":"#REF!"}},{"$f":"#REF!","v":{"$error":"#REF!"}}]
["4,1,3,0,0,0,0",4,1,3,null,null,null,null,null,"Financiamiento Neto",null,null,null,null,null,{"$f":"#REF!","v":{"$error":"#REF!"}},{"$f":"#REF!","v":{"$error":"#REF!"}},{"$f":"#REF!","v":{"$error":"#REF!"}}]
["4,2,0,0,0,0,0",4,2,null,null,null,null,null,"Egresos Presupuestarios",null,null,null,null,null,null,{"$f":"#REF!","v":{"$error":"#REF!"}},{"$f":"#REF!","v":{"$error":"#REF!"}},{"$f":"#REF!","v":{"$error":"#REF!"}}]
["4,2,1,0,0,0,0",4,2,1,null,null,null,null,null,"Gasto No Etiquetado",null,null,null,null,null,{"$f":"#REF!","v":{"$error":"#REF!"}},{"$f":"#REF!","v":{"$error":"#REF!"}},{"$f":"#REF!","v":{"$error":"#REF!"}}]
["4,2,2,0,0,0,0",4,2,2,null,null,null,null,null,"Gasto Etiquetado",null,null,null,null,null,{"$f":"#REF!","v":{"$error":"#REF!"}},{"$f":"#REF!","v":{"$error":"#REF!"}},{"$f":"#REF!","v":{"$error":"#REF!"}}]
["4,3,0,0,0,0,0",4,3,null,null,null,null,null,"Remanentes del Ejercicio Anterior",null,null,null,null,null,null,null,{"$f":"#REF!","v":{"$error":"#REF!"}},{"$f":"#REF!","v":{"$error":"#REF!"}}]
["4,3,1,0,0,0,0",4,3,1,null,null,null,null,null,"Remanentes de Ingresos de Libre Disposición aplicados en el periodo",null,null,null,null,null,null,{"$f":"#REF!","v":{"$error":"#REF!"}},{"$f":"#REF!","v":{"$error":"#REF!"}}]
["4,3,2,0,0,0,0",4,3,2,null,null,null,null,null,"Remanentes de Transferencias Federales Etiquetadas aplicados en el periodo",null,null,null,null,null,null,{"$f":"#REF!","v":{"$error":"#REF!"}},{"$f":"#REF!","v":{"$error":"#REF!"}}]
["4,4,0,0,0,0,0",4,4,null,null,null,null,null,"Balance Presupuestario",null,null,null,null,null,null,{"$f":"#REF!","v":{"$error":"#REF!"}},{"$f":"#REF!","v":{"$error":"#REF!"}},{"$f":"#REF!","v":{"$error":"#REF!"}}]
["4,5,0,0,0,0,0",4,5,null,null,null,null,null,"Balance Presupuestario sin Financiamiento Neto",null,null,null,null,null,null,{"$f":"#REF!","v":{"$error":"#REF!"}},{"$f":"#REF!","v":{"$error":"#REF!"}},{"$f":"#REF!","v":{"$error":"#REF!"}}]
["4,6,0,0,0,0,0",4,6,null,null,null,null,null,"Balance Presupuestario sin Financiamiento Neto y sin Remanentes del Ejercicio Anterior",null,null,null,null,null,null,{"$f":"#REF!","v":{"$error":"#REF!"}},{"$f":"#REF!","v":{"$error":"#REF!"}},{"$f":"#REF!","v":{"$error":"#REF!"}}]
["4,7,0,0,0,0,0",4,7,null,null,null,null,null,"Intereses, Comisiones y Gastos de la Deuda",null,null,null,null,null,null,{"$f":"#REF!","v":{"$error":"#REF!"}},{"$f":"#REF!","v":{"$error":"#REF!"}},{"$f":"#REF!","v":{"$error":"#REF!"}}]
["4,7,1,0,0,0,0",4,7,1,null,null,null,null,null,"Intereses, Comisiones y Gastos de la Deuda con Gasto No Etiquetado",null,null,null,null,null,{"$f":"#REF!","v":{"$error":"#REF!"}},{"$f":"#REF!","v":{"$error":"#REF!"}},{"$f":"#REF!","v":{"$error":"#REF!"}}]
["4,7,2,0,0,0,0",4,7,2,null,null,null,null,null,"Intereses, Comisiones y Gastos de la Deuda con Gasto Etiquetado",null,null,null,null,null,{"$f":"#REF!","v":{"$error":"#REF!"}},{"$f":"#REF!","v":{"$error":"#REF!"}},{"$f":"#REF!","v":{"$error":"#REF!"}}]
["4,8,0,0,0,0,0",4,8,null,null,null,null,null,"Balance Primario",null,null,null,null,null,null,{"$f":"#REF!","v":{"$error":"#REF!"}},{"$f":"#REF!","v":{"$error":"#REF!"}},{"$f":"#REF!","v":{"$error":"#REF!"}}]
["4,8,0,0,0,0,0",4,8,null,null,null,null,null,"Financiamiento",null,null,null,null,null,null,{"$f":"#REF!","v":{"$error":"#REF!"}},{"$f":"#REF!","v":{"$error":"#REF!"}},{"$f":"#REF!","v":{"$error":"#REF!"}}]
["4,8,1,0,0,0,0",4,8,1,null,null,null,null,null,"Financiamiento con Fuente de Pago de Ingresos de Libre Disposición",null,null,null,null,null,{"$f":"#REF!","v":{"$error":"#REF!"}},{"$f":"#REF!","v":{"$error":"#REF!"}},{"$f":"#REF!","v":{"$error":"#REF!"}}]
["4,8,2,0,0,0,0",4,8,2,null,null,null,null,null,"Financiamiento con Fuente de Pago de Transferencias Federales Etiquetadas",null,null,null,null,null,{"$f":"#REF!","v":{"$error":"#REF!"}},{"$f":"#REF!","v":{"$error":"#REF!"}},{"$f":"#REF!","v":{"$error":"#REF!"}}]
["4,9,0,0,0,0,0",4,9,null,null,null,null,null,"Amortización de la Deuda",null,null,null,null,null,null,{"$f":"#REF!","v":{"$error":"#REF!"}},{"$f":"#REF!","v":{"$error":"#REF!"}},{"$f":"#REF!","v":{"$error":"#REF!"}}]
["4,9,1,0,0,0,0",4,9,1,null,null,null,null,null,"G1. Amortización de la Deuda Pública con Gasto No Etiquetado",null,null,null,null,null,{"$f":"#REF!","v":{"$error":"#REF!"}},{"$f":"#REF!","v":{"$error":"#REF!"}},{"$f":"#REF!","v":{"$error":"#REF!"}}]
["4,9,2,0,0,0,0",4,9,2,null,null,null,null,null,"G2. Amortización de la Deuda Pública con Gasto Etiquetado",null,null,null,null,null,{"$f":"#REF!","v":{"$error":"#REF!"}},{"$f":"#REF!","v":{"$error":"#REF!"}},{"$f":"#REF!","v":{"$error":"#REF!"}}]
["4,10,0,0,0,0,0",4,10,null,null,null,null,null,"Financiamiento Neto",null,null,null,null,null,null,{"$f":"#REF!","v":{"$error":"#REF!"}},{"$f":"#REF!","v":{"$error":"#REF!"}},{"$f":"#REF!","v":{"$error":"#REF!"}}]
["4,11,0,0,0,0,0",4,11,null,null,null,null,null,"Ingresos de Libre Disposición",null,null,null,null,null,null,{"$f":"#REF!","v":{"$error":"#REF!"}},{"$f":"#REF!","v":{"$error":"#REF!"}},{"$f":"#REF!","v":{"$error":"#REF!"}}]
["4,11,1,0,0,0,0",4,11,1,null,null,null,null,null,"Financiamiento Neto con Fuente de Pago de Ingresos de Libre",null,null,null,null,null,{"$f":"#REF!","v":{"$error":"#REF!"}},{"$f":"#REF!","v":{"$error":"#REF!"}},{"$f":"#REF!","v":{"$error":"#REF!"}}]
["4,11,1,1,0,0,0",4,11,1,1,null,null,null,null,null,"Financiamiento con Fuente de Pago de Ingresos de Libre Disposición",null,null,null,null,{"$f":"#REF!","v":{"$error":"#REF!"}},{"$f":"#REF!","v":{"$error":"#REF!"}},{"$f":"#REF!","v":{"$error":"#REF!"}}]
["4,11,1,2,0,0,0",4,11,1,2,null,null,null,null,null,"Amortización de la Deuda Pública con Gasto No Etiquetado",null,null,null,null,{"$f":"#REF!","v":{"$error":"#REF!"}},{"$f":"#REF!","v":{"$error":"#REF!"}},{"$f":"#REF!","v":{"$error":"#REF!"}}]
["4,12,0,0,0,0,0",4,12,null,null,null,null,null,"Gasto No Etiquetado",null,null,null,null,null,null,{"$f":"#REF!","v":{"$error":"#REF!"}},{"$f":"#REF!","v":{"$error":"#REF!"}},{"$f":"#REF!","v":{"$error":"#REF!"}}]
["4,13,0,0,0,0,0",4,13,null,null,null,null,null,"Remanentes de Ingresos de Libre Disposición aplicados en el periodo",null,null,null,null,null,null,null,{"$f":"#REF!","v":{"$error":"#REF!"}},{"$f":"#REF!","v":{"$error":"#REF!"}}]
["4,14,0,0,0,0,0",4,14,null,null,null,null,null,"Transferencias Federales Etiquetadas",null,null,null,null,null,null,{"$f":"#REF!","v":{"$error":"#REF!"}},{"$f":"#REF!","v":{"$error":"#REF!"}},{"$f":"#REF!","v":{"$error":"#REF!"}}]
["4,14,1,0,0,0,0",4,14,1,null,null,null,null,null,"Financiamiento Neto con Fuente de Pago de Transferencias Federales Etiquetadas",null,null,null,null,null,{"$f":"#REF!","v":{"$error":"#REF!"}},{"$f":"#REF!","v":{"$error":"#REF!"}},{"$f":"#REF!","v":{"$error":"#REF!"}}]
["4,14,1,1,0,0,0",4,14,1,1,null,null,null,null,null,"Financiamiento con Fuente de Pago de Transferencias Federales",null,null,null,null,{"$f":"#REF!","v":{"$error":"#REF!"}},{"$f":"#REF!","v":{"$error":"#REF!"}},{"$f":"#REF!","v":{"$error":"#REF!"}}]
["4,14,1,2,0,0,0",4,14,1,2,null,null,null,null,null,"Amortización de la Deuda Pública con Gasto Etiquetado",null,null,null,null,{"$f":"#REF!","v":{"$error":"#REF!"}},{"$f":"#REF!","v":{"$error":"#REF!"}},{"$f":"#REF!","v":{"$error":"#REF!"}}]
["4,15,0,0,0,0,0",4,15,null,null,null,null,null,"Gasto Etiquetado",null,null,null,null,null,null,{"$f":"#REF!","v":{"$error":"#REF!"}},{"$f":"#REF!","v":{"$error":"#REF!"}},{"$f":"#REF!","v":{"$error":"#REF!"}}]
["4,16,0,0,0,0,0",4,16,null,null,null,null,null,"Remanentes de Transferencias Federales Etiquetadas aplicados en el periodo",null,null,null,null,null,null,null,{"$f":"#REF!","v":{"$error":"#REF!"}},{"$f":"#REF!","v":{"$error":"#REF!"}}]
["4,17,0,0,0,0,0",4,17,null,null,null,null,null,"Balance Presupuestario de Recursos Etiquetados",null,null,null,null,null,null,{"$f":"#REF!","v":{"$error":"#REF!"}},{"$f":"#REF!","v":{"$error":"#REF!"}},{"$f":"#REF!","v":{"$error":"#REF!"}}]
["4,18,0,0,0,0,0",4,18,null,null,null,null,null,"Balance Presupuestario de Recursos Etiquetados sin Financiamiento",null,null,null,null,null,null,{"$f":"#REF!","v":{"$error":"#REF!"}},{"$f":"#REF!","v":{"$error":"#REF!"}},{"$f":"#REF!","v":{"$error":"#REF!"}}]

{"sheet":"F05","index":7,"n_rows":62,"n_cols":21,"rows_kept":62,"cut":false,"hidden":true,"merged":[]}
["CLAVE","N1","N2","N3","N4","N5","N6","N7","C  O  N  C  E  P  T  O  S",null,null,null,null,null,null,"ESTIMADO","AMPLIACIONES","MODIFICADO","DEVENGADO","RECAUDADO","DIFERENCIA"]
[{"$f":"IF(LEN(CLEAN(B2))=0,\"0\",B2)&\",\"&IF(LEN(CLEAN(C2))=0,\"0\",C2)&\",\"&IF(LEN(CLEAN(D2))=0,\"0\",D2)&\",\"&IF(LEN(CLEAN(E2))=0,\"0\",E2)&\",\"&IF(LEN(CLEAN(F2))=0,\"0\",F2)&\",\"&IF(LEN(CLEAN(G2))=0,\"0\",G2)&\",\"&IF(LEN(CLEAN(H2))=0,\"0\",H2)","v":"5,1,0,0,0,0,0"},5,1,null,null,null,null,null,"Ingresos de Libre Disposición"]
["5,1,1,0,0,0,0",5,1,1,null,null,null,null,null,"Impuestos",null,null,null,null,null,{"$f":"#REF!","v":{"$error":"#REF!"}},{"$f":"#REF!","v":{"$error":"#REF!"}},{"$f":"#REF!","v":{"$error":"#REF!"}},{"$f":"#REF!","v":{"$error":"#REF!"}},{"$f":"#REF!","v":{"$error":"#REF!"}},{"$f":"#REF!","v":{"$error":"#REF!"}}]
["5,1,2,0,0,0,0",5,1,2,null,null,null,null,null,"Cuotas y Aportaciones de Seguridad Social",null,null,null,null,null,{"$f":"#REF!","v":{"$error":"#REF!"}},{"$f":"#REF!","v":{"$error":"#REF!"}},{"$f":"#REF!","v":{"$error":"#REF!"}},{"$f":"#REF!","v":{"$error":"#REF!"}},{"$f":"#REF!","v":{"$error":"#REF!"}},{"$f":"#REF!","v":{"$error":"#REF!"}}]
["5,1,3,0,0,0,0",5,1,3,null,null,null,null,null,"Contribuciones de Mejoras",null,null,null,null,null,{"$f":"#REF!","v":{"$error":"#REF!"}},{"$f":"#REF!","v":{"$error":"#REF!"}},{"$f":"#REF!","v":{"$error":"#REF!"}},{"$f":"#REF!","v":{"$error":"#REF!"}},{"$f":"#REF!","v":{"$error":"#REF!"}},{"$f":"#REF!","v":{"$error":"#REF!"}}]
["5,1,4,0,0,0,0",5,1,4,null,null,null,null,null,"Derechos",null,null,null,null,null,{"$f":"#REF!","v":{"$error":"#REF!"}},{"$f":"#REF!","v":{"$error":"#REF!"}},{"$f":"#REF!","v":{"$error":"#REF!"}},{"$f":"#REF!","v":{"$error":"#REF!"}},{"$f":"#REF!","v":{"$error":"#REF!"}},{"$f":"#REF!","v":{"$error":"#REF!"}}]
["5,1,5,0,0,0,0",5,1,5,null,null,null,null,null,"Productos",null,null,null,null,null,{"$f":"#REF!","v":{"$error":"#REF!"}},{"$f":"#REF!","v":{"$error":"#REF!"}},{"$f":"#REF!","v":{"$error":"#REF!"}},{"$f":"#REF!","v":{"$error":"#REF!"}},{"$f":"#REF!","v":{"$error":"#REF!"}},{"$f":"#REF!","v":{"$error":"#REF!"}}]
["5,1,6,0,0,0,0",5,1,6,null,null,null,null,null,"Aprovechamientos",null,null,null,null,null,{"$f":"#REF!","v":{"$error":"#REF!"}},{"$f":"#REF!","v":{"$error":"#REF!"}},{"$f":"#REF!","v":{"$error":"#REF!"}},{"$f":"#REF!","v":{"$error":"#REF!"}},{"$f":"#REF!","v":{"$error":"#REF!"}},{"$f":"#REF!","v":{"$error":"#REF!"}}]
["5,1,7,0,0,0,0",5,1,7,null,null,null,null,null,"Ingresos por Ventas de Bienes y Servicios",null,null,null,null,null,{"$f":"#REF!","v":{"$error":"#REF!"}},{"$f":"#REF!","v":{"$error":"#REF!"}},{"$f":"#REF!","v":{"$error":"#REF!"}},{"$f":"#REF!","v":{"$error":"#REF!"}},{"$f":"#REF!","v":{"$error":"#REF!"}},{"$f":"#REF!","v":{"$error":"#REF!"}}]
["5,1,8,0,0,0,0",5,1,8,null,null,null,null,null,"Participaciones",null,null,null,null,null,{"$f":"#REF!","v":{"$error":"#REF!"}},{"$f":"#REF!","v":{"$error":"#REF!"}},{"$f":"#REF!","v":{"$error":"#REF!"}},{"$f":"#REF!","v":{"$error":"#REF!"}},{"$f":"#REF!","v":{"$error":"#REF!"}},{"$f":"#REF!","v":{"$error":"#REF!"}}]
["5,1,8,1,0,0,0",5,1,8,1,null,null,null,null,null,"Fondo General de Participaciones ",null,null,null,null,{"$f":"#REF!","v":{"$error":"#REF!"}},{"$f":"#REF!","v":{"$error":"#REF!"}},{"$f":"#REF!","v":{"$error":"#REF!"}},{"$f":"#REF!","v":{"$error":"#REF!"}},{"$f":"#REF!","v":{"$error":"#REF!"}},{"$f":"#REF!","v":{"$error":"#REF!"}}]
["5,1,8,2,0,0,0",5,1,8,2,null,null,null,null,null,"Fondo de Fomento Municipal",null,null,null,null,{"$f":"#REF!","v":{"$error":"#REF!"}},{"$f":"#REF!","v":{"$error":"#REF!"}},{"$f":"#REF!","v":{"$error":"#REF!"}},{"$f":"#REF!","v":{"$error":"#REF!"}},{"$f":"#REF!","v":{"$error":"#REF!"}},{"$f":"#REF!","v":{"$error":"#REF!"}}]
["5,1,8,3,0,0,0",5,1,8,3,null,null,null,null,null,"Fondo de Fiscalización y Recaudación",null,null,null,null,{"$f":"#REF!","v":{"$error":"#REF!"}},{"$f":"#REF!","v":{"$error":"#REF!"}},{"$f":"#REF!","v":{"$error":"#REF!"}},{"$f":"#REF!","v":{"$error":"#REF!"}},{"$f":"#REF!","v":{"$error":"#REF!"}},{"$f":"#REF!","v":{"$error":"#REF!"}}]
["5,1,8,4,0,0,0",5,1,8,4,null,null,null,null,null,"Fondo de Compensación",null,null,null,null,{"$f":"#REF!","v":{"$error":"#REF!"}},{"$f":"#REF!","v":{"$error":"#REF!"}},{"$f":"#REF!","v":{"$error":"#REF!"}},{"$f":"#REF!","v":{"$error":"#REF!"}},{"$f":"#REF!","v":{"$error":"#REF!"}},{"$f":"#REF!","v":{"$error":"#REF!"}}]
["5,1,8,5,0,0,0",5,1,8,5,null,null,null,null,null,"Fondo de Extracción de Hidrocarburos",null,null,null,null,{"$f":"#REF!","v":{"$error":"#REF!"}},{"$f":"#REF!","v":{"$error":"#REF!"}},{"$f":"#REF!","v":{"$error":"#REF!"}},{"$f":"#REF!","v":{"$error":"#REF!"}},{"$f":"#REF!","v":{"$error":"#REF!"}},{"$f":"#REF!","v":{"$error":"#REF!"}}]
["5,1,8,6,0,0,0",5,1,8,6,null,null,null,null,null,"Impuesto Especial Sobre Producción y Servicios",null,null,null,null,{"$f":"#REF!","v":{"$error":"#REF!"}},{"$f":"#REF!","v":{"$error":"#REF!"}},{"$f":"#REF!","v":{"$error":"#REF!"}},{"$f":"#REF!","v":{"$error":"#REF!"}},{"$f":"#REF!","v":{"$error":"#REF!"}},{"$f":"#REF!","v":{"$error":"#REF!"}}]
["5,1,8,7,0,0,0",5,1,8,7,null,null,null,null,null,"0.136% de la Recaudación Federal Participable",null,null,null,null,{"$f":"#REF!","v":{"$error":"#REF!"}},{"$f":"#REF!","v":{"$error":"#REF!"}},{"$f":"#REF!","v":{"$error":"#REF!"}},{"$f":"#REF!","v":{"$error":"#REF!"}},{"$f":"#REF!","v":{"$error":"#REF!"}},{"$f":"#REF!","v":{"$error":"#REF!"}}]
["5,1,8,8,0,0,0",5,1,8,8,null,null,null,null,null,"3.17% Sobre Extracción de Petróleo",null,null,null,null,{"$f":"#REF!","v":{"$error":"#REF!"}},{"$f":"#REF!","v":{"$error":"#REF!"}},{"$f":"#REF!","v":{"$error":"#REF!"}},{"$f":"#REF!","v":{"$error":"#REF!"}},{"$f":"#REF!","v":{"$error":"#REF!"}},{"$f":"#REF!","v":{"$error":"#REF!"}}]
["5,1,8,9,0,0,0",5,1,8,9,null,null,null,null,null,"Gasolinas y Diésel",null,null,null,null,{"$f":"#REF!","v":{"$error":"#REF!"}},{"$f":"#REF!","v":{"$error":"#REF!"}},{"$f":"#REF!","v":{"$error":"#REF!"}},{"$f":"#REF!","v":{"$error":"#REF!"}},{"$f":"#REF!","v":{"$error":"#REF!"}},{"$f":"#REF!","v":{"$error":"#REF!"}}]
["5,1,8,10,0,0,0",5,1,8,10,null,null,null,null,null,"Fondo del Impuesto Sobre la Renta",null,null,null,null,{"$f":"#REF!","v":{"$error":"#REF!"}},{"$f":"#REF!","v":{"$error":"#REF!"}},{"$f":"#REF!","v":{"$error":"#REF!"}},{"$f":"#REF!","v":{"$error":"#REF!"}},{"$f":"#REF!","v":{"$error":"#REF!"}},{"$f":"#REF!","v":{"$error":"#REF!"}}]
["5,1,8,11,0,0,0",5,1,8,11,null,null,null,null,null,"Fondo de Estabilización de los Ingresos de las Entidades Federativas",null,null,null,null,{"$f":"#REF!","v":{"$error":"#REF!"}},{"$f":"#REF!","v":{"$error":"#REF!"}},{"$f":"#REF!","v":{"$error":"#REF!"}},{"$f":"#REF!","v":{"$error":"#REF!"}},{"$f":"#REF!","v":{"$error":"#REF!"}},{"$f":"#REF!","v":{"$error":"#REF!"}}]
["5,1,9,0,0,0,0",5,1,9,null,null,null,null,null,"Incentivos Derivados de la Colaboración Fiscal",null,null,null,null,null,{"$f":"#REF!","v":{"$error":"#REF!"}},{"$f":"#REF!","v":{"$error":"#REF!"}},{"$f":"#REF!","v":{"$error":"#REF!"}},{"$f":"#REF!","v":{"$error":"#REF!"}},{"$f":"#REF!","v":{"$error":"#REF!"}},{"$f":"#REF!","v":{"$error":"#REF!"}}]
["5,1,9,1,0,0,0",5,1,9,1,null,null,null,null,null,"Tenencia o Uso de Vehículos",null,null,null,null,{"$f":"#REF!","v":{"$error":"#REF!"}},{"$f":"#REF!","v":{"$error":"#REF!"}},{"$f":"#REF!","v":{"$error":"#REF!"}},{"$f":"#REF!","v":{"$error":"#REF!"}},{"$f":"#REF!","v":{"$error":"#REF!"}},{"$f":"#REF!","v":{"$error":"#REF!"}}]
["5,1,9,2,0,0,0",5,1,9,2,null,null,null,null,null,"Fondo de Compensación ISAN",null,null,null,null,{"$f":"#REF!","v":{"$error":"#REF!"}},{"$f":"#REF!","v":{"$error":"#REF!"}},{"$f":"#REF!","v":{"$error":"#REF!"}},{"$f":"#REF!","v":{"$error":"#REF!"}},{"$f":"#REF!","v":{"$error":"#REF!"}},{"$f":"#REF!","v":{"$error":"#REF!"}}]
["5,1,9,3,0,0,0",5,1,9,3,null,null,null,null,null,"Impuesto Sobre Automóviles Nuevos",null,null,null,null,{"$f":"#REF!","v":{"$error":"#REF!"}},{"$f":"#REF!","v":{"$error":"#REF!"}},{"$f":"#REF!","v":{"$error":"#REF!"}},{"$f":"#REF!","v":{"$error":"#REF!"}},{"$f":"#REF!","v":{"$error":"#REF!"}},{"$f":"#REF!","v":{"$error":"#REF!"}}]
["5,1,9,4,0,0,0",5,1,9,4,null,null,null,null,null,"Fondo de Compensación de Repecos-Intermedios",null,null,null,null,{"$f":"#REF!","v":{"$error":"#REF!"}},{"$f":"#REF!","v":{"$error":"#REF!"}},{"$f":"#REF!","v":{"$error":"#REF!"}},{"$f":"#REF!","v":{"$error":"#REF!"}},{"$f":"#REF!","v":{"$error":"#REF!"}},{"$f":"#REF!","v":{"$error":"#REF!"}}]
["5,1,9,5,0,0,0",5,1,9,5,null,null,null,null,null,"Otros Incentivos Económicos",null,null,null,null,{"$f":"#REF!","v":{"$error":"#REF!"}},{"$f":"#REF!","v":{"$error":"#REF!"}},{"$f":"#REF!","v":{"$error":"#REF!"}},{"$f":"#REF!","v":{"$error":"#REF!"}},{"$f":"#REF!","v":{"$error":"#REF!"}},{"$f":"#REF!","v":{"$error":"#REF!"}}]
["5,1,10,0,0,0,0",5,1,10,null,null,null,null,null,"Transferencias",null,null,null,null,null,{"$f":"#REF!","v":{"$error":"#REF!"}},{"$f":"#REF!","v":{"$error":"#REF!"}},{"$f":"#REF!","v":{"$error":"#REF!"}},{"$f":"#REF!","v":{"$error":"#REF!"}},{"$f":"#REF!","v":{"$error":"#REF!"}},{"$f":"#REF!","v":{"$error":"#REF!"}}]
["5,1,11,0,0,0,0",5,1,11,null,null,null,null,null,"Convenios",null,null,null,null,null,{"$f":"#REF!","v":{"$error":"#REF!"}},{"$f":"#REF!","v":{"$error":"#REF!"}},{"$f":"#REF!","v":{"$error":"#REF!"}},{"$f":"#REF!","v":{"$error":"#REF!"}},{"$f":"#REF!","v":{"$error":"#REF!"}},{"$f":"#REF!","v":{"$error":"#REF!"}}]
["5,1,11,1,0,0,0",5,1,11,1,null,null,null,null,null,"Otros Convenios y Subsidios",null,null,null,null,{"$f":"#REF!","v":{"$error":"#REF!"}},{"$f":"#REF!","v":{"$error":"#REF!"}},{"$f":"#REF!","v":{"$error":"#REF!"}},{"$f":"#REF!","v":{"$error":"#REF!"}},{"$f":"#REF!","v":{"$error":"#REF!"}},{"$f":"#REF!","v":{"$error":"#REF!"}}]
["5,1,12,0,0,0,0",5,1,12,null,null,null,null,null,"Otros Ingresos de Libre Disposición (L=l1+l2)",null,null,null,null,null,{"$f":"#REF!","v":{"$error":"#REF!"}},{"$f":"#REF!","v":{"$error":"#REF!"}},{"$f":"#REF!","v":{"$error":"#REF!"}},{"$f":"#REF!","v":{"$error":"#REF!"}},{"$f":"#REF!","v":{"$error":"#REF!"}},{"$f":"#REF!","v":{"$error":"#REF!"}}]
["5,1,12,1,0,0,0",5,1,12,1,null,null,null,null,null,"Participaciones en Ingresos Locales ",null,null,null,null,{"$f":"#REF!","v":{"$error":"#REF!"}},{"$f":"#REF!","v":{"$error":"#REF!"}},{"$f":"#REF!","v":{"$error":"#REF!"}},{"$f":"#REF!","v":{"$error":"#REF!"}},{"$f":"#REF!","v":{"$error":"#REF!"}},{"$f":"#REF!","v":{"$error":"#REF!"}}]
["5,1,12,2,0,0,0",5,1,12,2,null,null,null,null,null,"Otros Ingresos de Libre Disposición",null,null,null,null,{"$f":"#REF!","v":{"$error":"#REF!"}},{"$f":"#REF!","v":{"$error":"#REF!"}},{"$f":"#REF!","v":{"$error":"#REF!"}},{"$f":"#REF!","v":{"$error":"#REF!"}},{"$f":"#REF!","v":{"$error":"#REF!"}},{"$f":"#REF!","v":{"$error":"#REF!"}}]
["5,2,0,0,0,0,0",5,2,null,null,null,null,null,"Total de Ingresos de Libre Disposición",null,null,null,null,null,null,{"$f":"#REF!","v":{"$error":"#REF!"}},{"$f":"#REF!","v":{"$error":"#REF!"}},{"$f":"#REF!","v":{"$error":"#REF!"}},{"$f":"#REF!","v":{"$error":"#REF!"}},{"$f":"#REF!","v":{"$error":"#REF!"}},{"$f":"#REF!","v":{"$error":"#REF!"}}]
["5,3,0,0,0,0,0",5,3,null,null,null,null,null,"Ingresos Excedentes de Ingresos de Libre Disposición",null,null,null,null,null,null,null,null,null,null,null,{"$f":"#REF!","v":{"$error":"#REF!"}}]
["5,4,0,0,0,0,0",5,4,null,null,null,null,null,"Transferencias Federales Etiquetadas "]
["5,4,1,0,0,0,0",5,4,1,null,null,null,null,null,"Aportaciones",null,null,null,null,null,{"$f":"#REF!","v":{"$error":"#REF!"}},{"$f":"#REF!","v":{"$error":"#REF!"}},{"$f":"#REF!","v":{"$error":"#REF!"}},{"$f":"#REF!","v":{"$error":"#REF!"}},{"$f":"#REF!","v":{"$error":"#REF!"}},{"$f":"#REF!","v":{"$error":"#REF!"}}]
["5,4,1,1,0,0,0",5,4,1,1,null,null,null,null,null,"Fondo de Aportaciones para la Nómina Educativa y Gasto Operativo",null,null,null,null,{"$f":"#REF!","v":{"$error":"#REF!"}},{"$f":"#REF!","v":{"$error":"#REF!"}},{"$f":"#REF!","v":{"$error":"#REF!"}},{"$f":"#REF!","v":{"$error":"#REF!"}},{"$f":"#REF!","v":{"$error":"#REF!"}},{"$f":"#REF!","v":{"$error":"#REF!"}}]
["5,4,1,2,0,0,0",5,4,1,2,null,null,null,null,null,"Fondo de Aportaciones para los Servicios de Salud",null,null,null,null,{"$f":"#REF!","v":{"$error":"#REF!"}},{"$f":"#REF!","v":{"$error":"#REF!"}},{"$f":"#REF!","v":{"$error":"#REF!"}},{"$f":"#REF!","v":{"$error":"#REF!"}},{"$f":"#REF!","v":{"$error":"#REF!"}},{"$f":"#REF!","v":{"$error":"#REF!"}}]
["5,4,1,3,0,0,0",5,4,1,3,null,null,null,null,null,"Fondo de Aportaciones para la Infraestructura Social",null,null,null,null,{"$f":"#REF!","v":{"$error":"#REF!"}},{"$f":"#REF!","v":{"$error":"#REF!"}},{"$f":"#REF!","v":{"$error":"#REF!"}},{"$f":"#REF!","v":{"$error":"#REF!"}},{"$f":"#REF!","v":{"$error":"#REF!"}},{"$f":"#REF!","v":{"$error":"#REF!"}}]
["5,4,1,4,0,0,0",5,4,1,4,null,null,null,null,null,"Fondo de Aportaciones para el Fortalecimiento de los Municipios y de las Demarcaciones Territoriales del Distrito Federal",null,null,null,null,{"$f":"#REF!","v":{"$error":"#REF!"}},{"$f":"#REF!","v":{"$error":"#REF!"}},{"$f":"#REF!","v":{"$error":"#REF!"}},{"$f":"#REF!","v":{"$error":"#REF!"}},{"$f":"#REF!","v":{"$error":"#REF!"}},{"$f":"#REF!","v":{"$error":"#REF!"}}]
["5,4,1,5,0,0,0",5,4,1,5,null,null,null,null,null,"Fondo de Aportaciones Múltiples",null,null,null,null,{"$f":"#REF!","v":{"$error":"#REF!"}},{"$f":"#REF!","v":{"$error":"#REF!"}},{"$f":"#REF!","v":{"$error":"#REF!"}},{"$f":"#REF!","v":{"$error":"#REF!"}},{"$f":"#REF!","v":{"$error":"#REF!"}},{"$f":"#REF!","v":{"$error":"#REF!"}}]
["5,4,1,6,0,0,0",5,4,1,6,null,null,null,null,null,"Fondo de Aportaciones para la Educación Tecnológica y de Adultos",null,null,null,null,{"$f":"#REF!","v":{"$error":"#REF!"}},{"$f":"#REF!","v":{"$error":"#REF!"}},{"$f":"#REF!","v":{"$error":"#REF!"}},{"$f":"#REF!","v":{"$error":"#REF!"}},{"$f":"#REF!","v":{"$error":"#REF!"}},{"$f":"#REF!","v":{"$error":"#REF!"}}]
["5,4,1,7,0,0,0",5,4,1,7,null,null,null,null,null,"Fondo de Aportaciones para la Seguridad Pública de los Estados y del Distrito Federal",null,null,null,null,{"$f":"#REF!","v":{"$error":"#REF!"}},{"$f":"#REF!","v":{"$error":"#REF!"}},{"$f":"#REF!","v":{"$error":"#REF!"}},{"$f":"#REF!","v":{"$error":"#REF!"}},{"$f":"#REF!","v":{"$error":"#REF!"}},{"$f":"#REF!","v":{"$error":"#REF!"}}]
["5,4,1,8,0,0,0",5,4,1,8,null,null,null,null,null,"Fondo de Aportaciones para el Fortalecimiento de las Entidades Federativas",null,null,null,null,{"$f":"#REF!","v":{"$error":"#REF!"}},{"$f":"#REF!","v":{"$error":"#REF!"}},{"$f":"#REF!","v":{"$error":"#REF!"}},{"$f":"#REF!","v":{"$error":"#REF!"}},{"$f":"#REF!","v":{"$error":"#REF!"}},{"$f":"#REF!","v":{"$error":"#REF!"}}]
["5,4,2,0,0,0,0",5,4,2,null,null,null,null,null,"Convenios",null,null,null,null,null,{"$f":"#REF!","v":{"$error":"#REF!"}},{"$f":"#REF!","v":{"$error":"#REF!"}},{"$f":"#REF!","v":{"$error":"#REF!"}},{"$f":"#REF!","v":{"$error":"#REF!"}},{"$f":"#REF!","v":{"$error":"#REF!"}},{"$f":"#REF!","v":{"$error":"#REF!"}}]
["5,4,2,1,0,0,0",5,4,2,1,null,null,null,null,null,"Convenios de Protección Social en Salud",null,null,null,null,{"$f":"#REF!","v":{"$error":"#REF!"}},{"$f":"#REF!","v":{"$error":"#REF!"}},{"$f":"#REF!","v":{"$error":"#REF!"}},{"$f":"#REF!","v":{"$error":"#REF!"}},{"$f":"#REF!","v":{"$error":"#REF!"}},{"$f":"#REF!","v":{"$error":"#REF!"}}]
["5,4,2,2,0,0,0",5,4,2,2,null,null,null,null,null,"Convenios de Descentralización",null,null,null,null,{"$f":"#REF!","v":{"$error":"#REF!"}},{"$f":"#REF!","v":{"$error":"#REF!"}},{"$f":"#REF!","v":{"$error":"#REF!"}},{"$f":"#REF!","v":{"$error":"#REF!"}},{"$f":"#REF!","v":{"$error":"#REF!"}},{"$f":"#REF!","v":{"$error":"#REF!"}}]
["5,4,2,3,0,0,0",5,4,2,3,null,null,null,null,null,"Convenios de Reasignación",null,null,null,null,{"$f":"#REF!","v":{"$error":"#REF!"}},{"$f":"#REF!","v":{"$error":"#REF!"}},{"$f":"#REF!","v":{"$error":"#REF!"}},{"$f":"#REF!","v":{"$error":"#REF!"}},{"$f":"#REF!","v":{"$error":"#REF!"}},{"$f":"#REF!","v":{"$error":"#REF!"}}]
["5,4,2,4,0,0,0",5,4,2,4,null,null,null,null,null,"Otros Convenios y Subsidios",null,null,null,null,{"$f":"#REF!","v":{"$error":"#REF!"}},{"$f":"#REF!","v":{"$error":"#REF!"}},{"$f":"#REF!","v":{"$error":"#REF!"}},{"$f":"#REF!","v":{"$error":"#REF!"}},{"$f":"#REF!","v":{"$error":"#REF!"}},{"$f":"#REF!","v":{"$error":"#REF!"}}]
["5,4,3,0,0,0,0",5,4,3,null,null,null,null,null,"Fondos Distintos de Aportaciones",null,null,null,null,null,{"$f":"#REF!","v":{"$error":"#REF!"}},{"$f":"#REF!","v":{"$error":"#REF!"}},{"$f":"#REF!","v":{"$error":"#REF!"}},{"$f":"#REF!","v":{"$error":"#REF!"}},{"$f":"#REF!","v":{"$error":"#REF!"}},{"$f":"#REF!","v":{"$error":"#REF!"}}]
["5,4,3,1,0,0,0",5,4,3,1,null,null,null,null,null,"Fondo para Entidades Federativas y Municipios Productores de Hidrocarburos",null,null,null,null,{"$f":"#REF!","v":{"$error":"#REF!"}},{"$f":"#REF!","v":{"$error":"#REF!"}},{"$f":"#REF!","v":{"$error":"#REF!"}},{"$f":"#REF!","v":{"$error":"#REF!"}},{"$f":"#REF!","v":{"$error":"#REF!"}},{"$f":"#REF!","v":{"$error":"#REF!"}}]
["5,4,3,2,0,0,0",5,4,3,2,null,null,null,null,null,"Fondo Minero",null,null,null,null,{"$f":"#REF!","v":{"$error":"#REF!"}},{"$f":"#REF!","v":{"$error":"#REF!"}},{"$f":"#REF!","v":{"$error":"#REF!"}},{"$f":"#REF!","v":{"$error":"#REF!"}},{"$f":"#REF!","v":{"$error":"#REF!"}},{"$f":"#REF!","v":{"$error":"#REF!"}}]
["5,4,4,0,0,0,0",5,4,4,null,null,null,null,null,"Transferencias, Subsidios y Subvenciones, y Pensiones y Jubilaciones",null,null,null,null,null,{"$f":"#REF!","v":{"$error":"#REF!"}},{"$f":"#REF!","v":{"$error":"#REF!"}},{"$f":"#REF!","v":{"$error":"#REF!"}},{"$f":"#REF!","v":{"$error":"#REF!"}},{"$f":"#REF!","v":{"$error":"#REF!"}},{"$f":"#REF!","v":{"$error":"#REF!"}}]
["5,4,5,0,0,0,0",5,4,5,null,null,null,null,null,"Otras Transferencias Federales Etiquetadas",null,null,null,null,null,{"$f":"#REF!","v":{"$error":"#REF!"}},{"$f":"#REF!","v":{"$error":"#REF!"}},{"$f":"#REF!","v":{"$error":"#REF!"}},{"$f":"#REF!","v":{"$error":"#REF!"}},{"$f":"#REF!","v":{"$error":"#REF!"}},{"$f":"#REF!","v":{"$error":"#REF!"}}]
["5,5,0,0,0,0,0",5,5,null,null,null,null,null,"Total de Transferencias Federales Etiquetadas",null,null,null,null,null,null,{"$f":"#REF!","v":{"$error":"#REF!"}},{"$f":"#REF!","v":{"$error":"#REF!"}},{"$f":"#REF!","v":{"$error":"#REF!"}},{"$f":"#REF!","v":{"$error":"#REF!"}},{"$f":"#REF!","v":{"$error":"#REF!"}},{"$f":"#REF!","v":{"$error":"#REF!"}}]
["5,6,0,0,0,0,0",5,6,null,null,null,null,null,"Ingresos Derivados de Financiamientos",null,null,null,null,null,null,{"$f":"#REF!","v":{"$error":"#REF!"}},{"$f":"#REF!","v":{"$error":"#REF!"}},{"$f":"#REF!","v":{"$error":"#REF!"}},{"$f":"#REF!","v":{"$error":"#REF!"}},{"$f":"#REF!","v":{"$error":"#REF!"}},{"$f":"#REF!","v":{"$error":"#REF!"}}]
["5,6,1,0,0,0,0",5,6,1,null,null,null,null,null,"Ingresos Derivados de Financiamientos",null,null,null,null,null,{"$f":"#REF!","v":{"$error":"#REF!"}},{"$f":"#REF!","v":{"$error":"#REF!"}},{"$f":"#REF!","v":{"$error":"#REF!"}},{"$f":"#REF!","v":{"$error":"#REF!"}},{"$f":"#REF!","v":{"$error":"#REF!"}},{"$f":"#REF!","v":{"$error":"#REF!"}}]
["5,7,0,0,0,0,0",5,7,null,null,null,null,null,"Datos Informativos"]
["5,7,1,0,0,0,0",5,7,1,null,null,null,null,null,"Ingresos Derivados de Financiamientos con Fuente de Pago de Ingresos de Libre Disposición",null,null,null,null,null,{"$f":"#REF!","v":{"$error":"#REF!"}},{"$f":"#REF!","v":{"$error":"#REF!"}},{"$f":"#REF!","v":{"$error":"#REF!"}},{"$f":"#REF!","v":{"$error":"#REF!"}},{"$f":"#REF!","v":{"$error":"#REF!"}},{"$f":"#REF!","v":{"$error":"#REF!"}}]
["5,7,2,0,0,0,0",5,7,2,null,null,null,null,null,"Ingresos Derivados de Financiamientos con Fuente de Pago de Transferencias Federales Etiquetadas",null,null,null,null,null,{"$f":"#REF!","v":{"$error":"#REF!"}},{"$f":"#REF!","v":{"$error":"#REF!"}},{"$f":"#REF!","v":{"$error":"#REF!"}},{"$f":"#REF!","v":{"$error":"#REF!"}},{"$f":"#REF!","v":{"$error":"#REF!"}},{"$f":"#REF!","v":{"$error":"#REF!"}}]
["5,7,3,0,0,0,0",5,7,3,null,null,null,null,null,"Ingresos Derivados de Financiamientos",null,null,null,null,null,{"$f":"#REF!","v":{"$error":"#REF!"}},{"$f":"#REF!","v":{"$error":"#REF!"}},{"$f":"#REF!","v":{"$error":"#REF!"}},{"$f":"#REF!","v":{"$error":"#REF!"}},{"$f":"#REF!","v":{"$error":"#REF!"}},{"$f":"#REF!","v":{"$error":"#REF!"}}]

{"sheet":"F06a","index":8,"n_rows":150,"n_cols":21,"rows_kept":150,"cut":false,"hidden":true,"merged":[]}
["CLAVE","N1","N2","N3","N4","N5","N6","N7","C  O  N  C  E  P  T  O  S",null,null,null,null,null,null,"APROBADO","AMPLIACIONES","MODIFICADO","DEVENGADO","PAGADO","SUBEJERCICIO"]
[{"$f":"IF(LEN(CLEAN(B2))=0,\"0\",B2)&\",\"&IF(LEN(CLEAN(C2))=0,\"0\",C2)&\",\"&IF(LEN(CLEAN(D2))=0,\"0\",D2)&\",\"&IF(LEN(CLEAN(E2))=0,\"0\",E2)&\",\"&IF(LEN(CLEAN(F2))=0,\"0\",F2)&\",\"&IF(LEN(CLEAN(G2))=0,\"0\",G2)&\",\"&IF(LEN(CLEAN(H2))=0,\"0\",H2)","v":"6,1,1,0,0,0,0"},6,1,1,null,null,null,null,"Gasto No Etiquetado",null,null,null,null,null,null,{"$f":"#REF!","v":{"$error":"#REF!"}},{"$f":"#REF!","v":{"$error":"#REF!"}},{"$f":"#REF!","v":{"$error":"#REF!"}},{"$f":"#REF!","v":{"$error":"#REF!"}},{"$f":"#REF!","v":{"$error":"#REF!"}},{"$f":"#REF!","v":{"$error":"#REF!"}}]
[{"$f":"IF(LEN(CLEAN(B3))=0,\"0\",B3)&\",\"&IF(LEN(CLEAN(C3))=0,\"0\",C3)&\",\"&IF(LEN(CLEAN(D3))=0,\"0\",D3)&\",\"&IF(LEN(CLEAN(E3))=0,\"0\",E3)&\",\"&IF(LEN(CLEAN(F3))=0,\"0\",F3)&\",\"&IF(LEN(CLEAN(G3))=0,\"0\",G3)&\",\"&IF(LEN(CLEAN(H3))=0,\"0\",H3)","v":"6,1,1,1,0,0,0"},6,1,1,1,null,null,null,null,"Servicios Personales",null,null,null,null,null,{"$f":"#REF!","v":{"$error":"#REF!"}},{"$f":"#REF!","v":{"$error":"#REF!"}},{"$f":"#REF!","v":{"$error":"#REF!"}},{"$f":"#REF!","v":{"$error":"#REF!"}},{"$f":"#REF!","v":{"$error":"#REF!"}},{"$f":"#REF!","v":{"$error":"#REF!"}}]
["6,1,1,1,1,0,0",6,1,1,1,1,null,null,null,null,"Remuneraciones al Personal de Carácter Permanente",null,null,null,null,{"$f":"#REF!","v":{"$error":"#REF!"}},{"$f":"#REF!","v":{"$error":"#REF!"}},{"$f":"#REF!","v":{"$error":"#REF!"}},{"$f":"#REF!","v":{"$error":"#REF!"}},{"$f":"#REF!","v":{"$error":"#REF!"}},{"$f":"#REF!","v":{"$error":"#REF!"}}]
["6,1,1,1,2,0,0",6,1,1,1,2,null,null,null,null,"Remuneraciones al Personal de Carácter Transitorio",null,null,null,null,{"$f":"#REF!","v":{"$error":"#REF!"}},{"$f":"#REF!","v":{"$error":"#REF!"}},{"$f":"#REF!","v":{"$error":"#REF!"}},{"$f":"#REF!","v":{"$error":"#REF!"}},{"$f":"#REF!","v":{"$error":"#REF!"}},{"$f":"#REF!","v":{"$error":"#REF!"}}]
["6,1,1,1,3,0,0",6,1,1,1,3,null,null,null,null,"Remuneraciones Adicionales y Especiales",null,null,null,null,{"$f":"#REF!","v":{"$error":"#REF!"}},{"$f":"#REF!","v":{"$error":"#REF!"}},{"$f":"#REF!","v":{"$error":"#REF!"}},{"$f":"#REF!","v":{"$error":"#REF!"}},{"$f":"#REF!","v":{"$error":"#REF!"}},{"$f":"#REF!","v":{"$error":"#REF!"}}]
["6,1,1,1,4,0,0",6,1,1,1,4,null,null,null,null,"Seguridad Social",null,null,null,null,{"$f":"#REF!","v":{"$error":"#REF!"}},{"$f":"#REF!","v":{"$error":"#REF!"}},{"$f":"#REF!","v":{"$error":"#REF!"}},{"$f":"#REF!","v":{"$error":"#REF!"}},{"$f":"#REF!","v":{"$error":"#REF!"}},{"$f":"#REF!","v":{"$error":"#REF!"}}]
["6,1,1,1,5,0,0",6,1,1,1,5,null,null,null,null,"Otras Prestaciones Sociales y Económicas",null,null,null,null,{"$f":"#REF!","v":{"$error":"#REF!"}},{"$f":"#REF!","v":{"$error":"#REF!"}},{"$f":"#REF!","v":{"$error":"#REF!"}},{"$f":"#REF!","v":{"$error":"#REF!"}},{"$f":"#REF!","v":{"$error":"#REF!"}},{"$f":"#REF!","v":{"$error":"#REF!"}}]
["6,1,1,1,6,0,0",6,1,1,1,6,null,null,null,null,"Previsiones",null,null,null,null,{"$f":"#REF!","v":{"$error":"#REF!"}},{"$f":"#REF!","v":{"$error":"#REF!"}},{"$f":"#REF!","v":{"$error":"#REF!"}},{"$f":"#REF!","v":{"$error":"#REF!"}},{"$f":"#REF!","v":{"$error":"#REF!"}},{"$f":"#REF!","v":{"$error":"#REF!"}}]
["6,1,1,1,7,0,0",6,1,1,1,7,null,null,null,null,"Pago de Estímulos a Servidores Públicos",null,null,null,null,{"$f":"#REF!","v":{"$error":"#REF!"}},{"$f":"#REF!","v":{"$error":"#REF!"}},{"$f":"#REF!","v":{"$error":"#REF!"}},{"$f":"#REF!","v":{"$error":"#REF!"}},{"$f":"#REF!","v":{"$error":"#REF!"}},{"$f":"#REF!","v":{"$error":"#REF!"}}]
["6,1,1,2,0,0,0",6,1,1,2,null,null,null,null,"Materiales y Suministros",null,null,null,null,null,{"$f":"#REF!","v":{"$error":"#REF!"}},{"$f":"#REF!","v":{"$error":"#REF!"}},{"$f":"#REF!","v":{"$error":"#REF!"}},{"$f":"#REF!","v":{"$error":"#REF!"}},{"$f":"#REF!","v":{"$error":"#REF!"}},{"$f":"#REF!","v":{"$error":"#REF!"}}]
["6,1,1,2,1,0,0",6,1,1,2,1,null,null,null,null,"Materiales de Administración, Emisión de Documentos y Artículos Oficiales",null,null,null,null,{"$f":"#REF!","v":{"$error":"#REF!"}},{"$f":"#REF!","v":{"$error":"#REF!"}},{"$f":"#REF!","v":{"$error":"#REF!"}},{"$f":"#REF!","v":{"$error":"#REF!"}},{"$f":"#REF!","v":{"$error":"#REF!"}},{"$f":"#REF!","v":{"$error":"#REF!"}}]
["6,1,1,2,2,0,0",6,1,1,2,2,null,null,null,null,"Alimentos y Utensilios",null,null,null,null,{"$f":"#REF!","v":{"$error":"#REF!"}},{"$f":"#REF!","v":{"$error":"#REF!"}},{"$f":"#REF!","v":{"$error":"#REF!"}},{"$f":"#REF!","v":{"$error":"#REF!"}},{"$f":"#REF!","v":{"$error":"#REF!"}},{"$f":"#REF!","v":{"$error":"#REF!"}}]
["6,1,1,2,3,0,0",6,1,1,2,3,null,null,null,null,"Materias Primas y Materiales de Producción y Comercialización",null,null,null,null,{"$f":"#REF!","v":{"$error":"#REF!"}},{"$f":"#REF!","v":{"$error":"#REF!"}},{"$f":"#REF!","v":{"$error":"#REF!"}},{"$f":"#REF!","v":{"$error":"#REF!"}},{"$f":"#REF!","v":{"$error":"#REF!"}},{"$f":"#REF!","v":{"$error":"#REF!"}}]
["6,1,1,2,4,0,0",6,1,1,2,4,null,null,null,null,"Materiales y Artículos de Construcción y de Reparación",null,null,null,null,{"$f":"#REF!","v":{"$error":"#REF!"}},{"$f":"#REF!","v":{"$error":"#REF!"}},{"$f":"#REF!","v":{"$error":"#REF!"}},{"$f":"#REF!","v":{"$error":"#REF!"}},{"$f":"#REF!","v":{"$error":"#REF!"}},{"$f":"#REF!","v":{"$error":"#REF!"}}]
["6,1,1,2,5,0,0",6,1,1,2,5,null,null,null,null,"Productos Químicos, Farmacéuticos y de Laboratorio",null,null,null,null,{"$f":"#REF!","v":{"$error":"#REF!"}},{"$f":"#REF!","v":{"$error":"#REF!"}},{"$f":"#REF!","v":{"$error":"#REF!"}},{"$f":"#REF!","v":{"$error":"#REF!"}},{"$f":"#REF!","v":{"$error":"#REF!"}},{"$f":"#REF!","v":{"$error":"#REF!"}}]
["6,1,1,2,6,0,0",6,1,1,2,6,null,null,null,null,"Combustibles, Lubricantes y Aditivos",null,null,null,null,{"$f":"#REF!","v":{"$error":"#REF!"}},{"$f":"#REF!","v":{"$error":"#REF!"}},{"$f":"#REF!","v":{"$error":"#REF!"}},{"$f":"#REF!","v":{"$error":"#REF!"}},{"$f":"#REF!","v":{"$error":"#REF!"}},{"$f":"#REF!","v":{"$error":"#REF!"}}]
["6,1,1,2,7,0,0",6,1,1,2,7,null,null,null,null,"Vestuario, Blancos, Prendas de Protección y Artículos Deportivos",null,null,null,null,{"$f":"#REF!","v":{"$error":"#REF!"}},{"$f":"#REF!","v":{"$error":"#REF!"}},{"$f":"#REF!","v":{"$error":"#REF!"}},{"$f":"#REF!","v":{"$error":"#REF!"}},{"$f":"#REF!","v":{"$error":"#REF!"}},{"$f":"#REF!","v":{"$error":"#REF!"}}]
["6,1,1,2,8,0,0",6,1,1,2,8,null,null,null,null,"Materiales y Suministros Para Seguridad",null,null,null,null,{"$f":"#REF!","v":{"$error":"#REF!"}},{"$f":"#REF!","v":{"$error":"#REF!"}},{"$f":"#REF!","v":{"$error":"#REF!"}},{"$f":"#REF!","v":{"$error":"#REF!"}},{"$f":"#REF!","v":{"$error":"#REF!"}},{"$f":"#REF!","v":{"$error":"#REF!"}}]
["6,1,1,2,9,0,0",6,1,1,2,9,null,null,null,null,"Herramientas, Refacciones y Accesorios Menores",null,null,null,null,{"$f":"#REF!","v":{"$error":"#REF!"}},{"$f":"#REF!","v":{"$error":"#REF!"}},{"$f":"#REF!","v":{"$error":"#REF!"}},{"$f":"#REF!","v":{"$error":"#REF!"}},{"$f":"#REF!","v":{"$error":"#REF!"}},{"$f":"#REF!","v":{"$error":"#REF!"}}]
["6,1,1,3,0,0,0",6,1,1,3,null,null,null,null,"Servicios Generales",null,null,null,null,null,{"$f":"#REF!","v":{"$error":"#REF!"}},{"$f":"#REF!","v":{"$error":"#REF!"}},{"$f":"#REF!","v":{"$error":"#REF!"}},{"$f":"#REF!","v":{"$error":"#REF!"}},{"$f":"#REF!","v":{"$error":"#REF!"}},{"$f":"#REF!","v":{"$error":"#REF!"}}]
["6,1,1,3,1,0,0",6,1,1,3,1,null,null,null,null,"Servicios Básicos",null,null,null,null,{"$f":"#REF!","v":{"$error":"#REF!"}},{"$f":"#REF!","v":{"$error":"#REF!"}},{"$f":"#REF!","v":{"$error":"#REF!"}},{"$f":"#REF!","v":{"$error":"#REF!"}},{"$f":"#REF!","v":{"$error":"#REF!"}},{"$f":"#REF!","v":{"$error":"#REF!"}}]
["6,1,1,3,2,0,0",6,1,1,3,2,null,null,null,null,"Servicios de Arrendamiento",null,null,null,null,{"$f":"#REF!","v":{"$error":"#REF!"}},{"$f":"#REF!","v":{"$error":"#REF!"}},{"$f":"#REF!","v":{"$error":"#REF!"}},{"$f":"#REF!","v":{"$error":"#REF!"}},{"$f":"#REF!","v":{"$error":"#REF!"}},{"$f":"#REF!","v":{"$error":"#REF!"}}]
["6,1,1,3,3,0,0",6,1,1,3,3,null,null,null,null,"Servicios Profesionales, Científicos, Técnicos y Otros Servicios",null,null,null,null,{"$f":"#REF!","v":{"$error":"#REF!"}},{"$f":"#REF!","v":{"$error":"#REF!"}},{"$f":"#REF!","v":{"$error":"#REF!"}},{"$f":"#REF!","v":{"$error":"#REF!"}},{"$f":"#REF!","v":{"$error":"#REF!"}},{"$f":"#REF!","v":{"$error":"#REF!"}}]
["6,1,1,3,4,0,0",6,1,1,3,4,null,null,null,null,"Servicios Financieros, Bancarios y Comerciales",null,null,null,null,{"$f":"#REF!","v":{"$error":"#REF!"}},{"$f":"#REF!","v":{"$error":"#REF!"}},{"$f":"#REF!","v":{"$error":"#REF!"}},{"$f":"#REF!","v":{"$error":"#REF!"}},{"$f":"#REF!","v":{"$error":"#REF!"}},{"$f":"#REF!","v":{"$error":"#REF!"}}]
["6,1,1,3,5,0,0",6,1,1,3,5,null,null,null,null,"Servicios de Instalación, Reparación, Mantenimiento y Conservación",null,null,null,null,{"$f":"#REF!","v":{"$error":"#REF!"}},{"$f":"#REF!","v":{"$error":"#REF!"}},{"$f":"#REF!","v":{"$error":"#REF!"}},{"$f":"#REF!","v":{"$error":"#REF!"}},{"$f":"#REF!","v":{"$error":"#REF!"}},{"$f":"#REF!","v":{"$error":"#REF!"}}]
["6,1,1,3,6,0,0",6,1,1,3,6,null,null,null,null,"Servicios de Comunicación Social y Publicidad",null,null,null,null,{"$f":"#REF!","v":{"$error":"#REF!"}},{"$f":"#REF!","v":{"$error":"#REF!"}},{"$f":"#REF!","v":{"$error":"#REF!"}},{"$f":"#REF!","v":{"$error":"#REF!"}},{"$f":"#REF!","v":{"$error":"#REF!"}},{"$f":"#REF!","v":{"$error":"#REF!"}}]
["6,1,1,3,7,0,0",6,1,1,3,7,null,null,null,null,"Servicios de Traslado y Viáticos",null,null,null,null,{"$f":"#REF!","v":{"$error":"#REF!"}},{"$f":"#REF!","v":{"$error":"#REF!"}},{"$f":"#REF!","v":{"$error":"#REF!"}},{"$f":"#REF!","v":{"$error":"#REF!"}},{"$f":"#REF!","v":{"$error":"#REF!"}},{"$f":"#REF!","v":{"$error":"#REF!"}}]
["6,1,1,3,8,0,0",6,1,1,3,8,null,null,null,null,"Servicios Oficiales",null,null,null,null,{"$f":"#REF!","v":{"$error":"#REF!"}},{"$f":"#REF!","v":{"$error":"#REF!"}},{"$f":"#REF!","v":{"$error":"#REF!"}},{"$f":"#REF!","v":{"$error":"#REF!"}},{"$f":"#REF!","v":{"$error":"#REF!"}},{"$f":"#REF!","v":{"$error":"#REF!"}}]
["6,1,1,3,9,0,0",6,1,1,3,9,null,null,null,null,"Otros Servicios Generales",null,null,null,null,{"$f":"#REF!","v":{"$error":"#REF!"}},{"$f":"#REF!","v":{"$error":"#REF!"}},{"$f":"#REF!","v":{"$error":"#REF!"}},{"$f":"#REF!","v":{"$error":"#REF!"}},{"$f":"#REF!","v":{"$error":"#REF!"}},{"$f":"#REF!","v":{"$error":"#REF!"}}]
["6,1,1,4,0,0,0",6,1,1,4,null,null,null,null,"Transferencias, Asignaciones, Subsidios y Otras Ayudas",null,null,null,null,null,{"$f":"#REF!","v":{"$error":"#REF!"}},{"$f":"#REF!","v":{"$error":"#REF!"}},{"$f":"#REF!","v":{"$error":"#REF!"}},{"$f":"#REF!","v":{"$error":"#REF!"}},{"$f":"#REF!","v":{"$error":"#REF!"}},{"$f":"#REF!","v":{"$error":"#REF!"}}]
["6,1,1,4,1,0,0",6,1,1,4,1,null,null,null,null,"Transferencias Internas y Asignaciones al Sector Público",null,null,null,null,{"$f":"#REF!","v":{"$error":"#REF!"}},{"$f":"#REF!","v":{"$error":"#REF!"}},{"$f":"#REF!","v":{"$error":"#REF!"}},{"$f":"#REF!","v":{"$error":"#REF!"}},{"$f":"#REF!","v":{"$error":"#REF!"}},{"$f":"#REF!","v":{"$error":"#REF!"}}]
["6,1,1,4,2,0,0",6,1,1,4,2,null,null,null,null,"Transferencias al Resto del Sector Público",null,null,null,null,{"$f":"#REF!","v":{"$error":"#REF!"}},{"$f":"#REF!","v":{"$error":"#REF!"}},{"$f":"#REF!","v":{"$error":"#REF!"}},{"$f":"#REF!","v":{"$error":"#REF!"}},{"$f":"#REF!","v":{"$error":"#REF!"}},{"$f":"#REF!","v":{"$error":"#REF!"}}]
["6,1,1,4,3,0,0",6,1,1,4,3,null,null,null,null,"Subsidios y Subvenciones",null,null,null,null,{"$f":"#REF!","v":{"$error":"#REF!"}},{"$f":"#REF!","v":{"$error":"#REF!"}},{"$f":"#REF!","v":{"$error":"#REF!"}},{"$f":"#REF!","v":{"$error":"#REF!"}},{"$f":"#REF!","v":{"$error":"#REF!"}},{"$f":"#REF!","v":{"$error":"#REF!"}}]
["6,1,1,4,4,0,0",6,1,1,4,4,null,null,null,null,"Ayudas Sociales",null,null,null,null,{"$f":"#REF!","v":{"$error":"#REF!"}},{"$f":"#REF!","v":{"$error":"#REF!"}},{"$f":"#REF!","v":{"$error":"#REF!"}},{"$f":"#REF!","v":{"$error":"#REF!"}},{"$f":"#REF!","v":{"$error":"#REF!"}},{"$f":"#REF!","v":{"$error":"#REF!"}}]
["6,1,1,4,5,0,0",6,1,1,4,5,null,null,null,null,"Pensiones y Jubilaciones",null,null,null,null,{"$f":"#REF!","v":{"$error":"#REF!"}},{"$f":"#REF!","v":{"$error":"#REF!"}},{"$f":"#REF!","v":{"$error":"#REF!"}},{"$f":"#REF!","v":{"$error":"#REF!"}},{"$f":"#REF!","v":{"$error":"#REF!"}},{"$f":"#REF!","v":{"$error":"#REF!"}}]
["6,1,1,4,6,0,0",6,1,1,4,6,null,null,null,null,"Transferencias a Fideicomisos, Mandatos y Otros Análogos",null,null,null,null,{"$f":"#REF!","v":{"$error":"#REF!"}},{"$f":"#REF!","v":{"$error":"#REF!"}},{"$f":"#REF!","v":{"$error":"#REF!"}},{"$f":"#REF!","v":{"$error":"#REF!"}},{"$f":"#REF!","v":{"$error":"#REF!"}},{"$f":"#REF!","v":{"$error":"#REF!"}}]
["6,1,1,4,7,0,0",6,1,1,4,7,null,null,null,null,"Transferencias a la Seguridad Social",null,null,null,null,{"$f":"#REF!","v":{"$error":"#REF!"}},{"$f":"#REF!","v":{"$error":"#REF!"}},{"$f":"#REF!","v":{"$error":"#REF!"}},{"$f":"#REF!","v":{"$error":"#REF!"}},{"$f":"#REF!","v":{"$error":"#REF!"}},{"$f":"#REF!","v":{"$error":"#REF!"}}]
["6,1,1,4,8,0,0",6,1,1,4,8,null,null,null,null,"Donativos",null,null,null,null,{"$f":"#REF!","v":{"$error":"#REF!"}},{"$f":"#REF!","v":{"$error":"#REF!"}},{"$f":"#REF!","v":{"$error":"#REF!"}},{"$f":"#REF!","v":{"$error":"#REF!"}},{"$f":"#REF!","v":{"$error":"#REF!"}},{"$f":"#REF!","v":{"$error":"#REF!"}}]
["6,1,1,4,9,0,0",6,1,1,4,9,null,null,null,null,"Transferencias al Exterior",null,null,null,null,{"$f":"#REF!","v":{"$error":"#REF!"}},{"$f":"#REF!","v":{"$error":"#REF!"}},{"$f":"#REF!","v":{"$error":"#REF!"}},{"$f":"#REF!","v":{"$error":"#REF!"}},{"$f":"#REF!","v":{"$error":"#REF!"}},{"$f":"#REF!","v":{"$error":"#REF!"}}]
["6,1,1,5,0,0,0",6,1,1,5,null,null,null,null,"Bienes Muebles, Inmuebles e Intangibles",null,null,null,null,null,{"$f":"#REF!","v":{"$error":"#REF!"}},{"$f":"#REF!","v":{"$error":"#REF!"}},{"$f":"#REF!","v":{"$error":"#REF!"}},{"$f":"#REF!","v":{"$error":"#REF!"}},{"$f":"#REF!","v":{"$error":"#REF!"}},{"$f":"#REF!","v":{"$error":"#REF!"}}]
["6,1,1,5,1,0,0",6,1,1,5,1,null,null,null,null,"Mobiliario y Equipo de Administración",null,null,null,null,{"$f":"#REF!","v":{"$error":"#REF!"}},{"$f":"#REF!","v":{"$error":"#REF!"}},{"$f":"#REF!","v":{"$error":"#REF!"}},{"$f":"#REF!","v":{"$error":"#REF!"}},{"$f":"#REF!","v":{"$error":"#REF!"}},{"$f":"#REF!","v":{"$error":"#REF!"}}]
["6,1,1,5,2,0,0",6,1,1,5,2,null,null,null,null,"Mobiliario y Equipo Educacional y Recreativo",null,null,null,null,{"$f":"#REF!","v":{"$error":"#REF!"}},{"$f":"#REF!","v":{"$error":"#REF!"}},{"$f":"#REF!","v":{"$error":"#REF!"}},{"$f":"#REF!","v":{"$error":"#REF!"}},{"$f":"#REF!","v":{"$error":"#REF!"}},{"$f":"#REF!","v":{"$error":"#REF!"}}]
["6,1,1,5,3,0,0",6,1,1,5,3,null,null,null,null,"Equipo e Instrumental Médico y de Laboratorio",null,null,null,null,{"$f":"#REF!","v":{"$error":"#REF!"}},{"$f":"#REF!","v":{"$error":"#REF!"}},{"$f":"#REF!","v":{"$error":"#REF!"}},{"$f":"#REF!","v":{"$error":"#REF!"}},{"$f":"#REF!","v":{"$error":"#REF!"}},{"$f":"#REF!","v":{"$error":"#REF!"}}]
["6,1,1,5,4,0,0",6,1,1,5,4,null,null,null,null,"Vehículos y Equipo de Transporte",null,null,null,null,{"$f":"#REF!","v":{"$error":"#REF!"}},{"$f":"#REF!","v":{"$error":"#REF!"}},{"$f":"#REF!","v":{"$error":"#REF!"}},{"$f":"#REF!","v":{"$error":"#REF!"}},{"$f":"#REF!","v":{"$error":"#REF!"}},{"$f":"#REF!","v":{"$error":"#REF!"}}]
["6,1,1,5,5,0,0",6,1,1,5,5,null,null,null,null,"Equipo de Defensa y Seguridad",null,null,null,null,{"$f":"#REF!","v":{"$error":"#REF!"}},{"$f":"#REF!","v":{"$error":"#REF!"}},{"$f":"#REF!","v":{"$error":"#REF!"}},{"$f":"#REF!","v":{"$error":"#REF!"}},{"$f":"#REF!","v":{"$error":"#REF!"}},{"$f":"#REF!","v":{"$error":"#REF!"}}]
["6,1,1,5,6,0,0",6,1,1,5,6,null,null,null,null,"Maquinaria, Otros Equipos y Herramientas",null,null,null,null,{"$f":"#REF!","v":{"$error":"#REF!"}},{"$f":"#REF!","v":{"$error":"#REF!"}},{"$f":"#REF!","v":{"$error":"#REF!"}},{"$f":"#REF!","v":{"$error":"#REF!"}},{"$f":"#REF!","v":{"$error":"#REF!"}},{"$f":"#REF!","v":{"$error":"#REF!"}}]
["6,1,1,5,7,0,0",6,1,1,5,7,null,null,null,null,"Activos Biológicos",null,null,null,null,{"$f":"#REF!","v":{"$error":"#REF!"}},{"$f":"#REF!","v":{"$error":"#REF!"}},{"$f":"#REF!","v":{"$error":"#REF!"}},{"$f":"#REF!","v":{"$error":"#REF!"}},{"$f":"#REF!","v":{"$error":"#REF!"}},{"$f":"#REF!","v":{"$error":"#REF!"}}]
["6,1,1,5,8,0,0",6,1,1,5,8,null,null,null,null,"Bienes Inmuebles",null,null,null,null,{"$f":"#REF!","v":{"$error":"#REF!"}},{"$f":"#REF!","v":{"$error":"#REF!"}},{"$f":"#REF!","v":{"$error":"#REF!"}},{"$f":"#REF!","v":{"$error":"#REF!"}},{"$f":"#REF!","v":{"$error":"#REF!"}},{"$f":"#REF!","v":{"$error":"#REF!"}}]
["6,1,1,5,9,0,0",6,1,1,5,9,null,null,null,null,"Activos Intangibles",null,null,null,null,{"$f":"#REF!","v":{"$error":"#REF!"}},{"$f":"#REF!","v":{"$error":"#REF!"}},{"$f":"#REF!","v":{"$error":"#REF!"}},{"$f":"#REF!","v":{"$error":"#REF!"}},{"$f":"#REF!","v":{"$error":"#REF!"}},{"$f":"#REF!","v":{"$error":"#REF!"}}]
["6,1,1,6,0,0,0",6,1,1,6,null,null,null,null,"Inversión Pública",null,null,null,null,null,{"$f":"#REF!","v":{"$error":"#REF!"}},{"$f":"#REF!","v":{"$error":"#REF!"}},{"$f":"#REF!","v":{"$error":"#REF!"}},{"$f":"#REF!","v":{"$error":"#REF!"}},{"$f":"#REF!","v":{"$error":"#REF!"}},{"$f":"#REF!","v":{"$error":"#REF!"}}]
["6,1,1,6,1,0,0",6,1,1,6,1,null,null,null,null,"Obra Pública en Bienes de Dominio Público",null,null,null,null,{"$f":"#REF!","v":{"$error":"#REF!"}},{"$f":"#REF!","v":{"$error":"#REF!"}},{"$f":"#REF!","v":{"$error":"#REF!"}},{"$f":"#REF!","v":{"$error":"#REF!"}},{"$f":"#REF!","v":{"$error":"#REF!"}},{"$f":"#REF!","v":{"$error":"#REF!"}}]
["6,1,1,6,2,0,0",6,1,1,6,2,null,null,null,null,"Obra Pública en Bienes Propios",null,null,null,null,{"$f":"#REF!","v":{"$error":"#REF!"}},{"$f":"#REF!","v":{"$error":"#REF!"}},{"$f":"#REF!","v":{"$error":"#REF!"}},{"$f":"#REF!","v":{"$error":"#REF!"}},{"$f":"#REF!","v":{"$error":"#REF!"}},{"$f":"#REF!","v":{"$error":"#REF!"}}]
["6,1,1,6,3,0,0",6,1,1,6,3,null,null,null,null,"Proyectos Productivos y Acciones de Fomento",null,null,null,null,{"$f":"#REF!","v":{"$error":"#REF!"}},{"$f":"#REF!","v":{"$error":"#REF!"}},{"$f":"#REF!","v":{"$error":"#REF!"}},{"$f":"#REF!","v":{"$error":"#REF!"}},{"$f":"#REF!","v":{"$error":"#REF!"}},{"$f":"#REF!","v":{"$error":"#REF!"}}]
["6,1,1,7,0,0,0",6,1,1,7,null,null,null,null,"Inversiones Financieras y Otras Provisiones",null,null,null,null,null,{"$f":"#REF!","v":{"$error":"#REF!"}},{"$f":"#REF!","v":{"$error":"#REF!"}},{"$f":"#REF!","v":{"$error":"#REF!"}},{"$f":"#REF!","v":{"$error":"#REF!"}},{"$f":"#REF!","v":{"$error":"#REF!"}},{"$f":"#REF!","v":{"$error":"#REF!"}}]
["6,1,1,7,1,0,0",6,1,1,7,1,null,null,null,null,"Inversiones Para el Fomento de Actividades Productivas",null,null,null,null,{"$f":"#REF!","v":{"$error":"#REF!"}},{"$f":"#REF!","v":{"$error":"#REF!"}},{"$f":"#REF!","v":{"$error":"#REF!"}},{"$f":"#REF!","v":{"$error":"#REF!"}},{"$f":"#REF!","v":{"$error":"#REF!"}},{"$f":"#REF!","v":{"$error":"#REF!"}}]
["6,1,1,7,2,0,0",6,1,1,7,2,null,null,null,null,"Acciones y Participaciones de Capital",null,null,null,null,{"$f":"#REF!","v":{"$error":"#REF!"}},{"$f":"#REF!","v":{"$error":"#REF!"}},{"$f":"#REF!","v":{"$error":"#REF!"}},{"$f":"#REF!","v":{"$error":"#REF!"}},{"$f":"#REF!","v":{"$error":"#REF!"}},{"$f":"#REF!","v":{"$error":"#REF!"}}]
["6,1,1,7,3,0,0",6,1,1,7,3,null,null,null,null,"Compra de Títulos y Valores",null,null,null,null,{"$f":"#REF!","v":{"$error":"#REF!"}},{"$f":"#REF!","v":{"$error":"#REF!"}},{"$f":"#REF!","v":{"$error":"#REF!"}},{"$f":"#REF!","v":{"$error":"#REF!"}},{"$f":"#REF!","v":{"$error":"#REF!"}},{"$f":"#REF!","v":{"$error":"#REF!"}}]
["6,1,1,7,4,0,0",6,1,1,7,4,null,null,null,null,"Concesión de Préstamos",null,null,null,null,{"$f":"#REF!","v":{"$error":"#REF!"}},{"$f":"#REF!","v":{"$error":"#REF!"}},{"$f":"#REF!","v":{"$error":"#REF!"}},{"$f":"#REF!","v":{"$error":"#REF!"}},{"$f":"#REF!","v":{"$error":"#REF!"}},{"$f":"#REF!","v":{"$error":"#REF!"}}]
["6,1,1,7,5,0,0",6,1,1,7,5,null,null,null,null,"Inversiones en Fideicomisos, Mandatos y Otros Análogos",null,null,null,null,{"$f":"#REF!","v":{"$error":"#REF!"}},{"$f":"#REF!","v":{"$error":"#REF!"}},{"$f":"#REF!","v":{"$error":"#REF!"}},{"$f":"#REF!","v":{"$error":"#REF!"}},{"$f":"#REF!","v":{"$error":"#REF!"}},{"$f":"#REF!","v":{"$error":"#REF!"}}]
["6,1,1,7,5,1,0",6,1,1,7,5,1,null,null,null,null,"Fideicomiso de Desastres Naturales (Informativo)",null,null,null,{"$f":"#REF!","v":{"$error":"#REF!"}},{"$f":"#REF!","v":{"$error":"#REF!"}},{"$f":"#REF!","v":{"$error":"#REF!"}},{"$f":"#REF!","v":{"$error":"#REF!"}},{"$f":"#REF!","v":{"$error":"#REF!"}},{"$f":"#REF!","v":{"$error":"#REF!"}}]
["6,1,1,7,6,0,0",6,1,1,7,6,null,null,null,null,"Otras Inversiones Financieras",null,null,null,null,{"$f":"#REF!","v":{"$error":"#REF!"}},{"$f":"#REF!","v":{"$error":"#REF!"}},{"$f":"#REF!","v":{"$error":"#REF!"}},{"$f":"#REF!","v":{"$error":"#REF!"}},{"$f":"#REF!","v":{"$error":"#REF!"}},{"$f":"#REF!","v":{"$error":"#REF!"}}]
["6,1,1,7,7,0,0",6,1,1,7,7,null,null,null,null,"Provisiones para Contingencias y Otras Erogaciones Especiales",null,null,null,null,{"$f":"#REF!","v":{"$error":"#REF!"}},{"$f":"#REF!","v":{"$error":"#REF!"}},{"$f":"#REF!","v":{"$error":"#REF!"}},{"$f":"#REF!","v":{"$error":"#REF!"}},{"$f":"#REF!","v":{"$error":"#REF!"}},{"$f":"#REF!","v":{"$error":"#REF!"}}]
[{"$f":"IF(LEN(CLEAN(B64))=0,\"0\",B64)&\",\"&IF(LEN(CLEAN(C64))=0,\"0\",C64)&\",\"&IF(LEN(CLEAN(D64))=0,\"0\",D64)&\",\"&IF(LEN(CLEAN(E64))=0,\"0\",E64)&\",\"&IF(LEN(CLEAN(F64))=0,\"0\",F64)&\",\"&IF(LEN(CLEAN(G64))=0,\"0\",G64)&\",\"&IF(LEN(CLEAN(H64))=0,\"0\",H64)","v":"6,1,1,8,0,0,0"},6,1,1,8,null,null,null,null,"Participaciones y Aportaciones",null,null,null,null,null,{"$f":"#REF!","v":{"$error":"#REF!"}},{"$f":"#REF!","v":{"$error":"#REF!"}},{"$f":"#REF!","v":{"$error":"#REF!"}},{"$f":"#REF!","v":{"$error":"#REF!"}},{"$f":"#REF!","v":{"$error":"#REF!"}},{"$f":"#REF!","v":{"$error":"#REF!"}}]
["6,1,1,8,1,0,0",6,1,1,8,1,null,null,null,null,"Participaciones",null,null,null,null,{"$f":"#REF!","v":{"$error":"#REF!"}},{"$f":"#REF!","v":{"$error":"#REF!"}},{"$f":"#REF!","v":{"$error":"#REF!"}},{"$f":"#REF!","v":{"$error":"#REF!"}},{"$f":"#REF!","v":{"$error":"#REF!"}},{"$f":"#REF!","v":{"$error":"#REF!"}}]
["6,1,1,8,2,0,0",6,1,1,8,2,null,null,null,null,"Aportaciones",null,null,null,null,{"$f":"#REF!","v":{"$error":"#REF!"}},{"$f":"#REF!","v":{"$error":"#REF!"}},{"$f":"#REF!","v":{"$error":"#REF!"}},{"$f":"#REF!","v":{"$error":"#REF!"}},{"$f":"#REF!","v":{"$error":"#REF!"}},{"$f":"#REF!","v":{"$error":"#REF!"}}]
["6,1,1,8,3,0,0",6,1,1,8,3,null,null,null,null,"Convenios",null,null,null,null,{"$f":"#REF!","v":{"$error":"#REF!"}},{"$f":"#REF!","v":{"$error":"#REF!"}},{"$f":"#REF!","v":{"$error":"#REF!"}},{"$f":"#REF!","v":{"$error":"#REF!"}},{"$f":"#REF!","v":{"$error":"#REF!"}},{"$f":"#REF!","v":{"$error":"#REF!"}}]
["6,1,1,9,0,0,0",6,1,1,9,null,null,null,null,"Deuda Pública",null,null,null,null,null,{"$f":"#REF!","v":{"$error":"#REF!"}},{"$f":"#REF!","v":{"$error":"#REF!"}},{"$f":"#REF!","v":{"$error":"#REF!"}},{"$f":"#REF!","v":{"$error":"#REF!"}},{"$f":"#REF!","v":{"$error":"#REF!"}},{"$f":"#REF!","v":{"$error":"#REF!"}}]
["6,1,1,9,1,0,0",6,1,1,9,1,null,null,null,null,"Amortización de la Deuda Pública",null,null,null,null,{"$f":"#REF!","v":{"$error":"#REF!"}},{"$f":"#REF!","v":{"$error":"#REF!"}},{"$f":"#REF!","v":{"$error":"#REF!"}},{"$f":"#REF!","v":{"$error":"#REF!"}},{"$f":"#REF!","v":{"$error":"#REF!"}},{"$f":"#REF!","v":{"$error":"#REF!"}}]
["6,1,1,9,2,0,0",6,1,1,9,2,null,null,null,null,"Intereses de la Deuda Pública",null,null,null,null,{"$f":"#REF!","v":{"$error":"#REF!"}},{"$f":"#REF!","v":{"$error":"#REF!"}},{"$f":"#REF!","v":{"$error":"#REF!"}},{"$f":"#REF!","v":{"$error":"#REF!"}},{"$f":"#REF!","v":{"$error":"#REF!"}},{"$f":"#REF!","v":{"$error":"#REF!"}}]
["6,1,1,9,3,0,0",6,1,1,9,3,null,null,null,null,"Comisiones de la Deuda Pública",null,null,null,null,{"$f":"#REF!","v":{"$error":"#REF!"}},{"$f":"#REF!","v":{"$error":"#REF!"}},{"$f":"#REF!","v":{"$error":"#REF!"}},{"$f":"#REF!","v":{"$error":"#REF!"}},{"$f":"#REF!","v":{"$error":"#REF!"}},{"$f":"#REF!","v":{"$error":"#REF!"}}]
["6,1,1,9,4,0,0",6,1,1,9,4,null,null,null,null,"Gastos de la Deuda Pública",null,null,null,null,{"$f":"#REF!","v":{"$error":"#REF!"}},{"$f":"#REF!","v":{"$error":"#REF!"}},{"$f":"#REF!","v":{"$error":"#REF!"}},{"$f":"#REF!","v":{"$error":"#REF!"}},{"$f":"#REF!","v":{"$error":"#REF!"}},{"$f":"#REF!","v":{"$error":"#REF!"}}]
["6,1,1,9,5,0,0",6,1,1,9,5,null,null,null,null,"Costo por Coberturas",null,null,null,null,{"$f":"#REF!","v":{"$error":"#REF!"}},{"$f":"#REF!","v":{"$error":"#REF!"}},{"$f":"#REF!","v":{"$error":"#REF!"}},{"$f":"#REF!","v":{"$error":"#REF!"}},{"$f":"#REF!","v":{"$error":"#REF!"}},{"$f":"#REF!","v":{"$error":"#REF!"}}]
["6,1,1,9,6,0,0",6,1,1,9,6,null,null,null,null,"Apoyos Financieros",null,null,null,null,{"$f":"#REF!","v":{"$error":"#REF!"}},{"$f":"#REF!","v":{"$error":"#REF!"}},{"$f":"#REF!","v":{"$error":"#REF!"}},{"$f":"#REF!","v":{"$error":"#REF!"}},{"$f":"#REF!","v":{"$error":"#REF!"}},{"$f":"#REF!","v":{"$error":"#REF!"}}]
["6,1,1,9,7,0,0",6,1,1,9,7,null,null,null,null,"Adeudos de Ejercicios Fiscales Anteriores (ADEFAS)",null,null,null,null,{"$f":"#REF!","v":{"$error":"#REF!"}},{"$f":"#REF!","v":{"$error":"#REF!"}},{"$f":"#REF!","v":{"$error":"#REF!"}},{"$f":"#REF!","v":{"$error":"#REF!"}},{"$f":"#REF!","v":{"$error":"#REF!"}},{"$f":"#REF!","v":{"$error":"#REF!"}}]
["6,1,2,0,0,0,0",6,1,2,null,null,null,null,"Gasto Etiquetado",null,null,null,null,null,null,{"$f":"#REF!","v":{"$error":"#REF!"}},{"$f":"#REF!","v":{"$error":"#REF!"}},{"$f":"#REF!","v":{"$error":"#REF!"}},{"$f":"#REF!","v":{"$error":"#REF!"}},{"$f":"#REF!","v":{"$error":"#REF!"}},{"$f":"#REF!","v":{"$error":"#REF!"}}]
[{"$f":"IF(LEN(CLEAN(B77))=0,\"0\",B77)&\",\"&IF(LEN(CLEAN(C77))=0,\"0\",C77)&\",\"&IF(LEN(CLEAN(D77))=0,\"0\",D77)&\",\"&IF(LEN(CLEAN(E77))=0,\"0\",E77)&\",\"&IF(LEN(CLEAN(F77))=0,\"0\",F77)&\",\"&IF(LEN(CLEAN(G77))=0,\"0\",G77)&\",\"&IF(LEN(CLEAN(H77))=0,\"0\",H77)","v":"6,1,2,1,0,0,0"},6,1,2,1,null,null,null,null,"Servicios Personales",null,null,null,null,null,{"$f":"#REF!","v":{"$error":"#REF!"}},{"$f":"#REF!","v":{"$error":"#REF!"}},{"$f":"#REF!","v":{"$error":"#REF!"}},{"$f":"#REF!","v":{"$error":"#REF!"}},{"$f":"#REF!","v":{"$error":"#REF!"}},{"$f":"#REF!","v":{"$error":"#REF!"}}]
["6,1,2,1,1,0,0",6,1,2,1,1,null,null,null,null,"Remuneraciones al Personal de Carácter Permanente",null,null,null,null,{"$f":"#REF!","v":{"$error":"#REF!"}},{"$f":"#REF!","v":{"$error":"#REF!"}},{"$f":"#REF!","v":{"$error":"#REF!"}},{"$f":"#REF!","v":{"$error":"#REF!"}},{"$f":"#REF!","v":{"$error":"#REF!"}},{"$f":"#REF!","v":{"$error":"#REF!"}}]
["6,1,2,1,2,0,0",6,1,2,1,2,null,null,null,null,"Remuneraciones al Personal de Carácter Transitorio",null,null,null,null,{"$f":"#REF!","v":{"$error":"#REF!"}},{"$f":"#REF!","v":{"$error":"#REF!"}},{"$f":"#REF!","v":{"$error":"#REF!"}},{"$f":"#REF!","v":{"$error":"#REF!"}},{"$f":"#REF!","v":{"$error":"#REF!"}},{"$f":"#REF!","v":{"$error":"#REF!"}}]
["6,1,2,1,3,0,0",6,1,2,1,3,null,null,null,null,"Remuneraciones Adicionales y Especiales",null,null,null,null,{"$f":"#REF!","v":{"$error":"#REF!"}},{"$f":"#REF!","v":{"$error":"#REF!"}},{"$f":"#REF!","v":{"$error":"#REF!"}},{"$f":"#REF!","v":{"$error":"#REF!"}},{"$f":"#REF!","v":{"$error":"#REF!"}},{"$f":"#REF!","v":{"$error":"#REF!"}}]
["6,1,2,1,4,0,0",6,1,2,1,4,null,null,null,null,"Seguridad Social",null,null,null,null,{"$f":"#REF!","v":{"$error":"#REF!"}},{"$f":"#REF!","v":{"$error":"#REF!"}},{"$f":"#REF!","v":{"$error":"#REF!"}},{"$f":"#REF!","v":{"$error":"#REF!"}},{"$f":"#REF!","v":{"$error":"#REF!"}},{"$f":"#REF!","v":{"$error":"#REF!"}}]
["6,1,2,1,5,0,0",6,1,2,1,5,null,null,null,null,"Otras Prestaciones Sociales y Económicas",null,null,null,null,{"$f":"#REF!","v":{"$error":"#REF!"}},{"$f":"#REF!","v":{"$error":"#REF!"}},{"$f":"#REF!","v":{"$error":"#REF!"}},{"$f":"#REF!","v":{"$error":"#REF!"}},{"$f":"#REF!","v":{"$error":"#REF!"}},{"$f":"#REF!","v":{"$error":"#REF!"}}]
["6,1,2,1,6,0,0",6,1,2,1,6,null,null,null,null,"Previsiones",null,null,null,null,{"$f":"#REF!","v":{"$error":"#REF!"}},{"$f":"#REF!","v":{"$error":"#REF!"}},{"$f":"#REF!","v":{"$error":"#REF!"}},{"$f":"#REF!","v":{"$error":"#REF!"}},{"$f":"#REF!","v":{"$error":"#REF!"}},{"$f":"#REF!","v":{"$error":"#REF!"}}]
["6,1,2,1,7,0,0",6,1,2,1,7,null,null,null,null,"Pago de Estímulos a Servidores Públicos",null,null,null,null,{"$f":"#REF!","v":{"$error":"#REF!"}},{"$f":"#REF!","v":{"$error":"#REF!"}},{"$f":"#REF!","v":{"$error":"#REF!"}},{"$f":"#REF!","v":{"$error":"#REF!"}},{"$f":"#REF!","v":{"$error":"#REF!"}},{"$f":"#REF!","v":{"$error":"#REF!"}}]
["6,1,2,2,0,0,0",6,1,2,2,null,null,null,null,"Materiales y Suministros",null,null,null,null,null,{"$f":"#REF!","v":{"$error":"#REF!"}},{"$f":"#REF!","v":{"$error":"#REF!"}},{"$f":"#REF!","v":{"$error":"#REF!"}},{"$f":"#REF!","v":{"$error":"#REF!"}},{"$f":"#REF!","v":{"$error":"#REF!"}},{"$f":"#REF!","v":{"$error":"#REF!"}}]
["6,1,2,2,1,0,0",6,1,2,2,1,null,null,null,null,"Materiales de Administración, Emisión de Documentos y Artículos Oficiales",null,null,null,null,{"$f":"#REF!","v":{"$error":"#REF!"}},{"$f":"#REF!","v":{"$error":"#REF!"}},{"$f":"#REF!","v":{"$error":"#REF!"}},{"$f":"#REF!","v":{"$error":"#REF!"}},{"$f":"#REF!","v":{"$error":"#REF!"}},{"$f":"#REF!","v":{"$error":"#REF!"}}]
["6,1,2,2,2,0,0",6,1,2,2,2,null,null,null,null,"Alimentos y Utensilios",null,null,null,null,{"$f":"#REF!","v":{"$error":"#REF!"}},{"$f":"#REF!","v":{"$error":"#REF!"}},{"$f":"#REF!","v":{"$error":"#REF!"}},{"$f":"#REF!","v":{"$error":"#REF!"}},{"$f":"#REF!","v":{"$error":"#REF!"}},{"$f":"#REF!","v":{"$error":"#REF!"}}]
["6,1,2,2,3,0,0",6,1,2,2,3,null,null,null,null,"Materias Primas y Materiales de Producción y Comercialización",null,null,null,null,{"$f":"#REF!","v":{"$error":"#REF!"}},{"$f":"#REF!","v":{"$error":"#REF!"}},{"$f":"#REF!","v":{"$error":"#REF!"}},{"$f":"#REF!","v":{"$error":"#REF!"}},{"$f":"#REF!","v":{"$error":"#REF!"}},{"$f":"#REF!","v":{"$error":"#REF!"}}]
["6,1,2,2,4,0,0",6,1,2,2,4,null,null,null,null,"Materiales y Artículos de Construcción y de Reparación",null,null,null,null,{"$f":"#REF!","v":{"$error":"#REF!"}},{"$f":"#REF!","v":{"$error":"#REF!"}},{"$f":"#REF!","v":{"$error":"#REF!"}},{"$f":"#REF!","v":{"$error":"#REF!"}},{"$f":"#REF!","v":{"$error":"#REF!"}},{"$f":"#REF!","v":{"$error":"#REF!"}}]
["6,1,2,2,5,0,0",6,1,2,2,5,null,null,null,null,"Productos Químicos, Farmacéuticos y de Laboratorio",null,null,null,null,{"$f":"#REF!","v":{"$error":"#REF!"}},{"$f":"#REF!","v":{"$error":"#REF!"}},{"$f":"#REF!","v":{"$error":"#REF!"}},{"$f":"#REF!","v":{"$error":"#REF!"}},{"$f":"#REF!","v":{"$error":"#REF!"}},{"$f":"#REF!","v":{"$error":"#REF!"}}]
["6,1,2,2,6,0,0",6,1,2,2,6,null,null,null,null,"Combustibles, Lubricantes y Aditivos",null,null,null,null,{"$f":"#REF!","v":{"$error":"#REF!"}},{"$f":"#REF!","v":{"$error":"#REF!"}},{"$f":"#REF!","v":{"$error":"#REF!"}},{"$f":"#REF!","v":{"$error":"#REF!"}},{"$f":"#REF!","v":{"$error":"#REF!"}},{"$f":"#REF!","v":{"$error":"#REF!"}}]
["6,1,2,2,7,0,0",6,1,2,2,7,null,null,null,null,"Vestuario, Blancos, Prendas de Protección y Artículos Deportivos",null,null,null,null,{"$f":"#REF!","v":{"$error":"#REF!"}},{"$f":"#REF!","v":{"$error":"#REF!"}},{"$f":"#REF!","v":{"$error":"#REF!"}},{"$f":"#REF!","v":{"$error":"#REF!"}},{"$f":"#REF!","v":{"$error":"#REF!"}},{"$f":"#REF!","v":{"$error":"#REF!"}}]
["6,1,2,2,8,0,0",6,1,2,2,8,null,null,null,null,"Materiales y Suministros Para Seguridad",null,null,null,null,{"$f":"#REF!","v":{"$error":"#REF!"}},{"$f":"#REF!","v":{"$error":"#REF!"}},{"$f":"#REF!","v":{"$error":"#REF!"}},{"$f":"#REF!","v":{"$error":"#REF!"}},{"$f":"#REF!","v":{"$error":"#REF!"}},{"$f":"#REF!","v":{"$error":"#REF!"}}]
["6,1,2,2,9,0,0",6,1,2,2,9,null,null,null,null,"Herramientas, Refacciones y Accesorios Menores",null,null,null,null,{"$f":"#REF!","v":{"$error":"#REF!"}},{"$f":"#REF!","v":{"$error":"#REF!"}},{"$f":"#REF!","v":{"$error":"#REF!"}},{"$f":"#REF!","v":{"$error":"#REF!"}},{"$f":"#REF!","v":{"$error":"#REF!"}},{"$f":"#REF!","v":{"$error":"#REF!"}}]
["6,1,2,3,0,0,0",6,1,2,3,null,null,null,null,"Servicios Generales",null,null,null,null,null,{"$f":"#REF!","v":{"$error":"#REF!"}},{"$f":"#REF!","v":{"$error":"#REF!"}},{"$f":"#REF!","v":{"$error":"#REF!"}},{"$f":"#REF!","v":{"$error":"#REF!"}},{"$f":"#REF!","v":{"$error":"#REF!"}},{"$f":"#REF!","v":{"$error":"#REF!"}}]
["6,1,2,3,1,0,0",6,1,2,3,1,null,null,null,null,"Servicios Básicos",null,null,null,null,{"$f":"#REF!","v":{"$error":"#REF!"}},{"$f":"#REF!","v":{"$error":"#REF!"}},{"$f":"#REF!","v":{"$error":"#REF!"}},{"$f":"#REF!","v":{"$error":"#REF!"}},{"$f":"#REF!","v":{"$error":"#REF!"}},{"$f":"#REF!","v":{"$error":"#REF!"}}]
["6,1,2,3,2,0,0",6,1,2,3,2,null,null,null,null,"Servicios de Arrendamiento",null,null,null,null,{"$f":"#REF!","v":{"$error":"#REF!"}},{"$f":"#REF!","v":{"$error":"#REF!"}},{"$f":"#REF!","v":{"$error":"#REF!"}},{"$f":"#REF!","v":{"$error":"#REF!"}},{"$f":"#REF!","v":{"$error":"#REF!"}},{"$f":"#REF!","v":{"$error":"#REF!"}}]
["6,1,2,3,3,0,0",6,1,2,3,3,null,null,null,null,"Servicios Profesionales, Científicos, Técnicos y Otros Servicios",null,null,null,null,{"$f":"#REF!","v":{"$error":"#REF!"}},{"$f":"#REF!","v":{"$error":"#REF!"}},{"$f":"#REF!","v":{"$error":"#REF!"}},{"$f":"#REF!","v":{"$error":"#REF!"}},{"$f":"#REF!","v":{"$error":"#REF!"}},{"$f":"#REF!","v":{"$error":"#REF!"}}]
["6,1,2,3,4,0,0",6,1,2,3,4,null,null,null,null,"Servicios Financieros, Bancarios y Comerciales",null,null,null,null,{"$f":"#REF!","v":{"$error":"#REF!"}},{"$f":"#REF!","v":{"$error":"#REF!"}},{"$f":"#REF!","v":{"$error":"#REF!"}},{"$f":"#REF!","v":{"$error":"#REF!"}},{"$f":"#REF!","v":{"$error":"#REF!"}},{"$f":"#REF!","v":{"$error":"#REF!"}}]
["6,1,2,3,5,0,0",6,1,2,3,5,null,null,null,null,"Servicios de Instalación, Reparación, Mantenimiento y Conservación",null,null,null,null,{"$f":"#REF!","v":{"$error":"#REF!"}},{"$f":"#REF!","v":{"$error":"#REF!"}},{"$f":"#REF!","v":{"$error":"#REF!"}},{"$f":"#REF!","v":{"$error":"#REF!"}},{"$f":"#REF!","v":{"$error":"#REF!"}},{"$f":"#REF!","v":{"$error":"#REF!"}}]
["6,1,2,3,6,0,0",6,1,2,3,6,null,null,null,null,"Servicios de Comunicación Social y Publicidad",null,null,null,null,{"$f":"#REF!","v":{"$error":"#REF!"}},{"$f":"#REF!","v":{"$error":"#REF!"}},{"$f":"#REF!","v":{"$error":"#REF!"}},{"$f":"#REF!","v":{"$error":"#REF!"}},{"$f":"#REF!","v":{"$error":"#REF!"}},{"$f":"#REF!","v":{"$error":"#REF!"}}]
["6,1,2,3,7,0,0",6,1,2,3,7,null,null,null,null,"Servicios de Traslado y Viáticos",null,null,null,null,{"$f":"#REF!","v":{"$error":"#REF!"}},{"$f":"#REF!","v":{"$error":"#REF!"}},{"$f":"#REF!","v":{"$error":"#REF!"}},{"$f":"#REF!","v":{"$error":"#REF!"}},{"$f":"#REF!","v":{"$error":"#REF!"}},{"$f":"#REF!","v":{"$error":"#REF!"}}]
["6,1,2,3,8,0,0",6,1,2,3,8,null,null,null,null,"Servicios Oficiales",null,null,null,null,{"$f":"#REF!","v":{"$error":"#REF!"}},{"$f":"#REF!","v":{"$error":"#REF!"}},{"$f":"#REF!","v":{"$error":"#REF!"}},{"$f":"#REF!","v":{"$error":"#REF!"}},{"$f":"#REF!","v":{"$error":"#REF!"}},{"$f":"#REF!","v":{"$error":"#REF!"}}]
["6,1,2,3,9,0,0",6,1,2,3,9,null,null,null,null,"Otros Servicios Generales",null,null,null,null,{"$f":"#REF!","v":{"$error":"#REF!"}},{"$f":"#REF!","v":{"$error":"#REF!"}},{"$f":"#REF!","v":{"$error":"#REF!"}},{"$f":"#REF!","v":{"$error":"#REF!"}},{"$f":"#REF!","v":{"$error":"#REF!"}},{"$f":"#REF!","v":{"$error":"#REF!"}}]
["6,1,2,4,0,0,0",6,1,2,4,null,null,null,null,"Transferencias, Asignaciones, Subsidios y Otras Ayudas",null,null,null,null,null,{"$f":"#REF!","v":{"$error":"#REF!"}},{"$f":"#REF!","v":{"$error":"#REF!"}},{"$f":"#REF!","v":{"$error":"#REF!"}},{"$f":"#REF!","v":{"$error":"#REF!"}},{"$f":"#REF!","v":{"$error":"#REF!"}},{"$f":"#REF!","v":{"$error":"#REF!"}}]
["6,1,2,4,1,0,0",6,1,2,4,1,null,null,null,null,"Transferencias Internas y Asignaciones al Sector Público",null,null,null,null,{"$f":"#REF!","v":{"$error":"#REF!"}},{"$f":"#REF!","v":{"$error":"#REF!"}},{"$f":"#REF!","v":{"$error":"#REF!"}},{"$f":"#REF!","v":{"$error":"#REF!"}},{"$f":"#REF!","v":{"$error":"#REF!"}},{"$f":"#REF!","v":{"$error":"#REF!"}}]
["6,1,2,4,2,0,0",6,1,2,4,2,null,null,null,null,"Transferencias al Resto del Sector Público",null,null,null,null,{"$f":"#REF!","v":{"$error":"#REF!"}},{"$f":"#REF!","v":{"$error":"#REF!"}},{"$f":"#REF!","v":{"$error":"#REF!"}},{"$f":"#REF!","v":{"$error":"#REF!"}},{"$f":"#REF!","v":{"$error":"#REF!"}},{"$f":"#REF!","v":{"$error":"#REF!"}}]
["6,1,2,4,3,0,0",6,1,2,4,3,null,null,null,null,"Subsidios y Subvenciones",null,null,null,null,{"$f":"#REF!","v":{"$error":"#REF!"}},{"$f":"#REF!","v":{"$error":"#REF!"}},{"$f":"#REF!","v":{"$error":"#REF!"}},{"$f":"#REF!","v":{"$error":"#REF!"}},{"$f":"#REF!","v":{"$error":"#REF!"}},{"$f":"#REF!","v":{"$error":"#REF!"}}]
["6,1,2,4,4,0,0",6,1,2,4,4,null,null,null,null,"Ayudas Sociales",null,null,null,null,{"$f":"#REF!","v":{"$error":"#REF!"}},{"$f":"#REF!","v":{"$error":"#REF!"}},{"$f":"#REF!","v":{"$error":"#REF!"}},{"$f":"#REF!","v":{"$error":"#REF!"}},{"$f":"#REF!","v":{"$error":"#REF!"}},{"$f":"#REF!","v":{"$error":"#REF!"}}]
["6,1,2,4,5,0,0",6,1,2,4,5,null,null,null,null,"Pensiones y Jubilaciones",null,null,null,null,{"$f":"#REF!","v":{"$error":"#REF!"}},{"$f":"#REF!","v":{"$error":"#REF!"}},{"$f":"#REF!","v":{"$error":"#REF!"}},{"$f":"#REF!","v":{"$error":"#REF!"}},{"$f":"#REF!","v":{"$error":"#REF!"}},{"$f":"#REF!","v":{"$error":"#REF!"}}]
["6,1,2,4,6,0,0",6,1,2,4,6,null,null,null,null,"Transferencias a Fideicomisos, Mandatos y Otros Análogos",null,null,null,null,{"$f":"#REF!","v":{"$error":"#REF!"}},{"$f":"#REF!","v":{"$error":"#REF!"}},{"$f":"#REF!","v":{"$error":"#REF!"}},{"$f":"#REF!","v":{"$error":"#REF!"}},{"$f":"#REF!","v":{"$error":"#REF!"}},{"$f":"#REF!","v":{"$error":"#REF!"}}]
["6,1,2,4,7,0,0",6,1,2,4,7,null,null,null,null,"Transferencias a la Seguridad Social",null,null,null,null,{"$f":"#REF!","v":{"$error":"#REF!"}},{"$f":"#REF!","v":{"$error":"#REF!"}},{"$f":"#REF!","v":{"$error":"#REF!"}},{"$f":"#REF!","v":{"$error":"#REF!"}},{"$f":"#REF!","v":{"$error":"#REF!"}},{"$f":"#REF!","v":{"$error":"#REF!"}}]
["6,1,2,4,8,0,0",6,1,2,4,8,null,null,null,null,"Donativos",null,null,null,null,{"$f":"#REF!","v":{"$error":"#REF!"}},{"$f":"#REF!","v":{"$error":"#REF!"}},{"$f":"#REF!","v":{"$error":"#REF!"}},{"$f":"#REF!","v":{"$error":"#REF!"}},{"$f":"#REF!","v":{"$error":"#REF!"}},{"$f":"#REF!","v":{"$error":"#REF!"}}]
["6,1,2,4,9,0,0",6,1,2,4,9,null,null,null,null,"Transferencias al Exterior",null,null,null,null,{"$f":"#REF!","v":{"$error":"#REF!"}},{"$f":"#REF!","v":{"$error":"#REF!"}},{"$f":"#REF!","v":{"$error":"#REF!"}},{"$f":"#REF!","v":{"$error":"#REF!"}},{"$f":"#REF!","v":{"$error":"#REF!"}},{"$f":"#REF!","v":{"$error":"#REF!"}}]
["6,1,2,5,0,0,0",6,1,2,5,null,null,null,null,"Bienes Muebles, Inmuebles e Intangibles",null,null,null,null,null,{"$f":"#REF!","v":{"$error":"#REF!"}},{"$f":"#REF!","v":{"$error":"#REF!"}},{"$f":"#REF!","v":{"$error":"#REF!"}},{"$f":"#REF!","v":{"$error":"#REF!"}},{"$f":"#REF!","v":{"$error":"#REF!"}},{"$f":"#REF!","v":{"$error":"#REF!"}}]
["6,1,2,5,1,0,0",6,1,2,5,1,null,null,null,null,"Mobiliario y Equipo de Administración",null,null,null,null,{"$f":"#REF!","v":{"$error":"#REF!"}},{"$f":"#REF!","v":{"$error":"#REF!"}},{"$f":"#REF!","v":{"$error":"#REF!"}},{"$f":"#REF!","v":{"$error":"#REF!"}},{"$f":"#REF!","v":{"$error":"#REF!"}},{"$f":"#REF!","v":{"$error":"#REF!"}}]
["6,1,2,5,2,0,0",6,1,2,5,2,null,null,null,null,"Mobiliario y Equipo Educacional y Recreativo",null,null,null,null,{"$f":"#REF!","v":{"$error":"#REF!"}},{"$f":"#REF!","v":{"$error":"#REF!"}},{"$f":"#REF!","v":{"$error":"#REF!"}},{"$f":"#REF!","v":{"$error":"#REF!"}},{"$f":"#REF!","v":{"$error":"#REF!"}},{"$f":"#REF!","v":{"$error":"#REF!"}}]
["6,1,2,5,3,0,0",6,1,2,5,3,null,null,null,null,"Equipo e Instrumental Médico y de Laboratorio",null,null,null,null,{"$f":"#REF!","v":{"$error":"#REF!"}},{"$f":"#REF!","v":{"$error":"#REF!"}},{"$f":"#REF!","v":{"$error":"#REF!"}},{"$f":"#REF!","v":{"$error":"#REF!"}},{"$f":"#REF!","v":{"$error":"#REF!"}},{"$f":"#REF!","v":{"$error":"#REF!"}}]
["6,1,2,5,4,0,0",6,1,2,5,4,null,null,null,null,"Vehículos y Equipo de Transporte",null,null,null,null,{"$f":"#REF!","v":{"$error":"#REF!"}},{"$f":"#REF!","v":{"$error":"#REF!"}},{"$f":"#REF!","v":{"$error":"#REF!"}},{"$f":"#REF!","v":{"$error":"#REF!"}},{"$f":"#REF!","v":{"$error":"#REF!"}},{"$f":"#REF!","v":{"$error":"#REF!"}}]
["6,1,2,5,5,0,0",6,1,2,5,5,null,null,null,null,"Equipo de Defensa y Seguridad",null,null,null,null,{"$f":"#REF!","v":{"$error":"#REF!"}},{"$f":"#REF!","v":{"$error":"#REF!"}},{"$f":"#REF!","v":{"$error":"#REF!"}},{"$f":"#REF!","v":{"$error":"#REF!"}},{"$f":"#REF!","v":{"$error":"#REF!"}},{"$f":"#REF!","v":{"$error":"#REF!"}}]
["6,1,2,5,6,0,0",6,1,2,5,6,null,null,null,null,"Maquinaria, Otros Equipos y Herramientas",null,null,null,null,{"$f":"#REF!","v":{"$error":"#REF!"}},{"$f":"#REF!","v":{"$error":"#REF!"}},{"$f":"#REF!","v":{"$error":"#REF!"}},{"$f":"#REF!","v":{"$error":"#REF!"}},{"$f":"#REF!","v":{"$error":"#REF!"}},{"$f":"#REF!","v":{"$error":"#REF!"}}]
["6,1,2,5,7,0,0",6,1,2,5,7,null,null,null,null,"Activos Biológicos",null,null,null,null,{"$f":"#REF!","v":{"$error":"#REF!"}},{"$f":"#REF!","v":{"$error":"#REF!"}},{"$f":"#REF!","v":{"$error":"#REF!"}},{"$f":"#REF!","v":{"$error":"#REF!"}},{"$f":"#REF!","v":{"$error":"#REF!"}},{"$f":"#REF!","v":{"$error":"#REF!"}}]
["6,1,2,5,8,0,0",6,1,2,5,8,null,null,null,null,"Bienes Inmuebles",null,null,null,null,{"$f":"#REF!","v":{"$error":"#REF!"}},{"$f":"#REF!","v":{"$error":"#REF!"}},{"$f":"#REF!","v":{"$error":"#REF!"}},{"$f":"#REF!","v":{"$error":"#REF!"}},{"$f":"#REF!","v":{"$error":"#REF!"}},{"$f":"#REF!","v":{"$error":"#REF!"}}]
["6,1,2,5,9,0,0",6,1,2,5,9,null,null,null,null,"Activos Intangibles",null,null,null,null,{"$f":"#REF!","v":{"$error":"#REF!"}},{"$f":"#REF!","v":{"$error":"#REF!"}},{"$f":"#REF!","v":{"$error":"#REF!"}},{"$f":"#REF!","v":{"$error":"#REF!"}},{"$f":"#REF!","v":{"$error":"#REF!"}},{"$f":"#REF!","v":{"$error":"#REF!"}}]
["6,1,2,6,0,0,0",6,1,2,6,null,null,null,null,"Inversión Pública",null,null,null,null,null,{"$f":"#REF!","v":{"$error":"#REF!"}},{"$f":"#REF!","v":{"$error":"#REF!"}},{"$f":"#REF!","v":{"$error":"#REF!"}},{"$f":"#REF!","v":{"$error":"#REF!"}},{"$f":"#REF!","v":{"$error":"#REF!"}},{"$f":"#REF!","v":{"$error":"#REF!"}}]
["6,1,2,6,1,0,0",6,1,2,6,1,null,null,null,null,"Obra Pública en Bienes de Dominio Público",null,null,null,null,{"$f":"#REF!","v":{"$error":"#REF!"}},{"$f":"#REF!","v":{"$error":"#REF!"}},{"$f":"#REF!","v":{"$error":"#REF!"}},{"$f":"#REF!","v":{"$error":"#REF!"}},{"$f":"#REF!","v":{"$error":"#REF!"}},{"$f":"#REF!","v":{"$error":"#REF!"}}]
["6,1,2,6,2,0,0",6,1,2,6,2,null,null,null,null,"Obra Pública en Bienes Propios",null,null,null,null,{"$f":"#REF!","v":{"$error":"#REF!"}},{"$f":"#REF!","v":{"$error":"#REF!"}},{"$f":"#REF!","v":{"$error":"#REF!"}},{"$f":"#REF!","v":{"$error":"#REF!"}},{"$f":"#REF!","v":{"$error":"#REF!"}},{"$f":"#REF!","v":{"$error":"#REF!"}}]
["6,1,2,6,3,0,0",6,1,2,6,3,null,null,null,null,"Proyectos Productivos y Acciones de Fomento",null,null,null,null,{"$f":"#REF!","v":{"$error":"#REF!"}},{"$f":"#REF!","v":{"$error":"#REF!"}},{"$f":"#REF!","v":{"$error":"#REF!"}},{"$f":"#REF!","v":{"$error":"#REF!"}},{"$f":"#REF!","v":{"$error":"#REF!"}},{"$f":"#REF!","v":{"$error":"#REF!"}}]
["6,1,2,7,0,0,0",6,1,2,7,null,null,null,null,"Inversiones Financieras y Otras Provisiones",null,null,null,null,null,{"$f":"#REF!","v":{"$error":"#REF!"}},{"$f":"#REF!","v":{"$error":"#REF!"}},{"$f":"#REF!","v":{"$error":"#REF!"}},{"$f":"#REF!","v":{"$error":"#REF!"}},{"$f":"#REF!","v":{"$error":"#REF!"}},{"$f":"#REF!","v":{"$error":"#REF!"}}]
["6,1,2,7,1,0,0",6,1,2,7,1,null,null,null,null,"Inversiones Para el Fomento de Actividades Productivas",null,null,null,null,{"$f":"#REF!","v":{"$error":"#REF!"}},{"$f":"#REF!","v":{"$error":"#REF!"}},{"$f":"#REF!","v":{"$error":"#REF!"}},{"$f":"#REF!","v":{"$error":"#REF!"}},{"$f":"#REF!","v":{"$error":"#REF!"}},{"$f":"#REF!","v":{"$error":"#REF!"}}]
["6,1,2,7,2,0,0",6,1,2,7,2,null,null,null,null,"Acciones y Participaciones de Capital",null,null,null,null,{"$f":"#REF!","v":{"$error":"#REF!"}},{"$f":"#REF!","v":{"$error":"#REF!"}},{"$f":"#REF!","v":{"$error":"#REF!"}},{"$f":"#REF!","v":{"$error":"#REF!"}},{"$f":"#REF!","v":{"$error":"#REF!"}},{"$f":"#REF!","v":{"$error":"#REF!"}}]
["6,1,2,7,3,0,0",6,1,2,7,3,null,null,null,null,"Compra de Títulos y Valores",null,null,null,null,{"$f":"#REF!","v":{"$error":"#REF!"}},{"$f":"#REF!","v":{"$error":"#REF!"}},{"$f":"#REF!","v":{"$error":"#REF!"}},{"$f":"#REF!","v":{"$error":"#REF!"}},{"$f":"#REF!","v":{"$error":"#REF!"}},{"$f":"#REF!","v":{"$error":"#REF!"}}]
["6,1,2,7,4,0,0",6,1,2,7,4,null,null,null,null,"Concesión de Préstamos",null,null,null,null,{"$f":"#REF!","v":{"$error":"#REF!"}},{"$f":"#REF!","v":{"$error":"#REF!"}},{"$f":"#REF!","v":{"$error":"#REF!"}},{"$f":"#REF!","v":{"$error":"#REF!"}},{"$f":"#REF!","v":{"$error":"#REF!"}},{"$f":"#REF!","v":{"$error":"#REF!"}}]
["6,1,2,7,5,0,0",6,1,2,7,5,null,null,null,null,"Inversiones en Fideicomisos, Mandatos y Otros Análogos",null,null,null,null,{"$f":"#REF!","v":{"$error":"#REF!"}},{"$f":"#REF!","v":{"$error":"#REF!"}},{"$f":"#REF!","v":{"$error":"#REF!"}},{"$f":"#REF!","v":{"$error":"#REF!"}},{"$f":"#REF!","v":{"$error":"#REF!"}},{"$f":"#REF!","v":{"$error":"#REF!"}}]
["6,1,2,7,5,1,0",6,1,2,7,5,1,null,null,null,null,"Fideicomiso de Desastres Naturales (Informativo)",null,null,null,{"$f":"#REF!","v":{"$error":"#REF!"}},{"$f":"#REF!","v":{"$error":"#REF!"}},{"$f":"#REF!","v":{"$error":"#REF!"}},{"$f":"#REF!","v":{"$error":"#REF!"}},{"$f":"#REF!","v":{"$error":"#REF!"}},{"$f":"#REF!","v":{"$error":"#REF!"}}]
["6,1,2,7,6,0,0",6,1,2,7,6,null,null,null,null,"Otras Inversiones Financieras",null,null,null,null,{"$f":"#REF!","v":{"$error":"#REF!"}},{"$f":"#REF!","v":{"$error":"#REF!"}},{"$f":"#REF!","v":{"$error":"#REF!"}},{"$f":"#REF!","v":{"$error":"#REF!"}},{"$f":"#REF!","v":{"$error":"#REF!"}},{"$f":"#REF!","v":{"$error":"#REF!"}}]
["6,1,2,7,7,0,0",6,1,2,7,7,null,null,null,null,"Provisiones para Contingencias y Otras Erogaciones Especiales",null,null,null,null,{"$f":"#REF!","v":{"$error":"#REF!"}},{"$f":"#REF!","v":{"$error":"#REF!"}},{"$f":"#REF!","v":{"$error":"#REF!"}},{"$f":"#REF!","v":{"$error":"#REF!"}},{"$f":"#REF!","v":{"$error":"#REF!"}},{"$f":"#REF!","v":{"$error":"#REF!"}}]
["6,1,2,8,0,0,0",6,1,2,8,null,null,null,null,"Participaciones y Aportaciones",null,null,null,null,null,{"$f":"#REF!","v":{"$error":"#REF!"}},{"$f":"#REF!","v":{"$error":"#REF!"}},{"$f":"#REF!","v":{"$error":"#REF!"}},{"$f":"#REF!","v":{"$error":"#REF!"}},{"$f":"#REF!","v":{"$error":"#REF!"}},{"$f":"#REF!","v":{"$error":"#REF!"}}]
["6,1,2,8,1,0,0",6,1,2,8,1,null,null,null,null,"Participaciones",null,null,null,null,{"$f":"#REF!","v":{"$error":"#REF!"}},{"$f":"#REF!","v":{"$error":"#REF!"}},{"$f":"#REF!","v":{"$error":"#REF!"}},{"$f":"#REF!","v":{"$error":"#REF!"}},{"$f":"#REF!","v":{"$error":"#REF!"}},{"$f":"#REF!","v":{"$error":"#REF!"}}]
["6,1,2,8,2,0,0",6,1,2,8,2,null,null,null,null,"Aportaciones",null,null,null,null,{"$f":"#REF!","v":{"$error":"#REF!"}},{"$f":"#REF!","v":{"$error":"#REF!"}},{"$f":"#REF!","v":{"$error":"#REF!"}},{"$f":"#REF!","v":{"$error":"#REF!"}},{"$f":"#REF!","v":{"$error":"#REF!"}},{"$f":"#REF!","v":{"$error":"#REF!"}}]
[{"$f":"IF(LEN(CLEAN(B141))=0,\"0\",B141)&\",\"&IF(LEN(CLEAN(C141))=0,\"0\",C141)&\",\"&IF(LEN(CLEAN(D141))=0,\"0\",D141)&\",\"&IF(LEN(CLEAN(E141))=0,\"0\",E141)&\",\"&IF(LEN(CLEAN(F141))=0,\"0\",F141)&\",\"&IF(LEN(CLEAN(G141))=0,\"0\",G141)&\",\"&IF(LEN(CLEAN(H141))=0,\"0\",H141)","v":"6,1,2,8,3,0,0"},6,1,2,8,3,null,null,null,null,"Convenios",null,null,null,null,{"$f":"#REF!","v":{"$error":"#REF!"}},{"$f":"#REF!","v":{"$error":"#REF!"}},{"$f":"#REF!","v":{"$error":"#REF!"}},{"$f":"#REF!","v":{"$error":"#REF!"}},{"$f":"#REF!","v":{"$error":"#REF!"}},{"$f":"#REF!","v":{"$error":"#REF!"}}]
["6,1,2,9,0,0,0",6,1,2,9,null,null,null,null,"Deuda Pública",null,null,null,null,null,{"$f":"#REF!","v":{"$error":"#REF!"}},{"$f":"#REF!","v":{"$error":"#REF!"}},{"$f":"#REF!","v":{"$error":"#REF!"}},{"$f":"#REF!","v":{"$error":"#REF!"}},{"$f":"#REF!","v":{"$error":"#REF!"}},{"$f":"#REF!","v":{"$error":"#REF!"}}]
["6,1,2,9,1,0,0",6,1,2,9,1,null,null,null,null,"Amortización de la Deuda Pública",null,null,null,null,{"$f":"#REF!","v":{"$error":"#REF!"}},{"$f":"#REF!","v":{"$error":"#REF!"}},{"$f":"#REF!","v":{"$error":"#REF!"}},{"$f":"#REF!","v":{"$error":"#REF!"}},{"$f":"#REF!","v":{"$error":"#REF!"}},{"$f":"#REF!","v":{"$error":"#REF!"}}]
["6,1,2,9,2,0,0",6,1,2,9,2,null,null,null,null,"Intereses de la Deuda Pública",null,null,null,null,{"$f":"#REF!","v":{"$error":"#REF!"}},{"$f":"#REF!","v":{"$error":"#REF!"}},{"$f":"#REF!","v":{"$error":"#REF!"}},{"$f":"#REF!","v":{"$error":"#REF!"}},{"$f":"#REF!","v":{"$error":"#REF!"}},{"$f":"#REF!","v":{"$error":"#REF!"}}]
["6,1,2,9,3,0,0",6,1,2,9,3,null,null,null,null,"Comisiones de la Deuda Pública",null,null,null,null,{"$f":"#REF!","v":{"$error":"#REF!"}},{"$f":"#REF!","v":{"$error":"#REF!"}},{"$f":"#REF!","v":{"$error":"#REF!"}},{"$f":"#REF!","v":{"$error":"#REF!"}},{"$f":"#REF!","v":{"$error":"#REF!"}},{"$f":"#REF!","v":{"$error":"#REF!"}}]
["6,1,2,9,4,0,0",6,1,2,9,4,null,null,null,null,"Gastos de la Deuda Pública",null,null,null,null,{"$f":"#REF!","v":{"$error":"#REF!"}},{"$f":"#REF!","v":{"$error":"#REF!"}},{"$f":"#REF!","v":{"$error":"#REF!"}},{"$f":"#REF!","v":{"$error":"#REF!"}},{"$f":"#REF!","v":{"$error":"#REF!"}},{"$f":"#REF!","v":{"$error":"#REF!"}}]
["6,1,2,9,5,0,0",6,1,2,9,5,null,null,null,null,"Costo por Coberturas",null,null,null,null,{"$f":"#REF!","v":{"$error":"#REF!"}},{"$f":"#REF!","v":{"$error":"#REF!"}},{"$f":"#REF!","v":{"$error":"#REF!"}},{"$f":"#REF!","v":{"$error":"#REF!"}},{"$f":"#REF!","v":{"$error":"#REF!"}},{"$f":"#REF!","v":{"$error":"#REF!"}}]
["6,1,2,9,6,0,0",6,1,2,9,6,null,null,null,null,"Apoyos Financieros",null,null,null,null,{"$f":"#REF!","v":{"$error":"#REF!"}},{"$f":"#REF!","v":{"$error":"#REF!"}},{"$f":"#REF!","v":{"$error":"#REF!"}},{"$f":"#REF!","v":{"$error":"#REF!"}},{"$f":"#REF!","v":{"$error":"#REF!"}},{"$f":"#REF!","v":{"$error":"#REF!"}}]
["6,1,2,9,7,0,0",6,1,2,9,7,null,null,null,null,"Adeudos de Ejercicios Fiscales Anteriores (ADEFAS)",null,null,null,null,{"$f":"#REF!","v":{"$error":"#REF!"}},{"$f":"#REF!","v":{"$error":"#REF!"}},{"$f":"#REF!","v":{"$error":"#REF!"}},{"$f":"#REF!","v":{"$error":"#REF!"}},{"$f":"#REF!","v":{"$error":"#REF!"}},{"$f":"#REF!","v":{"$error":"#REF!"}}]
["6,1,3,10,0,0,0",6,1,3,10,null,null,null,"Total de Egresos",null,null,null,null,null,null,{"$f":"#REF!","v":{"$error":"#REF!"}},{"$f":"#REF!","v":{"$error":"#REF!"}},{"$f":"#REF!","v":{"$error":"#REF!"}},{"$f":"#REF!","v":{"$error":"#REF!"}},{"$f":"#REF!","v":{"$error":"#REF!"}},{"$f":"#REF!","v":{"$error":"#REF!"}}]

{"sheet":"F06b","index":9,"n_rows":4,"n_cols":21,"rows_kept":4,"cut":false,"hidden":true,"merged":[]}
["CLAVE","N1","N2","N3","N4","N5","N6","N7","C  O  N  C  E  P  T  O  S",null,null,null,null,null,null,"APROBADO","AMPLIACIONES","MODIFICADO","DEVENGADO","PAGADO","SUBEJERCICIO"]
[{"$f":"IF(LEN(CLEAN(B2))=0,\"0\",B2)&\",\"&IF(LEN(CLEAN(C2))=0,\"0\",C2)&\",\"&IF(LEN(CLEAN(D2))=0,\"0\",D2)&\",\"&IF(LEN(CLEAN(E2))=0,\"0\",E2)&\",\"&IF(LEN(CLEAN(F2))=0,\"0\",F2)&\",\"&IF(LEN(CLEAN(G2))=0,\"0\",G2)&\",\"&IF(LEN(CLEAN(H2))=0,\"0\",H2)","v":"6,2,1,0,0,0,0"},6,2,1,null,null,null,null,"Gasto No Etiquetado",null,null,null,null,null,null,{"$f":"GASTO_NE_T1","v":{"$error":"#REF!"}},{"$f":"GASTO_NE_T2","v":{"$error":"#REF!"}},{"$f":"GASTO_NE_T3","v":{"$error":"#REF!"}},{"$f":"GASTO_NE_T4","v":{"$error":"#REF!"}},{"$f":"GASTO_NE_T5","v":{"$error":"#REF!"}},{"$f":"GASTO_NE_T6","v":{"$error":"#REF!"}}]
[{"$f":"IF(LEN(CLEAN(B3))=0,\"0\",B3)&\",\"&IF(LEN(CLEAN(C3))=0,\"0\",C3)&\",\"&IF(LEN(CLEAN(D3))=0,\"0\",D3)&\",\"&IF(LEN(CLEAN(E3))=0,\"0\",E3)&\",\"&IF(LEN(CLEAN(F3))=0,\"0\",F3)&\",\"&IF(LEN(CLEAN(G3))=0,\"0\",G3)&\",\"&IF(LEN(CLEAN(H3))=0,\"0\",H3)","v":"6,2,2,0,0,0,0"},6,2,2,null,null,null,null,"Gasto Etiquetado",null,null,null,null,null,null,{"$f":"GASTO_E_T1","v":{"$error":"#REF!"}},{"$f":"GASTO_E_T2","v":{"$error":"#REF!"}},{"$f":"GASTO_E_T3","v":{"$error":"#REF!"}},{"$f":"GASTO_E_T4","v":{"$error":"#REF!"}},{"$f":"GASTO_E_T5","v":{"$error":"#REF!"}},{"$f":"GASTO_E_T6","v":{"$error":"#REF!"}}]
["6,2,3,0,0,0,0",6,2,3,null,null,null,null,"Total de Egresos",null,null,null,null,null,null,{"$f":"TOTAL_E_T1","v":{"$error":"#REF!"}},{"$f":"TOTAL_E_T2","v":{"$error":"#REF!"}},{"$f":"TOTAL_E_T3","v":{"$error":"#REF!"}},{"$f":"TOTAL_E_T4","v":{"$error":"#REF!"}},{"$f":"TOTAL_E_T5","v":{"$error":"#REF!"}},{"$f":"TOTAL_E_T6","v":{"$error":"#REF!"}}]

{"sheet":"F06c","index":10,"n_rows":68,"n_cols":21,"rows_kept":68,"cut":false,"hidden":true,"merged":[]}
["CLAVE","N1","N2","N3","N4","N5","N6","N7","C  O  N  C  E  P  T  O  S",null,null,null,null,null,null,"APROBADO","AMPLIACIONES","MODIFICADO","DEVENGADO","PAGADO","SUBEJERCICIO"]
[{"$f":"IF(LEN(CLEAN(B2))=0,\"0\",B2)&\",\"&IF(LEN(CLEAN(C2))=0,\"0\",C2)&\",\"&IF(LEN(CLEAN(D2))=0,\"0\",D2)&\",\"&IF(LEN(CLEAN(E2))=0,\"0\",E2)&\",\"&IF(LEN(CLEAN(F2))=0,\"0\",F2)&\",\"&IF(LEN(CLEAN(G2))=0,\"0\",G2)&\",\"&IF(LEN(CLEAN(H2))=0,\"0\",H2)","v":"6,3,1,0,0,0,0"},6,3,1,null,null,null,null,"Gasto No Etiquetado",null,null,null,null,null,null,{"$f":"#REF!","v":{"$error":"#REF!"}},{"$f":"#REF!","v":{"$error":"#REF!"}},{"$f":"#REF!","v":{"$error":"#REF!"}},{"$f":"#REF!","v":{"$error":"#REF!"}},{"$f":"#REF!","v":{"$error":"#REF!"}},{"$f":"#REF!","v":{"$error":"#REF!"}}]
[{"$f":"IF(LEN(CLEAN(B3))=0,\"0\",B3)&\",\"&IF(LEN(CLEAN(C3))=0,\"0\",C3)&\",\"&IF(LEN(CLEAN(D3))=0,\"0\",D3)&\",\"&IF(LEN(CLEAN(E3))=0,\"0\",E3)&\",\"&IF(LEN(CLEAN(F3))=0,\"0\",F3)&\",\"&IF(LEN(CLEAN(G3))=0,\"0\",G3)&\",\"&IF(LEN(CLEAN(H3))=0,\"0\",H3)","v":"6,3,1,1,0,0,0"},6,3,1,1,null,null,null,null,"Gobierno",null,null,null,null,null,{"$f":"#REF!","v":{"$error":"#REF!"}},{"$f":"#REF!","v":{"$error":"#REF!"}},{"$f":"#REF!","v":{"$error":"#REF!"}},{"$f":"#REF!","v":{"$error":"#REF!"}},{"$f":"#REF!","v":{"$error":"#REF!"}},{"$f":"#REF!","v":{"$error":"#REF!"}}]
["6,3,1,1,1,0,0",6,3,1,1,1,null,null,null,null,"Legislación",null,null,null,null,{"$f":"#REF!","v":{"$error":"#REF!"}},{"$f":"#REF!","v":{"$error":"#REF!"}},{"$f":"#REF!","v":{"$error":"#REF!"}},{"$f":"#REF!","v":{"$error":"#REF!"}},{"$f":"#REF!","v":{"$error":"#REF!"}},{"$f":"#REF!","v":{"$error":"#REF!"}}]
["6,3,1,1,2,0,0",6,3,1,1,2,null,null,null,null,"Justicia",null,null,null,null,{"$f":"#REF!","v":{"$error":"#REF!"}},{"$f":"#REF!","v":{"$error":"#REF!"}},{"$f":"#REF!","v":{"$error":"#REF!"}},{"$f":"#REF!","v":{"$error":"#REF!"}},{"$f":"#REF!","v":{"$error":"#REF!"}},{"$f":"#REF!","v":{"$error":"#REF!"}}]
["6,3,1,1,3,0,0",6,3,1,1,3,null,null,null,null,"Coordinación de la Política de Gobierno",null,null,null,null,{"$f":"#REF!","v":{"$error":"#REF!"}},{"$f":"#REF!","v":{"$error":"#REF!"}},{"$f":"#REF!","v":{"$error":"#REF!"}},{"$f":"#REF!","v":{"$error":"#REF!"}},{"$f":"#REF!","v":{"$error":"#REF!"}},{"$f":"#REF!","v":{"$error":"#REF!"}}]
["6,3,1,1,4,0,0",6,3,1,1,4,null,null,null,null,"Relaciones Exteriores",null,null,null,null,{"$f":"#REF!","v":{"$error":"#REF!"}},{"$f":"#REF!","v":{"$error":"#REF!"}},{"$f":"#REF!","v":{"$error":"#REF!"}},{"$f":"#REF!","v":{"$error":"#REF!"}},{"$f":"#REF!","v":{"$error":"#REF!"}},{"$f":"#REF!","v":{"$error":"#REF!"}}]
["6,3,1,1,5,0,0",6,3,1,1,5,null,null,null,null,"Asuntos Financieros y Hacendarios",null,null,null,null,{"$f":"#REF!","v":{"$error":"#REF!"}},{"$f":"#REF!","v":{"$error":"#REF!"}},{"$f":"#REF!","v":{"$error":"#REF!"}},{"$f":"#REF!","v":{"$error":"#REF!"}},{"$f":"#REF!","v":{"$error":"#REF!"}},{"$f":"#REF!","v":{"$error":"#REF!"}}]
["6,3,1,1,6,0,0",6,3,1,1,6,null,null,null,null,"Seguridad Nacional",null,null,null,null,{"$f":"#REF!","v":{"$error":"#REF!"}},{"$f":"#REF!","v":{"$error":"#REF!"}},{"$f":"#REF!","v":{"$error":"#REF!"}},{"$f":"#REF!","v":{"$error":"#REF!"}},{"$f":"#REF!","v":{"$error":"#REF!"}},{"$f":"#REF!","v":{"$error":"#REF!"}}]
["6,3,1,1,7,0,0",6,3,1,1,7,null,null,null,null,"Asuntos de Orden Público y de Seguridad Interior",null,null,null,null,{"$f":"#REF!","v":{"$error":"#REF!"}},{"$f":"#REF!","v":{"$error":"#REF!"}},{"$f":"#REF!","v":{"$error":"#REF!"}},{"$f":"#REF!","v":{"$error":"#REF!"}},{"$f":"#REF!","v":{"$error":"#REF!"}},{"$f":"#REF!","v":{"$error":"#REF!"}}]
["6,3,1,1,8,0,0",6,3,1,1,8,null,null,null,null,"Otros Servicios Generales",null,null,null,null,{"$f":"#REF!","v":{"$error":"#REF!"}},{"$f":"#REF!","v":{"$error":"#REF!"}},{"$f":"#REF!","v":{"$error":"#REF!"}},{"$f":"#REF!","v":{"$error":"#REF!"}},{"$f":"#REF!","v":{"$error":"#REF!"}},{"$f":"#REF!","v":{"$error":"#REF!"}}]
["6,3,1,2,0,0,0",6,3,1,2,null,null,null,null,"Desarrollo Social",null,null,null,null,null,{"$f":"#REF!","v":{"$error":"#REF!"}},{"$f":"#REF!","v":{"$error":"#REF!"}},{"$f":"#REF!","v":{"$error":"#REF!"}},{"$f":"#REF!","v":{"$error":"#REF!"}},{"$f":"#REF!","v":{"$error":"#REF!"}},{"$f":"#REF!","v":{"$error":"#REF!"}}]
["6,3,1,2,1,0,0",6,3,1,2,1,null,null,null,null,"Protección Ambiental ",null,null,null,null,{"$f":"#REF!","v":{"$error":"#REF!"}},{"$f":"#REF!","v":{"$error":"#REF!"}},{"$f":"#REF!","v":{"$error":"#REF!"}},{"$f":"#REF!","v":{"$error":"#REF!"}},{"$f":"#REF!","v":{"$error":"#REF!"}},{"$f":"#REF!","v":{"$error":"#REF!"}}]
["6,3,1,2,2,0,0",6,3,1,2,2,null,null,null,null,"Vivienda y Servicios a la Comunidad",null,null,null,null,{"$f":"#REF!","v":{"$error":"#REF!"}},{"$f":"#REF!","v":{"$error":"#REF!"}},{"$f":"#REF!","v":{"$error":"#REF!"}},{"$f":"#REF!","v":{"$error":"#REF!"}},{"$f":"#REF!","v":{"$error":"#REF!"}},{"$f":"#REF!","v":{"$error":"#REF!"}}]
["6,3,1,2,3,0,0",6,3,1,2,3,null,null,null,null,"Salud",null,null,null,null,{"$f":"#REF!","v":{"$error":"#REF!"}},{"$f":"#REF!","v":{"$error":"#REF!"}},{"$f":"#REF!","v":{"$error":"#REF!"}},{"$f":"#REF!","v":{"$error":"#REF!"}},{"$f":"#REF!","v":{"$error":"#REF!"}},{"$f":"#REF!","v":{"$error":"#REF!"}}]
["6,3,1,2,4,0,0",6,3,1,2,4,null,null,null,null,"Recreación, Cultura y Otras Manifestaciones Sociales",null,null,null,null,{"$f":"#REF!","v":{"$error":"#REF!"}},{"$f":"#REF!","v":{"$error":"#REF!"}},{"$f":"#REF!","v":{"$error":"#REF!"}},{"$f":"#REF!","v":{"$error":"#REF!"}},{"$f":"#REF!","v":{"$error":"#REF!"}},{"$f":"#REF!","v":{"$error":"#REF!"}}]
["6,3,1,2,5,0,0",6,3,1,2,5,null,null,null,null,"Educación ",null,null,null,null,{"$f":"#REF!","v":{"$error":"#REF!"}},{"$f":"#REF!","v":{"$error":"#REF!"}},{"$f":"#REF!","v":{"$error":"#REF!"}},{"$f":"#REF!","v":{"$error":"#REF!"}},{"$f":"#REF!","v":{"$error":"#REF!"}},{"$f":"#REF!","v":{"$error":"#REF!"}}]
["6,3,1,2,6,0,0",6,3,1,2,6,null,null,null,null,"Protección Social",null,null,null,null,{"$f":"#REF!","v":{"$error":"#REF!"}},{"$f":"#REF!","v":{"$error":"#REF!"}},{"$f":"#REF!","v":{"$error":"#REF!"}},{"$f":"#REF!","v":{"$error":"#REF!"}},{"$f":"#REF!","v":{"$error":"#REF!"}},{"$f":"#REF!","v":{"$error":"#REF!"}}]
["6,3,1,2,7,0,0",6,3,1,2,7,null,null,null,null,"Otros Asuntos Sociales",null,null,null,null,{"$f":"#REF!","v":{"$error":"#REF!"}},{"$f":"#REF!","v":{"$error":"#REF!"}},{"$f":"#REF!","v":{"$error":"#REF!"}},{"$f":"#REF!","v":{"$error":"#REF!"}},{"$f":"#REF!","v":{"$error":"#REF!"}},{"$f":"#REF!","v":{"$error":"#REF!"}}]
["6,3,1,3,0,0,0",6,3,1,3,null,null,null,null,"Desarrollo Económico",null,null,null,null,null,{"$f":"#REF!","v":{"$error":"#REF!"}},{"$f":"#REF!","v":{"$error":"#REF!"}},{"$f":"#REF!","v":{"$error":"#REF!"}},{"$f":"#REF!","v":{"$error":"#REF!"}},{"$f":"#REF!","v":{"$error":"#REF!"}},{"$f":"#REF!","v":{"$error":"#REF!"}}]
["6,3,1,3,1,0,0",6,3,1,3,1,null,null,null,null,"Asuntos Económicos, Comerciales y Laborales en General",null,null,null,null,{"$f":"#REF!","v":{"$error":"#REF!"}},{"$f":"#REF!","v":{"$error":"#REF!"}},{"$f":"#REF!","v":{"$error":"#REF!"}},{"$f":"#REF!","v":{"$error":"#REF!"}},{"$f":"#REF!","v":{"$error":"#REF!"}},{"$f":"#REF!","v":{"$error":"#REF!"}}]
["6,3,1,3,2,0,0",6,3,1,3,2,null,null,null,null,"Agropecuaria, Silvicultura, Pesca y Caza",null,null,null,null,{"$f":"#REF!","v":{"$error":"#REF!"}},{"$f":"#REF!","v":{"$error":"#REF!"}},{"$f":"#REF!","v":{"$error":"#REF!"}},{"$f":"#REF!","v":{"$error":"#REF!"}},{"$f":"#REF!","v":{"$error":"#REF!"}},{"$f":"#REF!","v":{"$error":"#REF!"}}]
["6,3,1,3,3,0,0",6,3,1,3,3,null,null,null,null,"Combustibles y Energía ",null,null,null,null,{"$f":"#REF!","v":{"$error":"#REF!"}},{"$f":"#REF!","v":{"$error":"#REF!"}},{"$f":"#REF!","v":{"$error":"#REF!"}},{"$f":"#REF!","v":{"$error":"#REF!"}},{"$f":"#REF!","v":{"$error":"#REF!"}},{"$f":"#REF!","v":{"$error":"#REF!"}}]
["6,3,1,3,4,0,0",6,3,1,3,4,null,null,null,null,"Minería, Manufacturas y Construcción",null,null,null,null,{"$f":"#REF!","v":{"$error":"#REF!"}},{"$f":"#REF!","v":{"$error":"#REF!"}},{"$f":"#REF!","v":{"$error":"#REF!"}},{"$f":"#REF!","v":{"$error":"#REF!"}},{"$f":"#REF!","v":{"$error":"#REF!"}},{"$f":"#REF!","v":{"$error":"#REF!"}}]
["6,3,1,3,5,0,0",6,3,1,3,5,null,null,null,null,"Transporte",null,null,null,null,{"$f":"#REF!","v":{"$error":"#REF!"}},{"$f":"#REF!","v":{"$error":"#REF!"}},{"$f":"#REF!","v":{"$error":"#REF!"}},{"$f":"#REF!","v":{"$error":"#REF!"}},{"$f":"#REF!","v":{"$error":"#REF!"}},{"$f":"#REF!","v":{"$error":"#REF!"}}]
["6,3,1,3,6,0,0",6,3,1,3,6,null,null,null,null,"Comunicaciones",null,null,null,null,{"$f":"#REF!","v":{"$error":"#REF!"}},{"$f":"#REF!","v":{"$error":"#REF!"}},{"$f":"#REF!","v":{"$error":"#REF!"}},{"$f":"#REF!","v":{"$error":"#REF!"}},{"$f":"#REF!","v":{"$error":"#REF!"}},{"$f":"#REF!","v":{"$error":"#REF!"}}]
["6,3,1,3,7,0,0",6,3,1,3,7,null,null,null,null,"Turismo",null,null,null,null,{"$f":"#REF!","v":{"$error":"#REF!"}},{"$f":"#REF!","v":{"$error":"#REF!"}},{"$f":"#REF!","v":{"$error":"#REF!"}},{"$f":"#REF!","v":{"$error":"#REF!"}},{"$f":"#REF!","v":{"$error":"#REF!"}},{"$f":"#REF!","v":{"$error":"#REF!"}}]
["6,3,1,3,8,0,0",6,3,1,3,8,null,null,null,null,"Ciencia, Tecnología e Innovación",null,null,null,null,{"$f":"#REF!","v":{"$error":"#REF!"}},{"$f":"#REF!","v":{"$error":"#REF!"}},{"$f":"#REF!","v":{"$error":"#REF!"}},{"$f":"#REF!","v":{"$error":"#REF!"}},{"$f":"#REF!","v":{"$error":"#REF!"}},{"$f":"#REF!","v":{"$error":"#REF!"}}]
["6,3,1,3,9,0,0",6,3,1,3,9,null,null,null,null,"Otras Industrias y Otros Asuntos Económicos",null,null,null,null,{"$f":"#REF!","v":{"$error":"#REF!"}},{"$f":"#REF!","v":{"$error":"#REF!"}},{"$f":"#REF!","v":{"$error":"#REF!"}},{"$f":"#REF!","v":{"$error":"#REF!"}},{"$f":"#REF!","v":{"$error":"#REF!"}},{"$f":"#REF!","v":{"$error":"#REF!"}}]
["6,3,1,4,0,0,0",6,3,1,4,null,null,null,null,"Otras Nno Clasificadas en Funciones Anteriores",null,null,null,null,null,{"$f":"#REF!","v":{"$error":"#REF!"}},{"$f":"#REF!","v":{"$error":"#REF!"}},{"$f":"#REF!","v":{"$error":"#REF!"}},{"$f":"#REF!","v":{"$error":"#REF!"}},{"$f":"#REF!","v":{"$error":"#REF!"}},{"$f":"#REF!","v":{"$error":"#REF!"}}]
["6,3,1,4,1,0,0",6,3,1,4,1,null,null,null,null,"Transacciones de la Deuda Pública / Costo Financiero de la Deuda",null,null,null,null,{"$f":"#REF!","v":{"$error":"#REF!"}},{"$f":"#REF!","v":{"$error":"#REF!"}},{"$f":"#REF!","v":{"$error":"#REF!"}},{"$f":"#REF!","v":{"$error":"#REF!"}},{"$f":"#REF!","v":{"$error":"#REF!"}},{"$f":"#REF!","v":{"$error":"#REF!"}}]
["6,3,1,4,2,0,0",6,3,1,4,2,null,null,null,null,"Transferencias, Participaciones y Aportaciones Entre Diferentes Niveles y Órdenes de Gobierno",null,null,null,null,{"$f":"#REF!","v":{"$error":"#REF!"}},{"$f":"#REF!","v":{"$error":"#REF!"}},{"$f":"#REF!","v":{"$error":"#REF!"}},{"$f":"#REF!","v":{"$error":"#REF!"}},{"$f":"#REF!","v":{"$error":"#REF!"}},{"$f":"#REF!","v":{"$error":"#REF!"}}]
["6,3,1,4,3,0,0",6,3,1,4,3,null,null,null,null,"Saneamiento del Sistema Financiero",null,null,null,null,{"$f":"#REF!","v":{"$error":"#REF!"}},{"$f":"#REF!","v":{"$error":"#REF!"}},{"$f":"#REF!","v":{"$error":"#REF!"}},{"$f":"#REF!","v":{"$error":"#REF!"}},{"$f":"#REF!","v":{"$error":"#REF!"}},{"$f":"#REF!","v":{"$error":"#REF!"}}]
["6,3,1,4,4,0,0",6,3,1,4,4,null,null,null,null,"Adeudos de Ejercicios Fiscales Anteriores",null,null,null,null,{"$f":"#REF!","v":{"$error":"#REF!"}},{"$f":"#REF!","v":{"$error":"#REF!"}},{"$f":"#REF!","v":{"$error":"#REF!"}},{"$f":"#REF!","v":{"$error":"#REF!"}},{"$f":"#REF!","v":{"$error":"#REF!"}},{"$f":"#REF!","v":{"$error":"#REF!"}}]
["6,3,2,0,0,0,0",6,3,2,null,null,null,null,"Gasto Etiquetado",null,null,null,null,null,null,{"$f":"#REF!","v":{"$error":"#REF!"}},{"$f":"#REF!","v":{"$error":"#REF!"}},{"$f":"#REF!","v":{"$error":"#REF!"}},{"$f":"#REF!","v":{"$error":"#REF!"}},{"$f":"#REF!","v":{"$error":"#REF!"}},{"$f":"#REF!","v":{"$error":"#REF!"}}]
["6,3,2,1,0,0,0",6,3,2,1,null,null,null,null,"Gobierno",null,null,null,null,null,{"$f":"#REF!","v":{"$error":"#REF!"}},{"$f":"#REF!","v":{"$error":"#REF!"}},{"$f":"#REF!","v":{"$error":"#REF!"}},{"$f":"#REF!","v":{"$error":"#REF!"}},{"$f":"#REF!","v":{"$error":"#REF!"}},{"$f":"#REF!","v":{"$error":"#REF!"}}]
["6,3,2,1,1,0,0",6,3,2,1,1,null,null,null,null,"Legislación",null,null,null,null,{"$f":"#REF!","v":{"$error":"#REF!"}},{"$f":"#REF!","v":{"$error":"#REF!"}},{"$f":"#REF!","v":{"$error":"#REF!"}},{"$f":"#REF!","v":{"$error":"#REF!"}},{"$f":"#REF!","v":{"$error":"#REF!"}},{"$f":"#REF!","v":{"$error":"#REF!"}}]
["6,3,2,1,2,0,0",6,3,2,1,2,null,null,null,null,"Justicia",null,null,null,null,{"$f":"#REF!","v":{"$error":"#REF!"}},{"$f":"#REF!","v":{"$error":"#REF!"}},{"$f":"#REF!","v":{"$error":"#REF!"}},{"$f":"#REF!","v":{"$error":"#REF!"}},{"$f":"#REF!","v":{"$error":"#REF!"}},{"$f":"#REF!","v":{"$error":"#REF!"}}]
["6,3,2,1,3,0,0",6,3,2,1,3,null,null,null,null,"Coordinación de la Política de Gobierno",null,null,null,null,{"$f":"#REF!","v":{"$error":"#REF!"}},{"$f":"#REF!","v":{"$error":"#REF!"}},{"$f":"#REF!","v":{"$error":"#REF!"}},{"$f":"#REF!","v":{"$error":"#REF!"}},{"$f":"#REF!","v":{"$error":"#REF!"}},{"$f":"#REF!","v":{"$error":"#REF!"}}]
["6,3,2,1,4,0,0",6,3,2,1,4,null,null,null,null,"Relaciones Exteriores",null,null,null,null,{"$f":"#REF!","v":{"$error":"#REF!"}},{"$f":"#REF!","v":{"$error":"#REF!"}},{"$f":"#REF!","v":{"$error":"#REF!"}},{"$f":"#REF!","v":{"$error":"#REF!"}},{"$f":"#REF!","v":{"$error":"#REF!"}},{"$f":"#REF!","v":{"$error":"#REF!"}}]
["6,3,2,1,5,0,0",6,3,2,1,5,null,null,null,null,"Asuntos Financieros y Hacendarios",null,null,null,null,{"$f":"#REF!","v":{"$error":"#REF!"}},{"$f":"#REF!","v":{"$error":"#REF!"}},{"$f":"#REF!","v":{"$error":"#REF!"}},{"$f":"#REF!","v":{"$error":"#REF!"}},{"$f":"#REF!","v":{"$error":"#REF!"}},{"$f":"#REF!","v":{"$error":"#REF!"}}]
["6,3,2,1,6,0,0",6,3,2,1,6,null,null,null,null,"Seguridad Nacional",null,null,null,null,{"$f":"#REF!","v":{"$error":"#REF!"}},{"$f":"#REF!","v":{"$error":"#REF!"}},{"$f":"#REF!","v":{"$error":"#REF!"}},{"$f":"#REF!","v":{"$error":"#REF!"}},{"$f":"#REF!","v":{"$error":"#REF!"}},{"$f":"#REF!","v":{"$error":"#REF!"}}]
["6,3,2,1,7,0,0",6,3,2,1,7,null,null,null,null,"Asuntos de Orden Público y de Seguridad Interior",null,null,null,null,{"$f":"#REF!","v":{"$error":"#REF!"}},{"$f":"#REF!","v":{"$error":"#REF!"}},{"$f":"#REF!","v":{"$error":"#REF!"}},{"$f":"#REF!","v":{"$error":"#REF!"}},{"$f":"#REF!","v":{"$error":"#REF!"}},{"$f":"#REF!","v":{"$error":"#REF!"}}]
["6,3,2,1,8,0,0",6,3,2,1,8,null,null,null,null,"Otros Servicios Generales",null,null,null,null,{"$f":"#REF!","v":{"$error":"#REF!"}},{"$f":"#REF!","v":{"$error":"#REF!"}},{"$f":"#REF!","v":{"$error":"#REF!"}},{"$f":"#REF!","v":{"$error":"#REF!"}},{"$f":"#REF!","v":{"$error":"#REF!"}},{"$f":"#REF!","v":{"$error":"#REF!"}}]
["6,3,2,2,0,0,0",6,3,2,2,null,null,null,null,"Desarrollo Social",null,null,null,null,null,{"$f":"#REF!","v":{"$error":"#REF!"}},{"$f":"#REF!","v":{"$error":"#REF!"}},{"$f":"#REF!","v":{"$error":"#REF!"}},{"$f":"#REF!","v":{"$error":"#REF!"}},{"$f":"#REF!","v":{"$error":"#REF!"}},{"$f":"#REF!","v":{"$error":"#REF!"}}]
["6,3,2,2,1,0,0",6,3,2,2,1,null,null,null,null,"Protección Ambiental ",null,null,null,null,{"$f":"#REF!","v":{"$error":"#REF!"}},{"$f":"#REF!","v":{"$error":"#REF!"}},{"$f":"#REF!","v":{"$error":"#REF!"}},{"$f":"#REF!","v":{"$error":"#REF!"}},{"$f":"#REF!","v":{"$error":"#REF!"}},{"$f":"#REF!","v":{"$error":"#REF!"}}]
["6,3,2,2,2,0,0",6,3,2,2,2,null,null,null,null,"Vivienda y Servicios a la Comunidad",null,null,null,null,{"$f":"#REF!","v":{"$error":"#REF!"}},{"$f":"#REF!","v":{"$error":"#REF!"}},{"$f":"#REF!","v":{"$error":"#REF!"}},{"$f":"#REF!","v":{"$error":"#REF!"}},{"$f":"#REF!","v":{"$error":"#REF!"}},{"$f":"#REF!","v":{"$error":"#REF!"}}]
["6,3,2,2,3,0,0",6,3,2,2,3,null,null,null,null,"Salud",null,null,null,null,{"$f":"#REF!","v":{"$error":"#REF!"}},{"$f":"#REF!","v":{"$error":"#REF!"}},{"$f":"#REF!","v":{"$error":"#REF!"}},{"$f":"#REF!","v":{"$error":"#REF!"}},{"$f":"#REF!","v":{"$error":"#REF!"}},{"$f":"#REF!","v":{"$error":"#REF!"}}]
["6,3,2,2,4,0,0",6,3,2,2,4,null,null,null,null,"Recreación, Cultura y Otras Manifestaciones Sociales",null,null,null,null,{"$f":"#REF!","v":{"$error":"#REF!"}},{"$f":"#REF!","v":{"$error":"#REF!"}},{"$f":"#REF!","v":{"$error":"#REF!"}},{"$f":"#REF!","v":{"$error":"#REF!"}},{"$f":"#REF!","v":{"$error":"#REF!"}},{"$f":"#REF!","v":{"$error":"#REF!"}}]
["6,3,2,2,5,0,0",6,3,2,2,5,null,null,null,null,"Educación ",null,null,null,null,{"$f":"#REF!","v":{"$error":"#REF!"}},{"$f":"#REF!","v":{"$error":"#REF!"}},{"$f":"#REF!","v":{"$error":"#REF!"}},{"$f":"#REF!","v":{"$error":"#REF!"}},{"$f":"#REF!","v":{"$error":"#REF!"}},{"$f":"#REF!","v":{"$error":"#REF!"}}]
["6,3,2,2,6,0,0",6,3,2,2,6,null,null,null,null,"Protección Social",null,null,null,null,{"$f":"#REF!","v":{"$error":"#REF!"}},{"$f":"#REF!","v":{"$error":"#REF!"}},{"$f":"#REF!","v":{"$error":"#REF!"}},{"$f":"#REF!","v":{"$error":"#REF!"}},{"$f":"#REF!","v":{"$error":"#REF!"}},{"$f":"#REF!","v":{"$error":"#REF!"}}]
["6,3,2,2,7,0,0",6,3,2,2,7,null,null,null,null,"Otros Asuntos Sociales",null,null,null,null,{"$f":"#REF!","v":{"$error":"#REF!"}},{"$f":"#REF!","v":{"$error":"#REF!"}},{"$f":"#REF!","v":{"$error":"#REF!"}},{"$f":"#REF!","v":{"$error":"#REF!"}},{"$f":"#REF!","v":{"$error":"#REF!"}},{"$f":"#REF!","v":{"$error":"#REF!"}}]
["6,3,2,3,0,0,0",6,3,2,3,null,null,null,null,"Desarrollo Económico",null,null,null,null,null,{"$f":"#REF!","v":{"$error":"#REF!"}},{"$f":"#REF!","v":{"$error":"#REF!"}},{"$f":"#REF!","v":{"$error":"#REF!"}},{"$f":"#REF!","v":{"$error":"#REF!"}},{"$f":"#REF!","v":{"$error":"#REF!"}},{"$f":"#REF!","v":{"$error":"#REF!"}}]
["6,3,2,3,1,0,0",6,3,2,3,1,null,null,null,null,"Asuntos Económicos, Comerciales y Laborales en General",null,null,null,null,{"$f":"#REF!","v":{"$error":"#REF!"}},{"$f":"#REF!","v":{"$error":"#REF!"}},{"$f":"#REF!","v":{"$error":"#REF!"}},{"$f":"#REF!","v":{"$error":"#REF!"}},{"$f":"#REF!","v":{"$error":"#REF!"}},{"$f":"#REF!","v":{"$error":"#REF!"}}]
["6,3,2,3,2,0,0",6,3,2,3,2,null,null,null,null,"Agropecuaria, Silvicultura, Pesca y Caza",null,null,null,null,{"$f":"#REF!","v":{"$error":"#REF!"}},{"$f":"#REF!","v":{"$error":"#REF!"}},{"$f":"#REF!","v":{"$error":"#REF!"}},{"$f":"#REF!","v":{"$error":"#REF!"}},{"$f":"#REF!","v":{"$error":"#REF!"}},{"$f":"#REF!","v":{"$error":"#REF!"}}]
["6,3,2,3,3,0,0",6,3,2,3,3,null,null,null,null,"Combustibles y Energía ",null,null,null,null,{"$f":"#REF!","v":{"$error":"#REF!"}},{"$f":"#REF!","v":{"$error":"#REF!"}},{"$f":"#REF!","v":{"$error":"#REF!"}},{"$f":"#REF!","v":{"$error":"#REF!"}},{"$f":"#REF!","v":{"$error":"#REF!"}},{"$f":"#REF!","v":{"$error":"#REF!"}}]
["6,3,2,3,4,0,0",6,3,2,3,4,null,null,null,null,"Minería, Manufacturas y Construcción",null,null,null,null,{"$f":"#REF!","v":{"$error":"#REF!"}},{"$f":"#REF!","v":{"$error":"#REF!"}},{"$f":"#REF!","v":{"$error":"#REF!"}},{"$f":"#REF!","v":{"$error":"#REF!"}},{"$f":"#REF!","v":{"$error":"#REF!"}},{"$f":"#REF!","v":{"$error":"#REF!"}}]
["6,3,2,3,5,0,0",6,3,2,3,5,null,null,null,null,"Transporte",null,null,null,null,{"$f":"#REF!","v":{"$error":"#REF!"}},{"$f":"#REF!","v":{"$error":"#REF!"}},{"$f":"#REF!","v":{"$error":"#REF!"}},{"$f":"#REF!","v":{"$error":"#REF!"}},{"$f":"#REF!","v":{"$error":"#REF!"}},{"$f":"#REF!","v":{"$error":"#REF!"}}]
["6,3,2,3,6,0,0",6,3,2,3,6,null,null,null,null,"Comunicaciones",null,null,null,null,{"$f":"#REF!","v":{"$error":"#REF!"}},{"$f":"#REF!","v":{"$error":"#REF!"}},{"$f":"#REF!","v":{"$error":"#REF!"}},{"$f":"#REF!","v":{"$error":"#REF!"}},{"$f":"#REF!","v":{"$error":"#REF!"}},{"$f":"#REF!","v":{"$error":"#REF!"}}]
["6,3,2,3,7,0,0",6,3,2,3,7,null,null,null,null,"Turismo",null,null,null,null,{"$f":"#REF!","v":{"$error":"#REF!"}},{"$f":"#REF!","v":{"$error":"#REF!"}},{"$f":"#REF!","v":{"$error":"#REF!"}},{"$f":"#REF!","v":{"$error":"#REF!"}},{"$f":"#REF!","v":{"$error":"#REF!"}},{"$f":"#REF!","v":{"$error":"#REF!"}}]
["6,3,2,3,8,0,0",6,3,2,3,8,null,null,null,null,"Ciencia, Tecnología e Innovación",null,null,null,null,{"$f":"#REF!","v":{"$error":"#REF!"}},{"$f":"#REF!","v":{"$error":"#REF!"}},{"$f":"#REF!","v":{"$error":"#REF!"}},{"$f":"#REF!","v":{"$error":"#REF!"}},{"$f":"#REF!","v":{"$error":"#REF!"}},{"$f":"#REF!","v":{"$error":"#REF!"}}]
["6,3,2,3,9,0,0",6,3,2,3,9,null,null,null,null,"Otras Industrias y Otros Asuntos Económicos",null,null,null,null,{"$f":"#REF!","v":{"$error":"#REF!"}},{"$f":"#REF!","v":{"$error":"#REF!"}},{"$f":"#REF!","v":{"$error":"#REF!"}},{"$f":"#REF!","v":{"$error":"#REF!"}},{"$f":"#REF!","v":{"$error":"#REF!"}},{"$f":"#REF!","v":{"$error":"#REF!"}}]
["6,3,2,4,0,0,0",6,3,2,4,null,null,null,null,"Otras No Clasificadas en Funciones Anteriores",null,null,null,null,null,{"$f":"#REF!","v":{"$error":"#REF!"}},{"$f":"#REF!","v":{"$error":"#REF!"}},{"$f":"#REF!","v":{"$error":"#REF!"}},{"$f":"#REF!","v":{"$error":"#REF!"}},{"$f":"#REF!","v":{"$error":"#REF!"}},{"$f":"#REF!","v":{"$error":"#REF!"}}]
["6,3,2,4,1,0,0",6,3,2,4,1,null,null,null,null,"Transacciones de la Deuda Pública / Costo Financiero de la Deuda",null,null,null,null,{"$f":"#REF!","v":{"$error":"#REF!"}},{"$f":"#REF!","v":{"$error":"#REF!"}},{"$f":"#REF!","v":{"$error":"#REF!"}},{"$f":"#REF!","v":{"$error":"#REF!"}},{"$f":"#REF!","v":{"$error":"#REF!"}},{"$f":"#REF!","v":{"$error":"#REF!"}}]
["6,3,2,4,2,0,0",6,3,2,4,2,null,null,null,null,"Transferencias, Participaciones y Aportaciones Entre Diferentes Niveles y Órdenes de Gobierno",null,null,null,null,{"$f":"#REF!","v":{"$error":"#REF!"}},{"$f":"#REF!","v":{"$error":"#REF!"}},{"$f":"#REF!","v":{"$error":"#REF!"}},{"$f":"#REF!","v":{"$error":"#REF!"}},{"$f":"#REF!","v":{"$error":"#REF!"}},{"$f":"#REF!","v":{"$error":"#REF!"}}]
["6,3,2,4,3,0,0",6,3,2,4,3,null,null,null,null,"Saneamiento del Sistema Financiero",null,null,null,null,{"$f":"#REF!","v":{"$error":"#REF!"}},{"$f":"#REF!","v":{"$error":"#REF!"}},{"$f":"#REF!","v":{"$error":"#REF!"}},{"$f":"#REF!","v":{"$error":"#REF!"}},{"$f":"#REF!","v":{"$error":"#REF!"}},{"$f":"#REF!","v":{"$error":"#REF!"}}]
[{"$f":"IF(LEN(CLEAN(B67))=0,\"0\",B67)&\",\"&IF(LEN(CLEAN(C67))=0,\"0\",C67)&\",\"&IF(LEN(CLEAN(D67))=0,\"0\",D67)&\",\"&IF(LEN(CLEAN(E67))=0,\"0\",E67)&\",\"&IF(LEN(CLEAN(F67))=0,\"0\",F67)&\",\"&IF(LEN(CLEAN(G67))=0,\"0\",G67)&\",\"&IF(LEN(CLEAN(H67))=0,\"0\",H67)","v":"6,3,2,4,4,0,0"},6,3,2,4,4,null,null,null,null,"Adeudos de Ejercicios Fiscales Anteriores",null,null,null,null,{"$f":"#REF!","v":{"$error":"#REF!"}},{"$f":"#REF!","v":{"$error":"#REF!"}},{"$f":"#REF!","v":{"$error":"#REF!"}},{"$f":"#REF!","v":{"$error":"#REF!"}},{"$f":"#REF!","v":{"$error":"#REF!"}},{"$f":"#REF!","v":{"$error":"#REF!"}}]
["6,3,3,0,0,0,0",6,3,3,null,null,null,null,"Total de Egresos",null,null,null,null,null,null,{"$f":"#REF!","v":{"$error":"#REF!"}},{"$f":"#REF!","v":{"$error":"#REF!"}},{"$f":"#REF!","v":{"$error":"#REF!"}},{"$f":"#REF!","v":{"$error":"#REF!"}},{"$f":"#REF!","v":{"$error":"#REF!"}},{"$f":"#REF!","v":{"$error":"#REF!"}}]

{"sheet":"Formato 6 d)","index":11,"n_rows":32,"n_cols":7,"rows_kept":32,"cut":false,"hidden":false,"merged":[[5,0,6,0],[5,1,5,5],[5,6,6,6],[0,0,0,6],[1,0,1,6],[2,0,2,6],[3,0,3,6],[4,0,4,6]]}
[{"$f":"ENTE_PUBLICO_A","v":"Municipio de Santiago Maravatio, Gobierno del Estado de Guanajuato (a)"}]
["Estado Analítico del Ejercicio del Presupuesto de Egresos Detallado - LDF"]
["Clasificación de Servicios Personales por Categoría"]
[{"$f":"TRIMESTRE","v":"Del 1 de enero al 31 de diciembre de 2021 (b)"}]
["(PESOS)"]
["Concepto ( c )","Egresos",null,null,null,null,"Subejercicio (e)"]
[null,"Aprobado (d)","Ampliaciones / (Reducciones)","Modificado","Devengado","Pagado"]
["I. Gasto No Etiquetado (I=A+B+C+D+E+F)",{"$f":"B9+B10+B11+B14+B15+B18","v":33060235.800000001},{"$f":"C9+C10+C11+C14+C15+C18","v":1589276.38},34649512.18,32892208.050000001,32892208.050000001,1757304.129999999]
["A. Personal Administrativo",33060235.800000001,1589276.38,{"$f":"B9+C9","v":34649512.18},32892208.050000001,32892208.050000001,{"$f":"D9-E9","v":1757304.129999999}]
["B. Magisterio",null,null,{"$f":"B10+C10","v":0},null,null,{"$f":"D10-E10","v":0}]
["C. Servicios de Salud (C=c1+c2)",{"$f":"B12+B13","v":0},{"$f":"C12+C13","v":0},0,0,0,0]
["c1) Personal Administrativo",null,null,{"$f":"B12+C12","v":0},null,null,{"$f":"D12-E12","v":0}]
["c2) Personal Médico, paramédico y afín",null,null,{"$f":"B13+C13","v":0},null,null,{"$f":"D13-E13","v":0}]
["D. Seguridad Pública",null,null,{"$f":"B14+C14","v":0},null,null,{"$f":"D14-E14","v":0}]
["E. Gastos asociados a la implementación de nuevas leyes federales o reformas a las mismas (E=e1+e2)",{"$f":"B16+B17","v":0},{"$f":"C16+C17","v":0},0,0,0,0]
["e1) Nombre del Programa o Ley 1",null,null,{"$f":"B16+C16","v":0},null,null,{"$f":"D16-E16","v":0}]
["e2) Nombre del Programa o Ley 2",null,null,{"$f":"B17+C17","v":0},null,null,{"$f":"D17-E17","v":0}]
["F. Sentencias laborales definitivas",null,null,{"$f":"B18+C18","v":0},null,null,{"$f":"D18-E18","v":0}]
[]
["II. Gasto  Etiquetado (I=A+B+C+D+E+F)",{"$f":"B21+B22+B23+B26+B27+B30","v":0},{"$f":"C21+C22+C23+C26+C27+C30","v":0},0,0,0,0]
["A. Personal Administrativo",0,0,{"$f":"B21+C21","v":0},0,0,{"$f":"D21-E21","v":0}]
["B. Magisterio",null,null,{"$f":"B22+C22","v":0},null,null,{"$f":"D22-E22","v":0}]
["C. Servicios de Salud (C=c1+c2)",{"$f":"B24+B25","v":0},{"$f":"C24+C25","v":0},{"$f":"D24+D25","v":0},{"$f":"E24+E25","v":0},0,0]
["c1) Personal Administrativo",null,null,{"$f":"B24+C24","v":0},null,null,{"$f":"D24-E24","v":0}]
["c2) Personal Médico, paramédico y afín",null,null,{"$f":"B25+C25","v":0},null,null,{"$f":"D25-E25","v":0}]
["D. Seguridad Pública"]
["E. Gastos asociados a la implementación de nuevas leyes federales o reformas a las mismas (E=e1+e2)",{"$f":"B28+B29","v":0},{"$f":"C28+C29","v":0},0,0,0,0]
["e1) Nombre del Programa o Ley 1",null,null,{"$f":"B28+C28","v":0},null,null,{"$f":"D28-E28","v":0}]
["e2) Nombre del Programa o Ley 2",null,null,{"$f":"B29+C29","v":0},null,null,{"$f":"D29-E29","v":0}]
["F. Sentencias laborales definitivas",null,null,{"$f":"B30+C30","v":0},null,null,{"$f":"D30-E30","v":0}]
[]
["III. Total de Gasto en Servicios Personales (III = I + II)",{"$f":"B8+B20","v":33060235.800000001},{"$f":"C8+C20","v":1589276.38},34649512.18,32892208.050000001,32892208.050000001,1757304.129999999]

{"sheet":"F06d","index":12,"n_rows":24,"n_cols":21,"rows_kept":24,"cut":false,"hidden":true,"merged":[]}
["CLAVE","N1","N2","N3","N4","N5","N6","N7","C  O  N  C  E  P  T  O  S",null,null,null,null,null,null,"APROBADO","AMPLIACIONES","MODIFICADO","DEVENGADO","PAGADO","SUBEJERCICIO"]
[{"$f":"IF(LEN(CLEAN(B2))=0,\"0\",B2)&\",\"&IF(LEN(CLEAN(C2))=0,\"0\",C2)&\",\"&IF(LEN(CLEAN(D2))=0,\"0\",D2)&\",\"&IF(LEN(CLEAN(E2))=0,\"0\",E2)&\",\"&IF(LEN(CLEAN(F2))=0,\"0\",F2)&\",\"&IF(LEN(CLEAN(G2))=0,\"0\",G2)&\",\"&IF(LEN(CLEAN(H2))=0,\"0\",H2)","v":"6,4,1,0,0,0,0"},6,4,1,null,null,null,null,"Gasto No Etiquetado",null,null,null,null,null,null,{"$f":"'Formato 6 d)'!B8","v":33060235.800000001},{"$f":"'Formato 6 d)'!C8","v":1589276.38},{"$f":"'Formato 6 d)'!D8","v":34649512.18},{"$f":"'Formato 6 d)'!E8","v":32892208.050000001},{"$f":"'Formato 6 d)'!F8","v":32892208.050000001},{"$f":"'Formato 6 d)'!G8","v":1757304.129999999}]
[{"$f":"IF(LEN(CLEAN(B3))=0,\"0\",B3)&\",\"&IF(LEN(CLEAN(C3))=0,\"0\",C3)&\",\"&IF(LEN(CLEAN(D3))=0,\"0\",D3)&\",\"&IF(LEN(CLEAN(E3))=0,\"0\",E3)&\",\"&IF(LEN(CLEAN(F3))=0,\"0\",F3)&\",\"&IF(LEN(CLEAN(G3))=0,\"0\",G3)&\",\"&IF(LEN(CLEAN(H3))=0,\"0\",H3)","v":"6,4,1,1,0,0,0"},6,4,1,1,null,null,null,null,"Personal Administrativo",null,null,null,null,null,{"$f":"'Formato 6 d)'!B9","v":33060235.800000001},{"$f":"'Formato 6 d)'!C9","v":1589276.38},{"$f":"'Formato 6 d)'!D9","v":34649512.18},{"$f":"'Formato 6 d)'!E9","v":32892208.050000001},{"$f":"'Formato 6 d)'!F9","v":32892208.050000001},{"$f":"'Formato 6 d)'!G9","v":1757304.129999999}]
["6,4,1,2,0,0,0",6,4,1,2,null,null,null,null,"Magisterio",null,null,null,null,null,{"$f":"'Formato 6 d)'!B10","v":0},{"$f":"'Formato 6 d)'!C10","v":0},{"$f":"'Formato 6 d)'!D10","v":0},{"$f":"'Formato 6 d)'!E10","v":0},{"$f":"'Formato 6 d)'!F10","v":0},{"$f":"'Formato 6 d)'!G10","v":0}]
["6,4,1,3,0,0,0",6,4,1,3,null,null,null,null,"Servicios de Salud",null,null,null,null,null,{"$f":"'Formato 6 d)'!B11","v":0},{"$f":"'Formato 6 d)'!C11","v":0},{"$f":"'Formato 6 d)'!D11","v":0},{"$f":"'Formato 6 d)'!E11","v":0},{"$f":"'Formato 6 d)'!F11","v":0},{"$f":"'Formato 6 d)'!G11","v":0}]
["6,4,1,3,1,0,0",6,4,1,3,1,null,null,null,null,"Personal Administrativo",null,null,null,null,{"$f":"'Formato 6 d)'!B12","v":0},{"$f":"'Formato 6 d)'!C12","v":0},{"$f":"'Formato 6 d)'!D12","v":0},{"$f":"'Formato 6 d)'!E12","v":0},{"$f":"'Formato 6 d)'!F12","v":0},{"$f":"'Formato 6 d)'!G12","v":0}]
[{"$f":"IF(LEN(CLEAN(B7))=0,\"0\",B7)&\",\"&IF(LEN(CLEAN(C7))=0,\"0\",C7)&\",\"&IF(LEN(CLEAN(D7))=0,\"0\",D7)&\",\"&IF(LEN(CLEAN(E7))=0,\"0\",E7)&\",\"&IF(LEN(CLEAN(F7))=0,\"0\",F7)&\",\"&IF(LEN(CLEAN(G7))=0,\"0\",G7)&\",\"&IF(LEN(CLEAN(H7))=0,\"0\",H7)","v":"6,4,1,3,2,0,0"},6,4,1,3,2,null,null,null,null,"Personal Médico, paramédico y afín",null,null,null,null,{"$f":"'Formato 6 d)'!B13","v":0},{"$f":"'Formato 6 d)'!C13","v":0},{"$f":"'Formato 6 d)'!D13","v":0},{"$f":"'Formato 6 d)'!E13","v":0},{"$f":"'Formato 6 d)'!F13","v":0},{"$f":"'Formato 6 d)'!G13","v":0}]
["6,4,1,4,0,0,0",6,4,1,4,null,null,null,null,"Seguridad Pública",null,null,null,null,null,{"$f":"'Formato 6 d)'!B14","v":0},{"$f":"'Formato 6 d)'!C14","v":0},{"$f":"'Formato 6 d)'!D14","v":0},{"$f":"'Formato 6 d)'!E14","v":0},{"$f":"'Formato 6 d)'!F14","v":0},{"$f":"'Formato 6 d)'!G14","v":0}]
["6,4,1,5,0,0,0",6,4,1,5,null,null,null,null,"Gastos asociados a la implementación de nuevas leyes federales o reformas a las mismas",null,null,null,null,null,{"$f":"'Formato 6 d)'!B15","v":0},{"$f":"'Formato 6 d)'!C15","v":0},{"$f":"'Formato 6 d)'!D15","v":0},{"$f":"'Formato 6 d)'!E15","v":0},{"$f":"'Formato 6 d)'!F15","v":0},{"$f":"'Formato 6 d)'!G15","v":0}]
["6,4,1,5,1,0,0",6,4,1,5,1,null,null,null,null,"Nombre del Programa o Ley 1",null,null,null,null,{"$f":"'Formato 6 d)'!B16","v":0},{"$f":"'Formato 6 d)'!C16","v":0},{"$f":"'Formato 6 d)'!D16","v":0},{"$f":"'Formato 6 d)'!E16","v":0},{"$f":"'Formato 6 d)'!F16","v":0},{"$f":"'Formato 6 d)'!G16","v":0}]
["6,4,1,5,2,0,0",6,4,1,5,2,null,null,null,null,"Nombre del Programa o Ley 2",null,null,null,null,{"$f":"'Formato 6 d)'!B17","v":0},{"$f":"'Formato 6 d)'!C17","v":0},{"$f":"'Formato 6 d)'!D17","v":0},{"$f":"'Formato 6 d)'!E17","v":0},{"$f":"'Formato 6 d)'!F17","v":0},{"$f":"'Formato 6 d)'!G17","v":0}]
["6,4,1,6,0,0,0",6,4,1,6,null,null,null,null,"Sentencias laborales definitivas",null,null,null,null,null,{"$f":"'Formato 6 d)'!B18","v":0},{"$f":"'Formato 6 d)'!C18","v":0},{"$f":"'Formato 6 d)'!D18","v":0},{"$f":"'Formato 6 d)'!E18","v":0},{"$f":"'Formato 6 d)'!F18","v":0},{"$f":"'Formato 6 d)'!G18","v":0}]
["6,4,2,0,0,0,0",6,4,2,null,null,null,null,"Gasto  Etiquetado",null,null,null,null,null,null,{"$f":"'Formato 6 d)'!B20","v":0},{"$f":"'Formato 6 d)'!C20","v":0},{"$f":"'Formato 6 d)'!D20","v":0},{"$f":"'Formato 6 d)'!E20","v":0},{"$f":"'Formato 6 d)'!F20","v":0},{"$f":"'Formato 6 d)'!G20","v":0}]
["6,4,2,1,0,0,0",6,4,2,1,null,null,null,null,"Personal Administrativo",null,null,null,null,null,{"$f":"'Formato 6 d)'!B21","v":0},{"$f":"'Formato 6 d)'!C21","v":0},{"$f":"'Formato 6 d)'!D21","v":0},{"$f":"'Formato 6 d)'!E21","v":0},{"$f":"'Formato 6 d)'!F21","v":0},{"$f":"'Formato 6 d)'!G21","v":0}]
["6,4,2,2,0,0,0",6,4,2,2,null,null,null,null,"Magisterio",null,null,null,null,null,{"$f":"'Formato 6 d)'!B22","v":0},{"$f":"'Formato 6 d)'!C22","v":0},{"$f":"'Formato 6 d)'!D22","v":0},{"$f":"'Formato 6 d)'!E22","v":0},{"$f":"'Formato 6 d)'!F22","v":0},{"$f":"'Formato 6 d)'!G22","v":0}]
["6,4,2,3,0,0,0",6,4,2,3,null,null,null,null,"Servicios de Salud",null,null,null,null,null,{"$f":"'Formato 6 d)'!B23","v":0},{"$f":"'Formato 6 d)'!C23","v":0},{"$f":"'Formato 6 d)'!D23","v":0},{"$f":"'Formato 6 d)'!E23","v":0},{"$f":"'Formato 6 d)'!F23","v":0},{"$f":"'Formato 6 d)'!G23","v":0}]
["6,4,2,3,1,0,0",6,4,2,3,1,null,null,null,null,"Personal Administrativo",null,null,null,null,{"$f":"'Formato 6 d)'!B24","v":0},{"$f":"'Formato 6 d)'!C24","v":0},{"$f":"'Formato 6 d)'!D24","v":0},{"$f":"'Formato 6 d)'!E24","v":0},{"$f":"'Formato 6 d)'!F24","v":0},{"$f":"'Formato 6 d)'!G24","v":0}]
["6,4,2,3,2,0,0",6,4,2,3,2,null,null,null,null,"Personal Médico, paramédico y afín",null,null,null,null,{"$f":"'Formato 6 d)'!B25","v":0},{"$f":"'Formato 6 d)'!C25","v":0},{"$f":"'Formato 6 d)'!D25","v":0},{"$f":"'Formato 6 d)'!E25","v":0},{"$f":"'Formato 6 d)'!F25","v":0},{"$f":"'Formato 6 d)'!G25","v":0}]
["6,4,2,4,0,0,0",6,4,2,4,null,null,null,null,"Seguridad Pública",null,null,null,null,null,{"$f":"'Formato 6 d)'!B26","v":0},{"$f":"'Formato 6 d)'!C26","v":0},{"$f":"'Formato 6 d)'!D26","v":0},{"$f":"'Formato 6 d)'!E26","v":0},{"$f":"'Formato 6 d)'!F26","v":0},{"$f":"'Formato 6 d)'!G26","v":0}]
["6,4,2,5,0,0,0",6,4,2,5,null,null,null,null,"Gastos asociados a la implementación de nuevas leyes federales o reformas a las mismas",null,null,null,null,null,{"$f":"'Formato 6 d)'!B27","v":0},{"$f":"'Formato 6 d)'!C27","v":0},{"$f":"'Formato 6 d)'!D27","v":0},{"$f":"'Formato 6 d)'!E27","v":0},{"$f":"'Formato 6 d)'!F27","v":0},{"$f":"'Formato 6 d)'!G27","v":0}]
["6,4,2,5,1,0,0",6,4,2,5,1,null,null,null,null,"Nombre del Programa o Ley 1",null,null,null,null,{"$f":"'Formato 6 d)'!B28","v":0},{"$f":"'Formato 6 d)'!C28","v":0},{"$f":"'Formato 6 d)'!D28","v":0},{"$f":"'Formato 6 d)'!E28","v":0},{"$f":"'Formato 6 d)'!F28","v":0},{"$f":"'Formato 6 d)'!G28","v":0}]
["6,4,2,5,2,0,0",6,4,2,5,2,null,null,null,null,"Nombre del Programa o Ley 2",null,null,null,null,{"$f":"'Formato 6 d)'!B29","v":0},{"$f":"'Formato 6 d)'!C29","v":0},{"$f":"'Formato 6 d)'!D29","v":0},{"$f":"'Formato 6 d)'!E29","v":0},{"$f":"'Formato 6 d)'!F29","v":0},{"$f":"'Formato 6 d)'!G29","v":0}]
["6,4,2,6,0,0,0",6,4,2,6,null,null,null,null,"Sentencias laborales definitivas",null,null,null,null,null,{"$f":"'Formato 6 d)'!B30","v":0},{"$f":"'Formato 6 d)'!C30","v":0},{"$f":"'Formato 6 d)'!D30","v":0},{"$f":"'Formato 6 d)'!E30","v":0},{"$f":"'Formato 6 d)'!F30","v":0},{"$f":"'Formato 6 d)'!G30","v":0}]
["6,4,3,0,0,0,0",6,4,3,null,null,null,null,"Total de Gasto en Servicios Personales",null,null,null,null,null,null,{"$f":"'Formato 6 d)'!B32","v":33060235.800000001},{"$f":"'Formato 6 d)'!C32","v":1589276.38},{"$f":"'Formato 6 d)'!D32","v":34649512.18},{"$f":"'Formato 6 d)'!E32","v":32892208.050000001},{"$f":"'Formato 6 d)'!F32","v":32892208.050000001},{"$f":"'Formato 6 d)'!G32","v":1757304.129999999}]

{"sheet":"F07a","index":13,"n_rows":27,"n_cols":21,"rows_kept":27,"cut":false,"hidden":true,"merged":[]}
["CLAVE","N1","N2","N3","N4","N5","N6","N7","C  O  N  C  E  P  T  O  S",null,null,null,null,null,null,"AÑO_CUESTION_1","AÑO_CUESTION_2","AÑO_CUESTION_3","AÑO_CUESTION_4","AÑO_CUESTION_5","AÑO_CUESTION_6"]
[{"$f":"IF(LEN(CLEAN(B2))=0,\"0\",B2)&\",\"&IF(LEN(CLEAN(C2))=0,\"0\",C2)&\",\"&IF(LEN(CLEAN(D2))=0,\"0\",D2)&\",\"&IF(LEN(CLEAN(E2))=0,\"0\",E2)&\",\"&IF(LEN(CLEAN(F2))=0,\"0\",F2)&\",\"&IF(LEN(CLEAN(G2))=0,\"0\",G2)&\",\"&IF(LEN(CLEAN(H2))=0,\"0\",H2)","v":"7,1,1,0,0,0,0"},7,1,1,null,null,null,null,"Ingresos de Libre Disposición",null,null,null,null,null,null,{"$f":"#REF!","v":{"$error":"#REF!"}},{"$f":"#REF!","v":{"$error":"#REF!"}},{"$f":"#REF!","v":{"$error":"#REF!"}},{"$f":"#REF!","v":{"$error":"#REF!"}},{"$f":"#REF!","v":{"$error":"#REF!"}},{"$f":"#REF!","v":{"$error":"#REF!"}}]
[{"$f":"IF(LEN(CLEAN(B3))=0,\"0\",B3)&\",\"&IF(LEN(CLEAN(C3))=0,\"0\",C3)&\",\"&IF(LEN(CLEAN(D3))=0,\"0\",D3)&\",\"&IF(LEN(CLEAN(E3))=0,\"0\",E3)&\",\"&IF(LEN(CLEAN(F3))=0,\"0\",F3)&\",\"&IF(LEN(CLEAN(G3))=0,\"0\",G3)&\",\"&IF(LEN(CLEAN(H3))=0,\"0\",H3)","v":"7,1,1,1,0,0,0"},7,1,1,1,null,null,null,null,"Impuestos",null,null,null,null,null,{"$f":"#REF!","v":{"$error":"#REF!"}},{"$f":"#REF!","v":{"$error":"#REF!"}},{"$f":"#REF!","v":{"$error":"#REF!"}},{"$f":"#REF!","v":{"$error":"#REF!"}},{"$f":"#REF!","v":{"$error":"#REF!"}},{"$f":"#REF!","v":{"$error":"#REF!"}}]
["7,1,1,2,0,0,0",7,1,1,2,null,null,null,null,"Cuotas y Aportaciones de Seguridad Social",null,null,null,null,null,{"$f":"#REF!","v":{"$error":"#REF!"}},{"$f":"#REF!","v":{"$error":"#REF!"}},{"$f":"#REF!","v":{"$error":"#REF!"}},{"$f":"#REF!","v":{"$error":"#REF!"}},{"$f":"#REF!","v":{"$error":"#REF!"}},{"$f":"#REF!","v":{"$error":"#REF!"}}]
["7,1,1,3,0,0,0",7,1,1,3,null,null,null,null,"Contribuciones de Mejoras",null,null,null,null,null,{"$f":"#REF!","v":{"$error":"#REF!"}},{"$f":"#REF!","v":{"$error":"#REF!"}},{"$f":"#REF!","v":{"$error":"#REF!"}},{"$f":"#REF!","v":{"$error":"#REF!"}},{"$f":"#REF!","v":{"$error":"#REF!"}},{"$f":"#REF!","v":{"$error":"#REF!"}}]
["7,1,1,4,0,0,0",7,1,1,4,null,null,null,null,"Derechos ",null,null,null,null,null,{"$f":"#REF!","v":{"$error":"#REF!"}},{"$f":"#REF!","v":{"$error":"#REF!"}},{"$f":"#REF!","v":{"$error":"#REF!"}},{"$f":"#REF!","v":{"$error":"#REF!"}},{"$f":"#REF!","v":{"$error":"#REF!"}},{"$f":"#REF!","v":{"$error":"#REF!"}}]
["7,1,1,5,0,0,0",7,1,1,5,null,null,null,null,"Productos",null,null,null,null,null,{"$f":"#REF!","v":{"$error":"#REF!"}},{"$f":"#REF!","v":{"$error":"#REF!"}},{"$f":"#REF!","v":{"$error":"#REF!"}},{"$f":"#REF!","v":{"$error":"#REF!"}},{"$f":"#REF!","v":{"$error":"#REF!"}},{"$f":"#REF!","v":{"$error":"#REF!"}}]
["7,1,1,6,0,0,0",7,1,1,6,null,null,null,null,"Aprovechamientos",null,null,null,null,null,{"$f":"#REF!","v":{"$error":"#REF!"}},{"$f":"#REF!","v":{"$error":"#REF!"}},{"$f":"#REF!","v":{"$error":"#REF!"}},{"$f":"#REF!","v":{"$error":"#REF!"}},{"$f":"#REF!","v":{"$error":"#REF!"}},{"$f":"#REF!","v":{"$error":"#REF!"}}]
["7,1,1,7,0,0,0",7,1,1,7,null,null,null,null,"Ingresos por ventas de Bienes y Servicios",null,null,null,null,null,{"$f":"#REF!","v":{"$error":"#REF!"}},{"$f":"#REF!","v":{"$error":"#REF!"}},{"$f":"#REF!","v":{"$error":"#REF!"}},{"$f":"#REF!","v":{"$error":"#REF!"}},{"$f":"#REF!","v":{"$error":"#REF!"}},{"$f":"#REF!","v":{"$error":"#REF!"}}]
["7,1,1,8,0,0,0",7,1,1,8,null,null,null,null,"Participaciones",null,null,null,null,null,{"$f":"#REF!","v":{"$error":"#REF!"}},{"$f":"#REF!","v":{"$error":"#REF!"}},{"$f":"#REF!","v":{"$error":"#REF!"}},{"$f":"#REF!","v":{"$error":"#REF!"}},{"$f":"#REF!","v":{"$error":"#REF!"}},{"$f":"#REF!","v":{"$error":"#REF!"}}]
["7,1,1,9,0,0,0",7,1,1,9,null,null,null,null,"Incentivos Derivados de la Colaboración Fiscal",null,null,null,null,null,{"$f":"#REF!","v":{"$error":"#REF!"}},{"$f":"#REF!","v":{"$error":"#REF!"}},{"$f":"#REF!","v":{"$error":"#REF!"}},{"$f":"#REF!","v":{"$error":"#REF!"}},{"$f":"#REF!","v":{"$error":"#REF!"}},{"$f":"#REF!","v":{"$error":"#REF!"}}]
["7,1,1,10,0,0,0",7,1,1,10,null,null,null,null,"Transferencias",null,null,null,null,null,{"$f":"#REF!","v":{"$error":"#REF!"}},{"$f":"#REF!","v":{"$error":"#REF!"}},{"$f":"#REF!","v":{"$error":"#REF!"}},{"$f":"#REF!","v":{"$error":"#REF!"}},{"$f":"#REF!","v":{"$error":"#REF!"}},{"$f":"#REF!","v":{"$error":"#REF!"}}]
["7,1,1,11,0,0,0",7,1,1,11,null,null,null,null,"Convenios",null,null,null,null,null,{"$f":"#REF!","v":{"$error":"#REF!"}},{"$f":"#REF!","v":{"$error":"#REF!"}},{"$f":"#REF!","v":{"$error":"#REF!"}},{"$f":"#REF!","v":{"$error":"#REF!"}},{"$f":"#REF!","v":{"$error":"#REF!"}},{"$f":"#REF!","v":{"$error":"#REF!"}}]
["7,1,1,12,0,0,0",7,1,1,12,null,null,null,null,"Otros Ingresos de Libre Disposición",null,null,null,null,null,{"$f":"#REF!","v":{"$error":"#REF!"}},{"$f":"#REF!","v":{"$error":"#REF!"}},{"$f":"#REF!","v":{"$error":"#REF!"}},{"$f":"#REF!","v":{"$error":"#REF!"}},{"$f":"#REF!","v":{"$error":"#REF!"}},{"$f":"#REF!","v":{"$error":"#REF!"}}]
["7,1,2,0,0,0,0",7,1,2,null,null,null,null,"Transferencias Federales Etiquetadas",null,null,null,null,null,null,{"$f":"#REF!","v":{"$error":"#REF!"}},{"$f":"#REF!","v":{"$error":"#REF!"}},{"$f":"#REF!","v":{"$error":"#REF!"}},{"$f":"#REF!","v":{"$error":"#REF!"}},{"$f":"#REF!","v":{"$error":"#REF!"}},{"$f":"#REF!","v":{"$error":"#REF!"}}]
["7,1,2,1,0,0,0",7,1,2,1,null,null,null,null,"Aportaciones",null,null,null,null,null,{"$f":"#REF!","v":{"$error":"#REF!"}},{"$f":"#REF!","v":{"$error":"#REF!"}},{"$f":"#REF!","v":{"$error":"#REF!"}},{"$f":"#REF!","v":{"$error":"#REF!"}},{"$f":"#REF!","v":{"$error":"#REF!"}},{"$f":"#REF!","v":{"$error":"#REF!"}}]
["7,1,2,2,0,0,0",7,1,2,2,null,null,null,null,"Convenios",null,null,null,null,null,{"$f":"#REF!","v":{"$error":"#REF!"}},{"$f":"#REF!","v":{"$error":"#REF!"}},{"$f":"#REF!","v":{"$error":"#REF!"}},{"$f":"#REF!","v":{"$error":"#REF!"}},{"$f":"#REF!","v":{"$error":"#REF!"}},{"$f":"#REF!","v":{"$error":"#REF!"}}]
["7,1,2,3,0,0,0",7,1,2,3,null,null,null,null,"Fondos Distintos de Aportaciones",null,null,null,null,null,{"$f":"#REF!","v":{"$error":"#REF!"}},{"$f":"#REF!","v":{"$error":"#REF!"}},{"$f":"#REF!","v":{"$error":"#REF!"}},{"$f":"#REF!","v":{"$error":"#REF!"}},{"$f":"#REF!","v":{"$error":"#REF!"}},{"$f":"#REF!","v":{"$error":"#REF!"}}]
["7,1,2,4,0,0,0",7,1,2,4,null,null,null,null,"Transferencias, Subsidios y Subvenciones, y Pensiones y Jubilaciones",null,null,null,null,null,{"$f":"#REF!","v":{"$error":"#REF!"}},{"$f":"#REF!","v":{"$error":"#REF!"}},{"$f":"#REF!","v":{"$error":"#REF!"}},{"$f":"#REF!","v":{"$error":"#REF!"}},{"$f":"#REF!","v":{"$error":"#REF!"}},{"$f":"#REF!","v":{"$error":"#REF!"}}]
["7,1,2,5,0,0,0",7,1,2,5,null,null,null,null,"Otras Transferencias Federales Etiquetadas",null,null,null,null,null,{"$f":"#REF!","v":{"$error":"#REF!"}},{"$f":"#REF!","v":{"$error":"#REF!"}},{"$f":"#REF!","v":{"$error":"#REF!"}},{"$f":"#REF!","v":{"$error":"#REF!"}},{"$f":"#REF!","v":{"$error":"#REF!"}},{"$f":"#REF!","v":{"$error":"#REF!"}}]
["7,1,3,0,0,0,0",7,1,3,null,null,null,null,"Ingresos Derivados de Financiamientos",null,null,null,null,null,null,{"$f":"#REF!","v":{"$error":"#REF!"}},{"$f":"#REF!","v":{"$error":"#REF!"}},{"$f":"#REF!","v":{"$error":"#REF!"}},{"$f":"#REF!","v":{"$error":"#REF!"}},{"$f":"#REF!","v":{"$error":"#REF!"}},{"$f":"#REF!","v":{"$error":"#REF!"}}]
["7,1,3,1,0,0,0",7,1,3,1,null,null,null,null,"Ingresos Derivados de Financiamientos",null,null,null,null,null,{"$f":"#REF!","v":{"$error":"#REF!"}},{"$f":"#REF!","v":{"$error":"#REF!"}},{"$f":"#REF!","v":{"$error":"#REF!"}},{"$f":"#REF!","v":{"$error":"#REF!"}},{"$f":"#REF!","v":{"$error":"#REF!"}},{"$f":"#REF!","v":{"$error":"#REF!"}}]
["7,1,4,0,0,0,0",7,1,4,null,null,null,null,"Total de Ingresos Proyectados",null,null,null,null,null,null,{"$f":"#REF!","v":{"$error":"#REF!"}},{"$f":"#REF!","v":{"$error":"#REF!"}},{"$f":"#REF!","v":{"$error":"#REF!"}},{"$f":"#REF!","v":{"$error":"#REF!"}},{"$f":"#REF!","v":{"$error":"#REF!"}},{"$f":"#REF!","v":{"$error":"#REF!"}}]
["7,1,5,0,0,0,0",7,1,5,null,null,null,null,"Datos Informativos"]
["7,1,0,1,0,0,0",7,1,null,1,null,null,null,null,"Ingresos Derivados de Financiamientos con Fuente de Pago de Recursos de Libre Disposición",null,null,null,null,null,{"$f":"#REF!","v":{"$error":"#REF!"}},{"$f":"#REF!","v":{"$error":"#REF!"}},{"$f":"#REF!","v":{"$error":"#REF!"}},{"$f":"#REF!","v":{"$error":"#REF!"}},{"$f":"#REF!","v":{"$error":"#REF!"}},{"$f":"#REF!","v":{"$error":"#REF!"}}]
["7,1,0,2,0,0,0",7,1,null,2,null,null,null,null,"Ingresos Derivados de Financiamientos con Fuente de Pago de Transferencias Federales Etiquetadas",null,null,null,null,null,{"$f":"#REF!","v":{"$error":"#REF!"}},{"$f":"#REF!","v":{"$error":"#REF!"}},{"$f":"#REF!","v":{"$error":"#REF!"}},{"$f":"#REF!","v":{"$error":"#REF!"}},{"$f":"#REF!","v":{"$error":"#REF!"}},{"$f":"#REF!","v":{"$error":"#REF!"}}]
["7,1,0,3,0,0,0",7,1,null,3,null,null,null,null,"Ingresos Derivados de Financiamientos",null,null,null,null,null,{"$f":"#REF!","v":{"$error":"#REF!"}},{"$f":"#REF!","v":{"$error":"#REF!"}},{"$f":"#REF!","v":{"$error":"#REF!"}},{"$f":"#REF!","v":{"$error":"#REF!"}},{"$f":"#REF!","v":{"$error":"#REF!"}},{"$f":"#REF!","v":{"$error":"#REF!"}}]

{"sheet":"F07b","index":14,"n_rows":22,"n_cols":21,"rows_kept":22,"cut":false,"hidden":true,"merged":[]}
["CLAVE","N1","N2","N3","N4","N5","N6","N7","C  O  N  C  E  P  T  O  S",null,null,null,null,null,null,"AÑO_CUESTION_1","AÑO_CUESTION_2","AÑO_CUESTION_3","AÑO_CUESTION_4","AÑO_CUESTION_5","AÑO_CUESTION_6"]
[{"$f":"IF(LEN(CLEAN(B2))=0,\"0\",B2)&\",\"&IF(LEN(CLEAN(C2))=0,\"0\",C2)&\",\"&IF(LEN(CLEAN(D2))=0,\"0\",D2)&\",\"&IF(LEN(CLEAN(E2))=0,\"0\",E2)&\",\"&IF(LEN(CLEAN(F2))=0,\"0\",F2)&\",\"&IF(LEN(CLEAN(G2))=0,\"0\",G2)&\",\"&IF(LEN(CLEAN(H2))=0,\"0\",H2)","v":"7,2,1,0,0,0,0"},7,2,1,null,null,null,null,"Gasto No Etiquetado",null,null,null,null,null,null,{"$f":"#REF!","v":{"$error":"#REF!"}},{"$f":"#REF!","v":{"$error":"#REF!"}},{"$f":"#REF!","v":{"$error":"#REF!"}},{"$f":"#REF!","v":{"$error":"#REF!"}},{"$f":"#REF!","v":{"$error":"#REF!"}},{"$f":"#REF!","v":{"$error":"#REF!"}}]
[{"$f":"IF(LEN(CLEAN(B3))=0,\"0\",B3)&\",\"&IF(LEN(CLEAN(C3))=0,\"0\",C3)&\",\"&IF(LEN(CLEAN(D3))=0,\"0\",D3)&\",\"&IF(LEN(CLEAN(E3))=0,\"0\",E3)&\",\"&IF(LEN(CLEAN(F3))=0,\"0\",F3)&\",\"&IF(LEN(CLEAN(G3))=0,\"0\",G3)&\",\"&IF(LEN(CLEAN(H3))=0,\"0\",H3)","v":"7,2,1,1,0,0,0"},7,2,1,1,null,null,null,null,"Servicios Personales",null,null,null,null,null,{"$f":"#REF!","v":{"$error":"#REF!"}},{"$f":"#REF!","v":{"$error":"#REF!"}},{"$f":"#REF!","v":{"$error":"#REF!"}},{"$f":"#REF!","v":{"$error":"#REF!"}},{"$f":"#REF!","v":{"$error":"#REF!"}},{"$f":"#REF!","v":{"$error":"#REF!"}}]
["7,2,1,2,0,0,0",7,2,1,2,null,null,null,null,"Materiales y Suministros",null,null,null,null,null,{"$f":"#REF!","v":{"$error":"#REF!"}},{"$f":"#REF!","v":{"$error":"#REF!"}},{"$f":"#REF!","v":{"$error":"#REF!"}},{"$f":"#REF!","v":{"$error":"#REF!"}},{"$f":"#REF!","v":{"$error":"#REF!"}},{"$f":"#REF!","v":{"$error":"#REF!"}}]
["7,2,1,3,0,0,0",7,2,1,3,null,null,null,null,"Servicios Generales",null,null,null,null,null,{"$f":"#REF!","v":{"$error":"#REF!"}},{"$f":"#REF!","v":{"$error":"#REF!"}},{"$f":"#REF!","v":{"$error":"#REF!"}},{"$f":"#REF!","v":{"$error":"#REF!"}},{"$f":"#REF!","v":{"$error":"#REF!"}},{"$f":"#REF!","v":{"$error":"#REF!"}}]
["7,2,1,4,0,0,0",7,2,1,4,null,null,null,null,"Transferencias, Asignaciones, Subsidios y Otras Ayudas",null,null,null,null,null,{"$f":"#REF!","v":{"$error":"#REF!"}},{"$f":"#REF!","v":{"$error":"#REF!"}},{"$f":"#REF!","v":{"$error":"#REF!"}},{"$f":"#REF!","v":{"$error":"#REF!"}},{"$f":"#REF!","v":{"$error":"#REF!"}},{"$f":"#REF!","v":{"$error":"#REF!"}}]
["7,2,1,5,0,0,0",7,2,1,5,null,null,null,null,"Bienes Muebles, Inmuebles e Intangibles",null,null,null,null,null,{"$f":"#REF!","v":{"$error":"#REF!"}},{"$f":"#REF!","v":{"$error":"#REF!"}},{"$f":"#REF!","v":{"$error":"#REF!"}},{"$f":"#REF!","v":{"$error":"#REF!"}},{"$f":"#REF!","v":{"$error":"#REF!"}},{"$f":"#REF!","v":{"$error":"#REF!"}}]
["7,2,1,6,0,0,0",7,2,1,6,null,null,null,null,"Inversión Pública",null,null,null,null,null,{"$f":"#REF!","v":{"$error":"#REF!"}},{"$f":"#REF!","v":{"$error":"#REF!"}},{"$f":"#REF!","v":{"$error":"#REF!"}},{"$f":"#REF!","v":{"$error":"#REF!"}},{"$f":"#REF!","v":{"$error":"#REF!"}},{"$f":"#REF!","v":{"$error":"#REF!"}}]
["7,2,1,7,0,0,0",7,2,1,7,null,null,null,null,"Inversiones Financieras y Otras Provisiones",null,null,null,null,null,{"$f":"#REF!","v":{"$error":"#REF!"}},{"$f":"#REF!","v":{"$error":"#REF!"}},{"$f":"#REF!","v":{"$error":"#REF!"}},{"$f":"#REF!","v":{"$error":"#REF!"}},{"$f":"#REF!","v":{"$error":"#REF!"}},{"$f":"#REF!","v":{"$error":"#REF!"}}]
["7,2,1,8,0,0,0",7,2,1,8,null,null,null,null,"Participaciones y Aportaciones ",null,null,null,null,null,{"$f":"#REF!","v":{"$error":"#REF!"}},{"$f":"#REF!","v":{"$error":"#REF!"}},{"$f":"#REF!","v":{"$error":"#REF!"}},{"$f":"#REF!","v":{"$error":"#REF!"}},{"$f":"#REF!","v":{"$error":"#REF!"}},{"$f":"#REF!","v":{"$error":"#REF!"}}]
["7,2,1,9,0,0,0",7,2,1,9,null,null,null,null,"Deuda Pública",null,null,null,null,null,{"$f":"#REF!","v":{"$error":"#REF!"}},{"$f":"#REF!","v":{"$error":"#REF!"}},{"$f":"#REF!","v":{"$error":"#REF!"}},{"$f":"#REF!","v":{"$error":"#REF!"}},{"$f":"#REF!","v":{"$error":"#REF!"}},{"$f":"#REF!","v":{"$error":"#REF!"}}]
["7,2,2,0,0,0,0",7,2,2,null,null,null,null,"Gasto Etiquetado",null,null,null,null,null,null,{"$f":"#REF!","v":{"$error":"#REF!"}},{"$f":"#REF!","v":{"$error":"#REF!"}},{"$f":"#REF!","v":{"$error":"#REF!"}},{"$f":"#REF!","v":{"$error":"#REF!"}},{"$f":"#REF!","v":{"$error":"#REF!"}},{"$f":"#REF!","v":{"$error":"#REF!"}}]
["7,2,2,1,0,0,0",7,2,2,1,null,null,null,null,"Servicios Personales",null,null,null,null,null,{"$f":"#REF!","v":{"$error":"#REF!"}},{"$f":"#REF!","v":{"$error":"#REF!"}},{"$f":"#REF!","v":{"$error":"#REF!"}},{"$f":"#REF!","v":{"$error":"#REF!"}},{"$f":"#REF!","v":{"$error":"#REF!"}},{"$f":"#REF!","v":{"$error":"#REF!"}}]
["7,2,2,2,0,0,0",7,2,2,2,null,null,null,null,"Materiales y Suministros",null,null,null,null,null,{"$f":"#REF!","v":{"$error":"#REF!"}},{"$f":"#REF!","v":{"$error":"#REF!"}},{"$f":"#REF!","v":{"$error":"#REF!"}},{"$f":"#REF!","v":{"$error":"#REF!"}},{"$f":"#REF!","v":{"$error":"#REF!"}},{"$f":"#REF!","v":{"$error":"#REF!"}}]
["7,2,2,3,0,0,0",7,2,2,3,null,null,null,null,"Servicios Generales",null,null,null,null,null,{"$f":"#REF!","v":{"$error":"#REF!"}},{"$f":"#REF!","v":{"$error":"#REF!"}},{"$f":"#REF!","v":{"$error":"#REF!"}},{"$f":"#REF!","v":{"$error":"#REF!"}},{"$f":"#REF!","v":{"$error":"#REF!"}},{"$f":"#REF!","v":{"$error":"#REF!"}}]
["7,2,2,4,0,0,0",7,2,2,4,null,null,null,null,"Transferencias, Asignaciones, Subsidios y Otras Ayudas",null,null,null,null,null,{"$f":"#REF!","v":{"$error":"#REF!"}},{"$f":"#REF!","v":{"$error":"#REF!"}},{"$f":"#REF!","v":{"$error":"#REF!"}},{"$f":"#REF!","v":{"$error":"#REF!"}},{"$f":"#REF!","v":{"$error":"#REF!"}},{"$f":"#REF!","v":{"$error":"#REF!"}}]
["7,2,2,5,0,0,0",7,2,2,5,null,null,null,null,"Bienes Muebles, Inmuebles e Intangibles",null,null,null,null,null,{"$f":"#REF!","v":{"$error":"#REF!"}},{"$f":"#REF!","v":{"$error":"#REF!"}},{"$f":"#REF!","v":{"$error":"#REF!"}},{"$f":"#REF!","v":{"$error":"#REF!"}},{"$f":"#REF!","v":{"$error":"#REF!"}},{"$f":"#REF!","v":{"$error":"#REF!"}}]
["7,2,2,6,0,0,0",7,2,2,6,null,null,null,null,"Inversión Pública",null,null,null,null,null,{"$f":"#REF!","v":{"$error":"#REF!"}},{"$f":"#REF!","v":{"$error":"#REF!"}},{"$f":"#REF!","v":{"$error":"#REF!"}},{"$f":"#REF!","v":{"$error":"#REF!"}},{"$f":"#REF!","v":{"$error":"#REF!"}},{"$f":"#REF!","v":{"$error":"#REF!"}}]
["7,2,2,7,0,0,0",7,2,2,7,null,null,null,null,"Inversiones Financieras y Otras Provisiones",null,null,null,null,null,{"$f":"#REF!","v":{"$error":"#REF!"}},{"$f":"#REF!","v":{"$error":"#REF!"}},{"$f":"#REF!","v":{"$error":"#REF!"}},{"$f":"#REF!","v":{"$error":"#REF!"}},{"$f":"#REF!","v":{"$error":"#REF!"}},{"$f":"#REF!","v":{"$error":"#REF!"}}]
["7,2,2,8,0,0,0",7,2,2,8,null,null,null,null,"Participaciones y Aportaciones",null,null,null,null,null,{"$f":"#REF!","v":{"$error":"#REF!"}},{"$f":"#REF!","v":{"$error":"#REF!"}},{"$f":"#REF!","v":{"$error":"#REF!"}},{"$f":"#REF!","v":{"$error":"#REF!"}},{"$f":"#REF!","v":{"$error":"#REF!"}},{"$f":"#REF!","v":{"$error":"#REF!"}}]
["7,2,2,9,0,0,0",7,2,2,9,null,null,null,null,"Deuda Pública",null,null,null,null,null,{"$f":"#REF!","v":{"$error":"#REF!"}},{"$f":"#REF!","v":{"$error":"#REF!"}},{"$f":"#REF!","v":{"$error":"#REF!"}},{"$f":"#REF!","v":{"$error":"#REF!"}},{"$f":"#REF!","v":{"$error":"#REF!"}},{"$f":"#REF!","v":{"$error":"#REF!"}}]
["7,2,3,0,0,0,0",7,2,3,null,null,null,null,"Total de Egresos Proyectados",null,null,null,null,null,null,{"$f":"#REF!","v":{"$error":"#REF!"}},{"$f":"#REF!","v":{"$error":"#REF!"}},{"$f":"#REF!","v":{"$error":"#REF!"}},{"$f":"#REF!","v":{"$error":"#REF!"}},{"$f":"#REF!","v":{"$error":"#REF!"}},{"$f":"#REF!","v":{"$error":"#REF!"}}]

{"sheet":"F07c","index":15,"n_rows":27,"n_cols":21,"rows_kept":27,"cut":false,"hidden":true,"merged":[]}
["CLAVE","N1","N2","N3","N4","N5","N6","N7","C  O  N  C  E  P  T  O  S",null,null,null,null,null,null,"AÑO_CUESTION_5","AÑO_CUESTION_4","AÑO_CUESTION_3","AÑO_CUESTION_2","AÑO_CUESTION_1","AÑO_CUESTION"]
[{"$f":"IF(LEN(CLEAN(B2))=0,\"0\",B2)&\",\"&IF(LEN(CLEAN(C2))=0,\"0\",C2)&\",\"&IF(LEN(CLEAN(D2))=0,\"0\",D2)&\",\"&IF(LEN(CLEAN(E2))=0,\"0\",E2)&\",\"&IF(LEN(CLEAN(F2))=0,\"0\",F2)&\",\"&IF(LEN(CLEAN(G2))=0,\"0\",G2)&\",\"&IF(LEN(CLEAN(H2))=0,\"0\",H2)","v":"7,3,1,0,0,0,0"},7,3,1,null,null,null,null,"Ingresos de Libre Disposición",null,null,null,null,null,null,{"$f":"#REF!","v":{"$error":"#REF!"}},{"$f":"#REF!","v":{"$error":"#REF!"}},{"$f":"#REF!","v":{"$error":"#REF!"}},{"$f":"#REF!","v":{"$error":"#REF!"}},{"$f":"#REF!","v":{"$error":"#REF!"}},{"$f":"#REF!","v":{"$error":"#REF!"}}]
[{"$f":"IF(LEN(CLEAN(B3))=0,\"0\",B3)&\",\"&IF(LEN(CLEAN(C3))=0,\"0\",C3)&\",\"&IF(LEN(CLEAN(D3))=0,\"0\",D3)&\",\"&IF(LEN(CLEAN(E3))=0,\"0\",E3)&\",\"&IF(LEN(CLEAN(F3))=0,\"0\",F3)&\",\"&IF(LEN(CLEAN(G3))=0,\"0\",G3)&\",\"&IF(LEN(CLEAN(H3))=0,\"0\",H3)","v":"7,3,1,0,0,0,0"},7,3,1,null,null,null,null,null,"Impuestos",null,null,null,null,null,{"$f":"#REF!","v":{"$error":"#REF!"}},{"$f":"#REF!","v":{"$error":"#REF!"}},{"$f":"#REF!","v":{"$error":"#REF!"}},{"$f":"#REF!","v":{"$error":"#REF!"}},{"$f":"#REF!","v":{"$error":"#REF!"}},{"$f":"#REF!","v":{"$error":"#REF!"}}]
["7,3,1,0,0,0,0",7,3,1,null,null,null,null,null,"Cuotas y Aportaciones de Seguridad Social",null,null,null,null,null,{"$f":"#REF!","v":{"$error":"#REF!"}},{"$f":"#REF!","v":{"$error":"#REF!"}},{"$f":"#REF!","v":{"$error":"#REF!"}},{"$f":"#REF!","v":{"$error":"#REF!"}},{"$f":"#REF!","v":{"$error":"#REF!"}},{"$f":"#REF!","v":{"$error":"#REF!"}}]
["7,3,1,0,0,0,0",7,3,1,null,null,null,null,null,"Contribuciones de Mejoras",null,null,null,null,null,{"$f":"#REF!","v":{"$error":"#REF!"}},{"$f":"#REF!","v":{"$error":"#REF!"}},{"$f":"#REF!","v":{"$error":"#REF!"}},{"$f":"#REF!","v":{"$error":"#REF!"}},{"$f":"#REF!","v":{"$error":"#REF!"}},{"$f":"#REF!","v":{"$error":"#REF!"}}]
["7,3,1,0,0,0,0",7,3,1,null,null,null,null,null,"Derechos",null,null,null,null,null,{"$f":"#REF!","v":{"$error":"#REF!"}},{"$f":"#REF!","v":{"$error":"#REF!"}},{"$f":"#REF!","v":{"$error":"#REF!"}},{"$f":"#REF!","v":{"$error":"#REF!"}},{"$f":"#REF!","v":{"$error":"#REF!"}},{"$f":"#REF!","v":{"$error":"#REF!"}}]
["7,3,1,0,0,0,0",7,3,1,null,null,null,null,null,"Productos",null,null,null,null,null,{"$f":"#REF!","v":{"$error":"#REF!"}},{"$f":"#REF!","v":{"$error":"#REF!"}},{"$f":"#REF!","v":{"$error":"#REF!"}},{"$f":"#REF!","v":{"$error":"#REF!"}},{"$f":"#REF!","v":{"$error":"#REF!"}},{"$f":"#REF!","v":{"$error":"#REF!"}}]
["7,3,1,0,0,0,0",7,3,1,null,null,null,null,null,"Aprovechamientos",null,null,null,null,null,{"$f":"#REF!","v":{"$error":"#REF!"}},{"$f":"#REF!","v":{"$error":"#REF!"}},{"$f":"#REF!","v":{"$error":"#REF!"}},{"$f":"#REF!","v":{"$error":"#REF!"}},{"$f":"#REF!","v":{"$error":"#REF!"}},{"$f":"#REF!","v":{"$error":"#REF!"}}]
["7,3,1,0,0,0,0",7,3,1,null,null,null,null,null,"Ingresos por Ventas de Bienes y Servicios",null,null,null,null,null,{"$f":"#REF!","v":{"$error":"#REF!"}},{"$f":"#REF!","v":{"$error":"#REF!"}},{"$f":"#REF!","v":{"$error":"#REF!"}},{"$f":"#REF!","v":{"$error":"#REF!"}},{"$f":"#REF!","v":{"$error":"#REF!"}},{"$f":"#REF!","v":{"$error":"#REF!"}}]
["7,3,1,0,0,0,0",7,3,1,null,null,null,null,null,"Participaciones",null,null,null,null,null,{"$f":"#REF!","v":{"$error":"#REF!"}},{"$f":"#REF!","v":{"$error":"#REF!"}},{"$f":"#REF!","v":{"$error":"#REF!"}},{"$f":"#REF!","v":{"$error":"#REF!"}},{"$f":"#REF!","v":{"$error":"#REF!"}},{"$f":"#REF!","v":{"$error":"#REF!"}}]
["7,3,1,0,0,0,0",7,3,1,null,null,null,null,null,"Incentivos Derivados de la Colaboración Fiscal",null,null,null,null,null,{"$f":"#REF!","v":{"$error":"#REF!"}},{"$f":"#REF!","v":{"$error":"#REF!"}},{"$f":"#REF!","v":{"$error":"#REF!"}},{"$f":"#REF!","v":{"$error":"#REF!"}},{"$f":"#REF!","v":{"$error":"#REF!"}},{"$f":"#REF!","v":{"$error":"#REF!"}}]
["7,3,1,0,0,0,0",7,3,1,null,null,null,null,null,"Transferencias ",null,null,null,null,null,{"$f":"#REF!","v":{"$error":"#REF!"}},{"$f":"#REF!","v":{"$error":"#REF!"}},{"$f":"#REF!","v":{"$error":"#REF!"}},{"$f":"#REF!","v":{"$error":"#REF!"}},{"$f":"#REF!","v":{"$error":"#REF!"}},{"$f":"#REF!","v":{"$error":"#REF!"}}]
["7,3,1,0,0,0,0",7,3,1,null,null,null,null,null,"Convenios",null,null,null,null,null,{"$f":"#REF!","v":{"$error":"#REF!"}},{"$f":"#REF!","v":{"$error":"#REF!"}},{"$f":"#REF!","v":{"$error":"#REF!"}},{"$f":"#REF!","v":{"$error":"#REF!"}},{"$f":"#REF!","v":{"$error":"#REF!"}},{"$f":"#REF!","v":{"$error":"#REF!"}}]
["7,3,1,0,0,0,0",7,3,1,null,null,null,null,null,"Otros Ingresos de Libre Disposición",null,null,null,null,null,{"$f":"#REF!","v":{"$error":"#REF!"}},{"$f":"#REF!","v":{"$error":"#REF!"}},{"$f":"#REF!","v":{"$error":"#REF!"}},{"$f":"#REF!","v":{"$error":"#REF!"}},{"$f":"#REF!","v":{"$error":"#REF!"}},{"$f":"#REF!","v":{"$error":"#REF!"}}]
["7,3,2,0,0,0,0",7,3,2,null,null,null,null,"Transferencias Federales Etiquetadas",null,null,null,null,null,null,{"$f":"#REF!","v":{"$error":"#REF!"}},{"$f":"#REF!","v":{"$error":"#REF!"}},{"$f":"#REF!","v":{"$error":"#REF!"}},{"$f":"#REF!","v":{"$error":"#REF!"}},{"$f":"#REF!","v":{"$error":"#REF!"}},{"$f":"#REF!","v":{"$error":"#REF!"}}]
["7,3,2,0,0,0,0",7,3,2,null,null,null,null,null,"Aportaciones",null,null,null,null,null,{"$f":"#REF!","v":{"$error":"#REF!"}},{"$f":"#REF!","v":{"$error":"#REF!"}},{"$f":"#REF!","v":{"$error":"#REF!"}},{"$f":"#REF!","v":{"$error":"#REF!"}},{"$f":"#REF!","v":{"$error":"#REF!"}},{"$f":"#REF!","v":{"$error":"#REF!"}}]
["7,3,2,0,0,0,0",7,3,2,null,null,null,null,null,"Convenios",null,null,null,null,null,{"$f":"#REF!","v":{"$error":"#REF!"}},{"$f":"#REF!","v":{"$error":"#REF!"}},{"$f":"#REF!","v":{"$error":"#REF!"}},{"$f":"#REF!","v":{"$error":"#REF!"}},{"$f":"#REF!","v":{"$error":"#REF!"}},{"$f":"#REF!","v":{"$error":"#REF!"}}]
["7,3,2,0,0,0,0",7,3,2,null,null,null,null,null,"Fondos Distintos de Aportaciones",null,null,null,null,null,{"$f":"#REF!","v":{"$error":"#REF!"}},{"$f":"#REF!","v":{"$error":"#REF!"}},{"$f":"#REF!","v":{"$error":"#REF!"}},{"$f":"#REF!","v":{"$error":"#REF!"}},{"$f":"#REF!","v":{"$error":"#REF!"}},{"$f":"#REF!","v":{"$error":"#REF!"}}]
["7,3,2,0,0,0,0",7,3,2,null,null,null,null,null,"Transferencias, Subsidios y Subvenciones, y Pensiones y Jubilaciones",null,null,null,null,null,{"$f":"#REF!","v":{"$error":"#REF!"}},{"$f":"#REF!","v":{"$error":"#REF!"}},{"$f":"#REF!","v":{"$error":"#REF!"}},{"$f":"#REF!","v":{"$error":"#REF!"}},{"$f":"#REF!","v":{"$error":"#REF!"}},{"$f":"#REF!","v":{"$error":"#REF!"}}]
["7,3,2,0,0,0,0",7,3,2,null,null,null,null,null,"Otras Transferencias Federales Etiquetadas",null,null,null,null,null,{"$f":"#REF!","v":{"$error":"#REF!"}},{"$f":"#REF!","v":{"$error":"#REF!"}},{"$f":"#REF!","v":{"$error":"#REF!"}},{"$f":"#REF!","v":{"$error":"#REF!"}},{"$f":"#REF!","v":{"$error":"#REF!"}},{"$f":"#REF!","v":{"$error":"#REF!"}}]
["7,3,3,0,0,0,0",7,3,3,null,null,null,null,"Ingresos Derivados de Financiamientos",null,null,null,null,null,null,{"$f":"#REF!","v":{"$error":"#REF!"}},{"$f":"#REF!","v":{"$error":"#REF!"}},{"$f":"#REF!","v":{"$error":"#REF!"}},{"$f":"#REF!","v":{"$error":"#REF!"}},{"$f":"#REF!","v":{"$error":"#REF!"}},{"$f":"#REF!","v":{"$error":"#REF!"}}]
["7,3,3,0,0,0,0",7,3,3,null,null,null,null,null,"Ingresos Derivados de Financiamientos",null,null,null,null,null,{"$f":"#REF!","v":{"$error":"#REF!"}},{"$f":"#REF!","v":{"$error":"#REF!"}},{"$f":"#REF!","v":{"$error":"#REF!"}},{"$f":"#REF!","v":{"$error":"#REF!"}},{"$f":"#REF!","v":{"$error":"#REF!"}},{"$f":"#REF!","v":{"$error":"#REF!"}}]
["7,3,4,0,0,0,0",7,3,4,null,null,null,null,"Total de Resultados de Ingresos",null,null,null,null,null,null,{"$f":"#REF!","v":{"$error":"#REF!"}},{"$f":"#REF!","v":{"$error":"#REF!"}},{"$f":"#REF!","v":{"$error":"#REF!"}},{"$f":"#REF!","v":{"$error":"#REF!"}},{"$f":"#REF!","v":{"$error":"#REF!"}},{"$f":"#REF!","v":{"$error":"#REF!"}}]
["7,3,5,0,0,0,0",7,3,5,null,null,null,null,"Datos Informativos",null,null,null,null,null,null,{"$f":"#REF!","v":{"$error":"#REF!"}},{"$f":"#REF!","v":{"$error":"#REF!"}},{"$f":"#REF!","v":{"$error":"#REF!"}},{"$f":"#REF!","v":{"$error":"#REF!"}},{"$f":"#REF!","v":{"$error":"#REF!"}},{"$f":"#REF!","v":{"$error":"#REF!"}}]
["7,3,5,0,0,0,0",7,3,5,null,null,null,null,null,"Ingresos Derivados de Financiamientos con Fuente de Pago de Recursos de Libre Disposición",null,null,null,null,null,{"$f":"#REF!","v":{"$error":"#REF!"}},{"$f":"#REF!","v":{"$error":"#REF!"}},{"$f":"#REF!","v":{"$error":"#REF!"}},{"$f":"#REF!","v":{"$error":"#REF!"}},{"$f":"#REF!","v":{"$error":"#REF!"}},{"$f":"#REF!","v":{"$error":"#REF!"}}]
["7,3,5,0,0,0,0",7,3,5,null,null,null,null,null,"Ingresos derivados de Financiamientos con Fuente de Pago de Transferencias Federales Etiquetadas",null,null,null,null,null,{"$f":"#REF!","v":{"$error":"#REF!"}},{"$f":"#REF!","v":{"$error":"#REF!"}},{"$f":"#REF!","v":{"$error":"#REF!"}},{"$f":"#REF!","v":{"$error":"#REF!"}},{"$f":"#REF!","v":{"$error":"#REF!"}},{"$f":"#REF!","v":{"$error":"#REF!"}}]
["7,3,5,0,0,0,0",7,3,5,null,null,null,null,null,"Ingresos Derivados de Financiamiento",null,null,null,null,null,{"$f":"#REF!","v":{"$error":"#REF!"}},{"$f":"#REF!","v":{"$error":"#REF!"}},{"$f":"#REF!","v":{"$error":"#REF!"}},{"$f":"#REF!","v":{"$error":"#REF!"}},{"$f":"#REF!","v":{"$error":"#REF!"}},{"$f":"#REF!","v":{"$error":"#REF!"}}]

{"sheet":"F07d","index":16,"n_rows":22,"n_cols":21,"rows_kept":22,"cut":false,"hidden":true,"merged":[]}
["CLAVE","N1","N2","N3","N4","N5","N6","N7","C  O  N  C  E  P  T  O  S",null,null,null,null,null,null,"AÑO_CUESTION_5","AÑO_CUESTION_4","AÑO_CUESTION_3","AÑO_CUESTION_2","AÑO_CUESTION_1","AÑO_CUESTION"]
[{"$f":"IF(LEN(CLEAN(B2))=0,\"0\",B2)&\",\"&IF(LEN(CLEAN(C2))=0,\"0\",C2)&\",\"&IF(LEN(CLEAN(D2))=0,\"0\",D2)&\",\"&IF(LEN(CLEAN(E2))=0,\"0\",E2)&\",\"&IF(LEN(CLEAN(F2))=0,\"0\",F2)&\",\"&IF(LEN(CLEAN(G2))=0,\"0\",G2)&\",\"&IF(LEN(CLEAN(H2))=0,\"0\",H2)","v":"7,4,1,0,0,0,0"},7,4,1,null,null,null,null,"Gasto No Etiquetado",null,null,null,null,null,null,{"$f":"#REF!","v":{"$error":"#REF!"}},{"$f":"#REF!","v":{"$error":"#REF!"}},{"$f":"#REF!","v":{"$error":"#REF!"}},{"$f":"#REF!","v":{"$error":"#REF!"}},{"$f":"#REF!","v":{"$error":"#REF!"}},{"$f":"#REF!","v":{"$error":"#REF!"}}]
[{"$f":"IF(LEN(CLEAN(B3))=0,\"0\",B3)&\",\"&IF(LEN(CLEAN(C3))=0,\"0\",C3)&\",\"&IF(LEN(CLEAN(D3))=0,\"0\",D3)&\",\"&IF(LEN(CLEAN(E3))=0,\"0\",E3)&\",\"&IF(LEN(CLEAN(F3))=0,\"0\",F3)&\",\"&IF(LEN(CLEAN(G3))=0,\"0\",G3)&\",\"&IF(LEN(CLEAN(H3))=0,\"0\",H3)","v":"7,4,1,1,0,0,0"},7,4,1,1,null,null,null,null,"Servicios Personales",null,null,null,null,null,{"$f":"#REF!","v":{"$error":"#REF!"}},{"$f":"#REF!","v":{"$error":"#REF!"}},{"$f":"#REF!","v":{"$error":"#REF!"}},{"$f":"#REF!","v":{"$error":"#REF!"}},{"$f":"#REF!","v":{"$error":"#REF!"}},{"$f":"#REF!","v":{"$error":"#REF!"}}]
["7,4,1,2,0,0,0",7,4,1,2,null,null,null,null,"Materiales y Suministros",null,null,null,null,null,{"$f":"#REF!","v":{"$error":"#REF!"}},{"$f":"#REF!","v":{"$error":"#REF!"}},{"$f":"#REF!","v":{"$error":"#REF!"}},{"$f":"#REF!","v":{"$error":"#REF!"}},{"$f":"#REF!","v":{"$error":"#REF!"}},{"$f":"#REF!","v":{"$error":"#REF!"}}]
["7,4,1,3,0,0,0",7,4,1,3,null,null,null,null,"Servicios Generales",null,null,null,null,null,{"$f":"#REF!","v":{"$error":"#REF!"}},{"$f":"#REF!","v":{"$error":"#REF!"}},{"$f":"#REF!","v":{"$error":"#REF!"}},{"$f":"#REF!","v":{"$error":"#REF!"}},{"$f":"#REF!","v":{"$error":"#REF!"}},{"$f":"#REF!","v":{"$error":"#REF!"}}]
["7,4,1,4,0,0,0",7,4,1,4,null,null,null,null,"Transferencias, Asignaciones, Subsidios y Otras Ayudas",null,null,null,null,null,{"$f":"#REF!","v":{"$error":"#REF!"}},{"$f":"#REF!","v":{"$error":"#REF!"}},{"$f":"#REF!","v":{"$error":"#REF!"}},{"$f":"#REF!","v":{"$error":"#REF!"}},{"$f":"#REF!","v":{"$error":"#REF!"}},{"$f":"#REF!","v":{"$error":"#REF!"}}]
["7,4,1,5,0,0,0",7,4,1,5,null,null,null,null,"Bienes Muebles, Inmuebles e Intangibles",null,null,null,null,null,{"$f":"#REF!","v":{"$error":"#REF!"}},{"$f":"#REF!","v":{"$error":"#REF!"}},{"$f":"#REF!","v":{"$error":"#REF!"}},{"$f":"#REF!","v":{"$error":"#REF!"}},{"$f":"#REF!","v":{"$error":"#REF!"}},{"$f":"#REF!","v":{"$error":"#REF!"}}]
["7,4,1,6,0,0,0",7,4,1,6,null,null,null,null,"Inversión Pública",null,null,null,null,null,{"$f":"#REF!","v":{"$error":"#REF!"}},{"$f":"#REF!","v":{"$error":"#REF!"}},{"$f":"#REF!","v":{"$error":"#REF!"}},{"$f":"#REF!","v":{"$error":"#REF!"}},{"$f":"#REF!","v":{"$error":"#REF!"}},{"$f":"#REF!","v":{"$error":"#REF!"}}]
["7,4,1,7,0,0,0",7,4,1,7,null,null,null,null,"Inversiones Financieras y Otras Provisiones",null,null,null,null,null,{"$f":"#REF!","v":{"$error":"#REF!"}},{"$f":"#REF!","v":{"$error":"#REF!"}},{"$f":"#REF!","v":{"$error":"#REF!"}},{"$f":"#REF!","v":{"$error":"#REF!"}},{"$f":"#REF!","v":{"$error":"#REF!"}},{"$f":"#REF!","v":{"$error":"#REF!"}}]
["7,4,1,8,0,0,0",7,4,1,8,null,null,null,null,"Participaciones y Aportaciones ",null,null,null,null,null,{"$f":"#REF!","v":{"$error":"#REF!"}},{"$f":"#REF!","v":{"$error":"#REF!"}},{"$f":"#REF!","v":{"$error":"#REF!"}},{"$f":"#REF!","v":{"$error":"#REF!"}},{"$f":"#REF!","v":{"$error":"#REF!"}},{"$f":"#REF!","v":{"$error":"#REF!"}}]
["7,4,1,9,0,0,0",7,4,1,9,null,null,null,null,"Deuda Pública",null,null,null,null,null,{"$f":"#REF!","v":{"$error":"#REF!"}},{"$f":"#REF!","v":{"$error":"#REF!"}},{"$f":"#REF!","v":{"$error":"#REF!"}},{"$f":"#REF!","v":{"$error":"#REF!"}},{"$f":"#REF!","v":{"$error":"#REF!"}},{"$f":"#REF!","v":{"$error":"#REF!"}}]
[{"$f":"IF(LEN(CLEAN(B12))=0,\"0\",B12)&\",\"&IF(LEN(CLEAN(C12))=0,\"0\",C12)&\",\"&IF(LEN(CLEAN(D12))=0,\"0\",D12)&\",\"&IF(LEN(CLEAN(E12))=0,\"0\",E12)&\",\"&IF(LEN(CLEAN(F12))=0,\"0\",F12)&\",\"&IF(LEN(CLEAN(G12))=0,\"0\",G12)&\",\"&IF(LEN(CLEAN(H12))=0,\"0\",H12)","v":"7,4,2,0,0,0,0"},7,4,2,null,null,null,null,"Gasto Etiquetado",null,null,null,null,null,null,{"$f":"#REF!","v":{"$error":"#REF!"}},{"$f":"#REF!","v":{"$error":"#REF!"}},{"$f":"#REF!","v":{"$error":"#REF!"}},{"$f":"#REF!","v":{"$error":"#REF!"}},{"$f":"#REF!","v":{"$error":"#REF!"}},{"$f":"#REF!","v":{"$error":"#REF!"}}]
[{"$f":"IF(LEN(CLEAN(B13))=0,\"0\",B13)&\",\"&IF(LEN(CLEAN(C13))=0,\"0\",C13)&\",\"&IF(LEN(CLEAN(D13))=0,\"0\",D13)&\",\"&IF(LEN(CLEAN(E13))=0,\"0\",E13)&\",\"&IF(LEN(CLEAN(F13))=0,\"0\",F13)&\",\"&IF(LEN(CLEAN(G13))=0,\"0\",G13)&\",\"&IF(LEN(CLEAN(H13))=0,\"0\",H13)","v":"7,4,2,1,0,0,0"},7,4,2,1,null,null,null,null,"Servicios Personales",null,null,null,null,null,{"$f":"#REF!","v":{"$error":"#REF!"}},{"$f":"#REF!","v":{"$error":"#REF!"}},{"$f":"#REF!","v":{"$error":"#REF!"}},{"$f":"#REF!","v":{"$error":"#REF!"}},{"$f":"#REF!","v":{"$error":"#REF!"}},{"$f":"#REF!","v":{"$error":"#REF!"}}]
["7,4,2,2,0,0,0",7,4,2,2,null,null,null,null,"Materiales y Suministros",null,null,null,null,null,{"$f":"#REF!","v":{"$error":"#REF!"}},{"$f":"#REF!","v":{"$error":"#REF!"}},{"$f":"#REF!","v":{"$error":"#REF!"}},{"$f":"#REF!","v":{"$error":"#REF!"}},{"$f":"#REF!","v":{"$error":"#REF!"}},{"$f":"#REF!","v":{"$error":"#REF!"}}]
["7,4,2,3,0,0,0",7,4,2,3,null,null,null,null,"Servicios Generales",null,null,null,null,null,{"$f":"#REF!","v":{"$error":"#REF!"}},{"$f":"#REF!","v":{"$error":"#REF!"}},{"$f":"#REF!","v":{"$error":"#REF!"}},{"$f":"#REF!","v":{"$error":"#REF!"}},{"$f":"#REF!","v":{"$error":"#REF!"}},{"$f":"#REF!","v":{"$error":"#REF!"}}]
["7,4,2,4,0,0,0",7,4,2,4,null,null,null,null,"Transferencias, Asignaciones, Subsidios y Otras Ayudas",null,null,null,null,null,{"$f":"#REF!","v":{"$error":"#REF!"}},{"$f":"#REF!","v":{"$error":"#REF!"}},{"$f":"#REF!","v":{"$error":"#REF!"}},{"$f":"#REF!","v":{"$error":"#REF!"}},{"$f":"#REF!","v":{"$error":"#REF!"}},{"$f":"#REF!","v":{"$error":"#REF!"}}]
["7,4,2,5,0,0,0",7,4,2,5,null,null,null,null,"Bienes Muebles, Inmuebles e Intangibles",null,null,null,null,null,{"$f":"#REF!","v":{"$error":"#REF!"}},{"$f":"#REF!","v":{"$error":"#REF!"}},{"$f":"#REF!","v":{"$error":"#REF!"}},{"$f":"#REF!","v":{"$error":"#REF!"}},{"$f":"#REF!","v":{"$error":"#REF!"}},{"$f":"#REF!","v":{"$error":"#REF!"}}]
["7,4,2,6,0,0,0",7,4,2,6,null,null,null,null,"Inversión Pública",null,null,null,null,null,{"$f":"#REF!","v":{"$error":"#REF!"}},{"$f":"#REF!","v":{"$error":"#REF!"}},{"$f":"#REF!","v":{"$error":"#REF!"}},{"$f":"#REF!","v":{"$error":"#REF!"}},{"$f":"#REF!","v":{"$error":"#REF!"}},{"$f":"#REF!","v":{"$error":"#REF!"}}]
["7,4,2,7,0,0,0",7,4,2,7,null,null,null,null,"Inversiones Financieras y Otras Provisiones",null,null,null,null,null,{"$f":"#REF!","v":{"$error":"#REF!"}},{"$f":"#REF!","v":{"$error":"#REF!"}},{"$f":"#REF!","v":{"$error":"#REF!"}},{"$f":"#REF!","v":{"$error":"#REF!"}},{"$f":"#REF!","v":{"$error":"#REF!"}},{"$f":"#REF!","v":{"$error":"#REF!"}}]
["7,4,2,8,0,0,0",7,4,2,8,null,null,null,null,"Participaciones y Aportaciones ",null,null,null,null,null,{"$f":"#REF!","v":{"$error":"#REF!"}},{"$f":"#REF!","v":{"$error":"#REF!"}},{"$f":"#REF!","v":{"$error":"#REF!"}},{"$f":"#REF!","v":{"$error":"#REF!"}},{"$f":"#REF!","v":{"$error":"#REF!"}},{"$f":"#REF!","v":{"$error":"#REF!"}}]
["7,4,2,9,0,0,0",7,4,2,9,null,null,null,null,"Deuda Pública",null,null,null,null,null,{"$f":"#REF!","v":{"$error":"#REF!"}},{"$f":"#REF!","v":{"$error":"#REF!"}},{"$f":"#REF!","v":{"$error":"#REF!"}},{"$f":"#REF!","v":{"$error":"#REF!"}},{"$f":"#REF!","v":{"$error":"#REF!"}},{"$f":"#REF!","v":{"$error":"#REF!"}}]
["7,4,3,0,0,0,0",7,4,3,null,null,null,null,"3.  Total del Resultado de Egresos (3=1+2)",null,null,null,null,null,null,{"$f":"#REF!","v":{"$error":"#REF!"}},{"$f":"#REF!","v":{"$error":"#REF!"}},{"$f":"#REF!","v":{"$error":"#REF!"}},{"$f":"#REF!","v":{"$error":"#REF!"}},{"$f":"#REF!","v":{"$error":"#REF!"}},{"$f":"#REF!","v":{"$error":"#REF!"}}]

{"sheet":"F08","index":17,"n_rows":52,"n_cols":20,"rows_kept":52,"cut":false,"hidden":true,"merged":[]}
["CLAVE","N1","N2","N3","N4","N5","N6","N7","C  O  N  C  E  P  T  O  S",null,null,null,null,null,null,"PENSIONES","SALUD","RIESGOS","INVALIDEZ","OTRAS"]
[{"$f":"IF(LEN(CLEAN(B2))=0,\"0\",B2)&\",\"&IF(LEN(CLEAN(C2))=0,\"0\",C2)&\",\"&IF(LEN(CLEAN(D2))=0,\"0\",D2)&\",\"&IF(LEN(CLEAN(E2))=0,\"0\",E2)&\",\"&IF(LEN(CLEAN(F2))=0,\"0\",F2)&\",\"&IF(LEN(CLEAN(G2))=0,\"0\",G2)&\",\"&IF(LEN(CLEAN(H2))=0,\"0\",H2)","v":"8,1,0,0,0,0,0"},8,1,null,null,null,null,null,"Tipo de Sistema"]
[{"$f":"IF(LEN(CLEAN(B3))=0,\"0\",B3)&\",\"&IF(LEN(CLEAN(C3))=0,\"0\",C3)&\",\"&IF(LEN(CLEAN(D3))=0,\"0\",D3)&\",\"&IF(LEN(CLEAN(E3))=0,\"0\",E3)&\",\"&IF(LEN(CLEAN(F3))=0,\"0\",F3)&\",\"&IF(LEN(CLEAN(G3))=0,\"0\",G3)&\",\"&IF(LEN(CLEAN(H3))=0,\"0\",H3)","v":"8,1,1,0,0,0,0"},8,1,1,null,null,null,null,null,"Prestación laboral o Fondo general para trabajadores del estado o municipio",null,null,null,null,null,{"$f":"#REF!","v":{"$error":"#REF!"}},{"$f":"#REF!","v":{"$error":"#REF!"}},{"$f":"#REF!","v":{"$error":"#REF!"}},{"$f":"#REF!","v":{"$error":"#REF!"}},{"$f":"#REF!","v":{"$error":"#REF!"}}]
["8,1,2,0,0,0,0",8,1,2,null,null,null,null,null,"Beneficio definido, Contribución definida o Mixto",null,null,null,null,null,{"$f":"#REF!","v":{"$error":"#REF!"}},{"$f":"#REF!","v":{"$error":"#REF!"}},{"$f":"#REF!","v":{"$error":"#REF!"}},{"$f":"#REF!","v":{"$error":"#REF!"}},{"$f":"#REF!","v":{"$error":"#REF!"}}]
["8,2,0,0,0,0,0",8,2,null,null,null,null,null,"Población afiliada"]
["8,2,1,0,0,0,0",8,2,1,null,null,null,null,null,"Activos",null,null,null,null,null,{"$f":"#REF!","v":{"$error":"#REF!"}},{"$f":"#REF!","v":{"$error":"#REF!"}},{"$f":"#REF!","v":{"$error":"#REF!"}},{"$f":"#REF!","v":{"$error":"#REF!"}},{"$f":"#REF!","v":{"$error":"#REF!"}}]
["8,2,1,1,0,0,0",8,2,1,1,null,null,null,null,null,"Edad máxima",null,null,null,null,{"$f":"#REF!","v":{"$error":"#REF!"}},{"$f":"#REF!","v":{"$error":"#REF!"}},{"$f":"#REF!","v":{"$error":"#REF!"}},{"$f":"#REF!","v":{"$error":"#REF!"}},{"$f":"#REF!","v":{"$error":"#REF!"}}]
["8,2,1,2,0,0,0",8,2,1,2,null,null,null,null,null,"Edad mínima",null,null,null,null,{"$f":"#REF!","v":{"$error":"#REF!"}},{"$f":"#REF!","v":{"$error":"#REF!"}},{"$f":"#REF!","v":{"$error":"#REF!"}},{"$f":"#REF!","v":{"$error":"#REF!"}},{"$f":"#REF!","v":{"$error":"#REF!"}}]
["8,2,1,3,0,0,0",8,2,1,3,null,null,null,null,null,"Edad promedio",null,null,null,null,{"$f":"#REF!","v":{"$error":"#REF!"}},{"$f":"#REF!","v":{"$error":"#REF!"}},{"$f":"#REF!","v":{"$error":"#REF!"}},{"$f":"#REF!","v":{"$error":"#REF!"}},{"$f":"#REF!","v":{"$error":"#REF!"}}]
["8,2,2,0,0,0,0",8,2,2,null,null,null,null,null,"Pensionados y Jubilados",null,null,null,null,null,{"$f":"#REF!","v":{"$error":"#REF!"}},{"$f":"#REF!","v":{"$error":"#REF!"}},{"$f":"#REF!","v":{"$error":"#REF!"}},{"$f":"#REF!","v":{"$error":"#REF!"}},{"$f":"#REF!","v":{"$error":"#REF!"}}]
["8,2,2,1,0,0,0",8,2,2,1,null,null,null,null,null,"Edad máxima",null,null,null,null,{"$f":"#REF!","v":{"$error":"#REF!"}},{"$f":"#REF!","v":{"$error":"#REF!"}},{"$f":"#REF!","v":{"$error":"#REF!"}},{"$f":"#REF!","v":{"$error":"#REF!"}},{"$f":"#REF!","v":{"$error":"#REF!"}}]
["8,2,2,2,0,0,0",8,2,2,2,null,null,null,null,null,"Edad mínima",null,null,null,null,{"$f":"#REF!","v":{"$error":"#REF!"}},{"$f":"#REF!","v":{"$error":"#REF!"}},{"$f":"#REF!","v":{"$error":"#REF!"}},{"$f":"#REF!","v":{"$error":"#REF!"}},{"$f":"#REF!","v":{"$error":"#REF!"}}]
["8,2,2,3,0,0,0",8,2,2,3,null,null,null,null,null,"Edad promedio",null,null,null,null,{"$f":"#REF!","v":{"$error":"#REF!"}},{"$f":"#REF!","v":{"$error":"#REF!"}},{"$f":"#REF!","v":{"$error":"#REF!"}},{"$f":"#REF!","v":{"$error":"#REF!"}},{"$f":"#REF!","v":{"$error":"#REF!"}}]
["8,2,3,0,0,0,0",8,2,3,null,null,null,null,null,"Beneficiarios",null,null,null,null,null,{"$f":"#REF!","v":{"$error":"#REF!"}},{"$f":"#REF!","v":{"$error":"#REF!"}},{"$f":"#REF!","v":{"$error":"#REF!"}},{"$f":"#REF!","v":{"$error":"#REF!"}},{"$f":"#REF!","v":{"$error":"#REF!"}}]
["8,2,4,0,0,0,0",8,2,4,null,null,null,null,null,"Promedio de años de servicio (trabajadores activos)",null,null,null,null,null,{"$f":"#REF!","v":{"$error":"#REF!"}},{"$f":"#REF!","v":{"$error":"#REF!"}},{"$f":"#REF!","v":{"$error":"#REF!"}},{"$f":"#REF!","v":{"$error":"#REF!"}},{"$f":"#REF!","v":{"$error":"#REF!"}}]
["8,2,5,0,0,0,0",8,2,5,null,null,null,null,null,"Aportación individual al plan de pensión como % del salario",null,null,null,null,null,{"$f":"#REF!","v":{"$error":"#REF!"}},{"$f":"#REF!","v":{"$error":"#REF!"}},{"$f":"#REF!","v":{"$error":"#REF!"}},{"$f":"#REF!","v":{"$error":"#REF!"}},{"$f":"#REF!","v":{"$error":"#REF!"}}]
["8,2,6,0,0,0,0",8,2,6,null,null,null,null,null,"Aportación del ente público al plan de pensión como % del salario",null,null,null,null,null,{"$f":"#REF!","v":{"$error":"#REF!"}},{"$f":"#REF!","v":{"$error":"#REF!"}},{"$f":"#REF!","v":{"$error":"#REF!"}},{"$f":"#REF!","v":{"$error":"#REF!"}},{"$f":"#REF!","v":{"$error":"#REF!"}}]
["8,2,7,0,0,0,0",8,2,7,null,null,null,null,null,"Crecimiento esperado de los pensionados y jubilados (como %)",null,null,null,null,null,{"$f":"#REF!","v":{"$error":"#REF!"}},{"$f":"#REF!","v":{"$error":"#REF!"}},{"$f":"#REF!","v":{"$error":"#REF!"}},{"$f":"#REF!","v":{"$error":"#REF!"}},{"$f":"#REF!","v":{"$error":"#REF!"}}]
["8,2,8,0,0,0,0",8,2,8,null,null,null,null,null,"Crecimiento esperado de los activos (como %)",null,null,null,null,null,{"$f":"#REF!","v":{"$error":"#REF!"}},{"$f":"#REF!","v":{"$error":"#REF!"}},{"$f":"#REF!","v":{"$error":"#REF!"}},{"$f":"#REF!","v":{"$error":"#REF!"}},{"$f":"#REF!","v":{"$error":"#REF!"}}]
["8,2,9,0,0,0,0",8,2,9,null,null,null,null,null,"Edad de Jubilación o Pensión",null,null,null,null,null,{"$f":"#REF!","v":{"$error":"#REF!"}},{"$f":"#REF!","v":{"$error":"#REF!"}},{"$f":"#REF!","v":{"$error":"#REF!"}},{"$f":"#REF!","v":{"$error":"#REF!"}},{"$f":"#REF!","v":{"$error":"#REF!"}}]
["8,2,10,0,0,0,0",8,2,10,null,null,null,null,null,"Esperanza de vida",null,null,null,null,null,{"$f":"#REF!","v":{"$error":"#REF!"}},{"$f":"#REF!","v":{"$error":"#REF!"}},{"$f":"#REF!","v":{"$error":"#REF!"}},{"$f":"#REF!","v":{"$error":"#REF!"}},{"$f":"#REF!","v":{"$error":"#REF!"}}]
["8,3,0,0,0,0,0",8,3,null,null,null,null,null,"Ingresos del Fondo"]
["8,3,1,0,0,0,0",8,3,1,null,null,null,null,null,"Ingresos Anuales al Fondo de Pensiones",null,null,null,null,null,{"$f":"#REF!","v":{"$error":"#REF!"}},{"$f":"#REF!","v":{"$error":"#REF!"}},{"$f":"#REF!","v":{"$error":"#REF!"}},{"$f":"#REF!","v":{"$error":"#REF!"}},{"$f":"#REF!","v":{"$error":"#REF!"}}]
["8,4,0,0,0,0,0",8,4,null,null,null,null,null,"Nómina anual"]
["8,4,1,0,0,0,0",8,4,1,null,null,null,null,null,"Activos",null,null,null,null,null,{"$f":"#REF!","v":{"$error":"#REF!"}},{"$f":"#REF!","v":{"$error":"#REF!"}},{"$f":"#REF!","v":{"$error":"#REF!"}},{"$f":"#REF!","v":{"$error":"#REF!"}},{"$f":"#REF!","v":{"$error":"#REF!"}}]
["8,4,2,0,0,0,0",8,4,2,null,null,null,null,null,"Pensionados y Jubilados",null,null,null,null,null,{"$f":"#REF!","v":{"$error":"#REF!"}},{"$f":"#REF!","v":{"$error":"#REF!"}},{"$f":"#REF!","v":{"$error":"#REF!"}},{"$f":"#REF!","v":{"$error":"#REF!"}},{"$f":"#REF!","v":{"$error":"#REF!"}}]
["8,4,3,0,0,0,0",8,4,3,null,null,null,null,null,"Beneficiarios de Pensionados y Jubilados",null,null,null,null,null,{"$f":"#REF!","v":{"$error":"#REF!"}},{"$f":"#REF!","v":{"$error":"#REF!"}},{"$f":"#REF!","v":{"$error":"#REF!"}},{"$f":"#REF!","v":{"$error":"#REF!"}},{"$f":"#REF!","v":{"$error":"#REF!"}}]
["8,5,0,0,0,0,0",8,5,null,null,null,null,null,"Monto mensual por pensión"]
["8,5,1,0,0,0,0",8,5,1,null,null,null,null,null,"Máximo",null,null,null,null,null,{"$f":"#REF!","v":{"$error":"#REF!"}},{"$f":"#REF!","v":{"$error":"#REF!"}},{"$f":"#REF!","v":{"$error":"#REF!"}},{"$f":"#REF!","v":{"$error":"#REF!"}},{"$f":"#REF!","v":{"$error":"#REF!"}}]
["8,5,2,0,0,0,0",8,5,2,null,null,null,null,null,"Mínimo",null,null,null,null,null,{"$f":"#REF!","v":{"$error":"#REF!"}},{"$f":"#REF!","v":{"$error":"#REF!"}},{"$f":"#REF!","v":{"$error":"#REF!"}},{"$f":"#REF!","v":{"$error":"#REF!"}},{"$f":"#REF!","v":{"$error":"#REF!"}}]
["8,5,3,0,0,0,0",8,5,3,null,null,null,null,null,"Promedio",null,null,null,null,null,{"$f":"#REF!","v":{"$error":"#REF!"}},{"$f":"#REF!","v":{"$error":"#REF!"}},{"$f":"#REF!","v":{"$error":"#REF!"}},{"$f":"#REF!","v":{"$error":"#REF!"}},{"$f":"#REF!","v":{"$error":"#REF!"}}]
["8,6,0,0,0,0,0",8,6,null,null,null,null,null,"Monto de la reserva",null,null,null,null,null,null,{"$f":"#REF!","v":{"$error":"#REF!"}},{"$f":"#REF!","v":{"$error":"#REF!"}},{"$f":"#REF!","v":{"$error":"#REF!"}},{"$f":"#REF!","v":{"$error":"#REF!"}},{"$f":"#REF!","v":{"$error":"#REF!"}}]
["8,7,0,0,0,0,0",8,7,null,null,null,null,null,"Valor presente de las obligaciones"]
["8,7,1,0,0,0,0",8,7,1,null,null,null,null,null,"Pensiones y Jubilaciones en curso de pago",null,null,null,null,null,{"$f":"#REF!","v":{"$error":"#REF!"}},{"$f":"#REF!","v":{"$error":"#REF!"}},{"$f":"#REF!","v":{"$error":"#REF!"}},{"$f":"#REF!","v":{"$error":"#REF!"}},{"$f":"#REF!","v":{"$error":"#REF!"}}]
["8,7,2,0,0,0,0",8,7,2,null,null,null,null,null,"Generación actual",null,null,null,null,null,{"$f":"#REF!","v":{"$error":"#REF!"}},{"$f":"#REF!","v":{"$error":"#REF!"}},{"$f":"#REF!","v":{"$error":"#REF!"}},{"$f":"#REF!","v":{"$error":"#REF!"}},{"$f":"#REF!","v":{"$error":"#REF!"}}]
["8,7,3,0,0,0,0",8,7,3,null,null,null,null,null,"Generaciones futuras",null,null,null,null,null,{"$f":"#REF!","v":{"$error":"#REF!"}},{"$f":"#REF!","v":{"$error":"#REF!"}},{"$f":"#REF!","v":{"$error":"#REF!"}},{"$f":"#REF!","v":{"$error":"#REF!"}},{"$f":"#REF!","v":{"$error":"#REF!"}}]
["8,8,0,0,0,0,0",8,8,null,null,null,null,null,"Valor presente de las contribuciones asociadas a los sueldos futuros de cotización X%"]
["8,8,1,0,0,0,0",8,8,1,null,null,null,null,null,"Generación actual",null,null,null,null,null,{"$f":"#REF!","v":{"$error":"#REF!"}},{"$f":"#REF!","v":{"$error":"#REF!"}},{"$f":"#REF!","v":{"$error":"#REF!"}},{"$f":"#REF!","v":{"$error":"#REF!"}},{"$f":"#REF!","v":{"$error":"#REF!"}}]
["8,8,2,0,0,0,0",8,8,2,null,null,null,null,null,"Generaciones futuras",null,null,null,null,null,{"$f":"#REF!","v":{"$error":"#REF!"}},{"$f":"#REF!","v":{"$error":"#REF!"}},{"$f":"#REF!","v":{"$error":"#REF!"}},{"$f":"#REF!","v":{"$error":"#REF!"}},{"$f":"#REF!","v":{"$error":"#REF!"}}]
["8,9,0,0,0,0,0",8,9,null,null,null,null,null,"Valor presente de aportaciones futuras"]
["8,9,1,0,0,0,0",8,9,1,null,null,null,null,null,"Generación actual",null,null,null,null,null,{"$f":"#REF!","v":{"$error":"#REF!"}},{"$f":"#REF!","v":{"$error":"#REF!"}},{"$f":"#REF!","v":{"$error":"#REF!"}},{"$f":"#REF!","v":{"$error":"#REF!"}},{"$f":"#REF!","v":{"$error":"#REF!"}}]
["8,9,2,0,0,0,0",8,9,2,null,null,null,null,null,"Generaciones futuras",null,null,null,null,null,{"$f":"#REF!","v":{"$error":"#REF!"}},{"$f":"#REF!","v":{"$error":"#REF!"}},{"$f":"#REF!","v":{"$error":"#REF!"}},{"$f":"#REF!","v":{"$error":"#REF!"}},{"$f":"#REF!","v":{"$error":"#REF!"}}]
["8,9,3,0,0,0,0",8,9,3,null,null,null,null,null,"Otros Ingresos",null,null,null,null,null,{"$f":"#REF!","v":{"$error":"#REF!"}},{"$f":"#REF!","v":{"$error":"#REF!"}},{"$f":"#REF!","v":{"$error":"#REF!"}},{"$f":"#REF!","v":{"$error":"#REF!"}},{"$f":"#REF!","v":{"$error":"#REF!"}}]
["8,10,0,0,0,0,0",8,10,null,null,null,null,null,"Déficit/superávit actuarial"]
["8,10,1,0,0,0,0",8,10,1,null,null,null,null,null,"Generación actual",null,null,null,null,null,{"$f":"#REF!","v":{"$error":"#REF!"}},{"$f":"#REF!","v":{"$error":"#REF!"}},{"$f":"#REF!","v":{"$error":"#REF!"}},{"$f":"#REF!","v":{"$error":"#REF!"}},{"$f":"#REF!","v":{"$error":"#REF!"}}]
["8,10,2,0,0,0,0",8,10,2,null,null,null,null,null,"Generaciones futuras",null,null,null,null,null,{"$f":"#REF!","v":{"$error":"#REF!"}},{"$f":"#REF!","v":{"$error":"#REF!"}},{"$f":"#REF!","v":{"$error":"#REF!"}},{"$f":"#REF!","v":{"$error":"#REF!"}},{"$f":"#REF!","v":{"$error":"#REF!"}}]
["8,11,0,0,0,0,0",8,11,null,null,null,null,null,"Periodo de suficiencia"]
["8,11,1,0,0,0,0",8,11,1,null,null,null,null,null,"Año de descapitalización",null,null,null,null,null,{"$f":"#REF!","v":{"$error":"#REF!"}},{"$f":"#REF!","v":{"$error":"#REF!"}},{"$f":"#REF!","v":{"$error":"#REF!"}},{"$f":"#REF!","v":{"$error":"#REF!"}},{"$f":"#REF!","v":{"$error":"#REF!"}}]
["8,11,2,0,0,0,0",8,11,2,null,null,null,null,null,"Tasa de rendimiento",null,null,null,null,null,{"$f":"#REF!","v":{"$error":"#REF!"}},{"$f":"#REF!","v":{"$error":"#REF!"}},{"$f":"#REF!","v":{"$error":"#REF!"}},{"$f":"#REF!","v":{"$error":"#REF!"}},{"$f":"#REF!","v":{"$error":"#REF!"}}]
["8,12,0,0,0,0,0",8,12,null,null,null,null,null,"Estudio actuarial"]
["8,12,1,0,0,0,0",8,12,1,null,null,null,null,null,"Año de elaboración del estudio actuarial",null,null,null,null,null,{"$f":"#REF!","v":{"$error":"#REF!"}},{"$f":"#REF!","v":{"$error":"#REF!"}},{"$f":"#REF!","v":{"$error":"#REF!"}},{"$f":"#REF!","v":{"$error":"#REF!"}},{"$f":"#REF!","v":{"$error":"#REF!"}}]
["8,12,2,0,0,0,0",8,12,2,null,null,null,null,null,"Empresa que elaboró el estudio actuarial",null,null,null,null,null,{"$f":"#REF!","v":{"$error":"#REF!"}},{"$f":"#REF!","v":{"$error":"#REF!"}},{"$f":"#REF!","v":{"$error":"#REF!"}},{"$f":"#REF!","v":{"$error":"#REF!"}},{"$f":"#REF!","v":{"$error":"#REF!"}}]